Workbook

Sheet How To
A1: Formulas:

Sheet Settings
A1: Parameter | B1: Value
A4: Formulas / Values | B4: F | C4: F / V
A5: Ep min | B5: 0.0001
A6: Ep max | B6: 0.05
A7: Ep step | B7: 0.0001

Sheet Data
A1: observation_date | B1: SPASTT01USM661N | C1: SPASTT01KRM661N | D1: SPASTT01GBM661N | E1: SPASTT01ITM661N | F1: SPASTT01GRM661N | G1: SPASTT01DEM661N | H1: SPASTT01CNM661N | I1: SPASTT01RUM661N | J1: SPASTT01INM661N | K1: SPASTT01NOM661N | L1: SPASTT01DKM661N | M1: SPASTT01NLM661N
A2: 1999-01-01 | B2: 0.871 | C2: 0.339 | D2: 1.093 | E2: 1.422 | F2: 1.825 | G2: 1.07 | H2: 0.405 | I2: 0.032 | J2: 0.181 | K2: 0.306 | L2: 0.503 | M2: 1.387
A3: 1999-02-01 | B3: 0.861 | C3: 0.303 | D3: 1.099 | E3: 1.396 | F3: 2.047 | G3: 1.047 | H3: 0.387 | I3: 0.038 | J3: 0.181 | K3: 0.309 | L3: 0.486 | M3: 1.354
A4: 1999-03-01 | B4: 0.883 | C4: 0.333 | D4: 1.128 | E4: 1.465 | F4: 2.159 | G4: 1.026 | H4: 0.406 | I4: 0.055 | J4: 0.203 | K4: 0.317 | L4: 0.463 | M4: 1.386
A5: 1999-04-01 | B5: 0.918 | C5: 0.409 | D5: 1.181 | E5: 1.485 | F5: 2.117 | G5: 1.069 | H5: 0.41 | I5: 0.061 | J5: 0.189 | K5: 0.338 | L5: 0.486 | M5: 1.447
A6: 1999-05-01 | B6: 0.93 | C6: 0.423 | D6: 1.156 | E6: 1.458 | F6: 2.459 | G6: 1.077 | H6: 0.405 | I6: 0.074 | J6: 0.213 | K6: 0.354 | L6: 0.495 | M6: 1.478
A7: 1999-06-01 | B7: 0.921 | C7: 0.478 | D7: 1.175 | E7: 1.458 | F7: 2.468 | G7: 1.082 | H7: 0.518 | I7: 0.085 | J7: 0.224 | K7: 0.355 | L7: 0.496 | M7: 1.496
A8: 1999-07-01 | B8: 0.949 | C8: 0.551 | D8: 1.175 | E8: 1.462 | F8: 2.669 | G8: 1.124 | H8: 0.554 | I8: 0.095 | J8: 0.249 | K8: 0.362 | L8: 0.52 | M8: 1.519
A9: 1999-08-01 | B9: 0.909 | C9: 0.53 | D9: 1.136 | E9: 1.38 | F9: 2.933 | G9: 1.076 | H9: 0.571 | I9: 0.076 | J9: 0.256 | K9: 0.369 | L9: 0.515 | M9: 1.495
A10: 1999-09-01 | B10: 0.889 | C10: 0.526 | D10: 1.119 | E10: 1.429 | F10: 3.532 | G10: 1.089 | H10: 0.571 | I10: 0.069 | J10: 0.26 | K10: 0.377 | L10: 0.535 | M10: 1.526
A11: 1999-10-01 | B11: 0.876 | C11: 0.47 | D11: 1.11 | E11: 1.385 | F11: 3.459 | G11: 1.087 | H11: 0.537 | I11: 0.069 | J11: 0.266 | K11: 0.361 | L11: 0.53 | M11: 1.468
A12: 1999-11-01 | B12: 0.928 | C12: 0.539 | D12: 1.186 | E12: 1.423 | F12: 3.413 | G12: 1.168 | H12: 0.516 | I12: 0.084 | J12: 0.252 | K12: 0.371 | L12: 0.569 | M12: 1.586
A13: 1999-12-01 | B13: 0.934 | C13: 0.559 | D13: 1.229 | E13: 1.598 | F13: 3.205 | G13: 1.266 | H13: 0.496 | I13: 0.093 | J13: 0.264 | K13: 0.405 | L13: 0.6 | M13: 1.704
A14: 2000-01-01 | B14: 0.929 | C14: 0.543 | D14: 1.188 | E14: 1.667 | F14: 3.135 | G14: 1.359 | H14: 0.517 | I14: 0.137 | J14: 0.297 | K14: 0.428 | L14: 0.609 | M14: 1.732
A15: 2000-02-01 | B15: 0.885 | C15: 0.514 | D15: 1.13 | E15: 1.887 | F15: 3.168 | G15: 1.499 | H15: 0.568 | I15: 0.14 | J15: 0.311 | K15: 0.436 | L15: 0.637 | M15: 1.779
A16: 2000-03-01 | B16: 0.91 | C16: 0.497 | D16: 1.196 | E16: 1.986 | F16: 2.878 | G16: 1.575 | H16: 0.609 | I16: 0.166 | J16: 0.289 | K16: 0.442 | L16: 0.682 | M16: 1.849
A17: 2000-04-01 | B17: 0.946 | C17: 0.445 | D17: 1.153 | E17: 1.821 | F17: 2.685 | G17: 1.46 | H17: 0.642 | I17: 0.168 | J17: 0.27 | K17: 0.411 | L17: 0.656 | M17: 1.775
A18: 2000-05-01 | B18: 0.936 | C18: 0.411 | D18: 1.137 | E18: 1.861 | F18: 2.698 | G18: 1.427 | H18: 0.64 | I18: 0.162 | J18: 0.235 | K18: 0.435 | L18: 0.67 | M18: 1.788
A19: 2000-06-01 | B19: 0.95 | C19: 0.451 | D19: 1.181 | E19: 1.894 | F19: 2.549 | G19: 1.426 | H19: 0.68 | I19: 0.15 | J19: 0.257 | K19: 0.439 | L19: 0.678 | M19: 1.819
A20: 2000-07-01 | B20: 0.956 | C20: 0.452 | D20: 1.177 | E20: 1.931 | F20: 2.364 | G20: 1.409 | H20: 0.697 | I20: 0.136 | J20: 0.256 | K20: 0.457 | L20: 0.697 | M20: 1.82
A21: 2000-08-01 | B21: 0.975 | C21: 0.409 | D21: 1.186 | E21: 1.918 | F21: 2.207 | G21: 1.404 | H21: 0.73 | I21: 0.16 | J21: 0.238 | K21: 0.487 | L21: 0.741 | M21: 1.85
A22: 2000-09-01 | B22: 0.977 | C22: 0.356 | D22: 1.182 | E22: 1.928 | F22: 2.397 | G22: 1.376 | H22: 0.686 | I22: 0.151 | J22: 0.243 | K22: 0.503 | L22: 0.767 | M22: 1.847
A23: 2000-10-01 | B23: 0.946 | C23: 0.312 | D23: 1.151 | E23: 1.866 | F23: 2.255 | G23: 1.302 | H23: 0.683 | I23: 0.139 | J23: 0.211 | K23: 0.482 | L23: 0.785 | M23: 1.805
A24: 2000-11-01 | B24: 0.945 | C24: 0.309 | D24: 1.163 | E24: 1.955 | F24: 2.047 | G24: 1.29 | H24: 0.726 | I24: 0.124 | J24: 0.216 | K24: 0.476 | L24: 0.745 | M24: 1.815
A25: 2000-12-01 | B25: 0.944 | C25: 0.296 | D25: 1.139 | E25: 1.833 | F25: 2.057 | G25: 1.212 | H25: 0.73 | I25: 0.102 | J25: 0.224 | K25: 0.434 | L25: 0.71 | M25: 1.716
A26: 2001-01-01 | B26: 0.952 | C26: 0.333 | D26: 1.133 | E26: 1.808 | F26: 1.863 | G26: 1.218 | H26: 0.735 | I26: 0.113 | J26: 0.229 | K26: 0.445 | L26: 0.746 | M26: 1.7
A27: 2001-02-01 | B27: 0.948 | C27: 0.337 | D27: 1.119 | E27: 1.752 | F27: 1.861 | G27: 1.206 | H27: 0.695 | I27: 0.116 | J27: 0.237 | K27: 0.457 | L27: 0.749 | M27: 1.671
A28: 2001-03-01 | B28: 0.883 | C28: 0.31 | D28: 1.045 | E28: 1.607 | F28: 1.827 | G28: 1.113 | H28: 0.72 | I28: 0.116 | J28: 0.21 | K28: 0.432 | L28: 0.685 | M28: 1.546
A29: 2001-04-01 | B29: 0.888 | C29: 0.3 | D29: 1.055 | E29: 1.66 | F29: 1.848 | G29: 1.112 | H29: 0.754 | I29: 0.118 | J29: 0.191 | K29: 0.431 | L29: 0.664 | M29: 1.543
A30: 2001-05-01 | B30: 0.943 | C30: 0.34 | D30: 1.075 | E30: 1.668 | F30: 1.841 | G30: 1.145 | H30: 0.767 | I30: 0.135 | J30: 0.199 | K30: 0.453 | L30: 0.694 | M30: 1.609
A31: 2001-06-01 | B31: 0.923 | C31: 0.342 | D31: 1.052 | E31: 1.579 | F31: 1.663 | G31: 1.12 | H31: 0.782 | I31: 0.153 | J31: 0.189 | K31: 0.442 | L31: 0.7 | M31: 1.561
A32: 2001-07-01 | B32: 0.898 | C32: 0.314 | D32: 0.999 | E32: 1.528 | F32: 1.505 | G32: 1.079 | H32: 0.756 | I32: 0.145 | J32: 0.184 | K32: 0.42 | L32: 0.692 | M32: 1.485
A33: 2001-08-01 | B33: 0.884 | C33: 0.322 | D33: 0.996 | E33: 1.509 | F33: 1.589 | G33: 1.019 | H33: 0.675 | I33: 0.134 | J33: 0.182 | K33: 0.408 | L33: 0.674 | M33: 1.443
A34: 2001-09-01 | B34: 0.807 | C34: 0.286 | D34: 0.894 | E34: 1.237 | F34: 1.383 | G34: 0.844 | H34: 0.643 | I34: 0.128 | J34: 0.161 | K34: 0.36 | L34: 0.586 | M34: 1.227
A35: 2001-10-01 | B35: 0.813 | C35: 0.294 | D35: 0.925 | E35: 1.276 | F35: 1.351 | G35: 0.878 | H35: 0.596 | I35: 0.121 | J35: 0.161 | K35: 0.34 | L35: 0.584 | M35: 1.239
A36: 2001-11-01 | B36: 0.842 | C36: 0.343 | D36: 0.959 | E36: 1.33 | F36: 1.564 | G36: 0.941 | H36: 0.592 | I36: 0.144 | J36: 0.174 | K36: 0.359 | L36: 0.589 | M36: 1.31
A37: 2001-12-01 | B37: 0.853 | C37: 0.378 | D37: 0.948 | E37: 1.343 | F37: 1.531 | G37: 0.958 | H37: 0.596 | I37: 0.156 | J37: 0.182 | K37: 0.37 | L37: 0.587 | M37: 1.31
A38: 2002-01-01 | B38: 0.851 | C38: 0.418 | D38: 0.95 | E38: 1.353 | F38: 1.514 | G38: 0.979 | H38: 0.529 | I38: 0.181 | J38: 0.184 | K38: 0.378 | L38: 0.598 | M38: 1.323
A39: 2002-02-01 | B39: 0.833 | C39: 0.437 | D39: 0.938 | E39: 1.314 | F39: 1.444 | G39: 0.944 | H39: 0.534 | I39: 0.183 | J39: 0.194 | K39: 0.372 | L39: 0.605 | M39: 1.308
A40: 2002-03-01 | B40: 0.879 | C40: 0.49 | D40: 0.961 | E40: 1.406 | F40: 1.383 | G40: 1.006 | H40: 0.576 | I40: 0.199 | J40: 0.196 | K40: 0.401 | L40: 0.625 | M40: 1.387
A41: 2002-04-01 | B41: 0.86 | C41: 0.508 | D41: 0.953 | E41: 1.413 | F41: 1.292 | G41: 0.988 | H41: 0.578 | I41: 0.224 | J41: 0.189 | K41: 0.406 | L41: 0.604 | M41: 1.385
A42: 2002-05-01 | B42: 0.842 | C42: 0.478 | D42: 0.945 | E42: 1.353 | F42: 1.35 | G42: 0.944 | H42: 0.564 | I42: 0.238 | J42: 0.182 | K42: 0.403 | L42: 0.598 | M42: 1.328
A43: 2002-06-01 | B43: 0.796 | C43: 0.447 | D43: 0.872 | E43: 1.232 | F43: 1.315 | G43: 0.857 | H43: 0.552 | I43: 0.223 | J43: 0.179 | K43: 0.366 | L43: 0.57 | M43: 1.199
A44: 2002-07-01 | B44: 0.713 | C44: 0.428 | D44: 0.775 | E44: 1.136 | F44: 1.25 | G44: 0.778 | H44: 0.599 | I44: 0.213 | J44: 0.177 | K44: 0.338 | L44: 0.537 | M44: 1.046
A45: 2002-08-01 | B45: 0.72 | C45: 0.405 | D45: 0.779 | E45: 1.119 | F45: 1.255 | G45: 0.72 | H45: 0.587 | I45: 0.204 | J45: 0.168 | K45: 0.326 | L45: 0.512 | M45: 0.988
A46: 2002-09-01 | B46: 0.691 | C46: 0.399 | D46: 0.724 | E46: 1.047 | F46: 1.146 | G46: 0.636 | H46: 0.572 | I46: 0.202 | J46: 0.17 | K46: 0.294 | L46: 0.494 | M46: 0.903
A47: 2002-10-01 | B47: 0.673 | C47: 0.365 | D47: 0.726 | E47: 0.998 | F47: 1.045 | G47: 0.587 | H47: 0.544 | I47: 0.212 | J47: 0.162 | K47: 0.284 | L47: 0.466 | M47: 0.884
A48: 2002-11-01 | B48: 0.707 | C48: 0.386 | D48: 0.75 | E48: 1.073 | F48: 1.075 | G48: 0.635 | H48: 0.518 | I48: 0.217 | J48: 0.168 | K48: 0.287 | L48: 0.475 | M48: 0.931
A49: 2002-12-01 | B49: 0.702 | C49: 0.395 | D49: 0.722 | E49: 1.07 | F49: 1.057 | G49: 0.609 | H49: 0.495 | I49: 0.218 | J49: 0.182 | K49: 0.288 | L49: 0.472 | M49: 0.901
A50: 2003-01-01 | B50: 0.7 | C50: 0.357 | D50: 0.694 | E50: 1.041 | F50: 1.001 | G50: 0.579 | H50: 0.506 | I50: 0.219 | J50: 0.183 | K50: 0.284 | L50: 0.477 | M50: 0.864
A51: 2003-02-01 | B51: 0.656 | C51: 0.336 | D51: 0.666 | E51: 1.002 | F51: 0.974 | G51: 0.522 | H51: 0.53 | I51: 0.228 | J51: 0.18 | K51: 0.261 | L51: 0.44 | M51: 0.772
A52: 2003-03-01 | B52: 0.654 | C52: 0.313 | D52: 0.665 | E52: 0.971 | F52: 0.898 | G52: 0.498 | H52: 0.524 | I52: 0.239 | J52: 0.173 | K52: 0.262 | L52: 0.44 | M52: 0.726
A53: 2003-04-01 | B53: 0.689 | C53: 0.333 | D53: 0.707 | E53: 1.029 | F53: 0.941 | G53: 0.555 | H53: 0.548 | I53: 0.244 | J53: 0.167 | K53: 0.278 | L53: 0.486 | M53: 0.786
A54: 2003-05-01 | B54: 0.729 | C54: 0.348 | D54: 0.729 | E54: 1.064 | F54: 1.008 | G54: 0.574 | H54: 0.544 | I54: 0.276 | J54: 0.167 | K54: 0.302 | L54: 0.506 | M54: 0.784
A55: 2003-06-01 | B55: 0.773 | C55: 0.376 | D55: 0.753 | E55: 1.115 | F55: 1.102 | G55: 0.618 | H55: 0.544 | I55: 0.306 | J55: 0.186 | K55: 0.329 | L55: 0.532 | M55: 0.829
A56: 2003-07-01 | B56: 0.77 | C56: 0.4 | D56: 0.746 | E56: 1.102 | F56: 1.192 | G56: 0.647 | H56: 0.531 | I56: 0.302 | J56: 0.202 | K56: 0.342 | L56: 0.534 | M56: 0.844
A57: 2003-08-01 | B57: 0.772 | C57: 0.415 | D57: 0.765 | E57: 1.117 | F57: 1.291 | G57: 0.67 | H57: 0.514 | I57: 0.318 | J57: 0.219 | K57: 0.364 | L57: 0.572 | M57: 0.882
A58: 2003-09-01 | B58: 0.795 | C58: 0.423 | D58: 0.775 | E58: 1.137 | F58: 1.21 | G58: 0.685 | H58: 0.497 | I58: 0.349 | J58: 0.237 | K58: 0.369 | L58: 0.616 | M58: 0.903
A59: 2003-10-01 | B59: 0.816 | C59: 0.428 | D59: 0.785 | E59: 1.136 | F59: 1.233 | G59: 0.685 | H59: 0.485 | I59: 0.376 | J59: 0.26 | K59: 0.374 | L59: 0.628 | M59: 0.885
A60: 2003-11-01 | B60: 0.829 | C60: 0.448 | D60: 0.795 | E60: 1.176 | F60: 1.261 | G60: 0.726 | H60: 0.481 | I60: 0.332 | J60: 0.272 | K60: 0.395 | L60: 0.626 | M60: 0.91
A61: 2003-12-01 | B61: 0.865 | C61: 0.455 | D61: 0.804 | E61: 1.203 | F61: 1.288 | G61: 0.752 | H61: 0.52 | I61: 0.35 | J61: 0.299 | K61: 0.41 | L61: 0.613 | M61: 0.911
A62: 2004-01-01 | B62: 0.908 | C62: 0.48 | D62: 0.818 | E62: 1.223 | F62: 1.416 | G62: 0.79 | H62: 0.562 | I62: 0.379 | J62: 0.327 | K62: 0.446 | L62: 0.656 | M62: 0.951
A63: 2004-02-01 | B63: 0.922 | C63: 0.492 | D63: 0.813 | E63: 1.229 | F63: 1.43 | G63: 0.792 | H63: 0.594 | I63: 0.393 | J63: 0.32 | K63: 0.469 | L63: 0.687 | M63: 0.966
A64: 2004-03-01 | B64: 0.91 | C64: 0.497 | D64: 0.813 | E64: 1.218 | F64: 1.401 | G64: 0.767 | H64: 0.604 | I64: 0.425 | J64: 0.309 | K64: 0.488 | L64: 0.686 | M64: 0.951
A65: 2004-04-01 | B65: 0.914 | C65: 0.515 | D65: 0.825 | E65: 1.254 | F65: 1.443 | G65: 0.787 | H65: 0.597 | I65: 0.444 | J65: 0.32 | K65: 0.49 | L65: 0.671 | M65: 0.97
A66: 2004-05-01 | B66: 0.882 | C66: 0.455 | D66: 0.815 | E66: 1.227 | F66: 1.424 | G66: 0.749 | H66: 0.553 | I66: 0.39 | J66: 0.286 | K66: 0.468 | L66: 0.65 | M66: 0.928
A67: 2004-06-01 | B67: 0.906 | C67: 0.438 | D67: 0.819 | E67: 1.247 | F67: 1.392 | G67: 0.768 | H67: 0.518 | I67: 0.373 | J67: 0.265 | K67: 0.492 | L67: 0.67 | M67: 0.95
A68: 2004-07-01 | B68: 0.892 | C68: 0.423 | D68: 0.798 | E68: 1.236 | F68: 1.367 | G68: 0.749 | H68: 0.503 | I68: 0.363 | J68: 0.274 | K68: 0.499 | L68: 0.685 | M68: 0.931
A69: 2004-08-01 | B69: 0.879 | C69: 0.437 | D69: 0.802 | E69: 1.204 | F69: 1.334 | G69: 0.725 | H69: 0.481 | I69: 0.358 | J69: 0.283 | K69: 0.501 | L69: 0.685 | M69: 0.907
A70: 2004-09-01 | B70: 0.906 | C70: 0.474 | D70: 0.834 | E70: 1.248 | F70: 1.368 | G70: 0.752 | H70: 0.484 | I70: 0.403 | J70: 0.298 | K70: 0.531 | L70: 0.705 | M70: 0.936
A71: 2004-10-01 | B71: 0.914 | C71: 0.482 | D71: 0.85 | E71: 1.281 | F71: 1.416 | G71: 0.762 | H71: 0.48 | I71: 0.45 | J71: 0.313 | K71: 0.556 | L71: 0.716 | M71: 0.938
A72: 2004-11-01 | B72: 0.96 | C72: 0.49 | D72: 0.868 | E72: 1.328 | F72: 1.523 | G72: 0.788 | H72: 0.475 | I72: 0.43 | J72: 0.328 | K72: 0.556 | L72: 0.727 | M72: 0.959
A73: 2004-12-01 | B73: 0.988 | C73: 0.496 | D73: 0.869 | E73: 1.377 | F73: 1.588 | G73: 0.809 | H73: 0.461 | I73: 0.371 | J73: 0.352 | K73: 0.576 | L73: 0.741 | M73: 0.976
A74: 2005-01-01 | B74: 0.976 | C74: 0.513 | D74: 0.883 | E74: 1.419 | F74: 1.685 | G74: 0.818 | H74: 0.437 | I74: 0.383 | J74: 0.346 | K74: 0.596 | L74: 0.759 | M74: 1
A75: 2005-02-01 | B75: 1.002 | C75: 0.546 | D75: 0.914 | E75: 1.459 | F75: 1.749 | G75: 0.837 | H75: 0.45 | I75: 0.417 | J75: 0.363 | K75: 0.636 | L75: 0.799 | M75: 1.053
A76: 2005-03-01 | B76: 1.006 | C76: 0.561 | D76: 0.907 | E76: 1.453 | F76: 1.762 | G76: 0.84 | H76: 0.442 | I76: 0.419 | J76: 0.367 | K76: 0.658 | L76: 0.827 | M76: 1.06
A77: 2005-04-01 | B77: 0.979 | C77: 0.543 | D77: 0.894 | E77: 1.451 | F77: 1.716 | G77: 0.826 | H77: 0.424 | I77: 0.424 | J77: 0.351 | K77: 0.655 | L77: 0.844 | M77: 1.033
A78: 2005-05-01 | B78: 0.982 | C78: 0.533 | D78: 0.901 | E78: 1.431 | F78: 1.691 | G78: 0.821 | H78: 0.391 | I78: 0.413 | J78: 0.357 | K78: 0.651 | L78: 0.835 | M78: 1.021
A79: 2005-06-01 | B79: 1.002 | C79: 0.562 | D79: 0.924 | E79: 1.468 | F79: 1.783 | G79: 0.865 | H79: 0.383 | I79: 0.432 | J79: 0.381 | K79: 0.71 | L79: 0.889 | M79: 1.079
A80: 2005-07-01 | B80: 1.021 | C80: 0.601 | D80: 0.956 | E80: 1.51 | F80: 1.856 | G80: 0.897 | H80: 0.368 | I80: 0.475 | J80: 0.404 | K80: 0.773 | L80: 0.923 | M80: 1.122
A81: 2005-08-01 | B81: 1.035 | C81: 0.626 | D81: 0.971 | E81: 1.532 | F81: 1.916 | G81: 0.928 | H81: 0.407 | I81: 0.514 | J81: 0.425 | K81: 0.821 | L81: 0.963 | M81: 1.127
A82: 2005-09-01 | B82: 1.049 | C82: 0.665 | D82: 0.986 | E82: 1.572 | F82: 1.917 | G82: 0.942 | H82: 0.418 | I82: 0.574 | J82: 0.454 | K82: 0.867 | L82: 0.981 | M82: 1.141
A83: 2005-10-01 | B83: 1.02 | C83: 0.677 | D83: 0.968 | E83: 1.523 | F83: 1.944 | G83: 0.94 | H83: 0.401 | I83: 0.587 | J83: 0.453 | K83: 0.808 | L83: 0.949 | M83: 1.13
A84: 2005-11-01 | B84: 1.051 | C84: 0.711 | D84: 0.998 | E84: 1.532 | F84: 2.013 | G84: 0.964 | H84: 0.389 | I84: 0.632 | J84: 0.467 | K84: 0.826 | L84: 0.97 | M84: 1.168
A85: 2005-12-01 | B85: 1.078 | C85: 0.761 | D85: 1.015 | E85: 1.585 | F85: 2.091 | G85: 1.009 | H85: 0.398 | I85: 0.697 | J85: 0.504 | K85: 0.88 | L85: 1.02 | M85: 1.227
A86: 2006-01-01 | B86: 1.106 | C86: 0.783 | D86: 1.044 | E86: 1.633 | F86: 2.275 | G86: 1.043 | H86: 0.433 | I86: 0.774 | J86: 0.525 | K86: 0.93 | L86: 1.048 | M86: 1.256
A87: 2006-02-01 | B87: 1.113 | C87: 0.762 | D87: 1.062 | E87: 1.691 | F87: 2.416 | G87: 1.099 | H87: 0.453 | I87: 0.883 | J87: 0.555 | K87: 0.974 | L87: 1.061 | M87: 1.31
A88: 2006-03-01 | B88: 1.131 | C88: 0.757 | D88: 1.086 | E88: 1.742 | F88: 2.384 | G88: 1.122 | H88: 0.453 | I88: 0.895 | J88: 0.597 | K88: 1.023 | L88: 1.092 | M88: 1.328
A89: 2006-04-01 | B89: 1.155 | C89: 0.804 | D89: 1.107 | E89: 1.761 | F89: 2.456 | G89: 1.148 | H89: 0.486 | I89: 0.988 | J89: 0.643 | K89: 1.106 | L89: 1.074 | M89: 1.352
A90: 2006-05-01 | B90: 1.155 | C90: 0.789 | D90: 1.07 | E90: 1.713 | F90: 2.347 | G90: 1.107 | H90: 0.555 | I90: 0.979 | J90: 0.639 | K90: 1.08 | L90: 1.052 | M90: 1.305
A91: 2006-06-01 | B91: 1.105 | C91: 0.71 | D91: 1.037 | E91: 1.626 | F91: 2.081 | G91: 1.029 | H91: 0.569 | I91: 0.861 | J91: 0.545 | K91: 0.994 | L91: 0.976 | M91: 1.229
A92: 2006-07-01 | B92: 1.122 | C92: 0.725 | D92: 1.067 | E92: 1.65 | F92: 2.128 | G92: 1.045 | H92: 0.596 | I92: 0.939 | J92: 0.581 | K92: 1.036 | L92: 0.991 | M92: 1.271
A93: 2006-08-01 | B93: 1.148 | C93: 0.746 | D93: 1.075 | E93: 1.693 | F93: 2.258 | G93: 1.075 | H93: 0.568 | I93: 1.009 | J93: 0.622 | K93: 1.044 | L93: 1.024 | M93: 1.313
A94: 2006-09-01 | B94: 1.16 | C94: 0.77 | D94: 1.078 | E94: 1.733 | F94: 2.293 | G94: 1.103 | H94: 0.602 | I94: 0.96 | J94: 0.662 | K94: 1.02 | L94: 1.059 | M94: 1.34
A95: 2006-10-01 | B95: 1.197 | C95: 0.769 | D95: 1.116 | E95: 1.787 | F95: 2.371 | G95: 1.153 | H95: 0.63 | I95: 0.987 | J95: 0.694 | K95: 1.052 | L95: 1.112 | M95: 1.394
A96: 2006-11-01 | B96: 1.226 | C96: 0.797 | D96: 1.128 | E96: 1.85 | F96: 2.486 | G96: 1.189 | H96: 0.691 | I96: 1.045 | J96: 0.738 | K96: 1.119 | L96: 1.149 | M96: 1.411
A97: 2006-12-01 | B97: 1.257 | C97: 0.806 | D97: 1.129 | E97: 1.876 | F97: 2.525 | G97: 1.217 | H97: 0.815 | I97: 1.128 | J97: 0.749 | K97: 1.155 | L97: 1.183 | M97: 1.411
A98: 2007-01-01 | B98: 1.264 | C98: 0.784 | D98: 1.141 | E98: 1.923 | F98: 2.696 | G98: 1.258 | H98: 0.99 | I98: 1.15 | J98: 0.77 | K98: 1.198 | L98: 1.234 | M98: 1.454
A99: 2007-02-01 | B99: 1.294 | C99: 0.815 | D99: 1.164 | E99: 1.962 | F99: 2.755 | G99: 1.304 | H99: 1.01 | I99: 1.185 | J99: 0.778 | K99: 1.241 | L99: 1.292 | M99: 1.483
A100: 2007-03-01 | B100: 1.262 | C100: 0.812 | D100: 1.135 | E100: 1.888 | F100: 2.652 | G100: 1.27 | H100: 1.057 | I100: 1.136 | J100: 0.708 | K100: 1.2 | L100: 1.241 | M100: 1.457
A101: 2007-04-01 | B101: 1.321 | C101: 0.861 | D101: 1.176 | E101: 1.995 | F101: 2.788 | G101: 1.363 | H101: 1.25 | I101: 1.207 | J101: 0.74 | K101: 1.257 | L101: 1.301 | M101: 1.548
A102: 2007-05-01 | B102: 1.359 | C102: 0.916 | D102: 1.202 | E102: 2.019 | F102: 2.835 | G102: 1.405 | H102: 1.424 | I102: 1.137 | J102: 0.777 | K102: 1.307 | L102: 1.347 | M102: 1.577
A103: 2007-06-01 | B103: 1.369 | C103: 0.995 | D103: 1.207 | E103: 1.971 | F103: 2.842 | G103: 1.445 | H103: 1.418 | I103: 1.146 | J103: 0.788 | K103: 1.35 | L103: 1.35 | M103: 1.606
A104: 2007-07-01 | B104: 1.382 | C104: 1.086 | D104: 1.2 | E104: 1.948 | F104: 2.924 | G104: 1.452 | H104: 1.419 | I104: 1.221 | J104: 0.839 | K104: 1.4 | L104: 1.401 | M104: 1.624
A105: 2007-08-01 | B105: 1.306 | C105: 1.03 | D105: 1.13 | E105: 1.832 | F105: 2.787 | G105: 1.366 | H105: 1.713 | I105: 1.158 | J105: 0.813 | K105: 1.279 | L105: 1.36 | M105: 1.516
A106: 2007-09-01 | B106: 1.352 | C106: 1.07 | D106: 1.16 | E106: 1.833 | F106: 2.885 | G106: 1.396 | H106: 1.894 | I106: 1.177 | J106: 0.883 | K106: 1.333 | L106: 1.366 | M106: 1.561
A107: 2007-10-01 | B107: 1.406 | C107: 1.138 | D107: 1.207 | E107: 1.871 | F107: 3.054 | G107: 1.457 | H107: 2.037 | I107: 1.267 | J107: 1.015 | K107: 1.367 | L107: 1.402 | M107: 1.61
A108: 2007-11-01 | B108: 1.346 | C108: 1.092 | D108: 1.157 | E108: 1.77 | F108: 2.97 | G108: 1.406 | H108: 1.861 | I108: 1.289 | J108: 1.059 | K108: 1.353 | L108: 1.317 | M108: 1.489
A109: 2007-12-01 | B109: 1.357 | C109: 1.08 | D109: 1.177 | E109: 1.758 | F109: 2.984 | G109: 1.438 | H109: 1.795 | I109: 1.331 | J109: 1.089 | K109: 1.327 | L109: 1.282 | M109: 1.489
A110: 2008-01-01 | B110: 1.269 | C110: 0.987 | D110: 1.106 | E110: 1.626 | F110: 2.755 | G110: 1.321 | H110: 1.786 | I110: 1.247 | J110: 1.063 | K110: 1.189 | L110: 1.153 | M110: 1.361
A111: 2008-02-01 | B111: 1.251 | C111: 0.96 | D111: 1.081 | E111: 1.541 | F111: 2.538 | G111: 1.249 | H111: 1.586 | I111: 1.165 | J111: 0.975 | K111: 1.144 | L111: 1.159 | M111: 1.313
A112: 2008-03-01 | B112: 1.214 | C112: 0.937 | D112: 1.035 | E112: 1.445 | F112: 2.286 | G112: 1.178 | H112: 1.384 | I112: 1.133 | J112: 0.869 | K112: 1.12 | L112: 1.128 | M112: 1.281
A113: 2008-04-01 | B113: 1.269 | C113: 1.008 | D113: 1.096 | E113: 1.511 | F113: 2.377 | G113: 1.225 | H113: 1.201 | I113: 1.162 | J113: 0.895 | K113: 1.206 | L113: 1.156 | M113: 1.367
A114: 2008-05-01 | B114: 1.304 | C114: 1.047 | D114: 1.131 | E114: 1.536 | F114: 2.448 | G114: 1.262 | H114: 1.26 | I114: 1.286 | J114: 0.934 | K114: 1.352 | L114: 1.2 | M114: 1.433
A115: 2008-06-01 | B115: 1.245 | C115: 1 | D115: 1.057 | E115: 1.424 | F115: 2.21 | G115: 1.197 | H115: 1.064 | I115: 1.273 | J115: 0.825 | K115: 1.322 | L115: 1.17 | M115: 1.354
A116: 2008-07-01 | B116: 1.166 | C116: 0.891 | D116: 0.983 | E116: 1.298 | F116: 1.958 | G116: 1.118 | H116: 0.99 | I116: 1.125 | J116: 0.754 | K116: 1.171 | L116: 1.069 | M116: 1.191
A117: 2008-08-01 | B117: 1.157 | C117: 0.874 | D117: 1 | E117: 1.307 | F117: 1.946 | G117: 1.13 | H117: 0.882 | I117: 0.975 | J117: 0.81 | K117: 1.13 | L117: 1.089 | M117: 1.206
A118: 2008-09-01 | B118: 1.094 | C118: 0.822 | D118: 0.957 | E118: 1.259 | F118: 1.819 | G118: 1.074 | H118: 0.768 | I118: 0.78 | J118: 0.77 | K118: 0.989 | L118: 1.02 | M118: 1.125
A119: 2008-10-01 | B119: 0.848 | C119: 0.687 | D119: 0.783 | E119: 1.004 | F119: 1.335 | G119: 0.85 | H119: 0.7 | I119: 0.483 | J119: 0.584 | K119: 0.714 | L119: 0.78 | M119: 0.829
A120: 2008-11-01 | B120: 0.765 | C120: 0.61 | D120: 0.772 | E120: 0.956 | F120: 1.165 | G120: 0.794 | H120: 0.663 | I120: 0.444 | J120: 0.519 | K120: 0.651 | L120: 0.704 | M120: 0.761
A121: 2008-12-01 | B121: 0.764 | C121: 0.633 | D121: 0.78 | E121: 0.892 | F121: 1.043 | G121: 0.772 | H121: 0.689 | I121: 0.428 | J121: 0.523 | K121: 0.612 | L121: 0.658 | M121: 0.727
A122: 2009-01-01 | B122: 0.759 | C122: 0.652 | D122: 0.784 | E122: 0.886 | F122: 1.036 | G122: 0.764 | H122: 0.685 | I122: 0.426 | J122: 0.513 | K122: 0.659 | L122: 0.673 | M122: 0.748
A123: 2009-02-01 | B123: 0.7 | C123: 0.647 | D123: 0.745 | E123: 0.817 | F123: 0.971 | G123: 0.715 | H123: 0.779 | I123: 0.462 | J123: 0.504 | K123: 0.639 | L123: 0.662 | M123: 0.717
A124: 2009-03-01 | B124: 0.656 | C124: 0.647 | D124: 0.688 | E124: 0.709 | F124: 0.93 | G124: 0.664 | H124: 0.787 | I124: 0.526 | J124: 0.491 | K124: 0.615 | L124: 0.584 | M124: 0.638
A125: 2009-04-01 | B125: 0.739 | C125: 0.75 | D125: 0.739 | E125: 0.838 | F125: 1.099 | G125: 0.756 | H125: 0.869 | I125: 0.621 | J125: 0.599 | K125: 0.66 | L125: 0.643 | M125: 0.7
A126: 2009-05-01 | B126: 0.805 | C126: 0.794 | D126: 0.802 | E126: 0.937 | F126: 1.289 | G126: 0.797 | H126: 0.923 | I126: 0.716 | J126: 0.713 | K126: 0.776 | L126: 0.754 | M126: 0.773
A127: 2009-06-01 | B127: 0.828 | C127: 0.792 | D127: 0.795 | E127: 0.929 | F127: 1.337 | G127: 0.801 | H127: 1 | I127: 0.742 | J127: 0.813 | K127: 0.811 | L127: 0.746 | M127: 0.786
A128: 2009-07-01 | B128: 0.832 | C128: 0.829 | D128: 0.8 | E128: 0.914 | F128: 1.308 | G128: 0.805 | H128: 1.134 | I128: 0.675 | J128: 0.805 | K128: 0.788 | L128: 0.744 | M128: 0.792
A129: 2009-08-01 | B129: 0.91 | C129: 0.896 | D129: 0.871 | E129: 1.004 | F129: 1.408 | G129: 0.879 | H129: 1.087 | I129: 0.758 | J129: 0.848 | K129: 0.836 | L129: 0.823 | M129: 0.873
A130: 2009-09-01 | B130: 0.945 | C130: 0.942 | D130: 0.92 | E130: 1.061 | F130: 1.488 | G130: 0.915 | H130: 1.021 | I130: 0.814 | J130: 0.9 | K130: 0.86 | L130: 0.842 | M130: 0.918
A131: 2009-10-01 | B131: 0.967 | C131: 0.926 | D131: 0.944 | E131: 1.093 | F131: 1.616 | G131: 0.933 | H131: 1.041 | I131: 0.907 | J131: 0.927 | K131: 0.91 | L131: 0.845 | M131: 0.941
A132: 2009-11-01 | B132: 0.981 | C132: 0.899 | D132: 0.959 | E132: 1.057 | F132: 1.474 | G132: 0.925 | H132: 1.133 | I132: 0.91 | J132: 0.916 | K132: 0.94 | L132: 0.84 | M132: 0.937
A133: 2009-12-01 | B133: 0.992 | C133: 0.936 | D133: 0.973 | E133: 1.06 | F133: 1.305 | G133: 0.959 | H133: 1.138 | I133: 0.937 | J133: 0.941 | K133: 0.98 | L133: 0.854 | M133: 0.973
A134: 2010-01-01 | B134: 1.004 | C134: 0.955 | D134: 0.99 | E134: 1.083 | F134: 1.254 | G134: 0.965 | H134: 1.12 | I134: 0.988 | J134: 0.949 | K134: 0.996 | L134: 0.898 | M134: 1.004
A135: 2010-02-01 | B135: 0.962 | C135: 0.907 | D135: 0.957 | E135: 1.01 | F135: 1.125 | G135: 0.918 | H135: 1.058 | I135: 0.944 | J135: 0.891 | K135: 0.945 | L135: 0.909 | M135: 0.961
A136: 2010-03-01 | B136: 1.017 | C136: 0.944 | D136: 1.028 | E136: 1.057 | F136: 1.213 | G136: 0.979 | H136: 1.08 | I136: 0.984 | J136: 0.95 | K136: 0.989 | L136: 0.953 | M136: 1.017
A137: 2010-04-01 | B137: 1.052 | C137: 0.982 | D137: 1.047 | E137: 1.076 | F137: 1.138 | G137: 1.02 | H137: 1.081 | I137: 1.032 | J137: 0.973 | K137: 1.032 | L137: 1.004 | M137: 1.059
A138: 2010-05-01 | B138: 0.968 | C138: 0.936 | D138: 0.958 | E138: 0.952 | F138: 0.966 | G138: 0.958 | H138: 0.944 | I138: 0.926 | J138: 0.926 | K138: 0.967 | L138: 0.978 | M138: 0.971
A139: 2010-06-01 | B139: 0.936 | C139: 0.959 | D139: 0.94 | E139: 0.943 | F139: 0.876 | G139: 0.971 | H139: 0.899 | I139: 0.94 | J139: 0.951 | K139: 0.958 | L139: 1.002 | M139: 0.973
A140: 2010-07-01 | B140: 0.94 | C140: 0.983 | D140: 0.943 | E140: 0.957 | F140: 0.922 | G140: 0.969 | H140: 0.881 | I140: 0.941 | J140: 0.982 | K140: 0.945 | L140: 1.009 | M140: 0.963
A141: 2010-08-01 | B141: 0.958 | C141: 1 | D141: 0.965 | E141: 0.965 | F141: 0.96 | G141: 0.978 | H141: 0.932 | I141: 0.965 | J141: 1 | K141: 0.963 | L141: 1.009 | M141: 0.966
A142: 2010-09-01 | B142: 0.989 | C142: 1.032 | D142: 1.009 | E142: 0.976 | F142: 0.907 | G142: 0.996 | H142: 0.932 | I142: 0.993 | J142: 1.063 | K142: 0.988 | L142: 1.021 | M142: 0.993
A143: 2010-10-01 | B143: 1.035 | C143: 1.073 | D143: 1.04 | E143: 1.002 | F143: 0.911 | G143: 1.034 | H143: 1.016 | I143: 1.042 | J143: 1.114 | K143: 1.034 | L143: 1.037 | M143: 1.012
A144: 2010-11-01 | B144: 1.053 | C144: 1.092 | D144: 1.049 | E144: 0.991 | F144: 0.868 | G144: 1.083 | H144: 1.051 | I144: 1.084 | J144: 1.106 | K144: 1.065 | L144: 1.07 | M144: 1.023
A145: 2010-12-01 | B145: 1.085 | C145: 1.138 | D145: 1.075 | E145: 0.987 | F145: 0.86 | G145: 1.129 | H145: 1.006 | I145: 1.162 | J145: 1.096 | K145: 1.118 | L145: 1.109 | M145: 1.057
A146: 2011-01-01 | B146: 1.12 | C146: 1.187 | D146: 1.091 | E146: 1.024 | F146: 0.861 | G146: 1.139 | H146: 0.978 | I146: 1.205 | J146: 1.06 | K146: 1.148 | L146: 1.145 | M146: 1.085
A147: 2011-02-01 | B147: 1.158 | C147: 1.143 | D147: 1.101 | E147: 1.07 | F147: 0.961 | G147: 1.174 | H147: 1.008 | I147: 1.204 | J147: 0.992 | K147: 1.165 | L147: 1.142 | M147: 1.11
A148: 2011-03-01 | B148: 1.145 | C148: 1.135 | D148: 1.071 | E148: 1.045 | F148: 0.929 | G148: 1.122 | H148: 1.04 | I148: 1.231 | J148: 1.015 | K148: 1.17 | L148: 1.121 | M148: 1.084
A149: 2011-04-01 | B149: 1.172 | C149: 1.222 | D149: 1.099 | E149: 1.06 | F149: 0.859 | G149: 1.162 | H149: 1.058 | I149: 1.253 | J149: 1.07 | K149: 1.19 | L149: 1.123 | M149: 1.093
A150: 2011-05-01 | B150: 1.164 | C150: 1.206 | D150: 1.087 | E150: 1.042 | F150: 0.781 | G150: 1.159 | H150: 1 | I150: 1.146 | J150: 1.008 | K150: 1.156 | L150: 1.117 | M150: 1.066
A151: 2011-06-01 | B151: 1.122 | C151: 1.179 | D151: 1.059 | E151: 0.979 | F151: 0.739 | G151: 1.127 | H151: 0.958 | I151: 1.154 | J151: 1.003 | K151: 1.111 | L151: 1.051 | M151: 1.015
A152: 2011-07-01 | B152: 1.147 | C152: 1.22 | D152: 1.081 | E152: 0.934 | F152: 0.72 | G152: 1.146 | H152: 0.98 | I152: 1.195 | J152: 1.024 | K152: 1.115 | L152: 1.044 | M152: 1.016
A153: 2011-08-01 | B153: 1.016 | C153: 1.059 | D153: 0.963 | E153: 0.78 | F153: 0.582 | G153: 0.935 | H153: 0.916 | I153: 1.057 | J153: 0.928 | K153: 0.984 | L153: 0.888 | M153: 0.871
A154: 2011-09-01 | B154: 0.983 | C154: 1.018 | D154: 0.956 | E154: 0.729 | F154: 0.496 | G154: 0.858 | H154: 0.87 | I154: 1.025 | J154: 0.918 | K154: 0.961 | L154: 0.843 | M154: 0.837
A155: 2011-10-01 | B155: 1.004 | C155: 1.035 | D155: 0.989 | E155: 0.789 | F155: 0.445 | G155: 0.922 | H155: 0.845 | I155: 0.983 | J155: 0.924 | K155: 0.986 | L155: 0.857 | M155: 0.89
A156: 2011-11-01 | B156: 1.014 | C156: 1.055 | D156: 0.988 | E156: 0.754 | F156: 0.422 | G156: 0.917 | H156: 0.868 | I156: 1.023 | J156: 0.921 | K156: 1.017 | L156: 0.881 | M156: 0.874
A157: 2011-12-01 | B157: 1.025 | C157: 1.057 | D157: 1.003 | E157: 0.754 | F157: 0.391 | G157: 0.921 | H157: 0.795 | I157: 0.985 | J157: 0.88 | K157: 1.024 | L157: 0.907 | M157: 0.907
A158: 2012-01-01 | B158: 1.068 | C158: 1.076 | D158: 1.04 | E158: 0.774 | F158: 0.401 | G158: 0.985 | H158: 0.799 | I158: 1.029 | J158: 0.903 | K158: 1.069 | L158: 0.963 | M158: 0.95
A159: 2012-02-01 | B159: 1.117 | C159: 1.137 | D159: 1.078 | E159: 0.831 | F159: 0.459 | G159: 1.061 | H159: 0.836 | I159: 1.09 | J159: 0.982 | K159: 1.125 | L159: 1.053 | M159: 0.981
A160: 2012-03-01 | B160: 1.13 | C160: 1.149 | D160: 1.075 | E160: 0.839 | F160: 0.441 | G160: 1.086 | H160: 0.842 | I160: 1.098 | J160: 0.957 | K160: 1.148 | L160: 1.069 | M160: 0.987
A161: 2012-04-01 | B161: 1.113 | C161: 1.133 | D161: 1.047 | E161: 0.758 | F161: 0.415 | G161: 1.052 | H161: 0.829 | I161: 1.041 | J161: 0.952 | K161: 1.123 | L161: 1.072 | M161: 0.946
A162: 2012-05-01 | B162: 1.066 | C162: 1.071 | D162: 1 | E162: 0.705 | F162: 0.34 | G162: 0.993 | H162: 0.844 | I162: 0.939 | J162: 0.904 | K162: 1.079 | L162: 1.049 | M162: 0.905
A163: 2012-06-01 | B163: 1.045 | C163: 1.048 | D163: 0.998 | E163: 0.687 | F163: 0.319 | G163: 0.946 | H163: 0.806 | I163: 0.939 | J163: 0.921 | K163: 1.042 | L163: 1.012 | M163: 0.897
A164: 2012-07-01 | B164: 1.075 | C164: 1.037 | D164: 1.031 | E164: 0.706 | F164: 0.358 | G164: 0.998 | H164: 0.766 | I164: 0.985 | J164: 0.947 | K164: 1.107 | L164: 1.085 | M164: 0.957
A165: 2012-08-01 | B165: 1.109 | C165: 1.09 | D165: 1.06 | E165: 0.753 | F165: 0.366 | G165: 1.054 | H165: 0.747 | I165: 1.006 | J165: 0.968 | K165: 1.146 | L165: 1.132 | M165: 0.991
A166: 2012-09-01 | B166: 1.144 | C166: 1.113 | D166: 1.062 | E166: 0.805 | F166: 0.426 | G166: 1.098 | H166: 0.732 | I166: 1.031 | J166: 0.999 | K166: 1.182 | L166: 1.143 | M166: 0.995
A167: 2012-10-01 | B167: 1.147 | C167: 1.105 | D167: 1.067 | E167: 0.796 | F167: 0.487 | G167: 1.104 | H167: 0.741 | I167: 1.018 | J167: 1.03 | K167: 1.17 | L167: 1.152 | M167: 0.986
A168: 2012-11-01 | B168: 1.125 | C168: 1.081 | D168: 1.058 | E168: 0.784 | F168: 0.475 | G168: 1.1 | H168: 0.722 | I168: 0.98 | J168: 1.027 | K168: 1.145 | L168: 1.124 | M168: 0.986
A169: 2012-12-01 | B169: 1.158 | C169: 1.122 | D169: 1.084 | E169: 0.812 | F169: 0.507 | G169: 1.151 | H169: 0.751 | I169: 1.02 | J169: 1.065 | K169: 1.162 | L169: 1.152 | M169: 1.014
A170: 2013-01-01 | B170: 1.21 | C170: 1.128 | D170: 1.125 | E170: 0.876 | F170: 0.571 | G170: 1.178 | H170: 0.815 | I170: 1.06 | J170: 1.093 | K170: 1.209 | L170: 1.216 | M170: 1.037
A171: 2013-02-01 | B171: 1.231 | C171: 1.123 | D171: 1.155 | E171: 0.839 | F171: 0.594 | G171: 1.173 | H171: 0.846 | I171: 1.057 | J171: 1.07 | K171: 1.23 | L171: 1.244 | M171: 1.021
A172: 2013-03-01 | B172: 1.251 | C172: 1.131 | D172: 1.177 | E172: 0.821 | F172: 0.547 | G172: 1.206 | H172: 0.812 | I172: 1.024 | J172: 1.051 | K172: 1.238 | L172: 1.272 | M172: 1.036
A173: 2013-04-01 | B173: 1.258 | C173: 1.1 | D173: 1.164 | E173: 0.825 | F173: 0.532 | G173: 1.177 | H173: 0.781 | I173: 0.966 | J173: 1.036 | K173: 1.221 | L173: 1.246 | M173: 1.022
A174: 2013-05-01 | B174: 1.306 | C174: 1.121 | D174: 1.215 | E174: 0.889 | F174: 0.612 | G174: 1.238 | H174: 0.799 | I174: 0.977 | J174: 1.097 | K174: 1.26 | L174: 1.274 | M174: 1.065
A175: 2013-06-01 | B175: 1.273 | C175: 1.072 | D175: 1.152 | E175: 0.837 | F175: 0.529 | G175: 1.201 | H175: 0.754 | I175: 0.918 | J175: 1.052 | K175: 1.229 | L175: 1.225 | M175: 1.019
A176: 2013-07-01 | B176: 1.307 | C176: 1.062 | D176: 1.192 | E176: 0.833 | F176: 0.49 | G176: 1.213 | H176: 0.712 | I176: 0.964 | J176: 1.084 | K176: 1.264 | L176: 1.263 | M176: 1.058
A177: 2013-08-01 | B177: 1.314 | C177: 1.077 | D177: 1.192 | E177: 0.886 | F177: 0.54 | G177: 1.243 | H177: 0.733 | I177: 0.966 | J177: 1.027 | K177: 1.288 | L177: 1.323 | M177: 1.084
A178: 2013-09-01 | B178: 1.331 | C178: 1.128 | D178: 1.198 | E178: 0.906 | F178: 0.575 | G178: 1.267 | H178: 0.772 | I178: 1.011 | J178: 1.079 | K178: 1.313 | L178: 1.343 | M178: 1.096
A179: 2013-10-01 | B179: 1.362 | C179: 1.151 | D179: 1.202 | E179: 0.965 | F179: 0.661 | G179: 1.312 | H179: 0.772 | I179: 1.05 | J179: 1.125 | K179: 1.345 | L179: 1.377 | M179: 1.111
A180: 2013-11-01 | B180: 1.398 | C180: 1.141 | D180: 1.224 | E180: 0.979 | F180: 0.677 | G180: 1.367 | H180: 0.764 | I180: 1.044 | J180: 1.134 | K180: 1.399 | L180: 1.403 | M180: 1.143
A181: 2013-12-01 | B181: 1.405 | C181: 1.129 | D181: 1.204 | E181: 0.954 | F181: 0.681 | G181: 1.381 | H181: 0.765 | I181: 1.03 | J181: 1.154 | K181: 1.399 | L181: 1.429 | M181: 1.129
A182: 2014-01-01 | B182: 1.418 | C182: 1.107 | D182: 1.228 | E182: 1.009 | F182: 0.714 | G182: 1.417 | H182: 0.721 | I182: 1.033 | J182: 1.152 | K182: 1.439 | L182: 1.528 | M182: 1.164
A183: 2014-02-01 | B183: 1.409 | C183: 1.1 | D183: 1.224 | E183: 1.033 | F183: 0.737 | G183: 1.416 | H183: 0.735 | I183: 1.03 | J183: 1.13 | K183: 1.433 | L183: 1.618 | M183: 1.155
A184: 2014-03-01 | B184: 1.441 | C184: 1.108 | D184: 1.213 | E184: 1.076 | F184: 0.783 | G184: 1.392 | H184: 0.72 | I184: 0.919 | J184: 1.2 | K184: 1.453 | L184: 1.643 | M184: 1.158
A185: 2014-04-01 | B185: 1.454 | C185: 1.13 | D185: 1.216 | E185: 1.115 | F185: 0.736 | G185: 1.406 | H185: 0.733 | I185: 0.934 | J185: 1.242 | K185: 1.469 | L185: 1.635 | M185: 1.181
A186: 2014-05-01 | B186: 1.473 | C186: 1.129 | D186: 1.25 | E186: 1.09 | F186: 0.691 | G186: 1.417 | H186: 0.717 | I186: 0.97 | J186: 1.303 | K186: 1.569 | L186: 1.681 | M186: 1.194
A187: 2014-06-01 | B187: 1.509 | C187: 1.133 | D187: 1.244 | E187: 1.121 | F187: 0.741 | G187: 1.441 | H187: 0.722 | I187: 1.037 | J187: 1.387 | K187: 1.64 | L187: 1.736 | M187: 1.224
A188: 2014-07-01 | B188: 1.52 | C188: 1.148 | D188: 1.238 | E188: 1.078 | F188: 0.697 | G188: 1.413 | H188: 0.737 | I188: 1.011 | J188: 1.415 | K188: 1.641 | L188: 1.731 | M188: 1.208
A189: 2014-08-01 | B189: 1.5 | C189: 1.17 | D189: 1.228 | E189: 1.022 | F189: 0.658 | G189: 1.344 | H189: 0.784 | I189: 0.98 | J189: 1.435 | K189: 1.593 | L189: 1.709 | M189: 1.186
A190: 2014-09-01 | B190: 1.513 | C190: 1.16 | D190: 1.24 | E190: 1.068 | F190: 0.665 | G190: 1.391 | H190: 0.819 | I190: 1.006 | J190: 1.48 | K190: 1.614 | L190: 1.766 | M190: 1.234
A191: 2014-10-01 | B191: 1.449 | C191: 1.104 | D191: 1.172 | E191: 0.987 | F191: 0.572 | G191: 1.3 | H191: 0.833 | I191: 0.974 | J191: 1.464 | K191: 1.494 | L191: 1.691 | M191: 1.168
A192: 2014-11-01 | B192: 1.511 | C192: 1.112 | D192: 1.215 | E192: 0.992 | F192: 0.547 | G192: 1.377 | H192: 0.881 | I192: 1.057 | J192: 1.546 | K192: 1.532 | L192: 1.735 | M192: 1.219
A193: 2014-12-01 | B193: 1.498 | C193: 1.102 | D193: 1.198 | E193: 0.984 | F193: 0.521 | G193: 1.425 | H193: 1.058 | I193: 1.024 | J193: 1.52 | K193: 1.445 | L193: 1.736 | M193: 1.227
A194: 2015-01-01 | B194: 1.478 | C194: 1.09 | D194: 1.209 | E194: 0.998 | F194: 0.463 | G194: 1.472 | H194: 1.162 | I194: 1.09 | J194: 1.555 | K194: 1.489 | L194: 1.797 | M194: 1.262
A195: 2015-02-01 | B195: 1.518 | C195: 1.113 | D195: 1.258 | E195: 1.098 | F195: 0.496 | G195: 1.593 | H195: 1.131 | I195: 1.225 | J195: 1.592 | K195: 1.564 | L195: 1.903 | M195: 1.356
A196: 2015-03-01 | B196: 1.511 | C196: 1.142 | D196: 1.259 | E196: 1.175 | F196: 0.464 | G196: 1.702 | H196: 1.231 | I196: 1.158 | J196: 1.572 | K196: 1.564 | L196: 2.08 | M196: 1.429
A197: 2015-04-01 | B197: 1.534 | C197: 1.196 | D197: 1.279 | E197: 1.219 | F197: 0.447 | G197: 1.726 | H197: 1.474 | I197: 1.171 | J197: 1.549 | K197: 1.647 | L197: 2.199 | M197: 1.459
A198: 2015-05-01 | B198: 1.542 | C198: 1.202 | D198: 1.277 | E198: 1.207 | F198: 0.485 | G198: 1.659 | H198: 1.578 | I198: 1.17 | J198: 1.507 | K198: 1.662 | L198: 2.172 | M198: 1.441
A199: 2015-06-01 | B199: 1.524 | C199: 1.171 | D199: 1.241 | E199: 1.188 | F199: 0.451 | G199: 1.597 | H199: 1.69 | I199: 1.152 | J199: 1.493 | K199: 1.631 | L199: 2.141 | M199: 1.41
A200: 2015-07-01 | B200: 1.502 | C200: 1.168 | D200: 1.216 | E200: 1.192 | F200: 0.466 | G200: 1.607 | H200: 1.36 | I200: 1.136 | J200: 1.541 | K200: 1.616 | L200: 2.193 | M200: 1.419
... 23 more rows

Sheet Returns
A1: SPASTT01USM661N | B1: SPASTT01KRM661N | C1: SPASTT01GBM661N | D1: SPASTT01ITM661N | E1: SPASTT01GRM661N | F1: SPASTT01DEM661N | G1: SPASTT01CNM661N | H1: SPASTT01RUM661N | I1: SPASTT01INM661N | J1: SPASTT01NOM661N | K1: SPASTT01DKM661N | L1: SPASTT01NLM661N
A2: =(Data!B3-Data!B2)/Data!B2 -> -0.01148105626 | B2: =(Data!C3-Data!C2)/Data!C2 -> -0.1061946903 | C2: =(Data!D3-Data!D2)/Data!D2 -> 0.0054894785 | D2: =(Data!E3-Data!E2)/Data!E2 -> -0.01828410689 | E2: =(Data!F3-Data!F2)/Data!F2 -> 0.1216438356 | F2: =(Data!G3-Data!G2)/Data!G2 -> -0.0214953271 | G2: =(Data!H3-Data!H2)/Data!H2 -> -0.04444444444 | H2: =(Data!I3-Data!I2)/Data!I2 -> 0.1875 | I2: =(Data!J3-Data!J2)/Data!J2 -> 0 | J2: =(Data!K3-Data!K2)/Data!K2 -> 0.009803921569 | K2: =(Data!L3-Data!L2)/Data!L2 -> -0.0337972167 | L2: =(Data!M3-Data!M2)/Data!M2 -> -0.02379235761
A3: =(Data!B4-Data!B3)/Data!B3 -> 0.02555168409 | B3: =(Data!C4-Data!C3)/Data!C3 -> 0.09900990099 | C3: =(Data!D4-Data!D3)/Data!D3 -> 0.02638762511 | D3: =(Data!E4-Data!E3)/Data!E3 -> 0.0494269341 | E3: =(Data!F4-Data!F3)/Data!F3 -> 0.05471421593 | F3: =(Data!G4-Data!G3)/Data!G3 -> -0.02005730659 | G3: =(Data!H4-Data!H3)/Data!H3 -> 0.04909560724 | H3: =(Data!I4-Data!I3)/Data!I3 -> 0.4473684211 | I3: =(Data!J4-Data!J3)/Data!J3 -> 0.1215469613 | J3: =(Data!K4-Data!K3)/Data!K3 -> 0.02588996764 | K3: =(Data!L4-Data!L3)/Data!L3 -> -0.04732510288 | L3: =(Data!M4-Data!M3)/Data!M3 -> 0.02363367799
A4: =(Data!B5-Data!B4)/Data!B4 -> 0.03963759909 | B4: =(Data!C5-Data!C4)/Data!C4 -> 0.2282282282 | C4: =(Data!D5-Data!D4)/Data!D4 -> 0.0469858156 | D4: =(Data!E5-Data!E4)/Data!E4 -> 0.01365187713 | E4: =(Data!F5-Data!F4)/Data!F4 -> -0.01945345067 | F4: =(Data!G5-Data!G4)/Data!G4 -> 0.04191033138 | G4: =(Data!H5-Data!H4)/Data!H4 -> 0.009852216749 | H4: =(Data!I5-Data!I4)/Data!I4 -> 0.1090909091 | I4: =(Data!J5-Data!J4)/Data!J4 -> -0.06896551724 | J4: =(Data!K5-Data!K4)/Data!K4 -> 0.06624605678 | K4: =(Data!L5-Data!L4)/Data!L4 -> 0.04967602592 | L4: =(Data!M5-Data!M4)/Data!M4 -> 0.04401154401
A5: =(Data!B6-Data!B5)/Data!B5 -> 0.01307189542 | B5: =(Data!C6-Data!C5)/Data!C5 -> 0.03422982885 | C5: =(Data!D6-Data!D5)/Data!D5 -> -0.02116850127 | D5: =(Data!E6-Data!E5)/Data!E5 -> -0.01818181818 | E5: =(Data!F6-Data!F5)/Data!F5 -> 0.1615493623 | F5: =(Data!G6-Data!G5)/Data!G5 -> 0.00748362956 | G5: =(Data!H6-Data!H5)/Data!H5 -> -0.01219512195 | H5: =(Data!I6-Data!I5)/Data!I5 -> 0.2131147541 | I5: =(Data!J6-Data!J5)/Data!J5 -> 0.126984127 | J5: =(Data!K6-Data!K5)/Data!K5 -> 0.04733727811 | K5: =(Data!L6-Data!L5)/Data!L5 -> 0.01851851852 | L5: =(Data!M6-Data!M5)/Data!M5 -> 0.02142363511
A6: =(Data!B7-Data!B6)/Data!B6 -> -0.009677419355 | B6: =(Data!C7-Data!C6)/Data!C6 -> 0.1300236407 | C6: =(Data!D7-Data!D6)/Data!D6 -> 0.01643598616 | D6: =(Data!E7-Data!E6)/Data!E6 -> 0 | E6: =(Data!F7-Data!F6)/Data!F6 -> 0.0036600244 | F6: =(Data!G7-Data!G6)/Data!G6 -> 0.004642525534 | G6: =(Data!H7-Data!H6)/Data!H6 -> 0.2790123457 | H6: =(Data!I7-Data!I6)/Data!I6 -> 0.1486486486 | I6: =(Data!J7-Data!J6)/Data!J6 -> 0.05164319249 | J6: =(Data!K7-Data!K6)/Data!K6 -> 0.002824858757 | K6: =(Data!L7-Data!L6)/Data!L6 -> 0.00202020202 | L6: =(Data!M7-Data!M6)/Data!M6 -> 0.01217861976
A7: =(Data!B8-Data!B7)/Data!B7 -> 0.03040173724 | B7: =(Data!C8-Data!C7)/Data!C7 -> 0.1527196653 | C7: =(Data!D8-Data!D7)/Data!D7 -> 0 | D7: =(Data!E8-Data!E7)/Data!E7 -> 0.002743484225 | E7: =(Data!F8-Data!F7)/Data!F7 -> 0.08144246353 | F7: =(Data!G8-Data!G7)/Data!G7 -> 0.03881700555 | G7: =(Data!H8-Data!H7)/Data!H7 -> 0.0694980695 | H7: =(Data!I8-Data!I7)/Data!I7 -> 0.1176470588 | I7: =(Data!J8-Data!J7)/Data!J7 -> 0.1116071429 | J7: =(Data!K8-Data!K7)/Data!K7 -> 0.01971830986 | K7: =(Data!L8-Data!L7)/Data!L7 -> 0.04838709677 | L7: =(Data!M8-Data!M7)/Data!M7 -> 0.01537433155
A8: =(Data!B9-Data!B8)/Data!B8 -> -0.04214963119 | B8: =(Data!C9-Data!C8)/Data!C8 -> -0.03811252269 | C8: =(Data!D9-Data!D8)/Data!D8 -> -0.03319148936 | D8: =(Data!E9-Data!E8)/Data!E8 -> -0.0560875513 | E8: =(Data!F9-Data!F8)/Data!F8 -> 0.09891345073 | F8: =(Data!G9-Data!G8)/Data!G8 -> -0.04270462633 | G8: =(Data!H9-Data!H8)/Data!H8 -> 0.03068592058 | H8: =(Data!I9-Data!I8)/Data!I8 -> -0.2 | I8: =(Data!J9-Data!J8)/Data!J8 -> 0.0281124498 | J8: =(Data!K9-Data!K8)/Data!K8 -> 0.01933701657 | K8: =(Data!L9-Data!L8)/Data!L8 -> -0.009615384615 | L8: =(Data!M9-Data!M8)/Data!M8 -> -0.01579986833
A9: =(Data!B10-Data!B9)/Data!B9 -> -0.02200220022 | B9: =(Data!C10-Data!C9)/Data!C9 -> -0.007547169811 | C9: =(Data!D10-Data!D9)/Data!D9 -> -0.01496478873 | D9: =(Data!E10-Data!E9)/Data!E9 -> 0.03550724638 | E9: =(Data!F10-Data!F9)/Data!F9 -> 0.2042277532 | F9: =(Data!G10-Data!G9)/Data!G9 -> 0.01208178439 | G9: =(Data!H10-Data!H9)/Data!H9 -> 0 | H9: =(Data!I10-Data!I9)/Data!I9 -> -0.09210526316 | I9: =(Data!J10-Data!J9)/Data!J9 -> 0.015625 | J9: =(Data!K10-Data!K9)/Data!K9 -> 0.0216802168 | K9: =(Data!L10-Data!L9)/Data!L9 -> 0.03883495146 | L9: =(Data!M10-Data!M9)/Data!M9 -> 0.02073578595
A10: =(Data!B11-Data!B10)/Data!B10 -> -0.0146231721 | B10: =(Data!C11-Data!C10)/Data!C10 -> -0.1064638783 | C10: =(Data!D11-Data!D10)/Data!D10 -> -0.008042895442 | D10: =(Data!E11-Data!E10)/Data!E10 -> -0.03079076277 | E10: =(Data!F11-Data!F10)/Data!F10 -> -0.02066817667 | F10: =(Data!G11-Data!G10)/Data!G10 -> -0.001836547291 | G10: =(Data!H11-Data!H10)/Data!H10 -> -0.05954465849 | H10: =(Data!I11-Data!I10)/Data!I10 -> 0 | I10: =(Data!J11-Data!J10)/Data!J10 -> 0.02307692308 | J10: =(Data!K11-Data!K10)/Data!K10 -> -0.0424403183 | K10: =(Data!L11-Data!L10)/Data!L10 -> -0.009345794393 | L10: =(Data!M11-Data!M10)/Data!M10 -> -0.0380078637
A11: =(Data!B12-Data!B11)/Data!B11 -> 0.05936073059 | B11: =(Data!C12-Data!C11)/Data!C11 -> 0.1468085106 | C11: =(Data!D12-Data!D11)/Data!D11 -> 0.06846846847 | D11: =(Data!E12-Data!E11)/Data!E11 -> 0.0274368231 | E11: =(Data!F12-Data!F11)/Data!F11 -> -0.01329864123 | F11: =(Data!G12-Data!G11)/Data!G11 -> 0.07451701932 | G11: =(Data!H12-Data!H11)/Data!H11 -> -0.03910614525 | H11: =(Data!I12-Data!I11)/Data!I11 -> 0.2173913043 | I11: =(Data!J12-Data!J11)/Data!J11 -> -0.05263157895 | J11: =(Data!K12-Data!K11)/Data!K11 -> 0.02770083102 | K11: =(Data!L12-Data!L11)/Data!L11 -> 0.07358490566 | L11: =(Data!M12-Data!M11)/Data!M11 -> 0.08038147139
A12: =(Data!B13-Data!B12)/Data!B12 -> 0.006465517241 | B12: =(Data!C13-Data!C12)/Data!C12 -> 0.03710575139 | C12: =(Data!D13-Data!D12)/Data!D12 -> 0.03625632378 | D12: =(Data!E13-Data!E12)/Data!E12 -> 0.1229796205 | E12: =(Data!F13-Data!F12)/Data!F12 -> -0.06094345151 | F12: =(Data!G13-Data!G12)/Data!G12 -> 0.08390410959 | G12: =(Data!H13-Data!H12)/Data!H12 -> -0.03875968992 | H12: =(Data!I13-Data!I12)/Data!I12 -> 0.1071428571 | I12: =(Data!J13-Data!J12)/Data!J12 -> 0.04761904762 | J12: =(Data!K13-Data!K12)/Data!K12 -> 0.09164420485 | K12: =(Data!L13-Data!L12)/Data!L12 -> 0.05448154657 | L12: =(Data!M13-Data!M12)/Data!M12 -> 0.07440100883
A13: =(Data!B14-Data!B13)/Data!B13 -> -0.005353319058 | B13: =(Data!C14-Data!C13)/Data!C13 -> -0.02862254025 | C13: =(Data!D14-Data!D13)/Data!D13 -> -0.03336045566 | D13: =(Data!E14-Data!E13)/Data!E13 -> 0.04317897372 | E13: =(Data!F14-Data!F13)/Data!F13 -> -0.02184087363 | F13: =(Data!G14-Data!G13)/Data!G13 -> 0.07345971564 | G13: =(Data!H14-Data!H13)/Data!H13 -> 0.04233870968 | H13: =(Data!I14-Data!I13)/Data!I13 -> 0.4731182796 | I13: =(Data!J14-Data!J13)/Data!J13 -> 0.125 | J13: =(Data!K14-Data!K13)/Data!K13 -> 0.05679012346 | K13: =(Data!L14-Data!L13)/Data!L13 -> 0.015 | L13: =(Data!M14-Data!M13)/Data!M13 -> 0.01643192488
A14: =(Data!B15-Data!B14)/Data!B14 -> -0.04736275565 | B14: =(Data!C15-Data!C14)/Data!C14 -> -0.05340699816 | C14: =(Data!D15-Data!D14)/Data!D14 -> -0.04882154882 | D14: =(Data!E15-Data!E14)/Data!E14 -> 0.1319736053 | E14: =(Data!F15-Data!F14)/Data!F14 -> 0.01052631579 | F14: =(Data!G15-Data!G14)/Data!G14 -> 0.1030169242 | G14: =(Data!H15-Data!H14)/Data!H14 -> 0.09864603482 | H14: =(Data!I15-Data!I14)/Data!I14 -> 0.02189781022 | I14: =(Data!J15-Data!J14)/Data!J14 -> 0.04713804714 | J14: =(Data!K15-Data!K14)/Data!K14 -> 0.01869158879 | K14: =(Data!L15-Data!L14)/Data!L14 -> 0.04597701149 | L14: =(Data!M15-Data!M14)/Data!M14 -> 0.02713625866
A15: =(Data!B16-Data!B15)/Data!B15 -> 0.02824858757 | B15: =(Data!C16-Data!C15)/Data!C15 -> -0.03307392996 | C15: =(Data!D16-Data!D15)/Data!D15 -> 0.05840707965 | D15: =(Data!E16-Data!E15)/Data!E15 -> 0.05246422893 | E15: =(Data!F16-Data!F15)/Data!F15 -> -0.09154040404 | F15: =(Data!G16-Data!G15)/Data!G15 -> 0.05070046698 | G15: =(Data!H16-Data!H15)/Data!H15 -> 0.07218309859 | H15: =(Data!I16-Data!I15)/Data!I15 -> 0.1857142857 | I15: =(Data!J16-Data!J15)/Data!J15 -> -0.07073954984 | J15: =(Data!K16-Data!K15)/Data!K15 -> 0.01376146789 | K15: =(Data!L16-Data!L15)/Data!L15 -> 0.07064364207 | L15: =(Data!M16-Data!M15)/Data!M15 -> 0.03934794829
A16: =(Data!B17-Data!B16)/Data!B16 -> 0.03956043956 | B16: =(Data!C17-Data!C16)/Data!C16 -> -0.1046277666 | C16: =(Data!D17-Data!D16)/Data!D16 -> -0.03595317726 | D16: =(Data!E17-Data!E16)/Data!E16 -> -0.083081571 | E16: =(Data!F17-Data!F16)/Data!F16 -> -0.06706045865 | F16: =(Data!G17-Data!G16)/Data!G16 -> -0.07301587302 | G16: =(Data!H17-Data!H16)/Data!H16 -> 0.05418719212 | H16: =(Data!I17-Data!I16)/Data!I16 -> 0.01204819277 | I16: =(Data!J17-Data!J16)/Data!J16 -> -0.06574394464 | J16: =(Data!K17-Data!K16)/Data!K16 -> -0.07013574661 | K16: =(Data!L17-Data!L16)/Data!L16 -> -0.03812316716 | L16: =(Data!M17-Data!M16)/Data!M16 -> -0.04002163332
A17: =(Data!B18-Data!B17)/Data!B17 -> -0.01057082452 | B17: =(Data!C18-Data!C17)/Data!C17 -> -0.07640449438 | C17: =(Data!D18-Data!D17)/Data!D17 -> -0.01387684302 | D17: =(Data!E18-Data!E17)/Data!E17 -> 0.02196595277 | E17: =(Data!F18-Data!F17)/Data!F17 -> 0.004841713222 | F17: =(Data!G18-Data!G17)/Data!G17 -> -0.02260273973 | G17: =(Data!H18-Data!H17)/Data!H17 -> -0.003115264798 | H17: =(Data!I18-Data!I17)/Data!I17 -> -0.03571428571 | I17: =(Data!J18-Data!J17)/Data!J17 -> -0.1296296296 | J17: =(Data!K18-Data!K17)/Data!K17 -> 0.05839416058 | K17: =(Data!L18-Data!L17)/Data!L17 -> 0.02134146341 | L17: =(Data!M18-Data!M17)/Data!M17 -> 0.007323943662
A18: =(Data!B19-Data!B18)/Data!B18 -> 0.01495726496 | B18: =(Data!C19-Data!C18)/Data!C18 -> 0.09732360097 | C18: =(Data!D19-Data!D18)/Data!D18 -> 0.03869832894 | D18: =(Data!E19-Data!E18)/Data!E18 -> 0.01773240193 | E18: =(Data!F19-Data!F18)/Data!F18 -> -0.0552260934 | F18: =(Data!G19-Data!G18)/Data!G18 -> -0.0007007708479 | G18: =(Data!H19-Data!H18)/Data!H18 -> 0.0625 | H18: =(Data!I19-Data!I18)/Data!I18 -> -0.07407407407 | I18: =(Data!J19-Data!J18)/Data!J18 -> 0.09361702128 | J18: =(Data!K19-Data!K18)/Data!K18 -> 0.009195402299 | K18: =(Data!L19-Data!L18)/Data!L18 -> 0.01194029851 | L18: =(Data!M19-Data!M18)/Data!M18 -> 0.01733780761
A19: =(Data!B20-Data!B19)/Data!B19 -> 0.006315789474 | B19: =(Data!C20-Data!C19)/Data!C19 -> 0.0022172949 | C19: =(Data!D20-Data!D19)/Data!D19 -> -0.003386960203 | D19: =(Data!E20-Data!E19)/Data!E19 -> 0.01953537487 | E19: =(Data!F20-Data!F19)/Data!F19 -> -0.07257748137 | F19: =(Data!G20-Data!G19)/Data!G19 -> -0.01192145863 | G19: =(Data!H20-Data!H19)/Data!H19 -> 0.025 | H19: =(Data!I20-Data!I19)/Data!I19 -> -0.09333333333 | I19: =(Data!J20-Data!J19)/Data!J19 -> -0.003891050584 | J19: =(Data!K20-Data!K19)/Data!K19 -> 0.0410022779 | K19: =(Data!L20-Data!L19)/Data!L19 -> 0.02802359882 | L19: =(Data!M20-Data!M19)/Data!M19 -> 0.0005497526113
A20: =(Data!B21-Data!B20)/Data!B20 -> 0.01987447699 | B20: =(Data!C21-Data!C20)/Data!C20 -> -0.09513274336 | C20: =(Data!D21-Data!D20)/Data!D20 -> 0.007646559048 | D20: =(Data!E21-Data!E20)/Data!E20 -> -0.006732263076 | E20: =(Data!F21-Data!F20)/Data!F20 -> -0.06641285956 | F20: =(Data!G21-Data!G20)/Data!G20 -> -0.00354861604 | G20: =(Data!H21-Data!H20)/Data!H20 -> 0.04734576758 | H20: =(Data!I21-Data!I20)/Data!I20 -> 0.1764705882 | I20: =(Data!J21-Data!J20)/Data!J20 -> -0.0703125 | J20: =(Data!K21-Data!K20)/Data!K20 -> 0.06564551422 | K20: =(Data!L21-Data!L20)/Data!L20 -> 0.0631276901 | L20: =(Data!M21-Data!M20)/Data!M20 -> 0.01648351648
A21: =(Data!B22-Data!B21)/Data!B21 -> 0.002051282051 | B21: =(Data!C22-Data!C21)/Data!C21 -> -0.1295843521 | C21: =(Data!D22-Data!D21)/Data!D21 -> -0.003372681282 | D21: =(Data!E22-Data!E21)/Data!E21 -> 0.005213764338 | E21: =(Data!F22-Data!F21)/Data!F21 -> 0.08608971454 | F21: =(Data!G22-Data!G21)/Data!G21 -> -0.01994301994 | G21: =(Data!H22-Data!H21)/Data!H21 -> -0.0602739726 | H21: =(Data!I22-Data!I21)/Data!I21 -> -0.05625 | I21: =(Data!J22-Data!J21)/Data!J21 -> 0.02100840336 | J21: =(Data!K22-Data!K21)/Data!K21 -> 0.03285420945 | K21: =(Data!L22-Data!L21)/Data!L21 -> 0.0350877193 | L21: =(Data!M22-Data!M21)/Data!M21 -> -0.001621621622
A22: =(Data!B23-Data!B22)/Data!B22 -> -0.03172978506 | B22: =(Data!C23-Data!C22)/Data!C22 -> -0.1235955056 | C22: =(Data!D23-Data!D22)/Data!D22 -> -0.02622673435 | D22: =(Data!E23-Data!E22)/Data!E22 -> -0.03215767635 | E22: =(Data!F23-Data!F22)/Data!F22 -> -0.05924071756 | F22: =(Data!G23-Data!G22)/Data!G22 -> -0.05377906977 | G22: =(Data!H23-Data!H22)/Data!H22 -> -0.004373177843 | H22: =(Data!I23-Data!I22)/Data!I22 -> -0.07947019868 | I22: =(Data!J23-Data!J22)/Data!J22 -> -0.1316872428 | J22: =(Data!K23-Data!K22)/Data!K22 -> -0.04174950298 | K22: =(Data!L23-Data!L22)/Data!L22 -> 0.02346805737 | L22: =(Data!M23-Data!M22)/Data!M22 -> -0.02273957769
A23: =(Data!B24-Data!B23)/Data!B23 -> -0.001057082452 | B23: =(Data!C24-Data!C23)/Data!C23 -> -0.009615384615 | C23: =(Data!D24-Data!D23)/Data!D23 -> 0.01042571677 | D23: =(Data!E24-Data!E23)/Data!E23 -> 0.04769560557 | E23: =(Data!F24-Data!F23)/Data!F23 -> -0.09223946785 | F23: =(Data!G24-Data!G23)/Data!G23 -> -0.009216589862 | G23: =(Data!H24-Data!H23)/Data!H23 -> 0.06295754026 | H23: =(Data!I24-Data!I23)/Data!I23 -> -0.1079136691 | I23: =(Data!J24-Data!J23)/Data!J23 -> 0.02369668246 | J23: =(Data!K24-Data!K23)/Data!K23 -> -0.01244813278 | K23: =(Data!L24-Data!L23)/Data!L23 -> -0.05095541401 | L23: =(Data!M24-Data!M23)/Data!M23 -> 0.005540166205
A24: =(Data!B25-Data!B24)/Data!B24 -> -0.001058201058 | B24: =(Data!C25-Data!C24)/Data!C24 -> -0.04207119741 | C24: =(Data!D25-Data!D24)/Data!D24 -> -0.02063628547 | D24: =(Data!E25-Data!E24)/Data!E24 -> -0.06240409207 | E24: =(Data!F25-Data!F24)/Data!F24 -> 0.004885197851 | F24: =(Data!G25-Data!G24)/Data!G24 -> -0.06046511628 | G24: =(Data!H25-Data!H24)/Data!H24 -> 0.005509641873 | H24: =(Data!I25-Data!I24)/Data!I24 -> -0.1774193548 | I24: =(Data!J25-Data!J24)/Data!J24 -> 0.03703703704 | J24: =(Data!K25-Data!K24)/Data!K24 -> -0.08823529412 | K24: =(Data!L25-Data!L24)/Data!L24 -> -0.04697986577 | L24: =(Data!M25-Data!M24)/Data!M24 -> -0.05454545455
A25: =(Data!B26-Data!B25)/Data!B25 -> 0.008474576271 | B25: =(Data!C26-Data!C25)/Data!C25 -> 0.125 | C25: =(Data!D26-Data!D25)/Data!D25 -> -0.005267778753 | D25: =(Data!E26-Data!E25)/Data!E25 -> -0.01363884343 | E25: =(Data!F26-Data!F25)/Data!F25 -> -0.09431210501 | F25: =(Data!G26-Data!G25)/Data!G25 -> 0.00495049505 | G25: =(Data!H26-Data!H25)/Data!H25 -> 0.006849315068 | H25: =(Data!I26-Data!I25)/Data!I25 -> 0.1078431373 | I25: =(Data!J26-Data!J25)/Data!J25 -> 0.02232142857 | J25: =(Data!K26-Data!K25)/Data!K25 -> 0.02534562212 | K25: =(Data!L26-Data!L25)/Data!L25 -> 0.05070422535 | L25: =(Data!M26-Data!M25)/Data!M25 -> -0.009324009324
A26: =(Data!B27-Data!B26)/Data!B26 -> -0.004201680672 | B26: =(Data!C27-Data!C26)/Data!C26 -> 0.01201201201 | C26: =(Data!D27-Data!D26)/Data!D26 -> -0.01235657546 | D26: =(Data!E27-Data!E26)/Data!E26 -> -0.03097345133 | E26: =(Data!F27-Data!F26)/Data!F26 -> -0.001073537305 | F26: =(Data!G27-Data!G26)/Data!G26 -> -0.009852216749 | G26: =(Data!H27-Data!H26)/Data!H26 -> -0.05442176871 | H26: =(Data!I27-Data!I26)/Data!I26 -> 0.02654867257 | I26: =(Data!J27-Data!J26)/Data!J26 -> 0.03493449782 | J26: =(Data!K27-Data!K26)/Data!K26 -> 0.02696629213 | K26: =(Data!L27-Data!L26)/Data!L26 -> 0.004021447721 | L26: =(Data!M27-Data!M26)/Data!M26 -> -0.01705882353
A27: =(Data!B28-Data!B27)/Data!B27 -> -0.06856540084 | B27: =(Data!C28-Data!C27)/Data!C27 -> -0.08011869436 | C27: =(Data!D28-Data!D27)/Data!D27 -> -0.06613047364 | D27: =(Data!E28-Data!E27)/Data!E27 -> -0.08276255708 | E27: =(Data!F28-Data!F27)/Data!F27 -> -0.01826974745 | F27: =(Data!G28-Data!G27)/Data!G27 -> -0.07711442786 | G27: =(Data!H28-Data!H27)/Data!H27 -> 0.03597122302 | H27: =(Data!I28-Data!I27)/Data!I27 -> 0 | I27: =(Data!J28-Data!J27)/Data!J27 -> -0.1139240506 | J27: =(Data!K28-Data!K27)/Data!K27 -> -0.05470459519 | K27: =(Data!L28-Data!L27)/Data!L27 -> -0.08544726302 | L27: =(Data!M28-Data!M27)/Data!M27 -> -0.07480550569
A28: =(Data!B29-Data!B28)/Data!B28 -> 0.005662514156 | B28: =(Data!C29-Data!C28)/Data!C28 -> -0.03225806452 | C28: =(Data!D29-Data!D28)/Data!D28 -> 0.00956937799 | D28: =(Data!E29-Data!E28)/Data!E28 -> 0.0329807094 | E28: =(Data!F29-Data!F28)/Data!F28 -> 0.01149425287 | F28: =(Data!G29-Data!G28)/Data!G28 -> -0.0008984725966 | G28: =(Data!H29-Data!H28)/Data!H28 -> 0.04722222222 | H28: =(Data!I29-Data!I28)/Data!I28 -> 0.01724137931 | I28: =(Data!J29-Data!J28)/Data!J28 -> -0.09047619048 | J28: =(Data!K29-Data!K28)/Data!K28 -> -0.002314814815 | K28: =(Data!L29-Data!L28)/Data!L28 -> -0.03065693431 | L28: =(Data!M29-Data!M28)/Data!M28 -> -0.001940491591
A29: =(Data!B30-Data!B29)/Data!B29 -> 0.06193693694 | B29: =(Data!C30-Data!C29)/Data!C29 -> 0.1333333333 | C29: =(Data!D30-Data!D29)/Data!D29 -> 0.01895734597 | D29: =(Data!E30-Data!E29)/Data!E29 -> 0.004819277108 | E29: =(Data!F30-Data!F29)/Data!F29 -> -0.003787878788 | F29: =(Data!G30-Data!G29)/Data!G29 -> 0.02967625899 | G29: =(Data!H30-Data!H29)/Data!H29 -> 0.01724137931 | H29: =(Data!I30-Data!I29)/Data!I29 -> 0.1440677966 | I29: =(Data!J30-Data!J29)/Data!J29 -> 0.04188481675 | J29: =(Data!K30-Data!K29)/Data!K29 -> 0.05104408353 | K29: =(Data!L30-Data!L29)/Data!L29 -> 0.04518072289 | L29: =(Data!M30-Data!M29)/Data!M29 -> 0.04277381724
A30: =(Data!B31-Data!B30)/Data!B30 -> -0.02120890774 | B30: =(Data!C31-Data!C30)/Data!C30 -> 0.005882352941 | C30: =(Data!D31-Data!D30)/Data!D30 -> -0.02139534884 | D30: =(Data!E31-Data!E30)/Data!E30 -> -0.05335731415 | E30: =(Data!F31-Data!F30)/Data!F30 -> -0.09668658338 | F30: =(Data!G31-Data!G30)/Data!G30 -> -0.02183406114 | G30: =(Data!H31-Data!H30)/Data!H30 -> 0.01955671447 | H30: =(Data!I31-Data!I30)/Data!I30 -> 0.1333333333 | I30: =(Data!J31-Data!J30)/Data!J30 -> -0.05025125628 | J30: =(Data!K31-Data!K30)/Data!K30 -> -0.02428256071 | K30: =(Data!L31-Data!L30)/Data!L30 -> 0.008645533141 | L30: =(Data!M31-Data!M30)/Data!M30 -> -0.02983219391
A31: =(Data!B32-Data!B31)/Data!B31 -> -0.02708559047 | B31: =(Data!C32-Data!C31)/Data!C31 -> -0.08187134503 | C31: =(Data!D32-Data!D31)/Data!D31 -> -0.05038022814 | D31: =(Data!E32-Data!E31)/Data!E31 -> -0.03229892337 | E31: =(Data!F32-Data!F31)/Data!F31 -> -0.09500901984 | F31: =(Data!G32-Data!G31)/Data!G31 -> -0.03660714286 | G31: =(Data!H32-Data!H31)/Data!H31 -> -0.03324808184 | H31: =(Data!I32-Data!I31)/Data!I31 -> -0.0522875817 | I31: =(Data!J32-Data!J31)/Data!J31 -> -0.02645502646 | J31: =(Data!K32-Data!K31)/Data!K31 -> -0.04977375566 | K31: =(Data!L32-Data!L31)/Data!L31 -> -0.01142857143 | L31: =(Data!M32-Data!M31)/Data!M31 -> -0.04868673927
A32: =(Data!B33-Data!B32)/Data!B32 -> -0.01559020045 | B32: =(Data!C33-Data!C32)/Data!C32 -> 0.02547770701 | C32: =(Data!D33-Data!D32)/Data!D32 -> -0.003003003003 | D32: =(Data!E33-Data!E32)/Data!E32 -> -0.01243455497 | E32: =(Data!F33-Data!F32)/Data!F32 -> 0.05581395349 | F32: =(Data!G33-Data!G32)/Data!G32 -> -0.05560704356 | G32: =(Data!H33-Data!H32)/Data!H32 -> -0.1071428571 | H32: =(Data!I33-Data!I32)/Data!I32 -> -0.07586206897 | I32: =(Data!J33-Data!J32)/Data!J32 -> -0.01086956522 | J32: =(Data!K33-Data!K32)/Data!K32 -> -0.02857142857 | K32: =(Data!L33-Data!L32)/Data!L32 -> -0.02601156069 | L32: =(Data!M33-Data!M32)/Data!M32 -> -0.02828282828
A33: =(Data!B34-Data!B33)/Data!B33 -> -0.0871040724 | B33: =(Data!C34-Data!C33)/Data!C33 -> -0.1118012422 | C33: =(Data!D34-Data!D33)/Data!D33 -> -0.1024096386 | D33: =(Data!E34-Data!E33)/Data!E33 -> -0.1802518224 | E33: =(Data!F34-Data!F33)/Data!F33 -> -0.1296412838 | F33: =(Data!G34-Data!G33)/Data!G33 -> -0.1717369971 | G33: =(Data!H34-Data!H33)/Data!H33 -> -0.04740740741 | H33: =(Data!I34-Data!I33)/Data!I33 -> -0.0447761194 | I33: =(Data!J34-Data!J33)/Data!J33 -> -0.1153846154 | J33: =(Data!K34-Data!K33)/Data!K33 -> -0.1176470588 | K33: =(Data!L34-Data!L33)/Data!L33 -> -0.1305637982 | L33: =(Data!M34-Data!M33)/Data!M33 -> -0.1496881497
A34: =(Data!B35-Data!B34)/Data!B34 -> 0.007434944238 | B34: =(Data!C35-Data!C34)/Data!C34 -> 0.02797202797 | C34: =(Data!D35-Data!D34)/Data!D34 -> 0.03467561521 | D34: =(Data!E35-Data!E34)/Data!E34 -> 0.03152789006 | E34: =(Data!F35-Data!F34)/Data!F34 -> -0.02313810557 | F34: =(Data!G35-Data!G34)/Data!G34 -> 0.04028436019 | G34: =(Data!H35-Data!H34)/Data!H34 -> -0.07309486781 | H34: =(Data!I35-Data!I34)/Data!I34 -> -0.0546875 | I34: =(Data!J35-Data!J34)/Data!J34 -> 0 | J34: =(Data!K35-Data!K34)/Data!K34 -> -0.05555555556 | K34: =(Data!L35-Data!L34)/Data!L34 -> -0.003412969283 | L34: =(Data!M35-Data!M34)/Data!M34 -> 0.0097799511
A35: =(Data!B36-Data!B35)/Data!B35 -> 0.0356703567 | B35: =(Data!C36-Data!C35)/Data!C35 -> 0.1666666667 | C35: =(Data!D36-Data!D35)/Data!D35 -> 0.03675675676 | D35: =(Data!E36-Data!E35)/Data!E35 -> 0.04231974922 | E35: =(Data!F36-Data!F35)/Data!F35 -> 0.1576609919 | F35: =(Data!G36-Data!G35)/Data!G35 -> 0.07175398633 | G35: =(Data!H36-Data!H35)/Data!H35 -> -0.006711409396 | H35: =(Data!I36-Data!I35)/Data!I35 -> 0.1900826446 | I35: =(Data!J36-Data!J35)/Data!J35 -> 0.08074534161 | J35: =(Data!K36-Data!K35)/Data!K35 -> 0.05588235294 | K35: =(Data!L36-Data!L35)/Data!L35 -> 0.008561643836 | L35: =(Data!M36-Data!M35)/Data!M35 -> 0.05730427764
A36: =(Data!B37-Data!B36)/Data!B36 -> 0.01306413302 | B36: =(Data!C37-Data!C36)/Data!C36 -> 0.1020408163 | C36: =(Data!D37-Data!D36)/Data!D36 -> -0.01147028154 | D36: =(Data!E37-Data!E36)/Data!E36 -> 0.00977443609 | E36: =(Data!F37-Data!F36)/Data!F36 -> -0.02109974425 | F36: =(Data!G37-Data!G36)/Data!G36 -> 0.01806588735 | G36: =(Data!H37-Data!H36)/Data!H36 -> 0.006756756757 | H36: =(Data!I37-Data!I36)/Data!I36 -> 0.08333333333 | I36: =(Data!J37-Data!J36)/Data!J36 -> 0.04597701149 | J36: =(Data!K37-Data!K36)/Data!K36 -> 0.03064066852 | K36: =(Data!L37-Data!L36)/Data!L36 -> -0.003395585739 | L36: =(Data!M37-Data!M36)/Data!M36 -> 0
A37: =(Data!B38-Data!B37)/Data!B37 -> -0.002344665885 | B37: =(Data!C38-Data!C37)/Data!C37 -> 0.1058201058 | C37: =(Data!D38-Data!D37)/Data!D37 -> 0.002109704641 | D37: =(Data!E38-Data!E37)/Data!E37 -> 0.007446016381 | E37: =(Data!F38-Data!F37)/Data!F37 -> -0.01110385369 | F37: =(Data!G38-Data!G37)/Data!G37 -> 0.02192066806 | G37: =(Data!H38-Data!H37)/Data!H37 -> -0.1124161074 | H37: =(Data!I38-Data!I37)/Data!I37 -> 0.1602564103 | I37: =(Data!J38-Data!J37)/Data!J37 -> 0.01098901099 | J37: =(Data!K38-Data!K37)/Data!K37 -> 0.02162162162 | K37: =(Data!L38-Data!L37)/Data!L37 -> 0.01873935264 | L37: =(Data!M38-Data!M37)/Data!M37 -> 0.009923664122
A38: =(Data!B39-Data!B38)/Data!B38 -> -0.02115158637 | B38: =(Data!C39-Data!C38)/Data!C38 -> 0.04545454545 | C38: =(Data!D39-Data!D38)/Data!D38 -> -0.01263157895 | D38: =(Data!E39-Data!E38)/Data!E38 -> -0.0288248337 | E38: =(Data!F39-Data!F38)/Data!F38 -> -0.04623513871 | F38: =(Data!G39-Data!G38)/Data!G38 -> -0.03575076609 | G38: =(Data!H39-Data!H38)/Data!H38 -> 0.009451795841 | H38: =(Data!I39-Data!I38)/Data!I38 -> 0.01104972376 | I38: =(Data!J39-Data!J38)/Data!J38 -> 0.05434782609 | J38: =(Data!K39-Data!K38)/Data!K38 -> -0.01587301587 | K38: =(Data!L39-Data!L38)/Data!L38 -> 0.01170568562 | L38: =(Data!M39-Data!M38)/Data!M38 -> -0.01133786848
A39: =(Data!B40-Data!B39)/Data!B39 -> 0.05522208884 | B39: =(Data!C40-Data!C39)/Data!C39 -> 0.1212814645 | C39: =(Data!D40-Data!D39)/Data!D39 -> 0.02452025586 | D39: =(Data!E40-Data!E39)/Data!E39 -> 0.0700152207 | E39: =(Data!F40-Data!F39)/Data!F39 -> -0.04224376731 | F39: =(Data!G40-Data!G39)/Data!G39 -> 0.0656779661 | G39: =(Data!H40-Data!H39)/Data!H39 -> 0.07865168539 | H39: =(Data!I40-Data!I39)/Data!I39 -> 0.08743169399 | I39: =(Data!J40-Data!J39)/Data!J39 -> 0.01030927835 | J39: =(Data!K40-Data!K39)/Data!K39 -> 0.07795698925 | K39: =(Data!L40-Data!L39)/Data!L39 -> 0.03305785124 | L39: =(Data!M40-Data!M39)/Data!M39 -> 0.06039755352
A40: =(Data!B41-Data!B40)/Data!B40 -> -0.02161547213 | B40: =(Data!C41-Data!C40)/Data!C40 -> 0.03673469388 | C40: =(Data!D41-Data!D40)/Data!D40 -> -0.008324661811 | D40: =(Data!E41-Data!E40)/Data!E40 -> 0.004978662873 | E40: =(Data!F41-Data!F40)/Data!F40 -> -0.06579898771 | F40: =(Data!G41-Data!G40)/Data!G40 -> -0.01789264414 | G40: =(Data!H41-Data!H40)/Data!H40 -> 0.003472222222 | H40: =(Data!I41-Data!I40)/Data!I40 -> 0.1256281407 | I40: =(Data!J41-Data!J40)/Data!J40 -> -0.03571428571 | J40: =(Data!K41-Data!K40)/Data!K40 -> 0.01246882793 | K40: =(Data!L41-Data!L40)/Data!L40 -> -0.0336 | L40: =(Data!M41-Data!M40)/Data!M40 -> -0.001441961067
A41: =(Data!B42-Data!B41)/Data!B41 -> -0.02093023256 | B41: =(Data!C42-Data!C41)/Data!C41 -> -0.05905511811 | C41: =(Data!D42-Data!D41)/Data!D41 -> -0.008394543547 | D41: =(Data!E42-Data!E41)/Data!E41 -> -0.04246284501 | E41: =(Data!F42-Data!F41)/Data!F41 -> 0.04489164087 | F41: =(Data!G42-Data!G41)/Data!G41 -> -0.04453441296 | G41: =(Data!H42-Data!H41)/Data!H41 -> -0.02422145329 | H41: =(Data!I42-Data!I41)/Data!I41 -> 0.0625 | I41: =(Data!J42-Data!J41)/Data!J41 -> -0.03703703704 | J41: =(Data!K42-Data!K41)/Data!K41 -> -0.007389162562 | K41: =(Data!L42-Data!L41)/Data!L41 -> -0.009933774834 | L41: =(Data!M42-Data!M41)/Data!M41 -> -0.04115523466
A42: =(Data!B43-Data!B42)/Data!B42 -> -0.05463182898 | B42: =(Data!C43-Data!C42)/Data!C42 -> -0.06485355649 | C42: =(Data!D43-Data!D42)/Data!D42 -> -0.07724867725 | D42: =(Data!E43-Data!E42)/Data!E42 -> -0.08943089431 | E42: =(Data!F43-Data!F42)/Data!F42 -> -0.02592592593 | F42: =(Data!G43-Data!G42)/Data!G42 -> -0.09216101695 | G42: =(Data!H43-Data!H42)/Data!H42 -> -0.02127659574 | H42: =(Data!I43-Data!I42)/Data!I42 -> -0.06302521008 | I42: =(Data!J43-Data!J42)/Data!J42 -> -0.01648351648 | J42: =(Data!K43-Data!K42)/Data!K42 -> -0.09181141439 | K42: =(Data!L43-Data!L42)/Data!L42 -> -0.04682274247 | L42: =(Data!M43-Data!M42)/Data!M42 -> -0.09713855422
A43: =(Data!B44-Data!B43)/Data!B43 -> -0.1042713568 | B43: =(Data!C44-Data!C43)/Data!C43 -> -0.04250559284 | C43: =(Data!D44-Data!D43)/Data!D43 -> -0.1112385321 | D43: =(Data!E44-Data!E43)/Data!E43 -> -0.07792207792 | E43: =(Data!F44-Data!F43)/Data!F43 -> -0.04942965779 | F43: =(Data!G44-Data!G43)/Data!G43 -> -0.09218203034 | G43: =(Data!H44-Data!H43)/Data!H43 -> 0.08514492754 | H43: =(Data!I44-Data!I43)/Data!I43 -> -0.04484304933 | I43: =(Data!J44-Data!J43)/Data!J43 -> -0.01117318436 | J43: =(Data!K44-Data!K43)/Data!K43 -> -0.07650273224 | K43: =(Data!L44-Data!L43)/Data!L43 -> -0.05789473684 | L43: =(Data!M44-Data!M43)/Data!M43 -> -0.1276063386
A44: =(Data!B45-Data!B44)/Data!B44 -> 0.009817671809 | B44: =(Data!C45-Data!C44)/Data!C44 -> -0.05373831776 | C44: =(Data!D45-Data!D44)/Data!D44 -> 0.005161290323 | D44: =(Data!E45-Data!E44)/Data!E44 -> -0.01496478873 | E44: =(Data!F45-Data!F44)/Data!F44 -> 0.004 | F44: =(Data!G45-Data!G44)/Data!G44 -> -0.07455012853 | G44: =(Data!H45-Data!H44)/Data!H44 -> -0.02003338898 | H44: =(Data!I45-Data!I44)/Data!I44 -> -0.04225352113 | I44: =(Data!J45-Data!J44)/Data!J44 -> -0.05084745763 | J44: =(Data!K45-Data!K44)/Data!K44 -> -0.03550295858 | K44: =(Data!L45-Data!L44)/Data!L44 -> -0.04655493482 | L44: =(Data!M45-Data!M44)/Data!M44 -> -0.05544933078
A45: =(Data!B46-Data!B45)/Data!B45 -> -0.04027777778 | B45: =(Data!C46-Data!C45)/Data!C45 -> -0.01481481481 | C45: =(Data!D46-Data!D45)/Data!D45 -> -0.07060333761 | D45: =(Data!E46-Data!E45)/Data!E45 -> -0.06434316354 | E45: =(Data!F46-Data!F45)/Data!F45 -> -0.08685258964 | F45: =(Data!G46-Data!G45)/Data!G45 -> -0.1166666667 | G45: =(Data!H46-Data!H45)/Data!H45 -> -0.02555366269 | H45: =(Data!I46-Data!I45)/Data!I45 -> -0.009803921569 | I45: =(Data!J46-Data!J45)/Data!J45 -> 0.0119047619 | J45: =(Data!K46-Data!K45)/Data!K45 -> -0.0981595092 | K45: =(Data!L46-Data!L45)/Data!L45 -> -0.03515625 | L45: =(Data!M46-Data!M45)/Data!M45 -> -0.08603238866
A46: =(Data!B47-Data!B46)/Data!B46 -> -0.02604920405 | B46: =(Data!C47-Data!C46)/Data!C46 -> -0.08521303258 | C46: =(Data!D47-Data!D46)/Data!D46 -> 0.002762430939 | D46: =(Data!E47-Data!E46)/Data!E46 -> -0.04680038204 | E46: =(Data!F47-Data!F46)/Data!F46 -> -0.08813263525 | F46: =(Data!G47-Data!G46)/Data!G46 -> -0.07704402516 | G46: =(Data!H47-Data!H46)/Data!H46 -> -0.04895104895 | H46: =(Data!I47-Data!I46)/Data!I46 -> 0.0495049505 | I46: =(Data!J47-Data!J46)/Data!J46 -> -0.04705882353 | J46: =(Data!K47-Data!K46)/Data!K46 -> -0.03401360544 | K46: =(Data!L47-Data!L46)/Data!L46 -> -0.05668016194 | L46: =(Data!M47-Data!M46)/Data!M46 -> -0.02104097453
A47: =(Data!B48-Data!B47)/Data!B47 -> 0.05052005944 | B47: =(Data!C48-Data!C47)/Data!C47 -> 0.05753424658 | C47: =(Data!D48-Data!D47)/Data!D47 -> 0.03305785124 | D47: =(Data!E48-Data!E47)/Data!E47 -> 0.0751503006 | E47: =(Data!F48-Data!F47)/Data!F47 -> 0.02870813397 | F47: =(Data!G48-Data!G47)/Data!G47 -> 0.08177172061 | G47: =(Data!H48-Data!H47)/Data!H47 -> -0.04779411765 | H47: =(Data!I48-Data!I47)/Data!I47 -> 0.02358490566 | I47: =(Data!J48-Data!J47)/Data!J47 -> 0.03703703704 | J47: =(Data!K48-Data!K47)/Data!K47 -> 0.01056338028 | K47: =(Data!L48-Data!L47)/Data!L47 -> 0.01931330472 | L47: =(Data!M48-Data!M47)/Data!M47 -> 0.05316742081
A48: =(Data!B49-Data!B48)/Data!B48 -> -0.007072135785 | B48: =(Data!C49-Data!C48)/Data!C48 -> 0.02331606218 | C48: =(Data!D49-Data!D48)/Data!D48 -> -0.03733333333 | D48: =(Data!E49-Data!E48)/Data!E48 -> -0.002795899348 | E48: =(Data!F49-Data!F48)/Data!F48 -> -0.01674418605 | F48: =(Data!G49-Data!G48)/Data!G48 -> -0.04094488189 | G48: =(Data!H49-Data!H48)/Data!H48 -> -0.0444015444 | H48: =(Data!I49-Data!I48)/Data!I48 -> 0.004608294931 | I48: =(Data!J49-Data!J48)/Data!J48 -> 0.08333333333 | J48: =(Data!K49-Data!K48)/Data!K48 -> 0.003484320557 | K48: =(Data!L49-Data!L48)/Data!L48 -> -0.006315789474 | L48: =(Data!M49-Data!M48)/Data!M48 -> -0.03222341568
A49: =(Data!B50-Data!B49)/Data!B49 -> -0.002849002849 | B49: =(Data!C50-Data!C49)/Data!C49 -> -0.09620253165 | C49: =(Data!D50-Data!D49)/Data!D49 -> -0.03878116343 | D49: =(Data!E50-Data!E49)/Data!E49 -> -0.02710280374 | E49: =(Data!F50-Data!F49)/Data!F49 -> -0.05298013245 | F49: =(Data!G50-Data!G49)/Data!G49 -> -0.04926108374 | G49: =(Data!H50-Data!H49)/Data!H49 -> 0.02222222222 | H49: =(Data!I50-Data!I49)/Data!I49 -> 0.004587155963 | I49: =(Data!J50-Data!J49)/Data!J49 -> 0.005494505495 | J49: =(Data!K50-Data!K49)/Data!K49 -> -0.01388888889 | K49: =(Data!L50-Data!L49)/Data!L49 -> 0.01059322034 | L49: =(Data!M50-Data!M49)/Data!M49 -> -0.0410654828
A50: =(Data!B51-Data!B50)/Data!B50 -> -0.06285714286 | B50: =(Data!C51-Data!C50)/Data!C50 -> -0.05882352941 | C50: =(Data!D51-Data!D50)/Data!D50 -> -0.04034582133 | D50: =(Data!E51-Data!E50)/Data!E50 -> -0.03746397695 | E50: =(Data!F51-Data!F50)/Data!F50 -> -0.02697302697 | F50: =(Data!G51-Data!G50)/Data!G50 -> -0.09844559585 | G50: =(Data!H51-Data!H50)/Data!H50 -> 0.04743083004 | H50: =(Data!I51-Data!I50)/Data!I50 -> 0.04109589041 | I50: =(Data!J51-Data!J50)/Data!J50 -> -0.01639344262 | J50: =(Data!K51-Data!K50)/Data!K50 -> -0.08098591549 | K50: =(Data!L51-Data!L50)/Data!L50 -> -0.07756813417 | L50: =(Data!M51-Data!M50)/Data!M50 -> -0.1064814815
A51: =(Data!B52-Data!B51)/Data!B51 -> -0.003048780488 | B51: =(Data!C52-Data!C51)/Data!C51 -> -0.06845238095 | C51: =(Data!D52-Data!D51)/Data!D51 -> -0.001501501502 | D51: =(Data!E52-Data!E51)/Data!E51 -> -0.03093812375 | E51: =(Data!F52-Data!F51)/Data!F51 -> -0.07802874743 | F51: =(Data!G52-Data!G51)/Data!G51 -> -0.04597701149 | G51: =(Data!H52-Data!H51)/Data!H51 -> -0.01132075472 | H51: =(Data!I52-Data!I51)/Data!I51 -> 0.04824561404 | I51: =(Data!J52-Data!J51)/Data!J51 -> -0.03888888889 | J51: =(Data!K52-Data!K51)/Data!K51 -> 0.003831417625 | K51: =(Data!L52-Data!L51)/Data!L51 -> 0 | L51: =(Data!M52-Data!M51)/Data!M51 -> -0.05958549223
A52: =(Data!B53-Data!B52)/Data!B52 -> 0.05351681957 | B52: =(Data!C53-Data!C52)/Data!C52 -> 0.06389776358 | C52: =(Data!D53-Data!D52)/Data!D52 -> 0.06315789474 | D52: =(Data!E53-Data!E52)/Data!E52 -> 0.05973223481 | E52: =(Data!F53-Data!F52)/Data!F52 -> 0.04788418708 | F52: =(Data!G53-Data!G52)/Data!G52 -> 0.1144578313 | G52: =(Data!H53-Data!H52)/Data!H52 -> 0.04580152672 | H52: =(Data!I53-Data!I52)/Data!I52 -> 0.02092050209 | I52: =(Data!J53-Data!J52)/Data!J52 -> -0.03468208092 | J52: =(Data!K53-Data!K52)/Data!K52 -> 0.06106870229 | K52: =(Data!L53-Data!L52)/Data!L52 -> 0.1045454545 | L52: =(Data!M53-Data!M52)/Data!M52 -> 0.0826446281
A53: =(Data!B54-Data!B53)/Data!B53 -> 0.05805515239 | B53: =(Data!C54-Data!C53)/Data!C53 -> 0.04504504505 | C53: =(Data!D54-Data!D53)/Data!D53 -> 0.03111739745 | D53: =(Data!E54-Data!E53)/Data!E53 -> 0.03401360544 | E53: =(Data!F54-Data!F53)/Data!F53 -> 0.07120085016 | F53: =(Data!G54-Data!G53)/Data!G53 -> 0.03423423423 | G53: =(Data!H54-Data!H53)/Data!H53 -> -0.007299270073 | H53: =(Data!I54-Data!I53)/Data!I53 -> 0.131147541 | I53: =(Data!J54-Data!J53)/Data!J53 -> 0 | J53: =(Data!K54-Data!K53)/Data!K53 -> 0.08633093525 | K53: =(Data!L54-Data!L53)/Data!L53 -> 0.04115226337 | L53: =(Data!M54-Data!M53)/Data!M53 -> -0.002544529262
A54: =(Data!B55-Data!B54)/Data!B54 -> 0.06035665295 | B54: =(Data!C55-Data!C54)/Data!C54 -> 0.08045977011 | C54: =(Data!D55-Data!D54)/Data!D54 -> 0.0329218107 | D54: =(Data!E55-Data!E54)/Data!E54 -> 0.04793233083 | E54: =(Data!F55-Data!F54)/Data!F54 -> 0.09325396825 | F54: =(Data!G55-Data!G54)/Data!G54 -> 0.07665505226 | G54: =(Data!H55-Data!H54)/Data!H54 -> 0 | H54: =(Data!I55-Data!I54)/Data!I54 -> 0.1086956522 | I54: =(Data!J55-Data!J54)/Data!J54 -> 0.1137724551 | J54: =(Data!K55-Data!K54)/Data!K54 -> 0.08940397351 | K54: =(Data!L55-Data!L54)/Data!L54 -> 0.05138339921 | L54: =(Data!M55-Data!M54)/Data!M54 -> 0.05739795918
A55: =(Data!B56-Data!B55)/Data!B55 -> -0.003880983182 | B55: =(Data!C56-Data!C55)/Data!C55 -> 0.06382978723 | C55: =(Data!D56-Data!D55)/Data!D55 -> -0.009296148738 | D55: =(Data!E56-Data!E55)/Data!E55 -> -0.01165919283 | E55: =(Data!F56-Data!F55)/Data!F55 -> 0.08166969147 | F55: =(Data!G56-Data!G55)/Data!G55 -> 0.04692556634 | G55: =(Data!H56-Data!H55)/Data!H55 -> -0.02389705882 | H55: =(Data!I56-Data!I55)/Data!I55 -> -0.01307189542 | I55: =(Data!J56-Data!J55)/Data!J55 -> 0.08602150538 | J55: =(Data!K56-Data!K55)/Data!K55 -> 0.03951367781 | K55: =(Data!L56-Data!L55)/Data!L55 -> 0.003759398496 | L55: =(Data!M56-Data!M55)/Data!M55 -> 0.01809408926
A56: =(Data!B57-Data!B56)/Data!B56 -> 0.002597402597 | B56: =(Data!C57-Data!C56)/Data!C56 -> 0.0375 | C56: =(Data!D57-Data!D56)/Data!D56 -> 0.0254691689 | D56: =(Data!E57-Data!E56)/Data!E56 -> 0.01361161525 | E56: =(Data!F57-Data!F56)/Data!F56 -> 0.08305369128 | F56: =(Data!G57-Data!G56)/Data!G56 -> 0.03554868624 | G56: =(Data!H57-Data!H56)/Data!H56 -> -0.03201506591 | H56: =(Data!I57-Data!I56)/Data!I56 -> 0.05298013245 | I56: =(Data!J57-Data!J56)/Data!J56 -> 0.08415841584 | J56: =(Data!K57-Data!K56)/Data!K56 -> 0.06432748538 | K56: =(Data!L57-Data!L56)/Data!L56 -> 0.07116104869 | L56: =(Data!M57-Data!M56)/Data!M56 -> 0.04502369668
A57: =(Data!B58-Data!B57)/Data!B57 -> 0.02979274611 | B57: =(Data!C58-Data!C57)/Data!C57 -> 0.01927710843 | C57: =(Data!D58-Data!D57)/Data!D57 -> 0.01307189542 | D57: =(Data!E58-Data!E57)/Data!E57 -> 0.01790510295 | E57: =(Data!F58-Data!F57)/Data!F57 -> -0.06274206042 | F57: =(Data!G58-Data!G57)/Data!G57 -> 0.0223880597 | G57: =(Data!H58-Data!H57)/Data!H57 -> -0.03307392996 | H57: =(Data!I58-Data!I57)/Data!I57 -> 0.09748427673 | I57: =(Data!J58-Data!J57)/Data!J57 -> 0.08219178082 | J57: =(Data!K58-Data!K57)/Data!K57 -> 0.01373626374 | K57: =(Data!L58-Data!L57)/Data!L57 -> 0.07692307692 | L57: =(Data!M58-Data!M57)/Data!M57 -> 0.02380952381
A58: =(Data!B59-Data!B58)/Data!B58 -> 0.02641509434 | B58: =(Data!C59-Data!C58)/Data!C58 -> 0.01182033097 | C58: =(Data!D59-Data!D58)/Data!D58 -> 0.01290322581 | D58: =(Data!E59-Data!E58)/Data!E58 -> -0.0008795074758 | E58: =(Data!F59-Data!F58)/Data!F58 -> 0.01900826446 | F58: =(Data!G59-Data!G58)/Data!G58 -> 0 | G58: =(Data!H59-Data!H58)/Data!H58 -> -0.02414486922 | H58: =(Data!I59-Data!I58)/Data!I58 -> 0.07736389685 | I58: =(Data!J59-Data!J58)/Data!J58 -> 0.0970464135 | J58: =(Data!K59-Data!K58)/Data!K58 -> 0.0135501355 | K58: =(Data!L59-Data!L58)/Data!L58 -> 0.01948051948 | L58: =(Data!M59-Data!M58)/Data!M58 -> -0.01993355482
A59: =(Data!B60-Data!B59)/Data!B59 -> 0.01593137255 | B59: =(Data!C60-Data!C59)/Data!C59 -> 0.04672897196 | C59: =(Data!D60-Data!D59)/Data!D59 -> 0.0127388535 | D59: =(Data!E60-Data!E59)/Data!E59 -> 0.03521126761 | E59: =(Data!F60-Data!F59)/Data!F59 -> 0.02270884023 | F59: =(Data!G60-Data!G59)/Data!G59 -> 0.0598540146 | G59: =(Data!H60-Data!H59)/Data!H59 -> -0.00824742268 | H59: =(Data!I60-Data!I59)/Data!I59 -> -0.1170212766 | I59: =(Data!J60-Data!J59)/Data!J59 -> 0.04615384615 | J59: =(Data!K60-Data!K59)/Data!K59 -> 0.05614973262 | K59: =(Data!L60-Data!L59)/Data!L59 -> -0.003184713376 | L59: =(Data!M60-Data!M59)/Data!M59 -> 0.02824858757
A60: =(Data!B61-Data!B60)/Data!B60 -> 0.04342581423 | B60: =(Data!C61-Data!C60)/Data!C60 -> 0.015625 | C60: =(Data!D61-Data!D60)/Data!D60 -> 0.01132075472 | D60: =(Data!E61-Data!E60)/Data!E60 -> 0.02295918367 | E60: =(Data!F61-Data!F60)/Data!F60 -> 0.02141157811 | F60: =(Data!G61-Data!G60)/Data!G60 -> 0.03581267218 | G60: =(Data!H61-Data!H60)/Data!H60 -> 0.08108108108 | H60: =(Data!I61-Data!I60)/Data!I60 -> 0.05421686747 | I60: =(Data!J61-Data!J60)/Data!J60 -> 0.09926470588 | J60: =(Data!K61-Data!K60)/Data!K60 -> 0.03797468354 | K60: =(Data!L61-Data!L60)/Data!L60 -> -0.02076677316 | L60: =(Data!M61-Data!M60)/Data!M60 -> 0.001098901099
A61: =(Data!B62-Data!B61)/Data!B61 -> 0.04971098266 | B61: =(Data!C62-Data!C61)/Data!C61 -> 0.05494505495 | C61: =(Data!D62-Data!D61)/Data!D61 -> 0.01741293532 | D61: =(Data!E62-Data!E61)/Data!E61 -> 0.01662510391 | E61: =(Data!F62-Data!F61)/Data!F61 -> 0.09937888199 | F61: =(Data!G62-Data!G61)/Data!G61 -> 0.05053191489 | G61: =(Data!H62-Data!H61)/Data!H61 -> 0.08076923077 | H61: =(Data!I62-Data!I61)/Data!I61 -> 0.08285714286 | I61: =(Data!J62-Data!J61)/Data!J61 -> 0.09364548495 | J61: =(Data!K62-Data!K61)/Data!K61 -> 0.08780487805 | K61: =(Data!L62-Data!L61)/Data!L61 -> 0.07014681892 | L61: =(Data!M62-Data!M61)/Data!M61 -> 0.04390779363
A62: =(Data!B63-Data!B62)/Data!B62 -> 0.0154185022 | B62: =(Data!C63-Data!C62)/Data!C62 -> 0.025 | C62: =(Data!D63-Data!D62)/Data!D62 -> -0.006112469438 | D62: =(Data!E63-Data!E62)/Data!E62 -> 0.004905968929 | E62: =(Data!F63-Data!F62)/Data!F62 -> 0.00988700565 | F62: =(Data!G63-Data!G62)/Data!G62 -> 0.00253164557 | G62: =(Data!H63-Data!H62)/Data!H62 -> 0.05693950178 | H62: =(Data!I63-Data!I62)/Data!I62 -> 0.03693931398 | I62: =(Data!J63-Data!J62)/Data!J62 -> -0.02140672783 | J62: =(Data!K63-Data!K62)/Data!K62 -> 0.05156950673 | K62: =(Data!L63-Data!L62)/Data!L62 -> 0.04725609756 | L62: =(Data!M63-Data!M62)/Data!M62 -> 0.01577287066
A63: =(Data!B64-Data!B63)/Data!B63 -> -0.01301518438 | B63: =(Data!C64-Data!C63)/Data!C63 -> 0.01016260163 | C63: =(Data!D64-Data!D63)/Data!D63 -> 0 | D63: =(Data!E64-Data!E63)/Data!E63 -> -0.008950366151 | E63: =(Data!F64-Data!F63)/Data!F63 -> -0.02027972028 | F63: =(Data!G64-Data!G63)/Data!G63 -> -0.03156565657 | G63: =(Data!H64-Data!H63)/Data!H63 -> 0.01683501684 | H63: =(Data!I64-Data!I63)/Data!I63 -> 0.08142493639 | I63: =(Data!J64-Data!J63)/Data!J63 -> -0.034375 | J63: =(Data!K64-Data!K63)/Data!K63 -> 0.04051172708 | K63: =(Data!L64-Data!L63)/Data!L63 -> -0.001455604076 | L63: =(Data!M64-Data!M63)/Data!M63 -> -0.01552795031
A64: =(Data!B65-Data!B64)/Data!B64 -> 0.004395604396 | B64: =(Data!C65-Data!C64)/Data!C64 -> 0.03621730382 | C64: =(Data!D65-Data!D64)/Data!D64 -> 0.0147601476 | D64: =(Data!E65-Data!E64)/Data!E64 -> 0.02955665025 | E64: =(Data!F65-Data!F64)/Data!F64 -> 0.02997858672 | F64: =(Data!G65-Data!G64)/Data!G64 -> 0.0260756193 | G64: =(Data!H65-Data!H64)/Data!H64 -> -0.01158940397 | H64: =(Data!I65-Data!I64)/Data!I64 -> 0.04470588235 | I64: =(Data!J65-Data!J64)/Data!J64 -> 0.0355987055 | J64: =(Data!K65-Data!K64)/Data!K64 -> 0.004098360656 | K64: =(Data!L65-Data!L64)/Data!L64 -> -0.02186588921 | L64: =(Data!M65-Data!M64)/Data!M64 -> 0.01997896951
A65: =(Data!B66-Data!B65)/Data!B65 -> -0.03501094092 | B65: =(Data!C66-Data!C65)/Data!C65 -> -0.1165048544 | C65: =(Data!D66-Data!D65)/Data!D65 -> -0.01212121212 | D65: =(Data!E66-Data!E65)/Data!E65 -> -0.02153110048 | E65: =(Data!F66-Data!F65)/Data!F65 -> -0.01316701317 | F65: =(Data!G66-Data!G65)/Data!G65 -> -0.04828462516 | G65: =(Data!H66-Data!H65)/Data!H65 -> -0.07370184255 | H65: =(Data!I66-Data!I65)/Data!I65 -> -0.1216216216 | I65: =(Data!J66-Data!J65)/Data!J65 -> -0.10625 | J65: =(Data!K66-Data!K65)/Data!K65 -> -0.04489795918 | K65: =(Data!L66-Data!L65)/Data!L65 -> -0.03129657228 | L65: =(Data!M66-Data!M65)/Data!M65 -> -0.04329896907
A66: =(Data!B67-Data!B66)/Data!B66 -> 0.02721088435 | B66: =(Data!C67-Data!C66)/Data!C66 -> -0.03736263736 | C66: =(Data!D67-Data!D66)/Data!D66 -> 0.00490797546 | D66: =(Data!E67-Data!E66)/Data!E66 -> 0.0162999185 | E66: =(Data!F67-Data!F66)/Data!F66 -> -0.02247191011 | F66: =(Data!G67-Data!G66)/Data!G66 -> 0.02536715621 | G66: =(Data!H67-Data!H66)/Data!H66 -> -0.06329113924 | H66: =(Data!I67-Data!I66)/Data!I66 -> -0.04358974359 | I66: =(Data!J67-Data!J66)/Data!J66 -> -0.07342657343 | J66: =(Data!K67-Data!K66)/Data!K66 -> 0.05128205128 | K66: =(Data!L67-Data!L66)/Data!L66 -> 0.03076923077 | L66: =(Data!M67-Data!M66)/Data!M66 -> 0.02370689655
A67: =(Data!B68-Data!B67)/Data!B67 -> -0.01545253863 | B67: =(Data!C68-Data!C67)/Data!C67 -> -0.03424657534 | C67: =(Data!D68-Data!D67)/Data!D67 -> -0.02564102564 | D67: =(Data!E68-Data!E67)/Data!E67 -> -0.00882117081 | E67: =(Data!F68-Data!F67)/Data!F67 -> -0.01795977011 | F67: =(Data!G68-Data!G67)/Data!G67 -> -0.02473958333 | G67: =(Data!H68-Data!H67)/Data!H67 -> -0.02895752896 | H67: =(Data!I68-Data!I67)/Data!I67 -> -0.02680965147 | I67: =(Data!J68-Data!J67)/Data!J67 -> 0.03396226415 | J67: =(Data!K68-Data!K67)/Data!K67 -> 0.01422764228 | K67: =(Data!L68-Data!L67)/Data!L67 -> 0.0223880597 | L67: =(Data!M68-Data!M67)/Data!M67 -> -0.02
A68: =(Data!B69-Data!B68)/Data!B68 -> -0.01457399103 | B68: =(Data!C69-Data!C68)/Data!C68 -> 0.03309692671 | C68: =(Data!D69-Data!D68)/Data!D68 -> 0.005012531328 | D68: =(Data!E69-Data!E68)/Data!E68 -> -0.02588996764 | E68: =(Data!F69-Data!F68)/Data!F68 -> -0.02414045355 | F68: =(Data!G69-Data!G68)/Data!G68 -> -0.03204272363 | G68: =(Data!H69-Data!H68)/Data!H68 -> -0.04373757455 | H68: =(Data!I69-Data!I68)/Data!I68 -> -0.01377410468 | I68: =(Data!J69-Data!J68)/Data!J68 -> 0.03284671533 | J68: =(Data!K69-Data!K68)/Data!K68 -> 0.004008016032 | K68: =(Data!L69-Data!L68)/Data!L68 -> 0 | L68: =(Data!M69-Data!M68)/Data!M68 -> -0.02577873255
A69: =(Data!B70-Data!B69)/Data!B69 -> 0.03071672355 | B69: =(Data!C70-Data!C69)/Data!C69 -> 0.08466819222 | C69: =(Data!D70-Data!D69)/Data!D69 -> 0.03990024938 | D69: =(Data!E70-Data!E69)/Data!E69 -> 0.0365448505 | E69: =(Data!F70-Data!F69)/Data!F69 -> 0.02548725637 | F69: =(Data!G70-Data!G69)/Data!G69 -> 0.03724137931 | G69: =(Data!H70-Data!H69)/Data!H69 -> 0.006237006237 | H69: =(Data!I70-Data!I69)/Data!I69 -> 0.125698324 | I69: =(Data!J70-Data!J69)/Data!J69 -> 0.05300353357 | J69: =(Data!K70-Data!K69)/Data!K69 -> 0.05988023952 | K69: =(Data!L70-Data!L69)/Data!L69 -> 0.02919708029 | L69: =(Data!M70-Data!M69)/Data!M69 -> 0.03197353914
A70: =(Data!B71-Data!B70)/Data!B70 -> 0.008830022075 | B70: =(Data!C71-Data!C70)/Data!C70 -> 0.01687763713 | C70: =(Data!D71-Data!D70)/Data!D70 -> 0.01918465228 | D70: =(Data!E71-Data!E70)/Data!E70 -> 0.02644230769 | E70: =(Data!F71-Data!F70)/Data!F70 -> 0.0350877193 | F70: =(Data!G71-Data!G70)/Data!G70 -> 0.01329787234 | G70: =(Data!H71-Data!H70)/Data!H70 -> -0.00826446281 | H70: =(Data!I71-Data!I70)/Data!I70 -> 0.1166253102 | I70: =(Data!J71-Data!J70)/Data!J70 -> 0.05033557047 | J70: =(Data!K71-Data!K70)/Data!K70 -> 0.04708097928 | K70: =(Data!L71-Data!L70)/Data!L70 -> 0.01560283688 | L70: =(Data!M71-Data!M70)/Data!M70 -> 0.002136752137
A71: =(Data!B72-Data!B71)/Data!B71 -> 0.05032822757 | B71: =(Data!C72-Data!C71)/Data!C71 -> 0.01659751037 | C71: =(Data!D72-Data!D71)/Data!D71 -> 0.02117647059 | D71: =(Data!E72-Data!E71)/Data!E71 -> 0.03669008587 | E71: =(Data!F72-Data!F71)/Data!F71 -> 0.07556497175 | F71: =(Data!G72-Data!G71)/Data!G71 -> 0.03412073491 | G71: =(Data!H72-Data!H71)/Data!H71 -> -0.01041666667 | H71: =(Data!I72-Data!I71)/Data!I71 -> -0.04444444444 | I71: =(Data!J72-Data!J71)/Data!J71 -> 0.04792332268 | J71: =(Data!K72-Data!K71)/Data!K71 -> 0 | K71: =(Data!L72-Data!L71)/Data!L71 -> 0.01536312849 | L71: =(Data!M72-Data!M71)/Data!M71 -> 0.0223880597
A72: =(Data!B73-Data!B72)/Data!B72 -> 0.02916666667 | B72: =(Data!C73-Data!C72)/Data!C72 -> 0.01224489796 | C72: =(Data!D73-Data!D72)/Data!D72 -> 0.001152073733 | D72: =(Data!E73-Data!E72)/Data!E72 -> 0.03689759036 | E72: =(Data!F73-Data!F72)/Data!F72 -> 0.04267892318 | F72: =(Data!G73-Data!G72)/Data!G72 -> 0.02664974619 | G72: =(Data!H73-Data!H72)/Data!H72 -> -0.02947368421 | H72: =(Data!I73-Data!I72)/Data!I72 -> -0.1372093023 | I72: =(Data!J73-Data!J72)/Data!J72 -> 0.07317073171 | J72: =(Data!K73-Data!K72)/Data!K72 -> 0.03597122302 | K72: =(Data!L73-Data!L72)/Data!L72 -> 0.01925722146 | L72: =(Data!M73-Data!M72)/Data!M72 -> 0.01772679875
A73: =(Data!B74-Data!B73)/Data!B73 -> -0.01214574899 | B73: =(Data!C74-Data!C73)/Data!C73 -> 0.03427419355 | C73: =(Data!D74-Data!D73)/Data!D73 -> 0.01611047181 | D73: =(Data!E74-Data!E73)/Data!E73 -> 0.03050108932 | E73: =(Data!F74-Data!F73)/Data!F73 -> 0.06108312343 | F73: =(Data!G74-Data!G73)/Data!G73 -> 0.01112484549 | G73: =(Data!H74-Data!H73)/Data!H73 -> -0.05206073753 | H73: =(Data!I74-Data!I73)/Data!I73 -> 0.03234501348 | I73: =(Data!J74-Data!J73)/Data!J73 -> -0.01704545455 | J73: =(Data!K74-Data!K73)/Data!K73 -> 0.03472222222 | K73: =(Data!L74-Data!L73)/Data!L73 -> 0.02429149798 | L73: =(Data!M74-Data!M73)/Data!M73 -> 0.02459016393
A74: =(Data!B75-Data!B74)/Data!B74 -> 0.02663934426 | B74: =(Data!C75-Data!C74)/Data!C74 -> 0.06432748538 | C74: =(Data!D75-Data!D74)/Data!D74 -> 0.03510758777 | D74: =(Data!E75-Data!E74)/Data!E74 -> 0.0281888654 | E74: =(Data!F75-Data!F74)/Data!F74 -> 0.03798219585 | F74: =(Data!G75-Data!G74)/Data!G74 -> 0.02322738386 | G74: =(Data!H75-Data!H74)/Data!H74 -> 0.02974828375 | H74: =(Data!I75-Data!I74)/Data!I74 -> 0.08877284595 | I74: =(Data!J75-Data!J74)/Data!J74 -> 0.04913294798 | J74: =(Data!K75-Data!K74)/Data!K74 -> 0.06711409396 | K74: =(Data!L75-Data!L74)/Data!L74 -> 0.05270092227 | L74: =(Data!M75-Data!M74)/Data!M74 -> 0.053
A75: =(Data!B76-Data!B75)/Data!B75 -> 0.003992015968 | B75: =(Data!C76-Data!C75)/Data!C75 -> 0.02747252747 | C75: =(Data!D76-Data!D75)/Data!D75 -> -0.007658643326 | D75: =(Data!E76-Data!E75)/Data!E75 -> -0.004112405757 | E75: =(Data!F76-Data!F75)/Data!F75 -> 0.007432818754 | F75: =(Data!G76-Data!G75)/Data!G75 -> 0.003584229391 | G75: =(Data!H76-Data!H75)/Data!H75 -> -0.01777777778 | H75: =(Data!I76-Data!I75)/Data!I75 -> 0.00479616307 | I75: =(Data!J76-Data!J75)/Data!J75 -> 0.01101928375 | J75: =(Data!K76-Data!K75)/Data!K75 -> 0.03459119497 | K75: =(Data!L76-Data!L75)/Data!L75 -> 0.03504380476 | L75: =(Data!M76-Data!M75)/Data!M75 -> 0.006647673314
A76: =(Data!B77-Data!B76)/Data!B76 -> -0.0268389662 | B76: =(Data!C77-Data!C76)/Data!C76 -> -0.0320855615 | C76: =(Data!D77-Data!D76)/Data!D76 -> -0.01433296582 | D76: =(Data!E77-Data!E76)/Data!E76 -> -0.001376462491 | E76: =(Data!F77-Data!F76)/Data!F76 -> -0.02610669694 | F76: =(Data!G77-Data!G76)/Data!G76 -> -0.01666666667 | G76: =(Data!H77-Data!H76)/Data!H76 -> -0.0407239819 | H76: =(Data!I77-Data!I76)/Data!I76 -> 0.01193317422 | I76: =(Data!J77-Data!J76)/Data!J76 -> -0.04359673025 | J76: =(Data!K77-Data!K76)/Data!K76 -> -0.004559270517 | K76: =(Data!L77-Data!L76)/Data!L76 -> 0.02055622733 | L76: =(Data!M77-Data!M76)/Data!M76 -> -0.02547169811
A77: =(Data!B78-Data!B77)/Data!B77 -> 0.003064351379 | B77: =(Data!C78-Data!C77)/Data!C77 -> -0.01841620626 | C77: =(Data!D78-Data!D77)/Data!D77 -> 0.007829977629 | D77: =(Data!E78-Data!E77)/Data!E77 -> -0.01378359752 | E77: =(Data!F78-Data!F77)/Data!F77 -> -0.01456876457 | F77: =(Data!G78-Data!G77)/Data!G77 -> -0.006053268765 | G77: =(Data!H78-Data!H77)/Data!H77 -> -0.07783018868 | H77: =(Data!I78-Data!I77)/Data!I77 -> -0.02594339623 | I77: =(Data!J78-Data!J77)/Data!J77 -> 0.01709401709 | J77: =(Data!K78-Data!K77)/Data!K77 -> -0.006106870229 | K77: =(Data!L78-Data!L77)/Data!L77 -> -0.01066350711 | L77: =(Data!M78-Data!M77)/Data!M77 -> -0.01161665053
A78: =(Data!B79-Data!B78)/Data!B78 -> 0.02036659878 | B78: =(Data!C79-Data!C78)/Data!C78 -> 0.05440900563 | C78: =(Data!D79-Data!D78)/Data!D78 -> 0.02552719201 | D78: =(Data!E79-Data!E78)/Data!E78 -> 0.02585604472 | E78: =(Data!F79-Data!F78)/Data!F78 -> 0.05440567711 | F78: =(Data!G79-Data!G78)/Data!G78 -> 0.05359317905 | G78: =(Data!H79-Data!H78)/Data!H78 -> -0.02046035806 | H78: =(Data!I79-Data!I78)/Data!I78 -> 0.04600484262 | I78: =(Data!J79-Data!J78)/Data!J78 -> 0.06722689076 | J78: =(Data!K79-Data!K78)/Data!K78 -> 0.09062980031 | K78: =(Data!L79-Data!L78)/Data!L78 -> 0.06467065868 | L78: =(Data!M79-Data!M78)/Data!M78 -> 0.05680705191
A79: =(Data!B80-Data!B79)/Data!B79 -> 0.01896207585 | B79: =(Data!C80-Data!C79)/Data!C79 -> 0.06939501779 | C79: =(Data!D80-Data!D79)/Data!D79 -> 0.03463203463 | D79: =(Data!E80-Data!E79)/Data!E79 -> 0.02861035422 | E79: =(Data!F80-Data!F79)/Data!F79 -> 0.04094223219 | F79: =(Data!G80-Data!G79)/Data!G79 -> 0.03699421965 | G79: =(Data!H80-Data!H79)/Data!H79 -> -0.03916449086 | H79: =(Data!I80-Data!I79)/Data!I79 -> 0.09953703704 | I79: =(Data!J80-Data!J79)/Data!J79 -> 0.06036745407 | J79: =(Data!K80-Data!K79)/Data!K79 -> 0.08873239437 | K79: =(Data!L80-Data!L79)/Data!L79 -> 0.03824521935 | L79: =(Data!M80-Data!M79)/Data!M79 -> 0.03985171455
A80: =(Data!B81-Data!B80)/Data!B80 -> 0.01371204701 | B80: =(Data!C81-Data!C80)/Data!C80 -> 0.04159733777 | C80: =(Data!D81-Data!D80)/Data!D80 -> 0.01569037657 | D80: =(Data!E81-Data!E80)/Data!E80 -> 0.01456953642 | E80: =(Data!F81-Data!F80)/Data!F80 -> 0.03232758621 | F80: =(Data!G81-Data!G80)/Data!G80 -> 0.03455964326 | G80: =(Data!H81-Data!H80)/Data!H80 -> 0.1059782609 | H80: =(Data!I81-Data!I80)/Data!I80 -> 0.08210526316 | I80: =(Data!J81-Data!J80)/Data!J80 -> 0.05198019802 | J80: =(Data!K81-Data!K80)/Data!K80 -> 0.06209573092 | K80: =(Data!L81-Data!L80)/Data!L80 -> 0.04333694475 | L80: =(Data!M81-Data!M80)/Data!M80 -> 0.004456327986
A81: =(Data!B82-Data!B81)/Data!B81 -> 0.01352657005 | B81: =(Data!C82-Data!C81)/Data!C81 -> 0.06230031949 | C81: =(Data!D82-Data!D81)/Data!D81 -> 0.01544799176 | D81: =(Data!E82-Data!E81)/Data!E81 -> 0.02610966057 | E81: =(Data!F82-Data!F81)/Data!F81 -> 0.0005219206681 | F81: =(Data!G82-Data!G81)/Data!G81 -> 0.0150862069 | G81: =(Data!H82-Data!H81)/Data!H81 -> 0.02702702703 | H81: =(Data!I82-Data!I81)/Data!I81 -> 0.1167315175 | I81: =(Data!J82-Data!J81)/Data!J81 -> 0.06823529412 | J81: =(Data!K82-Data!K81)/Data!K81 -> 0.05602923264 | K81: =(Data!L82-Data!L81)/Data!L81 -> 0.01869158879 | L81: =(Data!M82-Data!M81)/Data!M81 -> 0.01242236025
A82: =(Data!B83-Data!B82)/Data!B82 -> -0.02764537655 | B82: =(Data!C83-Data!C82)/Data!C82 -> 0.01804511278 | C82: =(Data!D83-Data!D82)/Data!D82 -> -0.01825557809 | D82: =(Data!E83-Data!E82)/Data!E82 -> -0.03117048346 | E82: =(Data!F83-Data!F82)/Data!F82 -> 0.01408450704 | F82: =(Data!G83-Data!G82)/Data!G82 -> -0.002123142251 | G82: =(Data!H83-Data!H82)/Data!H82 -> -0.04066985646 | H82: =(Data!I83-Data!I82)/Data!I82 -> 0.02264808362 | I82: =(Data!J83-Data!J82)/Data!J82 -> -0.002202643172 | J82: =(Data!K83-Data!K82)/Data!K82 -> -0.06805074971 | K82: =(Data!L83-Data!L82)/Data!L82 -> -0.03261977574 | L82: =(Data!M83-Data!M82)/Data!M82 -> -0.009640666082
A83: =(Data!B84-Data!B83)/Data!B83 -> 0.03039215686 | B83: =(Data!C84-Data!C83)/Data!C83 -> 0.05022156573 | C83: =(Data!D84-Data!D83)/Data!D83 -> 0.03099173554 | D83: =(Data!E84-Data!E83)/Data!E83 -> 0.005909389363 | E83: =(Data!F84-Data!F83)/Data!F83 -> 0.03549382716 | F83: =(Data!G84-Data!G83)/Data!G83 -> 0.02553191489 | G83: =(Data!H84-Data!H83)/Data!H83 -> -0.02992518703 | H83: =(Data!I84-Data!I83)/Data!I83 -> 0.07666098807 | I83: =(Data!J84-Data!J83)/Data!J83 -> 0.03090507726 | J83: =(Data!K84-Data!K83)/Data!K83 -> 0.02227722772 | K83: =(Data!L84-Data!L83)/Data!L83 -> 0.02212855638 | L83: =(Data!M84-Data!M83)/Data!M83 -> 0.03362831858
A84: =(Data!B85-Data!B84)/Data!B84 -> 0.02568981922 | B84: =(Data!C85-Data!C84)/Data!C84 -> 0.07032348805 | C84: =(Data!D85-Data!D84)/Data!D84 -> 0.01703406814 | D84: =(Data!E85-Data!E84)/Data!E84 -> 0.03459530026 | E84: =(Data!F85-Data!F84)/Data!F84 -> 0.03874813711 | F84: =(Data!G85-Data!G84)/Data!G84 -> 0.04668049793 | G84: =(Data!H85-Data!H84)/Data!H84 -> 0.02313624679 | H84: =(Data!I85-Data!I84)/Data!I84 -> 0.1028481013 | I84: =(Data!J85-Data!J84)/Data!J84 -> 0.07922912206 | J84: =(Data!K85-Data!K84)/Data!K84 -> 0.06537530266 | K84: =(Data!L85-Data!L84)/Data!L84 -> 0.05154639175 | L84: =(Data!M85-Data!M84)/Data!M84 -> 0.05051369863
A85: =(Data!B86-Data!B85)/Data!B85 -> 0.02597402597 | B85: =(Data!C86-Data!C85)/Data!C85 -> 0.02890932983 | C85: =(Data!D86-Data!D85)/Data!D85 -> 0.02857142857 | D85: =(Data!E86-Data!E85)/Data!E85 -> 0.03028391167 | E85: =(Data!F86-Data!F85)/Data!F85 -> 0.08799617408 | F85: =(Data!G86-Data!G85)/Data!G85 -> 0.03369672944 | G85: =(Data!H86-Data!H85)/Data!H85 -> 0.08793969849 | H85: =(Data!I86-Data!I85)/Data!I85 -> 0.1104734577 | I85: =(Data!J86-Data!J85)/Data!J85 -> 0.04166666667 | J85: =(Data!K86-Data!K85)/Data!K85 -> 0.05681818182 | K85: =(Data!L86-Data!L85)/Data!L85 -> 0.02745098039 | L85: =(Data!M86-Data!M85)/Data!M85 -> 0.02363488183
A86: =(Data!B87-Data!B86)/Data!B86 -> 0.006329113924 | B86: =(Data!C87-Data!C86)/Data!C86 -> -0.02681992337 | C86: =(Data!D87-Data!D86)/Data!D86 -> 0.01724137931 | D86: =(Data!E87-Data!E86)/Data!E86 -> 0.03551745254 | E86: =(Data!F87-Data!F86)/Data!F86 -> 0.06197802198 | F86: =(Data!G87-Data!G86)/Data!G86 -> 0.05369127517 | G86: =(Data!H87-Data!H86)/Data!H86 -> 0.04618937644 | H86: =(Data!I87-Data!I86)/Data!I86 -> 0.1408268734 | I86: =(Data!J87-Data!J86)/Data!J86 -> 0.05714285714 | J86: =(Data!K87-Data!K86)/Data!K86 -> 0.04731182796 | K86: =(Data!L87-Data!L86)/Data!L86 -> 0.01240458015 | L86: =(Data!M87-Data!M86)/Data!M86 -> 0.04299363057
A87: =(Data!B88-Data!B87)/Data!B87 -> 0.01617250674 | B87: =(Data!C88-Data!C87)/Data!C87 -> -0.00656167979 | C87: =(Data!D88-Data!D87)/Data!D87 -> 0.02259887006 | D87: =(Data!E88-Data!E87)/Data!E87 -> 0.03015966884 | E87: =(Data!F88-Data!F87)/Data!F87 -> -0.01324503311 | F87: =(Data!G88-Data!G87)/Data!G87 -> 0.02092811647 | G87: =(Data!H88-Data!H87)/Data!H87 -> 0 | H87: =(Data!I88-Data!I87)/Data!I87 -> 0.01359003398 | I87: =(Data!J88-Data!J87)/Data!J87 -> 0.07567567568 | J87: =(Data!K88-Data!K87)/Data!K87 -> 0.05030800821 | K87: =(Data!L88-Data!L87)/Data!L87 -> 0.02921771913 | L87: =(Data!M88-Data!M87)/Data!M87 -> 0.01374045802
A88: =(Data!B89-Data!B88)/Data!B88 -> 0.02122015915 | B88: =(Data!C89-Data!C88)/Data!C88 -> 0.06208718626 | C88: =(Data!D89-Data!D88)/Data!D88 -> 0.01933701657 | D88: =(Data!E89-Data!E88)/Data!E88 -> 0.01090700344 | E88: =(Data!F89-Data!F88)/Data!F88 -> 0.03020134228 | F88: =(Data!G89-Data!G88)/Data!G88 -> 0.02317290553 | G88: =(Data!H89-Data!H88)/Data!H88 -> 0.07284768212 | H88: =(Data!I89-Data!I88)/Data!I88 -> 0.1039106145 | I88: =(Data!J89-Data!J88)/Data!J88 -> 0.0770519263 | J88: =(Data!K89-Data!K88)/Data!K88 -> 0.08113391984 | K88: =(Data!L89-Data!L88)/Data!L88 -> -0.01648351648 | L88: =(Data!M89-Data!M88)/Data!M88 -> 0.01807228916
A89: =(Data!B90-Data!B89)/Data!B89 -> 0 | B89: =(Data!C90-Data!C89)/Data!C89 -> -0.01865671642 | C89: =(Data!D90-Data!D89)/Data!D89 -> -0.03342366757 | D89: =(Data!E90-Data!E89)/Data!E89 -> -0.0272572402 | E89: =(Data!F90-Data!F89)/Data!F89 -> -0.04438110749 | F89: =(Data!G90-Data!G89)/Data!G89 -> -0.03571428571 | G89: =(Data!H90-Data!H89)/Data!H89 -> 0.1419753086 | H89: =(Data!I90-Data!I89)/Data!I89 -> -0.009109311741 | I89: =(Data!J90-Data!J89)/Data!J89 -> -0.006220839813 | J89: =(Data!K90-Data!K89)/Data!K89 -> -0.02350813743 | K89: =(Data!L90-Data!L89)/Data!L89 -> -0.02048417132 | L89: =(Data!M90-Data!M89)/Data!M89 -> -0.03476331361
A90: =(Data!B91-Data!B90)/Data!B90 -> -0.04329004329 | B90: =(Data!C91-Data!C90)/Data!C90 -> -0.1001267427 | C90: =(Data!D91-Data!D90)/Data!D90 -> -0.0308411215 | D90: =(Data!E91-Data!E90)/Data!E90 -> -0.05078809107 | E90: =(Data!F91-Data!F90)/Data!F90 -> -0.1133361738 | F90: =(Data!G91-Data!G90)/Data!G90 -> -0.07046070461 | G90: =(Data!H91-Data!H90)/Data!H90 -> 0.02522522523 | H90: =(Data!I91-Data!I90)/Data!I90 -> -0.1205311542 | I90: =(Data!J91-Data!J90)/Data!J90 -> -0.1471048513 | J90: =(Data!K91-Data!K90)/Data!K90 -> -0.07962962963 | K90: =(Data!L91-Data!L90)/Data!L90 -> -0.07224334601 | L90: =(Data!M91-Data!M90)/Data!M90 -> -0.05823754789
A91: =(Data!B92-Data!B91)/Data!B91 -> 0.01538461538 | B91: =(Data!C92-Data!C91)/Data!C91 -> 0.02112676056 | C91: =(Data!D92-Data!D91)/Data!D91 -> 0.02892960463 | D91: =(Data!E92-Data!E91)/Data!E91 -> 0.0147601476 | E91: =(Data!F92-Data!F91)/Data!F91 -> 0.02258529553 | F91: =(Data!G92-Data!G91)/Data!G91 -> 0.01554907677 | G91: =(Data!H92-Data!H91)/Data!H91 -> 0.0474516696 | H91: =(Data!I92-Data!I91)/Data!I91 -> 0.09059233449 | I91: =(Data!J92-Data!J91)/Data!J91 -> 0.06605504587 | J91: =(Data!K92-Data!K91)/Data!K91 -> 0.04225352113 | K91: =(Data!L92-Data!L91)/Data!L91 -> 0.01536885246 | L91: =(Data!M92-Data!M91)/Data!M91 -> 0.03417412531
A92: =(Data!B93-Data!B92)/Data!B92 -> 0.02317290553 | B92: =(Data!C93-Data!C92)/Data!C92 -> 0.02896551724 | C92: =(Data!D93-Data!D92)/Data!D92 -> 0.007497656982 | D92: =(Data!E93-Data!E92)/Data!E92 -> 0.02606060606 | E92: =(Data!F93-Data!F92)/Data!F92 -> 0.06109022556 | F92: =(Data!G93-Data!G92)/Data!G92 -> 0.02870813397 | G92: =(Data!H93-Data!H92)/Data!H92 -> -0.04697986577 | H92: =(Data!I93-Data!I92)/Data!I92 -> 0.07454739084 | I92: =(Data!J93-Data!J92)/Data!J92 -> 0.07056798623 | J92: =(Data!K93-Data!K92)/Data!K92 -> 0.007722007722 | K92: =(Data!L93-Data!L92)/Data!L92 -> 0.03329969728 | L92: =(Data!M93-Data!M92)/Data!M92 -> 0.03304484658
A93: =(Data!B94-Data!B93)/Data!B93 -> 0.01045296167 | B93: =(Data!C94-Data!C93)/Data!C93 -> 0.03217158177 | C93: =(Data!D94-Data!D93)/Data!D93 -> 0.002790697674 | D93: =(Data!E94-Data!E93)/Data!E93 -> 0.02362669817 | E93: =(Data!F94-Data!F93)/Data!F93 -> 0.01550044287 | F93: =(Data!G94-Data!G93)/Data!G93 -> 0.02604651163 | G93: =(Data!H94-Data!H93)/Data!H93 -> 0.05985915493 | H93: =(Data!I94-Data!I93)/Data!I93 -> -0.0485629336 | I93: =(Data!J94-Data!J93)/Data!J93 -> 0.06430868167 | J93: =(Data!K94-Data!K93)/Data!K93 -> -0.02298850575 | K93: =(Data!L94-Data!L93)/Data!L93 -> 0.0341796875 | L93: =(Data!M94-Data!M93)/Data!M93 -> 0.02056359482
A94: =(Data!B95-Data!B94)/Data!B94 -> 0.03189655172 | B94: =(Data!C95-Data!C94)/Data!C94 -> -0.001298701299 | C94: =(Data!D95-Data!D94)/Data!D94 -> 0.03525046382 | D94: =(Data!E95-Data!E94)/Data!E94 -> 0.03115983843 | E94: =(Data!F95-Data!F94)/Data!F94 -> 0.03401657218 | F94: =(Data!G95-Data!G94)/Data!G94 -> 0.04533091568 | G94: =(Data!H95-Data!H94)/Data!H94 -> 0.04651162791 | H94: =(Data!I95-Data!I94)/Data!I94 -> 0.028125 | I94: =(Data!J95-Data!J94)/Data!J94 -> 0.04833836858 | J94: =(Data!K95-Data!K94)/Data!K94 -> 0.03137254902 | K94: =(Data!L95-Data!L94)/Data!L94 -> 0.05004721435 | L94: =(Data!M95-Data!M94)/Data!M94 -> 0.04029850746
A95: =(Data!B96-Data!B95)/Data!B95 -> 0.02422723475 | B95: =(Data!C96-Data!C95)/Data!C95 -> 0.03641092328 | C95: =(Data!D96-Data!D95)/Data!D95 -> 0.01075268817 | D95: =(Data!E96-Data!E95)/Data!E95 -> 0.03525461668 | E95: =(Data!F96-Data!F95)/Data!F95 -> 0.04850274146 | F95: =(Data!G96-Data!G95)/Data!G95 -> 0.03122289679 | G95: =(Data!H96-Data!H95)/Data!H95 -> 0.09682539683 | H95: =(Data!I96-Data!I95)/Data!I95 -> 0.0587639311 | I95: =(Data!J96-Data!J95)/Data!J95 -> 0.06340057637 | J95: =(Data!K96-Data!K95)/Data!K95 -> 0.06368821293 | K95: =(Data!L96-Data!L95)/Data!L95 -> 0.03327338129 | L95: =(Data!M96-Data!M95)/Data!M95 -> 0.01219512195
A96: =(Data!B97-Data!B96)/Data!B96 -> 0.02528548124 | B96: =(Data!C97-Data!C96)/Data!C96 -> 0.0112923463 | C96: =(Data!D97-Data!D96)/Data!D96 -> 0.0008865248227 | D96: =(Data!E97-Data!E96)/Data!E96 -> 0.01405405405 | E96: =(Data!F97-Data!F96)/Data!F96 -> 0.01568785197 | F96: =(Data!G97-Data!G96)/Data!G96 -> 0.02354920101 | G96: =(Data!H97-Data!H96)/Data!H96 -> 0.1794500724 | H96: =(Data!I97-Data!I96)/Data!I96 -> 0.07942583732 | I96: =(Data!J97-Data!J96)/Data!J96 -> 0.01490514905 | J96: =(Data!K97-Data!K96)/Data!K96 -> 0.03217158177 | K96: =(Data!L97-Data!L96)/Data!L96 -> 0.02959094865 | L96: =(Data!M97-Data!M96)/Data!M96 -> 0
A97: =(Data!B98-Data!B97)/Data!B97 -> 0.005568814638 | B97: =(Data!C98-Data!C97)/Data!C97 -> -0.02729528536 | C97: =(Data!D98-Data!D97)/Data!D97 -> 0.01062887511 | D97: =(Data!E98-Data!E97)/Data!E97 -> 0.0250533049 | E97: =(Data!F98-Data!F97)/Data!F97 -> 0.06772277228 | F97: =(Data!G98-Data!G97)/Data!G97 -> 0.03368940016 | G97: =(Data!H98-Data!H97)/Data!H97 -> 0.2147239264 | H97: =(Data!I98-Data!I97)/Data!I97 -> 0.0195035461 | I97: =(Data!J98-Data!J97)/Data!J97 -> 0.02803738318 | J97: =(Data!K98-Data!K97)/Data!K97 -> 0.03722943723 | K97: =(Data!L98-Data!L97)/Data!L97 -> 0.04311073542 | L97: =(Data!M98-Data!M97)/Data!M97 -> 0.03047484054
A98: =(Data!B99-Data!B98)/Data!B98 -> 0.02373417722 | B98: =(Data!C99-Data!C98)/Data!C98 -> 0.03954081633 | C98: =(Data!D99-Data!D98)/Data!D98 -> 0.02015775635 | D98: =(Data!E99-Data!E98)/Data!E98 -> 0.02028081123 | E98: =(Data!F99-Data!F98)/Data!F98 -> 0.021884273 | F98: =(Data!G99-Data!G98)/Data!G98 -> 0.03656597774 | G98: =(Data!H99-Data!H98)/Data!H98 -> 0.0202020202 | H98: =(Data!I99-Data!I98)/Data!I98 -> 0.03043478261 | I98: =(Data!J99-Data!J98)/Data!J98 -> 0.01038961039 | J98: =(Data!K99-Data!K98)/Data!K98 -> 0.03589315526 | K98: =(Data!L99-Data!L98)/Data!L98 -> 0.04700162075 | L98: =(Data!M99-Data!M98)/Data!M98 -> 0.01994497937
A99: =(Data!B100-Data!B99)/Data!B99 -> -0.02472952087 | B99: =(Data!C100-Data!C99)/Data!C99 -> -0.003680981595 | C99: =(Data!D100-Data!D99)/Data!D99 -> -0.02491408935 | D99: =(Data!E100-Data!E99)/Data!E99 -> -0.0377166157 | E99: =(Data!F100-Data!F99)/Data!F99 -> -0.03738656987 | F99: =(Data!G100-Data!G99)/Data!G99 -> -0.02607361963 | G99: =(Data!H100-Data!H99)/Data!H99 -> 0.04653465347 | H99: =(Data!I100-Data!I99)/Data!I99 -> -0.04135021097 | I99: =(Data!J100-Data!J99)/Data!J99 -> -0.08997429306 | J99: =(Data!K100-Data!K99)/Data!K99 -> -0.03303787268 | K99: =(Data!L100-Data!L99)/Data!L99 -> -0.03947368421 | L99: =(Data!M100-Data!M99)/Data!M99 -> -0.01753202967
A100: =(Data!B101-Data!B100)/Data!B100 -> 0.04675118859 | B100: =(Data!C101-Data!C100)/Data!C100 -> 0.06034482759 | C100: =(Data!D101-Data!D100)/Data!D100 -> 0.03612334802 | D100: =(Data!E101-Data!E100)/Data!E100 -> 0.05667372881 | E100: =(Data!F101-Data!F100)/Data!F100 -> 0.05128205128 | F100: =(Data!G101-Data!G100)/Data!G100 -> 0.07322834646 | G100: =(Data!H101-Data!H100)/Data!H100 -> 0.1825922422 | H100: =(Data!I101-Data!I100)/Data!I100 -> 0.0625 | I100: =(Data!J101-Data!J100)/Data!J100 -> 0.04519774011 | J100: =(Data!K101-Data!K100)/Data!K100 -> 0.0475 | K100: =(Data!L101-Data!L100)/Data!L100 -> 0.04834810637 | L100: =(Data!M101-Data!M100)/Data!M100 -> 0.06245710364
A101: =(Data!B102-Data!B101)/Data!B101 -> 0.0287660863 | B101: =(Data!C102-Data!C101)/Data!C101 -> 0.06387921022 | C101: =(Data!D102-Data!D101)/Data!D101 -> 0.02210884354 | D101: =(Data!E102-Data!E101)/Data!E101 -> 0.01203007519 | E101: =(Data!F102-Data!F101)/Data!F101 -> 0.0168579627 | F101: =(Data!G102-Data!G101)/Data!G101 -> 0.03081438004 | G101: =(Data!H102-Data!H101)/Data!H101 -> 0.1392 | H101: =(Data!I102-Data!I101)/Data!I101 -> -0.057995029 | I101: =(Data!J102-Data!J101)/Data!J101 -> 0.05 | J101: =(Data!K102-Data!K101)/Data!K101 -> 0.03977724741 | K101: =(Data!L102-Data!L101)/Data!L101 -> 0.03535741737 | L101: =(Data!M102-Data!M101)/Data!M101 -> 0.01873385013
A102: =(Data!B103-Data!B102)/Data!B102 -> 0.007358351729 | B102: =(Data!C103-Data!C102)/Data!C102 -> 0.08624454148 | C102: =(Data!D103-Data!D102)/Data!D102 -> 0.004159733777 | D102: =(Data!E103-Data!E102)/Data!E102 -> -0.02377414562 | E102: =(Data!F103-Data!F102)/Data!F102 -> 0.002469135802 | F102: =(Data!G103-Data!G102)/Data!G102 -> 0.02846975089 | G102: =(Data!H103-Data!H102)/Data!H102 -> -0.004213483146 | H102: =(Data!I103-Data!I102)/Data!I102 -> 0.007915567282 | I102: =(Data!J103-Data!J102)/Data!J102 -> 0.01415701416 | J102: =(Data!K103-Data!K102)/Data!K102 -> 0.03289977047 | K102: =(Data!L103-Data!L102)/Data!L102 -> 0.002227171492 | L102: =(Data!M103-Data!M102)/Data!M102 -> 0.01838934686
A103: =(Data!B104-Data!B103)/Data!B103 -> 0.009495982469 | B103: =(Data!C104-Data!C103)/Data!C103 -> 0.09145728643 | C103: =(Data!D104-Data!D103)/Data!D103 -> -0.0057995029 | D103: =(Data!E104-Data!E103)/Data!E103 -> -0.01166920345 | E103: =(Data!F104-Data!F103)/Data!F103 -> 0.02885292048 | F103: =(Data!G104-Data!G103)/Data!G103 -> 0.004844290657 | G103: =(Data!H104-Data!H103)/Data!H103 -> 0.0007052186178 | H103: =(Data!I104-Data!I103)/Data!I103 -> 0.06544502618 | I103: =(Data!J104-Data!J103)/Data!J103 -> 0.06472081218 | J103: =(Data!K104-Data!K103)/Data!K103 -> 0.03703703704 | K103: =(Data!L104-Data!L103)/Data!L103 -> 0.03777777778 | L103: =(Data!M104-Data!M103)/Data!M103 -> 0.01120797011
A104: =(Data!B105-Data!B104)/Data!B104 -> -0.05499276411 | B104: =(Data!C105-Data!C104)/Data!C104 -> -0.05156537753 | C104: =(Data!D105-Data!D104)/Data!D104 -> -0.05833333333 | D104: =(Data!E105-Data!E104)/Data!E104 -> -0.05954825462 | E104: =(Data!F105-Data!F104)/Data!F104 -> -0.04685362517 | F104: =(Data!G105-Data!G104)/Data!G104 -> -0.05922865014 | G104: =(Data!H105-Data!H104)/Data!H104 -> 0.2071881607 | H104: =(Data!I105-Data!I104)/Data!I104 -> -0.0515970516 | I104: =(Data!J105-Data!J104)/Data!J104 -> -0.03098927294 | J104: =(Data!K105-Data!K104)/Data!K104 -> -0.08642857143 | K104: =(Data!L105-Data!L104)/Data!L104 -> -0.02926481085 | L104: =(Data!M105-Data!M104)/Data!M104 -> -0.06650246305
A105: =(Data!B106-Data!B105)/Data!B105 -> 0.03522205207 | B105: =(Data!C106-Data!C105)/Data!C105 -> 0.03883495146 | C105: =(Data!D106-Data!D105)/Data!D105 -> 0.02654867257 | D105: =(Data!E106-Data!E105)/Data!E105 -> 0.0005458515284 | E105: =(Data!F106-Data!F105)/Data!F105 -> 0.03516325798 | F105: =(Data!G106-Data!G105)/Data!G105 -> 0.02196193265 | G105: =(Data!H106-Data!H105)/Data!H105 -> 0.1056625803 | H105: =(Data!I106-Data!I105)/Data!I105 -> 0.01640759931 | I105: =(Data!J106-Data!J105)/Data!J105 -> 0.08610086101 | J105: =(Data!K106-Data!K105)/Data!K105 -> 0.04222048475 | K105: =(Data!L106-Data!L105)/Data!L105 -> 0.004411764706 | L105: =(Data!M106-Data!M105)/Data!M105 -> 0.02968337731
A106: =(Data!B107-Data!B106)/Data!B106 -> 0.0399408284 | B106: =(Data!C107-Data!C106)/Data!C106 -> 0.06355140187 | C106: =(Data!D107-Data!D106)/Data!D106 -> 0.04051724138 | D106: =(Data!E107-Data!E106)/Data!E106 -> 0.02073104201 | E106: =(Data!F107-Data!F106)/Data!F106 -> 0.05857885615 | F106: =(Data!G107-Data!G106)/Data!G106 -> 0.04369627507 | G106: =(Data!H107-Data!H106)/Data!H106 -> 0.07550158395 | H106: =(Data!I107-Data!I106)/Data!I106 -> 0.07646559048 | I106: =(Data!J107-Data!J106)/Data!J106 -> 0.1494903737 | J106: =(Data!K107-Data!K106)/Data!K106 -> 0.02550637659 | K106: =(Data!L107-Data!L106)/Data!L106 -> 0.02635431918 | L106: =(Data!M107-Data!M106)/Data!M106 -> 0.03139013453
A107: =(Data!B108-Data!B107)/Data!B107 -> -0.0426742532 | B107: =(Data!C108-Data!C107)/Data!C107 -> -0.04042179262 | C107: =(Data!D108-Data!D107)/Data!D107 -> -0.04142502071 | D107: =(Data!E108-Data!E107)/Data!E107 -> -0.0539818279 | E107: =(Data!F108-Data!F107)/Data!F107 -> -0.02750491159 | F107: =(Data!G108-Data!G107)/Data!G107 -> -0.03500343171 | G107: =(Data!H108-Data!H107)/Data!H107 -> -0.08640157094 | H107: =(Data!I108-Data!I107)/Data!I107 -> 0.01736385162 | I107: =(Data!J108-Data!J107)/Data!J107 -> 0.04334975369 | J107: =(Data!K108-Data!K107)/Data!K107 -> -0.01024140454 | K107: =(Data!L108-Data!L107)/Data!L107 -> -0.06062767475 | L107: =(Data!M108-Data!M107)/Data!M107 -> -0.0751552795
A108: =(Data!B109-Data!B108)/Data!B108 -> 0.008172362556 | B108: =(Data!C109-Data!C108)/Data!C108 -> -0.01098901099 | C108: =(Data!D109-Data!D108)/Data!D108 -> 0.0172860847 | D108: =(Data!E109-Data!E108)/Data!E108 -> -0.006779661017 | E108: =(Data!F109-Data!F108)/Data!F108 -> 0.004713804714 | F108: =(Data!G109-Data!G108)/Data!G108 -> 0.02275960171 | G108: =(Data!H109-Data!H108)/Data!H108 -> -0.03546480387 | H108: =(Data!I109-Data!I108)/Data!I108 -> 0.03258339798 | I108: =(Data!J109-Data!J108)/Data!J108 -> 0.0283286119 | J108: =(Data!K109-Data!K108)/Data!K108 -> -0.0192165558 | K108: =(Data!L109-Data!L108)/Data!L108 -> -0.02657555049 | L108: =(Data!M109-Data!M108)/Data!M108 -> 0
A109: =(Data!B110-Data!B109)/Data!B109 -> -0.06484893147 | B109: =(Data!C110-Data!C109)/Data!C109 -> -0.08611111111 | C109: =(Data!D110-Data!D109)/Data!D109 -> -0.06032285472 | D109: =(Data!E110-Data!E109)/Data!E109 -> -0.07508532423 | E109: =(Data!F110-Data!F109)/Data!F109 -> -0.07674262735 | F109: =(Data!G110-Data!G109)/Data!G109 -> -0.08136300417 | G109: =(Data!H110-Data!H109)/Data!H109 -> -0.005013927577 | H109: =(Data!I110-Data!I109)/Data!I109 -> -0.06311044328 | I109: =(Data!J110-Data!J109)/Data!J109 -> -0.02387511478 | J109: =(Data!K110-Data!K109)/Data!K109 -> -0.1039939714 | K109: =(Data!L110-Data!L109)/Data!L109 -> -0.100624025 | L109: =(Data!M110-Data!M109)/Data!M109 -> -0.08596373405
A110: =(Data!B111-Data!B110)/Data!B110 -> -0.01418439716 | B110: =(Data!C111-Data!C110)/Data!C110 -> -0.0273556231 | C110: =(Data!D111-Data!D110)/Data!D110 -> -0.0226039783 | D110: =(Data!E111-Data!E110)/Data!E110 -> -0.05227552276 | E110: =(Data!F111-Data!F110)/Data!F110 -> -0.07876588022 | F110: =(Data!G111-Data!G110)/Data!G110 -> -0.05450416351 | G110: =(Data!H111-Data!H110)/Data!H110 -> -0.1119820829 | H110: =(Data!I111-Data!I110)/Data!I110 -> -0.06575781877 | I110: =(Data!J111-Data!J110)/Data!J110 -> -0.08278457197 | J110: =(Data!K111-Data!K110)/Data!K110 -> -0.03784693019 | K110: =(Data!L111-Data!L110)/Data!L110 -> 0.005203816132 | L110: =(Data!M111-Data!M110)/Data!M110 -> -0.03526818516
A111: =(Data!B112-Data!B111)/Data!B111 -> -0.02957633893 | B111: =(Data!C112-Data!C111)/Data!C111 -> -0.02395833333 | C111: =(Data!D112-Data!D111)/Data!D111 -> -0.04255319149 | D111: =(Data!E112-Data!E111)/Data!E111 -> -0.0622972096 | E111: =(Data!F112-Data!F111)/Data!F111 -> -0.09929078014 | F111: =(Data!G112-Data!G111)/Data!G111 -> -0.05684547638 | G111: =(Data!H112-Data!H111)/Data!H111 -> -0.1273644388 | H111: =(Data!I112-Data!I111)/Data!I111 -> -0.02746781116 | I111: =(Data!J112-Data!J111)/Data!J111 -> -0.1087179487 | J111: =(Data!K112-Data!K111)/Data!K111 -> -0.02097902098 | K111: =(Data!L112-Data!L111)/Data!L111 -> -0.02674719586 | L111: =(Data!M112-Data!M111)/Data!M111 -> -0.02437166794
A112: =(Data!B113-Data!B112)/Data!B112 -> 0.04530477759 | B112: =(Data!C113-Data!C112)/Data!C112 -> 0.075773746 | C112: =(Data!D113-Data!D112)/Data!D112 -> 0.05893719807 | D112: =(Data!E113-Data!E112)/Data!E112 -> 0.04567474048 | E112: =(Data!F113-Data!F112)/Data!F112 -> 0.03980752406 | F112: =(Data!G113-Data!G112)/Data!G112 -> 0.03989813243 | G112: =(Data!H113-Data!H112)/Data!H112 -> -0.1322254335 | H112: =(Data!I113-Data!I112)/Data!I112 -> 0.02559576346 | I112: =(Data!J113-Data!J112)/Data!J112 -> 0.02991944764 | J112: =(Data!K113-Data!K112)/Data!K112 -> 0.07678571429 | K112: =(Data!L113-Data!L112)/Data!L112 -> 0.02482269504 | L112: =(Data!M113-Data!M112)/Data!M112 -> 0.06713505074
A113: =(Data!B114-Data!B113)/Data!B113 -> 0.02758077226 | B113: =(Data!C114-Data!C113)/Data!C113 -> 0.03869047619 | C113: =(Data!D114-Data!D113)/Data!D113 -> 0.03193430657 | D113: =(Data!E114-Data!E113)/Data!E113 -> 0.01654533422 | E113: =(Data!F114-Data!F113)/Data!F113 -> 0.02986958351 | F113: =(Data!G114-Data!G113)/Data!G113 -> 0.03020408163 | G113: =(Data!H114-Data!H113)/Data!H113 -> 0.04912572856 | H113: =(Data!I114-Data!I113)/Data!I113 -> 0.1067125645 | I113: =(Data!J114-Data!J113)/Data!J113 -> 0.04357541899 | J113: =(Data!K114-Data!K113)/Data!K113 -> 0.1210613599 | K113: =(Data!L114-Data!L113)/Data!L113 -> 0.03806228374 | L113: =(Data!M114-Data!M113)/Data!M113 -> 0.0482809071
A114: =(Data!B115-Data!B114)/Data!B114 -> -0.04524539877 | B114: =(Data!C115-Data!C114)/Data!C114 -> -0.04489016237 | C114: =(Data!D115-Data!D114)/Data!D114 -> -0.06542882405 | D114: =(Data!E115-Data!E114)/Data!E114 -> -0.07291666667 | E114: =(Data!F115-Data!F114)/Data!F114 -> -0.09722222222 | F114: =(Data!G115-Data!G114)/Data!G114 -> -0.05150554675 | G114: =(Data!H115-Data!H114)/Data!H114 -> -0.1555555556 | H114: =(Data!I115-Data!I114)/Data!I114 -> -0.0101088647 | I114: =(Data!J115-Data!J114)/Data!J114 -> -0.1167023555 | J114: =(Data!K115-Data!K114)/Data!K114 -> -0.02218934911 | K114: =(Data!L115-Data!L114)/Data!L114 -> -0.025 | L114: =(Data!M115-Data!M114)/Data!M114 -> -0.05512909979
A115: =(Data!B116-Data!B115)/Data!B115 -> -0.06345381526 | B115: =(Data!C116-Data!C115)/Data!C115 -> -0.109 | C115: =(Data!D116-Data!D115)/Data!D115 -> -0.07000946074 | D115: =(Data!E116-Data!E115)/Data!E115 -> -0.08848314607 | E115: =(Data!F116-Data!F115)/Data!F115 -> -0.1140271493 | F115: =(Data!G116-Data!G115)/Data!G115 -> -0.06599832916 | G115: =(Data!H116-Data!H115)/Data!H115 -> -0.06954887218 | H115: =(Data!I116-Data!I115)/Data!I115 -> -0.1162608013 | I115: =(Data!J116-Data!J115)/Data!J115 -> -0.08606060606 | J115: =(Data!K116-Data!K115)/Data!K115 -> -0.1142208775 | K115: =(Data!L116-Data!L115)/Data!L115 -> -0.08632478632 | L115: =(Data!M116-Data!M115)/Data!M115 -> -0.1203840473
A116: =(Data!B117-Data!B116)/Data!B116 -> -0.007718696398 | B116: =(Data!C117-Data!C116)/Data!C116 -> -0.01907968575 | C116: =(Data!D117-Data!D116)/Data!D116 -> 0.01729399797 | D116: =(Data!E117-Data!E116)/Data!E116 -> 0.006933744222 | E116: =(Data!F117-Data!F116)/Data!F116 -> -0.006128702758 | F116: =(Data!G117-Data!G116)/Data!G116 -> 0.01073345259 | G116: =(Data!H117-Data!H116)/Data!H116 -> -0.1090909091 | H116: =(Data!I117-Data!I116)/Data!I116 -> -0.1333333333 | I116: =(Data!J117-Data!J116)/Data!J116 -> 0.07427055703 | J116: =(Data!K117-Data!K116)/Data!K116 -> -0.03501280956 | K116: =(Data!L117-Data!L116)/Data!L116 -> 0.0187090739 | L116: =(Data!M117-Data!M116)/Data!M116 -> 0.01259445844
A117: =(Data!B118-Data!B117)/Data!B117 -> -0.05445116681 | B117: =(Data!C118-Data!C117)/Data!C117 -> -0.05949656751 | C117: =(Data!D118-Data!D117)/Data!D117 -> -0.043 | D117: =(Data!E118-Data!E117)/Data!E117 -> -0.03672532517 | E117: =(Data!F118-Data!F117)/Data!F117 -> -0.06526207605 | F117: =(Data!G118-Data!G117)/Data!G117 -> -0.04955752212 | G117: =(Data!H118-Data!H117)/Data!H117 -> -0.1292517007 | H117: =(Data!I118-Data!I117)/Data!I117 -> -0.2 | I117: =(Data!J118-Data!J117)/Data!J117 -> -0.04938271605 | J117: =(Data!K118-Data!K117)/Data!K117 -> -0.1247787611 | K117: =(Data!L118-Data!L117)/Data!L117 -> -0.06336088154 | L117: =(Data!M118-Data!M117)/Data!M117 -> -0.0671641791
A118: =(Data!B119-Data!B118)/Data!B118 -> -0.2248628885 | B118: =(Data!C119-Data!C118)/Data!C118 -> -0.1642335766 | C118: =(Data!D119-Data!D118)/Data!D118 -> -0.1818181818 | D118: =(Data!E119-Data!E118)/Data!E118 -> -0.2025416998 | E118: =(Data!F119-Data!F118)/Data!F118 -> -0.2660802639 | F118: =(Data!G119-Data!G118)/Data!G118 -> -0.208566108 | G118: =(Data!H119-Data!H118)/Data!H118 -> -0.08854166667 | H118: =(Data!I119-Data!I118)/Data!I118 -> -0.3807692308 | I118: =(Data!J119-Data!J118)/Data!J118 -> -0.2415584416 | J118: =(Data!K119-Data!K118)/Data!K118 -> -0.2780586451 | K118: =(Data!L119-Data!L118)/Data!L118 -> -0.2352941176 | L118: =(Data!M119-Data!M118)/Data!M118 -> -0.2631111111
A119: =(Data!B120-Data!B119)/Data!B119 -> -0.09787735849 | B119: =(Data!C120-Data!C119)/Data!C119 -> -0.1120815138 | C119: =(Data!D120-Data!D119)/Data!D119 -> -0.01404853129 | D119: =(Data!E120-Data!E119)/Data!E119 -> -0.04780876494 | E119: =(Data!F120-Data!F119)/Data!F119 -> -0.127340824 | F119: =(Data!G120-Data!G119)/Data!G119 -> -0.06588235294 | G119: =(Data!H120-Data!H119)/Data!H119 -> -0.05285714286 | H119: =(Data!I120-Data!I119)/Data!I119 -> -0.08074534161 | I119: =(Data!J120-Data!J119)/Data!J119 -> -0.1113013699 | J119: =(Data!K120-Data!K119)/Data!K119 -> -0.08823529412 | K119: =(Data!L120-Data!L119)/Data!L119 -> -0.09743589744 | L119: =(Data!M120-Data!M119)/Data!M119 -> -0.082026538
A120: =(Data!B121-Data!B120)/Data!B120 -> -0.001307189542 | B120: =(Data!C121-Data!C120)/Data!C120 -> 0.03770491803 | C120: =(Data!D121-Data!D120)/Data!D120 -> 0.0103626943 | D120: =(Data!E121-Data!E120)/Data!E120 -> -0.06694560669 | E120: =(Data!F121-Data!F120)/Data!F120 -> -0.10472103 | F120: =(Data!G121-Data!G120)/Data!G120 -> -0.02770780856 | G120: =(Data!H121-Data!H120)/Data!H120 -> 0.03921568627 | H120: =(Data!I121-Data!I120)/Data!I120 -> -0.03603603604 | I120: =(Data!J121-Data!J120)/Data!J120 -> 0.007707129094 | J120: =(Data!K121-Data!K120)/Data!K120 -> -0.0599078341 | K120: =(Data!L121-Data!L120)/Data!L120 -> -0.06534090909 | L120: =(Data!M121-Data!M120)/Data!M120 -> -0.04467805519
A121: =(Data!B122-Data!B121)/Data!B121 -> -0.006544502618 | B121: =(Data!C122-Data!C121)/Data!C121 -> 0.03001579779 | C121: =(Data!D122-Data!D121)/Data!D121 -> 0.005128205128 | D121: =(Data!E122-Data!E121)/Data!E121 -> -0.006726457399 | E121: =(Data!F122-Data!F121)/Data!F121 -> -0.006711409396 | F121: =(Data!G122-Data!G121)/Data!G121 -> -0.0103626943 | G121: =(Data!H122-Data!H121)/Data!H121 -> -0.005805515239 | H121: =(Data!I122-Data!I121)/Data!I121 -> -0.004672897196 | I121: =(Data!J122-Data!J121)/Data!J121 -> -0.01912045889 | J121: =(Data!K122-Data!K121)/Data!K121 -> 0.07679738562 | K121: =(Data!L122-Data!L121)/Data!L121 -> 0.02279635258 | L121: =(Data!M122-Data!M121)/Data!M121 -> 0.02888583219
A122: =(Data!B123-Data!B122)/Data!B122 -> -0.07773386034 | B122: =(Data!C123-Data!C122)/Data!C122 -> -0.007668711656 | C122: =(Data!D123-Data!D122)/Data!D122 -> -0.04974489796 | D122: =(Data!E123-Data!E122)/Data!E122 -> -0.07787810384 | E122: =(Data!F123-Data!F122)/Data!F122 -> -0.06274131274 | F122: =(Data!G123-Data!G122)/Data!G122 -> -0.06413612565 | G122: =(Data!H123-Data!H122)/Data!H122 -> 0.1372262774 | H122: =(Data!I123-Data!I122)/Data!I122 -> 0.08450704225 | I122: =(Data!J123-Data!J122)/Data!J122 -> -0.01754385965 | J122: =(Data!K123-Data!K122)/Data!K122 -> -0.03034901366 | K122: =(Data!L123-Data!L122)/Data!L122 -> -0.01634472511 | L122: =(Data!M123-Data!M122)/Data!M122 -> -0.04144385027
A123: =(Data!B124-Data!B123)/Data!B123 -> -0.06285714286 | B123: =(Data!C124-Data!C123)/Data!C123 -> 0 | C123: =(Data!D124-Data!D123)/Data!D123 -> -0.07651006711 | D123: =(Data!E124-Data!E123)/Data!E123 -> -0.1321909425 | E123: =(Data!F124-Data!F123)/Data!F123 -> -0.04222451081 | F123: =(Data!G124-Data!G123)/Data!G123 -> -0.07132867133 | G123: =(Data!H124-Data!H123)/Data!H123 -> 0.01026957638 | H123: =(Data!I124-Data!I123)/Data!I123 -> 0.1385281385 | I123: =(Data!J124-Data!J123)/Data!J123 -> -0.02579365079 | J123: =(Data!K124-Data!K123)/Data!K123 -> -0.03755868545 | K123: =(Data!L124-Data!L123)/Data!L123 -> -0.1178247734 | L123: =(Data!M124-Data!M123)/Data!M123 -> -0.110181311
A124: =(Data!B125-Data!B124)/Data!B124 -> 0.1265243902 | B124: =(Data!C125-Data!C124)/Data!C124 -> 0.1591962906 | C124: =(Data!D125-Data!D124)/Data!D124 -> 0.07412790698 | D124: =(Data!E125-Data!E124)/Data!E124 -> 0.1819464034 | E124: =(Data!F125-Data!F124)/Data!F124 -> 0.1817204301 | F124: =(Data!G125-Data!G124)/Data!G124 -> 0.1385542169 | G124: =(Data!H125-Data!H124)/Data!H124 -> 0.1041931385 | H124: =(Data!I125-Data!I124)/Data!I124 -> 0.180608365 | I124: =(Data!J125-Data!J124)/Data!J124 -> 0.2199592668 | J124: =(Data!K125-Data!K124)/Data!K124 -> 0.07317073171 | K124: =(Data!L125-Data!L124)/Data!L124 -> 0.1010273973 | L124: =(Data!M125-Data!M124)/Data!M124 -> 0.09717868339
A125: =(Data!B126-Data!B125)/Data!B125 -> 0.08930987821 | B125: =(Data!C126-Data!C125)/Data!C125 -> 0.05866666667 | C125: =(Data!D126-Data!D125)/Data!D125 -> 0.08525033829 | D125: =(Data!E126-Data!E125)/Data!E125 -> 0.1181384248 | E125: =(Data!F126-Data!F125)/Data!F125 -> 0.1728844404 | F125: =(Data!G126-Data!G125)/Data!G125 -> 0.05423280423 | G125: =(Data!H126-Data!H125)/Data!H125 -> 0.06214039125 | H125: =(Data!I126-Data!I125)/Data!I125 -> 0.152979066 | I125: =(Data!J126-Data!J125)/Data!J125 -> 0.1903171953 | J125: =(Data!K126-Data!K125)/Data!K125 -> 0.1757575758 | K125: =(Data!L126-Data!L125)/Data!L125 -> 0.1726283048 | L125: =(Data!M126-Data!M125)/Data!M125 -> 0.1042857143
A126: =(Data!B127-Data!B126)/Data!B126 -> 0.02857142857 | B126: =(Data!C127-Data!C126)/Data!C126 -> -0.002518891688 | C126: =(Data!D127-Data!D126)/Data!D126 -> -0.008728179551 | D126: =(Data!E127-Data!E126)/Data!E126 -> -0.008537886873 | E126: =(Data!F127-Data!F126)/Data!F126 -> 0.03723816912 | F126: =(Data!G127-Data!G126)/Data!G126 -> 0.005018820577 | G126: =(Data!H127-Data!H126)/Data!H126 -> 0.08342361863 | H126: =(Data!I127-Data!I126)/Data!I126 -> 0.03631284916 | I126: =(Data!J127-Data!J126)/Data!J126 -> 0.1402524544 | J126: =(Data!K127-Data!K126)/Data!K126 -> 0.04510309278 | K126: =(Data!L127-Data!L126)/Data!L126 -> -0.01061007958 | L126: =(Data!M127-Data!M126)/Data!M126 -> 0.01681759379
A127: =(Data!B128-Data!B127)/Data!B127 -> 0.004830917874 | B127: =(Data!C128-Data!C127)/Data!C127 -> 0.04671717172 | C127: =(Data!D128-Data!D127)/Data!D127 -> 0.006289308176 | D127: =(Data!E128-Data!E127)/Data!E127 -> -0.01614639397 | E127: =(Data!F128-Data!F127)/Data!F127 -> -0.02169035153 | F127: =(Data!G128-Data!G127)/Data!G127 -> 0.004993757803 | G127: =(Data!H128-Data!H127)/Data!H127 -> 0.134 | H127: =(Data!I128-Data!I127)/Data!I127 -> -0.09029649596 | I127: =(Data!J128-Data!J127)/Data!J127 -> -0.009840098401 | J127: =(Data!K128-Data!K127)/Data!K127 -> -0.02836004932 | K127: =(Data!L128-Data!L127)/Data!L127 -> -0.002680965147 | L127: =(Data!M128-Data!M127)/Data!M127 -> 0.007633587786
A128: =(Data!B129-Data!B128)/Data!B128 -> 0.09375 | B128: =(Data!C129-Data!C128)/Data!C128 -> 0.08082026538 | C128: =(Data!D129-Data!D128)/Data!D128 -> 0.08875 | D128: =(Data!E129-Data!E128)/Data!E128 -> 0.09846827133 | E128: =(Data!F129-Data!F128)/Data!F128 -> 0.07645259939 | F128: =(Data!G129-Data!G128)/Data!G128 -> 0.09192546584 | G128: =(Data!H129-Data!H128)/Data!H128 -> -0.04144620811 | H128: =(Data!I129-Data!I128)/Data!I128 -> 0.122962963 | I128: =(Data!J129-Data!J128)/Data!J128 -> 0.05341614907 | J128: =(Data!K129-Data!K128)/Data!K128 -> 0.06091370558 | K128: =(Data!L129-Data!L128)/Data!L128 -> 0.1061827957 | L128: =(Data!M129-Data!M128)/Data!M128 -> 0.1022727273
A129: =(Data!B130-Data!B129)/Data!B129 -> 0.03846153846 | B129: =(Data!C130-Data!C129)/Data!C129 -> 0.05133928571 | C129: =(Data!D130-Data!D129)/Data!D129 -> 0.05625717566 | D129: =(Data!E130-Data!E129)/Data!E129 -> 0.05677290837 | E129: =(Data!F130-Data!F129)/Data!F129 -> 0.05681818182 | F129: =(Data!G130-Data!G129)/Data!G129 -> 0.0409556314 | G129: =(Data!H130-Data!H129)/Data!H129 -> -0.0607175713 | H129: =(Data!I130-Data!I129)/Data!I129 -> 0.07387862797 | I129: =(Data!J130-Data!J129)/Data!J129 -> 0.06132075472 | J129: =(Data!K130-Data!K129)/Data!K129 -> 0.02870813397 | K129: =(Data!L130-Data!L129)/Data!L129 -> 0.02308626974 | L129: =(Data!M130-Data!M129)/Data!M129 -> 0.05154639175
A130: =(Data!B131-Data!B130)/Data!B130 -> 0.02328042328 | B130: =(Data!C131-Data!C130)/Data!C130 -> -0.016985138 | C130: =(Data!D131-Data!D130)/Data!D130 -> 0.02608695652 | D130: =(Data!E131-Data!E130)/Data!E130 -> 0.0301602262 | E130: =(Data!F131-Data!F130)/Data!F130 -> 0.08602150538 | F130: =(Data!G131-Data!G130)/Data!G130 -> 0.01967213115 | G130: =(Data!H131-Data!H130)/Data!H130 -> 0.01958863859 | H130: =(Data!I131-Data!I130)/Data!I130 -> 0.1142506143 | I130: =(Data!J131-Data!J130)/Data!J130 -> 0.03 | J130: =(Data!K131-Data!K130)/Data!K130 -> 0.05813953488 | K130: =(Data!L131-Data!L130)/Data!L130 -> 0.003562945368 | L130: =(Data!M131-Data!M130)/Data!M130 -> 0.02505446623
A131: =(Data!B132-Data!B131)/Data!B131 -> 0.01447776629 | B131: =(Data!C132-Data!C131)/Data!C131 -> -0.02915766739 | C131: =(Data!D132-Data!D131)/Data!D131 -> 0.01588983051 | D131: =(Data!E132-Data!E131)/Data!E131 -> -0.032936871 | E131: =(Data!F132-Data!F131)/Data!F131 -> -0.08787128713 | F131: =(Data!G132-Data!G131)/Data!G131 -> -0.00857449089 | G131: =(Data!H132-Data!H131)/Data!H131 -> 0.088376561 | H131: =(Data!I132-Data!I131)/Data!I131 -> 0.003307607497 | I131: =(Data!J132-Data!J131)/Data!J131 -> -0.01186623517 | J131: =(Data!K132-Data!K131)/Data!K131 -> 0.03296703297 | K131: =(Data!L132-Data!L131)/Data!L131 -> -0.005917159763 | L131: =(Data!M132-Data!M131)/Data!M131 -> -0.004250797024
A132: =(Data!B133-Data!B132)/Data!B132 -> 0.01121304791 | B132: =(Data!C133-Data!C132)/Data!C132 -> 0.04115684093 | C132: =(Data!D133-Data!D132)/Data!D132 -> 0.01459854015 | D132: =(Data!E133-Data!E132)/Data!E132 -> 0.002838221381 | E132: =(Data!F133-Data!F132)/Data!F132 -> -0.1146540027 | F132: =(Data!G133-Data!G132)/Data!G132 -> 0.03675675676 | G132: =(Data!H133-Data!H132)/Data!H132 -> 0.004413062665 | H132: =(Data!I133-Data!I132)/Data!I132 -> 0.02967032967 | I132: =(Data!J133-Data!J132)/Data!J132 -> 0.02729257642 | J132: =(Data!K133-Data!K132)/Data!K132 -> 0.04255319149 | K132: =(Data!L133-Data!L132)/Data!L132 -> 0.01666666667 | L132: =(Data!M133-Data!M132)/Data!M132 -> 0.03842049093
A133: =(Data!B134-Data!B133)/Data!B133 -> 0.01209677419 | B133: =(Data!C134-Data!C133)/Data!C133 -> 0.0202991453 | C133: =(Data!D134-Data!D133)/Data!D133 -> 0.0174717369 | D133: =(Data!E134-Data!E133)/Data!E133 -> 0.02169811321 | E133: =(Data!F134-Data!F133)/Data!F133 -> -0.03908045977 | F133: =(Data!G134-Data!G133)/Data!G133 -> 0.006256517205 | G133: =(Data!H134-Data!H133)/Data!H133 -> -0.0158172232 | H133: =(Data!I134-Data!I133)/Data!I133 -> 0.05442902882 | I133: =(Data!J134-Data!J133)/Data!J133 -> 0.008501594049 | J133: =(Data!K134-Data!K133)/Data!K133 -> 0.01632653061 | K133: =(Data!L134-Data!L133)/Data!L133 -> 0.05152224824 | L133: =(Data!M134-Data!M133)/Data!M133 -> 0.0318602261
A134: =(Data!B135-Data!B134)/Data!B134 -> -0.04183266932 | B134: =(Data!C135-Data!C134)/Data!C134 -> -0.0502617801 | C134: =(Data!D135-Data!D134)/Data!D134 -> -0.03333333333 | D134: =(Data!E135-Data!E134)/Data!E134 -> -0.06740535549 | E134: =(Data!F135-Data!F134)/Data!F134 -> -0.1028708134 | F134: =(Data!G135-Data!G134)/Data!G134 -> -0.04870466321 | G134: =(Data!H135-Data!H134)/Data!H134 -> -0.05535714286 | H134: =(Data!I135-Data!I134)/Data!I134 -> -0.04453441296 | I134: =(Data!J135-Data!J134)/Data!J134 -> -0.06111696523 | J134: =(Data!K135-Data!K134)/Data!K134 -> -0.05120481928 | K134: =(Data!L135-Data!L134)/Data!L134 -> 0.01224944321 | L134: =(Data!M135-Data!M134)/Data!M134 -> -0.04282868526
A135: =(Data!B136-Data!B135)/Data!B135 -> 0.05717255717 | B135: =(Data!C136-Data!C135)/Data!C135 -> 0.0407938258 | C135: =(Data!D136-Data!D135)/Data!D135 -> 0.07419017764 | D135: =(Data!E136-Data!E135)/Data!E135 -> 0.04653465347 | E135: =(Data!F136-Data!F135)/Data!F135 -> 0.07822222222 | F135: =(Data!G136-Data!G135)/Data!G135 -> 0.06644880174 | G135: =(Data!H136-Data!H135)/Data!H135 -> 0.02079395085 | H135: =(Data!I136-Data!I135)/Data!I135 -> 0.04237288136 | I135: =(Data!J136-Data!J135)/Data!J135 -> 0.06621773288 | J135: =(Data!K136-Data!K135)/Data!K135 -> 0.04656084656 | K135: =(Data!L136-Data!L135)/Data!L135 -> 0.04840484048 | L135: =(Data!M136-Data!M135)/Data!M135 -> 0.05827263267
A136: =(Data!B137-Data!B136)/Data!B136 -> 0.03441494592 | B136: =(Data!C137-Data!C136)/Data!C136 -> 0.04025423729 | C136: =(Data!D137-Data!D136)/Data!D136 -> 0.01848249027 | D136: =(Data!E137-Data!E136)/Data!E136 -> 0.01797540208 | E136: =(Data!F137-Data!F136)/Data!F136 -> -0.06183017312 | F136: =(Data!G137-Data!G136)/Data!G136 -> 0.04187946885 | G136: =(Data!H137-Data!H136)/Data!H136 -> 0.0009259259259 | H136: =(Data!I137-Data!I136)/Data!I136 -> 0.0487804878 | I136: =(Data!J137-Data!J136)/Data!J136 -> 0.02421052632 | J136: =(Data!K137-Data!K136)/Data!K136 -> 0.04347826087 | K136: =(Data!L137-Data!L136)/Data!L136 -> 0.05351521511 | L136: =(Data!M137-Data!M136)/Data!M136 -> 0.0412979351
A137: =(Data!B138-Data!B137)/Data!B137 -> -0.07984790875 | B137: =(Data!C138-Data!C137)/Data!C137 -> -0.04684317719 | C137: =(Data!D138-Data!D137)/Data!D137 -> -0.08500477555 | D137: =(Data!E138-Data!E137)/Data!E137 -> -0.1152416357 | E137: =(Data!F138-Data!F137)/Data!F137 -> -0.151142355 | F137: =(Data!G138-Data!G137)/Data!G137 -> -0.06078431373 | G137: =(Data!H138-Data!H137)/Data!H137 -> -0.1267345051 | H137: =(Data!I138-Data!I137)/Data!I137 -> -0.1027131783 | I137: =(Data!J138-Data!J137)/Data!J137 -> -0.04830421377 | J137: =(Data!K138-Data!K137)/Data!K137 -> -0.06298449612 | K137: =(Data!L138-Data!L137)/Data!L137 -> -0.02589641434 | L137: =(Data!M138-Data!M137)/Data!M137 -> -0.08309726157
A138: =(Data!B139-Data!B138)/Data!B138 -> -0.03305785124 | B138: =(Data!C139-Data!C138)/Data!C138 -> 0.02457264957 | C138: =(Data!D139-Data!D138)/Data!D138 -> -0.01878914405 | D138: =(Data!E139-Data!E138)/Data!E138 -> -0.009453781513 | E138: =(Data!F139-Data!F138)/Data!F138 -> -0.09316770186 | F138: =(Data!G139-Data!G138)/Data!G138 -> 0.01356993737 | G138: =(Data!H139-Data!H138)/Data!H138 -> -0.04766949153 | H138: =(Data!I139-Data!I138)/Data!I138 -> 0.0151187905 | I138: =(Data!J139-Data!J138)/Data!J138 -> 0.02699784017 | J138: =(Data!K139-Data!K138)/Data!K138 -> -0.009307135471 | K138: =(Data!L139-Data!L138)/Data!L138 -> 0.0245398773 | L138: =(Data!M139-Data!M138)/Data!M138 -> 0.002059732235
A139: =(Data!B140-Data!B139)/Data!B139 -> 0.004273504274 | B139: =(Data!C140-Data!C139)/Data!C139 -> 0.02502606882 | C139: =(Data!D140-Data!D139)/Data!D139 -> 0.003191489362 | D139: =(Data!E140-Data!E139)/Data!E139 -> 0.01484623542 | E139: =(Data!F140-Data!F139)/Data!F139 -> 0.05251141553 | F139: =(Data!G140-Data!G139)/Data!G139 -> -0.002059732235 | G139: =(Data!H140-Data!H139)/Data!H139 -> -0.02002224694 | H139: =(Data!I140-Data!I139)/Data!I139 -> 0.001063829787 | I139: =(Data!J140-Data!J139)/Data!J139 -> 0.03259726604 | J139: =(Data!K140-Data!K139)/Data!K139 -> -0.01356993737 | K139: =(Data!L140-Data!L139)/Data!L139 -> 0.006986027944 | L139: =(Data!M140-Data!M139)/Data!M139 -> -0.01027749229
A140: =(Data!B141-Data!B140)/Data!B140 -> 0.01914893617 | B140: =(Data!C141-Data!C140)/Data!C140 -> 0.01729399797 | C140: =(Data!D141-Data!D140)/Data!D140 -> 0.02332979852 | D140: =(Data!E141-Data!E140)/Data!E140 -> 0.008359456635 | E140: =(Data!F141-Data!F140)/Data!F140 -> 0.04121475054 | F140: =(Data!G141-Data!G140)/Data!G140 -> 0.009287925697 | G140: =(Data!H141-Data!H140)/Data!H140 -> 0.05788876277 | H140: =(Data!I141-Data!I140)/Data!I140 -> 0.02550478215 | I140: =(Data!J141-Data!J140)/Data!J140 -> 0.0183299389 | J140: =(Data!K141-Data!K140)/Data!K140 -> 0.01904761905 | K140: =(Data!L141-Data!L140)/Data!L140 -> 0 | L140: =(Data!M141-Data!M140)/Data!M140 -> 0.003115264798
A141: =(Data!B142-Data!B141)/Data!B141 -> 0.03235908142 | B141: =(Data!C142-Data!C141)/Data!C141 -> 0.032 | C141: =(Data!D142-Data!D141)/Data!D141 -> 0.04559585492 | D141: =(Data!E142-Data!E141)/Data!E141 -> 0.01139896373 | E141: =(Data!F142-Data!F141)/Data!F141 -> -0.05520833333 | F141: =(Data!G142-Data!G141)/Data!G141 -> 0.01840490798 | G141: =(Data!H142-Data!H141)/Data!H141 -> 0 | H141: =(Data!I142-Data!I141)/Data!I141 -> 0.02901554404 | I141: =(Data!J142-Data!J141)/Data!J141 -> 0.063 | J141: =(Data!K142-Data!K141)/Data!K141 -> 0.02596053998 | K141: =(Data!L142-Data!L141)/Data!L141 -> 0.01189296333 | L141: =(Data!M142-Data!M141)/Data!M141 -> 0.02795031056
A142: =(Data!B143-Data!B142)/Data!B142 -> 0.04651162791 | B142: =(Data!C143-Data!C142)/Data!C142 -> 0.03972868217 | C142: =(Data!D143-Data!D142)/Data!D142 -> 0.0307234886 | D142: =(Data!E143-Data!E142)/Data!E142 -> 0.02663934426 | E142: =(Data!F143-Data!F142)/Data!F142 -> 0.00441014333 | F142: =(Data!G143-Data!G142)/Data!G142 -> 0.03815261044 | G142: =(Data!H143-Data!H142)/Data!H142 -> 0.09012875536 | H142: =(Data!I143-Data!I142)/Data!I142 -> 0.04934541793 | I142: =(Data!J143-Data!J142)/Data!J142 -> 0.04797742239 | J142: =(Data!K143-Data!K142)/Data!K142 -> 0.04655870445 | K142: =(Data!L143-Data!L142)/Data!L142 -> 0.01567091087 | L142: =(Data!M143-Data!M142)/Data!M142 -> 0.01913393756
A143: =(Data!B144-Data!B143)/Data!B143 -> 0.01739130435 | B143: =(Data!C144-Data!C143)/Data!C143 -> 0.01770736253 | C143: =(Data!D144-Data!D143)/Data!D143 -> 0.008653846154 | D143: =(Data!E144-Data!E143)/Data!E143 -> -0.01097804391 | E143: =(Data!F144-Data!F143)/Data!F143 -> -0.04720087816 | F143: =(Data!G144-Data!G143)/Data!G143 -> 0.04738878143 | G143: =(Data!H144-Data!H143)/Data!H143 -> 0.0344488189 | H143: =(Data!I144-Data!I143)/Data!I143 -> 0.04030710173 | I143: =(Data!J144-Data!J143)/Data!J143 -> -0.007181328546 | J143: =(Data!K144-Data!K143)/Data!K143 -> 0.02998065764 | K143: =(Data!L144-Data!L143)/Data!L143 -> 0.03182256509 | L143: =(Data!M144-Data!M143)/Data!M143 -> 0.01086956522
A144: =(Data!B145-Data!B144)/Data!B144 -> 0.03038936372 | B144: =(Data!C145-Data!C144)/Data!C144 -> 0.04212454212 | C144: =(Data!D145-Data!D144)/Data!D144 -> 0.02478551001 | D144: =(Data!E145-Data!E144)/Data!E144 -> -0.004036326942 | E144: =(Data!F145-Data!F144)/Data!F144 -> -0.009216589862 | F144: =(Data!G145-Data!G144)/Data!G144 -> 0.04247460757 | G144: =(Data!H145-Data!H144)/Data!H144 -> -0.04281636537 | H144: =(Data!I145-Data!I144)/Data!I144 -> 0.07195571956 | I144: =(Data!J145-Data!J144)/Data!J144 -> -0.00904159132 | J144: =(Data!K145-Data!K144)/Data!K144 -> 0.04976525822 | K144: =(Data!L145-Data!L144)/Data!L144 -> 0.03644859813 | L144: =(Data!M145-Data!M144)/Data!M144 -> 0.03323558162
A145: =(Data!B146-Data!B145)/Data!B145 -> 0.03225806452 | B145: =(Data!C146-Data!C145)/Data!C145 -> 0.04305799649 | C145: =(Data!D146-Data!D145)/Data!D145 -> 0.01488372093 | D145: =(Data!E146-Data!E145)/Data!E145 -> 0.03748733536 | E145: =(Data!F146-Data!F145)/Data!F145 -> 0.001162790698 | F145: =(Data!G146-Data!G145)/Data!G145 -> 0.008857395926 | G145: =(Data!H146-Data!H145)/Data!H145 -> -0.02783300199 | H145: =(Data!I146-Data!I145)/Data!I145 -> 0.03700516351 | I145: =(Data!J146-Data!J145)/Data!J145 -> -0.03284671533 | J145: =(Data!K146-Data!K145)/Data!K145 -> 0.02683363148 | K145: =(Data!L146-Data!L145)/Data!L145 -> 0.03246167719 | L145: =(Data!M146-Data!M145)/Data!M145 -> 0.02649006623
A146: =(Data!B147-Data!B146)/Data!B146 -> 0.03392857143 | B146: =(Data!C147-Data!C146)/Data!C146 -> -0.03706823926 | C146: =(Data!D147-Data!D146)/Data!D146 -> 0.009165902841 | D146: =(Data!E147-Data!E146)/Data!E146 -> 0.044921875 | E146: =(Data!F147-Data!F146)/Data!F146 -> 0.1161440186 | F146: =(Data!G147-Data!G146)/Data!G146 -> 0.03072870939 | G146: =(Data!H147-Data!H146)/Data!H146 -> 0.03067484663 | H146: =(Data!I147-Data!I146)/Data!I146 -> -0.0008298755187 | I146: =(Data!J147-Data!J146)/Data!J146 -> -0.0641509434 | J146: =(Data!K147-Data!K146)/Data!K146 -> 0.01480836237 | K146: =(Data!L147-Data!L146)/Data!L146 -> -0.002620087336 | L146: =(Data!M147-Data!M146)/Data!M146 -> 0.02304147465
A147: =(Data!B148-Data!B147)/Data!B147 -> -0.01122625216 | B147: =(Data!C148-Data!C147)/Data!C147 -> -0.006999125109 | C147: =(Data!D148-Data!D147)/Data!D147 -> -0.0272479564 | D147: =(Data!E148-Data!E147)/Data!E147 -> -0.02336448598 | E147: =(Data!F148-Data!F147)/Data!F147 -> -0.03329864724 | F147: =(Data!G148-Data!G147)/Data!G147 -> -0.04429301533 | G147: =(Data!H148-Data!H147)/Data!H147 -> 0.03174603175 | H147: =(Data!I148-Data!I147)/Data!I147 -> 0.02242524917 | I147: =(Data!J148-Data!J147)/Data!J147 -> 0.02318548387 | J147: =(Data!K148-Data!K147)/Data!K147 -> 0.004291845494 | K147: =(Data!L148-Data!L147)/Data!L147 -> -0.01838879159 | L147: =(Data!M148-Data!M147)/Data!M147 -> -0.02342342342
A148: =(Data!B149-Data!B148)/Data!B148 -> 0.02358078603 | B148: =(Data!C149-Data!C148)/Data!C148 -> 0.07665198238 | C148: =(Data!D149-Data!D148)/Data!D148 -> 0.02614379085 | D148: =(Data!E149-Data!E148)/Data!E148 -> 0.01435406699 | E148: =(Data!F149-Data!F148)/Data!F148 -> -0.07534983854 | F148: =(Data!G149-Data!G148)/Data!G148 -> 0.03565062389 | G148: =(Data!H149-Data!H148)/Data!H148 -> 0.01730769231 | H148: =(Data!I149-Data!I148)/Data!I148 -> 0.01787164907 | I148: =(Data!J149-Data!J148)/Data!J148 -> 0.05418719212 | J148: =(Data!K149-Data!K148)/Data!K148 -> 0.01709401709 | K148: =(Data!L149-Data!L148)/Data!L148 -> 0.00178412132 | L148: =(Data!M149-Data!M148)/Data!M148 -> 0.008302583026
A149: =(Data!B150-Data!B149)/Data!B149 -> -0.006825938567 | B149: =(Data!C150-Data!C149)/Data!C149 -> -0.01309328969 | C149: =(Data!D150-Data!D149)/Data!D149 -> -0.01091901729 | D149: =(Data!E150-Data!E149)/Data!E149 -> -0.01698113208 | E149: =(Data!F150-Data!F149)/Data!F149 -> -0.0908032596 | F149: =(Data!G150-Data!G149)/Data!G149 -> -0.002581755594 | G149: =(Data!H150-Data!H149)/Data!H149 -> -0.05482041588 | H149: =(Data!I150-Data!I149)/Data!I149 -> -0.08539505188 | I149: =(Data!J150-Data!J149)/Data!J149 -> -0.05794392523 | J149: =(Data!K150-Data!K149)/Data!K149 -> -0.02857142857 | K149: =(Data!L150-Data!L149)/Data!L149 -> -0.005342831701 | L149: =(Data!M150-Data!M149)/Data!M149 -> -0.02470265325
A150: =(Data!B151-Data!B150)/Data!B150 -> -0.03608247423 | B150: =(Data!C151-Data!C150)/Data!C150 -> -0.0223880597 | C150: =(Data!D151-Data!D150)/Data!D150 -> -0.02575896964 | D150: =(Data!E151-Data!E150)/Data!E150 -> -0.06046065259 | E150: =(Data!F151-Data!F150)/Data!F150 -> -0.05377720871 | F150: =(Data!G151-Data!G150)/Data!G150 -> -0.02761000863 | G150: =(Data!H151-Data!H150)/Data!H150 -> -0.042 | H150: =(Data!I151-Data!I150)/Data!I150 -> 0.006980802792 | I150: =(Data!J151-Data!J150)/Data!J150 -> -0.00496031746 | J150: =(Data!K151-Data!K150)/Data!K150 -> -0.03892733564 | K150: =(Data!L151-Data!L150)/Data!L150 -> -0.05908683975 | L150: =(Data!M151-Data!M150)/Data!M150 -> -0.0478424015
A151: =(Data!B152-Data!B151)/Data!B151 -> 0.02228163993 | B151: =(Data!C152-Data!C151)/Data!C151 -> 0.03477523325 | C151: =(Data!D152-Data!D151)/Data!D151 -> 0.02077431539 | D151: =(Data!E152-Data!E151)/Data!E151 -> -0.04596527068 | E151: =(Data!F152-Data!F151)/Data!F151 -> -0.02571041949 | F151: =(Data!G152-Data!G151)/Data!G151 -> 0.01685891748 | G151: =(Data!H152-Data!H151)/Data!H151 -> 0.02296450939 | H151: =(Data!I152-Data!I151)/Data!I151 -> 0.03552859619 | I151: =(Data!J152-Data!J151)/Data!J151 -> 0.02093718843 | J151: =(Data!K152-Data!K151)/Data!K151 -> 0.003600360036 | K151: =(Data!L152-Data!L151)/Data!L151 -> -0.006660323501 | L151: =(Data!M152-Data!M151)/Data!M151 -> 0.0009852216749
A152: =(Data!B153-Data!B152)/Data!B152 -> -0.1142109852 | B152: =(Data!C153-Data!C152)/Data!C152 -> -0.1319672131 | C152: =(Data!D153-Data!D152)/Data!D152 -> -0.1091581869 | D152: =(Data!E153-Data!E152)/Data!E152 -> -0.164882227 | E152: =(Data!F153-Data!F152)/Data!F152 -> -0.1916666667 | F152: =(Data!G153-Data!G152)/Data!G152 -> -0.1841186736 | G152: =(Data!H153-Data!H152)/Data!H152 -> -0.06530612245 | H152: =(Data!I153-Data!I152)/Data!I152 -> -0.1154811715 | I152: =(Data!J153-Data!J152)/Data!J152 -> -0.09375 | J152: =(Data!K153-Data!K152)/Data!K152 -> -0.1174887892 | K152: =(Data!L153-Data!L152)/Data!L152 -> -0.1494252874 | L152: =(Data!M153-Data!M152)/Data!M152 -> -0.1427165354
A153: =(Data!B154-Data!B153)/Data!B153 -> -0.03248031496 | B153: =(Data!C154-Data!C153)/Data!C153 -> -0.03871576959 | C153: =(Data!D154-Data!D153)/Data!D153 -> -0.007268951194 | D153: =(Data!E154-Data!E153)/Data!E153 -> -0.06538461538 | E153: =(Data!F154-Data!F153)/Data!F153 -> -0.147766323 | F153: =(Data!G154-Data!G153)/Data!G153 -> -0.08235294118 | G153: =(Data!H154-Data!H153)/Data!H153 -> -0.05021834061 | H153: =(Data!I154-Data!I153)/Data!I153 -> -0.0302743614 | I153: =(Data!J154-Data!J153)/Data!J153 -> -0.01077586207 | J153: =(Data!K154-Data!K153)/Data!K153 -> -0.02337398374 | K153: =(Data!L154-Data!L153)/Data!L153 -> -0.05067567568 | L153: =(Data!M154-Data!M153)/Data!M153 -> -0.03903559127
A154: =(Data!B155-Data!B154)/Data!B154 -> 0.02136317396 | B154: =(Data!C155-Data!C154)/Data!C154 -> 0.01669941061 | C154: =(Data!D155-Data!D154)/Data!D154 -> 0.03451882845 | D154: =(Data!E155-Data!E154)/Data!E154 -> 0.08230452675 | E154: =(Data!F155-Data!F154)/Data!F154 -> -0.1028225806 | F154: =(Data!G155-Data!G154)/Data!G154 -> 0.07459207459 | G154: =(Data!H155-Data!H154)/Data!H154 -> -0.02873563218 | H154: =(Data!I155-Data!I154)/Data!I154 -> -0.04097560976 | I154: =(Data!J155-Data!J154)/Data!J154 -> 0.006535947712 | J154: =(Data!K155-Data!K154)/Data!K154 -> 0.02601456816 | K154: =(Data!L155-Data!L154)/Data!L154 -> 0.01660735469 | L154: =(Data!M155-Data!M154)/Data!M154 -> 0.0633213859
A155: =(Data!B156-Data!B155)/Data!B155 -> 0.009960159363 | B155: =(Data!C156-Data!C155)/Data!C155 -> 0.0193236715 | C155: =(Data!D156-Data!D155)/Data!D155 -> -0.001011122346 | D155: =(Data!E156-Data!E155)/Data!E155 -> -0.0443599493 | E155: =(Data!F156-Data!F155)/Data!F155 -> -0.05168539326 | F155: =(Data!G156-Data!G155)/Data!G155 -> -0.005422993492 | G155: =(Data!H156-Data!H155)/Data!H155 -> 0.02721893491 | H155: =(Data!I156-Data!I155)/Data!I155 -> 0.04069175992 | I155: =(Data!J156-Data!J155)/Data!J155 -> -0.003246753247 | J155: =(Data!K156-Data!K155)/Data!K155 -> 0.03144016227 | K155: =(Data!L156-Data!L155)/Data!L155 -> 0.02800466744 | L155: =(Data!M156-Data!M155)/Data!M155 -> -0.01797752809
A156: =(Data!B157-Data!B156)/Data!B156 -> 0.01084812623 | B156: =(Data!C157-Data!C156)/Data!C156 -> 0.001895734597 | C156: =(Data!D157-Data!D156)/Data!D156 -> 0.01518218623 | D156: =(Data!E157-Data!E156)/Data!E156 -> 0 | E156: =(Data!F157-Data!F156)/Data!F156 -> -0.07345971564 | F156: =(Data!G157-Data!G156)/Data!G156 -> 0.004362050164 | G156: =(Data!H157-Data!H156)/Data!H156 -> -0.08410138249 | H156: =(Data!I157-Data!I156)/Data!I156 -> -0.03714565005 | I156: =(Data!J157-Data!J156)/Data!J156 -> -0.04451682953 | J156: =(Data!K157-Data!K156)/Data!K156 -> 0.006882989184 | K156: =(Data!L157-Data!L156)/Data!L156 -> 0.02951191827 | L156: =(Data!M157-Data!M156)/Data!M156 -> 0.03775743707
A157: =(Data!B158-Data!B157)/Data!B157 -> 0.04195121951 | B157: =(Data!C158-Data!C157)/Data!C157 -> 0.01797540208 | C157: =(Data!D158-Data!D157)/Data!D157 -> 0.036889332 | D157: =(Data!E158-Data!E157)/Data!E157 -> 0.02652519894 | E157: =(Data!F158-Data!F157)/Data!F157 -> 0.02557544757 | F157: =(Data!G158-Data!G157)/Data!G157 -> 0.06948968512 | G157: =(Data!H158-Data!H157)/Data!H157 -> 0.005031446541 | H157: =(Data!I158-Data!I157)/Data!I157 -> 0.04467005076 | I157: =(Data!J158-Data!J157)/Data!J157 -> 0.02613636364 | J157: =(Data!K158-Data!K157)/Data!K157 -> 0.0439453125 | K157: =(Data!L158-Data!L157)/Data!L157 -> 0.06174200662 | L157: =(Data!M158-Data!M157)/Data!M157 -> 0.04740904079
A158: =(Data!B159-Data!B158)/Data!B158 -> 0.04588014981 | B158: =(Data!C159-Data!C158)/Data!C158 -> 0.05669144981 | C158: =(Data!D159-Data!D158)/Data!D158 -> 0.03653846154 | D158: =(Data!E159-Data!E158)/Data!E158 -> 0.07364341085 | E158: =(Data!F159-Data!F158)/Data!F158 -> 0.144638404 | F158: =(Data!G159-Data!G158)/Data!G158 -> 0.07715736041 | G158: =(Data!H159-Data!H158)/Data!H158 -> 0.04630788486 | H158: =(Data!I159-Data!I158)/Data!I158 -> 0.0592808552 | I158: =(Data!J159-Data!J158)/Data!J158 -> 0.08748615725 | J158: =(Data!K159-Data!K158)/Data!K158 -> 0.05238540692 | K158: =(Data!L159-Data!L158)/Data!L158 -> 0.09345794393 | L158: =(Data!M159-Data!M158)/Data!M158 -> 0.03263157895
A159: =(Data!B160-Data!B159)/Data!B159 -> 0.01163831692 | B159: =(Data!C160-Data!C159)/Data!C159 -> 0.01055408971 | C159: =(Data!D160-Data!D159)/Data!D159 -> -0.002782931354 | D159: =(Data!E160-Data!E159)/Data!E159 -> 0.009626955475 | E159: =(Data!F160-Data!F159)/Data!F159 -> -0.03921568627 | F159: =(Data!G160-Data!G159)/Data!G159 -> 0.02356267672 | G159: =(Data!H160-Data!H159)/Data!H159 -> 0.007177033493 | H159: =(Data!I160-Data!I159)/Data!I159 -> 0.007339449541 | I159: =(Data!J160-Data!J159)/Data!J159 -> -0.02545824847 | J159: =(Data!K160-Data!K159)/Data!K159 -> 0.02044444444 | K159: =(Data!L160-Data!L159)/Data!L159 -> 0.01519468186 | L159: =(Data!M160-Data!M159)/Data!M159 -> 0.006116207951
A160: =(Data!B161-Data!B160)/Data!B160 -> -0.01504424779 | B160: =(Data!C161-Data!C160)/Data!C160 -> -0.01392515231 | C160: =(Data!D161-Data!D160)/Data!D160 -> -0.02604651163 | D160: =(Data!E161-Data!E160)/Data!E160 -> -0.09654350417 | E160: =(Data!F161-Data!F160)/Data!F160 -> -0.0589569161 | F160: =(Data!G161-Data!G160)/Data!G160 -> -0.03130755064 | G160: =(Data!H161-Data!H160)/Data!H160 -> -0.01543942993 | H160: =(Data!I161-Data!I160)/Data!I160 -> -0.05191256831 | I160: =(Data!J161-Data!J160)/Data!J160 -> -0.005224660397 | J160: =(Data!K161-Data!K160)/Data!K160 -> -0.02177700348 | K160: =(Data!L161-Data!L160)/Data!L160 -> 0.002806361085 | L160: =(Data!M161-Data!M160)/Data!M160 -> -0.04154002026
A161: =(Data!B162-Data!B161)/Data!B161 -> -0.04222821204 | B161: =(Data!C162-Data!C161)/Data!C161 -> -0.05472197705 | C161: =(Data!D162-Data!D161)/Data!D161 -> -0.04489016237 | D161: =(Data!E162-Data!E161)/Data!E161 -> -0.06992084433 | E161: =(Data!F162-Data!F161)/Data!F161 -> -0.1807228916 | F161: =(Data!G162-Data!G161)/Data!G161 -> -0.05608365019 | G161: =(Data!H162-Data!H161)/Data!H161 -> 0.01809408926 | H161: =(Data!I162-Data!I161)/Data!I161 -> -0.09798270893 | I161: =(Data!J162-Data!J161)/Data!J161 -> -0.05042016807 | J161: =(Data!K162-Data!K161)/Data!K161 -> -0.03918076581 | K161: =(Data!L162-Data!L161)/Data!L161 -> -0.02145522388 | L161: =(Data!M162-Data!M161)/Data!M161 -> -0.04334038055
A162: =(Data!B163-Data!B162)/Data!B162 -> -0.01969981238 | B162: =(Data!C163-Data!C162)/Data!C162 -> -0.02147525677 | C162: =(Data!D163-Data!D162)/Data!D162 -> -0.002 | D162: =(Data!E163-Data!E162)/Data!E162 -> -0.02553191489 | E162: =(Data!F163-Data!F162)/Data!F162 -> -0.06176470588 | F162: =(Data!G163-Data!G162)/Data!G162 -> -0.04733131923 | G162: =(Data!H163-Data!H162)/Data!H162 -> -0.04502369668 | H162: =(Data!I163-Data!I162)/Data!I162 -> 0 | I162: =(Data!J163-Data!J162)/Data!J162 -> 0.01880530973 | J162: =(Data!K163-Data!K162)/Data!K162 -> -0.03429101019 | K162: =(Data!L163-Data!L162)/Data!L162 -> -0.03527168732 | L162: =(Data!M163-Data!M162)/Data!M162 -> -0.008839779006
A163: =(Data!B164-Data!B163)/Data!B163 -> 0.02870813397 | B163: =(Data!C164-Data!C163)/Data!C163 -> -0.01049618321 | C163: =(Data!D164-Data!D163)/Data!D163 -> 0.03306613226 | D163: =(Data!E164-Data!E163)/Data!E163 -> 0.02765647744 | E163: =(Data!F164-Data!F163)/Data!F163 -> 0.1222570533 | F163: =(Data!G164-Data!G163)/Data!G163 -> 0.05496828753 | G163: =(Data!H164-Data!H163)/Data!H163 -> -0.04962779156 | H163: =(Data!I164-Data!I163)/Data!I163 -> 0.04898828541 | I163: =(Data!J164-Data!J163)/Data!J163 -> 0.02823018458 | J163: =(Data!K164-Data!K163)/Data!K163 -> 0.06238003839 | K163: =(Data!L164-Data!L163)/Data!L163 -> 0.07213438735 | L163: =(Data!M164-Data!M163)/Data!M163 -> 0.06688963211
A164: =(Data!B165-Data!B164)/Data!B164 -> 0.03162790698 | B164: =(Data!C165-Data!C164)/Data!C164 -> 0.05110896818 | C164: =(Data!D165-Data!D164)/Data!D164 -> 0.02812803104 | D164: =(Data!E165-Data!E164)/Data!E164 -> 0.06657223796 | E164: =(Data!F165-Data!F164)/Data!F164 -> 0.02234636872 | F164: =(Data!G165-Data!G164)/Data!G164 -> 0.05611222445 | G164: =(Data!H165-Data!H164)/Data!H164 -> -0.02480417755 | H164: =(Data!I165-Data!I164)/Data!I164 -> 0.02131979695 | I164: =(Data!J165-Data!J164)/Data!J164 -> 0.02217529039 | J164: =(Data!K165-Data!K164)/Data!K164 -> 0.0352303523 | K164: =(Data!L165-Data!L164)/Data!L164 -> 0.04331797235 | L164: =(Data!M165-Data!M164)/Data!M164 -> 0.0355276907
A165: =(Data!B166-Data!B165)/Data!B165 -> 0.03155996393 | B165: =(Data!C166-Data!C165)/Data!C165 -> 0.02110091743 | C165: =(Data!D166-Data!D165)/Data!D165 -> 0.001886792453 | D165: =(Data!E166-Data!E165)/Data!E165 -> 0.06905710491 | E165: =(Data!F166-Data!F165)/Data!F165 -> 0.1639344262 | F165: =(Data!G166-Data!G165)/Data!G165 -> 0.04174573055 | G165: =(Data!H166-Data!H165)/Data!H165 -> -0.02008032129 | H165: =(Data!I166-Data!I165)/Data!I165 -> 0.02485089463 | I165: =(Data!J166-Data!J165)/Data!J165 -> 0.03202479339 | J165: =(Data!K166-Data!K165)/Data!K165 -> 0.03141361257 | K165: =(Data!L166-Data!L165)/Data!L165 -> 0.009717314488 | L165: =(Data!M166-Data!M165)/Data!M165 -> 0.004036326942
A166: =(Data!B167-Data!B166)/Data!B166 -> 0.002622377622 | B166: =(Data!C167-Data!C166)/Data!C166 -> -0.007187780773 | C166: =(Data!D167-Data!D166)/Data!D166 -> 0.004708097928 | D166: =(Data!E167-Data!E166)/Data!E166 -> -0.01118012422 | E166: =(Data!F167-Data!F166)/Data!F166 -> 0.1431924883 | F166: =(Data!G167-Data!G166)/Data!G166 -> 0.005464480874 | G166: =(Data!H167-Data!H166)/Data!H166 -> 0.01229508197 | H166: =(Data!I167-Data!I166)/Data!I166 -> -0.01260911736 | I166: =(Data!J167-Data!J166)/Data!J166 -> 0.03103103103 | J166: =(Data!K167-Data!K166)/Data!K166 -> -0.01015228426 | K166: =(Data!L167-Data!L166)/Data!L166 -> 0.007874015748 | L166: =(Data!M167-Data!M166)/Data!M166 -> -0.009045226131
A167: =(Data!B168-Data!B167)/Data!B167 -> -0.01918047079 | B167: =(Data!C168-Data!C167)/Data!C167 -> -0.02171945701 | C167: =(Data!D168-Data!D167)/Data!D167 -> -0.008434864105 | D167: =(Data!E168-Data!E167)/Data!E167 -> -0.01507537688 | E167: =(Data!F168-Data!F167)/Data!F167 -> -0.02464065708 | F167: =(Data!G168-Data!G167)/Data!G167 -> -0.003623188406 | G167: =(Data!H168-Data!H167)/Data!H167 -> -0.02564102564 | H167: =(Data!I168-Data!I167)/Data!I167 -> -0.0373280943 | I167: =(Data!J168-Data!J167)/Data!J167 -> -0.002912621359 | J167: =(Data!K168-Data!K167)/Data!K167 -> -0.02136752137 | K167: =(Data!L168-Data!L167)/Data!L167 -> -0.02430555556 | L167: =(Data!M168-Data!M167)/Data!M167 -> 0
A168: =(Data!B169-Data!B168)/Data!B168 -> 0.02933333333 | B168: =(Data!C169-Data!C168)/Data!C168 -> 0.03792784459 | C168: =(Data!D169-Data!D168)/Data!D168 -> 0.02457466919 | D168: =(Data!E169-Data!E168)/Data!E168 -> 0.03571428571 | E168: =(Data!F169-Data!F168)/Data!F168 -> 0.06736842105 | F168: =(Data!G169-Data!G168)/Data!G168 -> 0.04636363636 | G168: =(Data!H169-Data!H168)/Data!H168 -> 0.04016620499 | H168: =(Data!I169-Data!I168)/Data!I168 -> 0.04081632653 | I168: =(Data!J169-Data!J168)/Data!J168 -> 0.03700097371 | J168: =(Data!K169-Data!K168)/Data!K168 -> 0.01484716157 | K168: =(Data!L169-Data!L168)/Data!L168 -> 0.02491103203 | L168: =(Data!M169-Data!M168)/Data!M168 -> 0.02839756592
A169: =(Data!B170-Data!B169)/Data!B169 -> 0.04490500864 | B169: =(Data!C170-Data!C169)/Data!C169 -> 0.005347593583 | C169: =(Data!D170-Data!D169)/Data!D169 -> 0.03782287823 | D169: =(Data!E170-Data!E169)/Data!E169 -> 0.07881773399 | E169: =(Data!F170-Data!F169)/Data!F169 -> 0.1262327416 | F169: =(Data!G170-Data!G169)/Data!G169 -> 0.02345786273 | G169: =(Data!H170-Data!H169)/Data!H169 -> 0.08521970706 | H169: =(Data!I170-Data!I169)/Data!I169 -> 0.03921568627 | I169: =(Data!J170-Data!J169)/Data!J169 -> 0.02629107981 | J169: =(Data!K170-Data!K169)/Data!K169 -> 0.0404475043 | K169: =(Data!L170-Data!L169)/Data!L169 -> 0.05555555556 | L169: =(Data!M170-Data!M169)/Data!M169 -> 0.02268244576
A170: =(Data!B171-Data!B170)/Data!B170 -> 0.0173553719 | B170: =(Data!C171-Data!C170)/Data!C170 -> -0.004432624113 | C170: =(Data!D171-Data!D170)/Data!D170 -> 0.02666666667 | D170: =(Data!E171-Data!E170)/Data!E170 -> -0.04223744292 | E170: =(Data!F171-Data!F170)/Data!F170 -> 0.04028021016 | F170: =(Data!G171-Data!G170)/Data!G170 -> -0.004244482173 | G170: =(Data!H171-Data!H170)/Data!H170 -> 0.03803680982 | H170: =(Data!I171-Data!I170)/Data!I170 -> -0.002830188679 | I170: =(Data!J171-Data!J170)/Data!J170 -> -0.02104300091 | J170: =(Data!K171-Data!K170)/Data!K170 -> 0.01736972705 | K170: =(Data!L171-Data!L170)/Data!L170 -> 0.02302631579 | L170: =(Data!M171-Data!M170)/Data!M170 -> -0.01542912247
A171: =(Data!B172-Data!B171)/Data!B171 -> 0.0162469537 | B171: =(Data!C172-Data!C171)/Data!C171 -> 0.007123775601 | C171: =(Data!D172-Data!D171)/Data!D171 -> 0.01904761905 | D171: =(Data!E172-Data!E171)/Data!E171 -> -0.02145411204 | E171: =(Data!F172-Data!F171)/Data!F171 -> -0.07912457912 | F171: =(Data!G172-Data!G171)/Data!G171 -> 0.02813299233 | G171: =(Data!H172-Data!H171)/Data!H171 -> -0.0401891253 | H171: =(Data!I172-Data!I171)/Data!I171 -> -0.03122043519 | I171: =(Data!J172-Data!J171)/Data!J171 -> -0.01775700935 | J171: =(Data!K172-Data!K171)/Data!K171 -> 0.006504065041 | K171: =(Data!L172-Data!L171)/Data!L171 -> 0.02250803859 | L171: =(Data!M172-Data!M171)/Data!M171 -> 0.01469147894
A172: =(Data!B173-Data!B172)/Data!B172 -> 0.005595523581 | B172: =(Data!C173-Data!C172)/Data!C172 -> -0.02740937224 | C172: =(Data!D173-Data!D172)/Data!D172 -> -0.01104502974 | D172: =(Data!E173-Data!E172)/Data!E172 -> 0.004872107186 | E172: =(Data!F173-Data!F172)/Data!F172 -> -0.02742230347 | F172: =(Data!G173-Data!G172)/Data!G172 -> -0.02404643449 | G172: =(Data!H173-Data!H172)/Data!H172 -> -0.0381773399 | H172: =(Data!I173-Data!I172)/Data!I172 -> -0.056640625 | I172: =(Data!J173-Data!J172)/Data!J172 -> -0.01427212179 | J172: =(Data!K173-Data!K172)/Data!K172 -> -0.01373182553 | K172: =(Data!L173-Data!L172)/Data!L172 -> -0.02044025157 | L172: =(Data!M173-Data!M172)/Data!M172 -> -0.01351351351
A173: =(Data!B174-Data!B173)/Data!B173 -> 0.03815580286 | B173: =(Data!C174-Data!C173)/Data!C173 -> 0.01909090909 | C173: =(Data!D174-Data!D173)/Data!D173 -> 0.04381443299 | D173: =(Data!E174-Data!E173)/Data!E173 -> 0.07757575758 | E173: =(Data!F174-Data!F173)/Data!F173 -> 0.1503759398 | F173: =(Data!G174-Data!G173)/Data!G173 -> 0.05182667799 | G173: =(Data!H174-Data!H173)/Data!H173 -> 0.02304737516 | H173: =(Data!I174-Data!I173)/Data!I173 -> 0.01138716356 | I173: =(Data!J174-Data!J173)/Data!J173 -> 0.05888030888 | J173: =(Data!K174-Data!K173)/Data!K173 -> 0.03194103194 | K173: =(Data!L174-Data!L173)/Data!L173 -> 0.02247191011 | L173: =(Data!M174-Data!M173)/Data!M173 -> 0.04207436399
A174: =(Data!B175-Data!B174)/Data!B174 -> -0.02526799387 | B174: =(Data!C175-Data!C174)/Data!C174 -> -0.04371097235 | C174: =(Data!D175-Data!D174)/Data!D174 -> -0.05185185185 | D174: =(Data!E175-Data!E174)/Data!E174 -> -0.05849268841 | E174: =(Data!F175-Data!F174)/Data!F174 -> -0.135620915 | F174: =(Data!G175-Data!G174)/Data!G174 -> -0.02988691438 | G174: =(Data!H175-Data!H174)/Data!H174 -> -0.0563204005 | H174: =(Data!I175-Data!I174)/Data!I174 -> -0.06038894575 | I174: =(Data!J175-Data!J174)/Data!J174 -> -0.04102096627 | J174: =(Data!K175-Data!K174)/Data!K174 -> -0.0246031746 | K174: =(Data!L175-Data!L174)/Data!L174 -> -0.03846153846 | L174: =(Data!M175-Data!M174)/Data!M174 -> -0.04319248826
A175: =(Data!B176-Data!B175)/Data!B175 -> 0.02670856245 | B175: =(Data!C176-Data!C175)/Data!C175 -> -0.009328358209 | C175: =(Data!D176-Data!D175)/Data!D175 -> 0.03472222222 | D175: =(Data!E176-Data!E175)/Data!E175 -> -0.004778972521 | E175: =(Data!F176-Data!F175)/Data!F175 -> -0.07372400756 | F175: =(Data!G176-Data!G175)/Data!G175 -> 0.009991673605 | G175: =(Data!H176-Data!H175)/Data!H175 -> -0.05570291777 | H175: =(Data!I176-Data!I175)/Data!I175 -> 0.05010893246 | I175: =(Data!J176-Data!J175)/Data!J175 -> 0.03041825095 | J175: =(Data!K176-Data!K175)/Data!K175 -> 0.02847843775 | K175: =(Data!L176-Data!L175)/Data!L175 -> 0.03102040816 | L175: =(Data!M176-Data!M175)/Data!M175 -> 0.03827281649
A176: =(Data!B177-Data!B176)/Data!B176 -> 0.005355776588 | B176: =(Data!C177-Data!C176)/Data!C176 -> 0.01412429379 | C176: =(Data!D177-Data!D176)/Data!D176 -> 0 | D176: =(Data!E177-Data!E176)/Data!E176 -> 0.06362545018 | E176: =(Data!F177-Data!F176)/Data!F176 -> 0.1020408163 | F176: =(Data!G177-Data!G176)/Data!G176 -> 0.02473206925 | G176: =(Data!H177-Data!H176)/Data!H176 -> 0.02949438202 | H176: =(Data!I177-Data!I176)/Data!I176 -> 0.002074688797 | I176: =(Data!J177-Data!J176)/Data!J176 -> -0.05258302583 | J176: =(Data!K177-Data!K176)/Data!K176 -> 0.01898734177 | K176: =(Data!L177-Data!L176)/Data!L176 -> 0.04750593824 | L176: =(Data!M177-Data!M176)/Data!M176 -> 0.02457466919
A177: =(Data!B178-Data!B177)/Data!B177 -> 0.01293759513 | B177: =(Data!C178-Data!C177)/Data!C177 -> 0.04735376045 | C177: =(Data!D178-Data!D177)/Data!D177 -> 0.005033557047 | D177: =(Data!E178-Data!E177)/Data!E177 -> 0.02257336343 | E177: =(Data!F178-Data!F177)/Data!F177 -> 0.06481481481 | F177: =(Data!G178-Data!G177)/Data!G177 -> 0.0193081255 | G177: =(Data!H178-Data!H177)/Data!H177 -> 0.05320600273 | H177: =(Data!I178-Data!I177)/Data!I177 -> 0.04658385093 | I177: =(Data!J178-Data!J177)/Data!J177 -> 0.05063291139 | J177: =(Data!K178-Data!K177)/Data!K177 -> 0.01940993789 | K177: =(Data!L178-Data!L177)/Data!L177 -> 0.01511715797 | L177: =(Data!M178-Data!M177)/Data!M177 -> 0.0110701107
A178: =(Data!B179-Data!B178)/Data!B178 -> 0.02329075883 | B178: =(Data!C179-Data!C178)/Data!C178 -> 0.02039007092 | C178: =(Data!D179-Data!D178)/Data!D178 -> 0.003338898164 | D178: =(Data!E179-Data!E178)/Data!E178 -> 0.0651214128 | E178: =(Data!F179-Data!F178)/Data!F178 -> 0.1495652174 | F178: =(Data!G179-Data!G178)/Data!G178 -> 0.03551696922 | G178: =(Data!H179-Data!H178)/Data!H178 -> 0 | H178: =(Data!I179-Data!I178)/Data!I178 -> 0.03857566766 | I178: =(Data!J179-Data!J178)/Data!J178 -> 0.04263206673 | J178: =(Data!K179-Data!K178)/Data!K178 -> 0.02437166794 | K178: =(Data!L179-Data!L178)/Data!L178 -> 0.0253164557 | L178: =(Data!M179-Data!M178)/Data!M178 -> 0.01368613139
A179: =(Data!B180-Data!B179)/Data!B179 -> 0.02643171806 | B179: =(Data!C180-Data!C179)/Data!C179 -> -0.008688097307 | C179: =(Data!D180-Data!D179)/Data!D179 -> 0.01830282862 | D179: =(Data!E180-Data!E179)/Data!E179 -> 0.01450777202 | E179: =(Data!F180-Data!F179)/Data!F179 -> 0.02420574887 | F179: =(Data!G180-Data!G179)/Data!G179 -> 0.04192073171 | G179: =(Data!H180-Data!H179)/Data!H179 -> -0.0103626943 | H179: =(Data!I180-Data!I179)/Data!I179 -> -0.005714285714 | I179: =(Data!J180-Data!J179)/Data!J179 -> 0.008 | J179: =(Data!K180-Data!K179)/Data!K179 -> 0.04014869888 | K179: =(Data!L180-Data!L179)/Data!L179 -> 0.01888162672 | L179: =(Data!M180-Data!M179)/Data!M179 -> 0.02880288029
A180: =(Data!B181-Data!B180)/Data!B180 -> 0.005007153076 | B180: =(Data!C181-Data!C180)/Data!C180 -> -0.01051709027 | C180: =(Data!D181-Data!D180)/Data!D180 -> -0.01633986928 | D180: =(Data!E181-Data!E180)/Data!E180 -> -0.02553626149 | E180: =(Data!F181-Data!F180)/Data!F180 -> 0.005908419498 | F180: =(Data!G181-Data!G180)/Data!G180 -> 0.01024140454 | G180: =(Data!H181-Data!H180)/Data!H180 -> 0.001308900524 | H180: =(Data!I181-Data!I180)/Data!I180 -> -0.01340996169 | I180: =(Data!J181-Data!J180)/Data!J180 -> 0.0176366843 | J180: =(Data!K181-Data!K180)/Data!K180 -> 0 | K180: =(Data!L181-Data!L180)/Data!L180 -> 0.01853171775 | L180: =(Data!M181-Data!M180)/Data!M180 -> -0.01224846894
A181: =(Data!B182-Data!B181)/Data!B181 -> 0.009252669039 | B181: =(Data!C182-Data!C181)/Data!C181 -> -0.01948627104 | C181: =(Data!D182-Data!D181)/Data!D181 -> 0.01993355482 | D181: =(Data!E182-Data!E181)/Data!E181 -> 0.05765199161 | E181: =(Data!F182-Data!F181)/Data!F181 -> 0.04845814978 | F181: =(Data!G182-Data!G181)/Data!G181 -> 0.02606806662 | G181: =(Data!H182-Data!H181)/Data!H181 -> -0.05751633987 | H181: =(Data!I182-Data!I181)/Data!I181 -> 0.002912621359 | I181: =(Data!J182-Data!J181)/Data!J181 -> -0.001733102253 | J181: =(Data!K182-Data!K181)/Data!K181 -> 0.02859185132 | K181: =(Data!L182-Data!L181)/Data!L181 -> 0.06927921624 | L181: =(Data!M182-Data!M181)/Data!M181 -> 0.03100088574
A182: =(Data!B183-Data!B182)/Data!B182 -> -0.00634696756 | B182: =(Data!C183-Data!C182)/Data!C182 -> -0.006323396567 | C182: =(Data!D183-Data!D182)/Data!D182 -> -0.00325732899 | D182: =(Data!E183-Data!E182)/Data!E182 -> 0.02378592666 | E182: =(Data!F183-Data!F182)/Data!F182 -> 0.03221288515 | F182: =(Data!G183-Data!G182)/Data!G182 -> -0.000705716302 | G182: =(Data!H183-Data!H182)/Data!H182 -> 0.01941747573 | H182: =(Data!I183-Data!I182)/Data!I182 -> -0.002904162633 | I182: =(Data!J183-Data!J182)/Data!J182 -> -0.01909722222 | J182: =(Data!K183-Data!K182)/Data!K182 -> -0.004169562196 | K182: =(Data!L183-Data!L182)/Data!L182 -> 0.05890052356 | L182: =(Data!M183-Data!M182)/Data!M182 -> -0.007731958763
A183: =(Data!B184-Data!B183)/Data!B183 -> 0.02271114265 | B183: =(Data!C184-Data!C183)/Data!C183 -> 0.007272727273 | C183: =(Data!D184-Data!D183)/Data!D183 -> -0.008986928105 | D183: =(Data!E184-Data!E183)/Data!E183 -> 0.04162633107 | E183: =(Data!F184-Data!F183)/Data!F183 -> 0.06241519674 | F183: =(Data!G184-Data!G183)/Data!G183 -> -0.01694915254 | G183: =(Data!H184-Data!H183)/Data!H183 -> -0.02040816327 | H183: =(Data!I184-Data!I183)/Data!I183 -> -0.1077669903 | I183: =(Data!J184-Data!J183)/Data!J183 -> 0.06194690265 | J183: =(Data!K184-Data!K183)/Data!K183 -> 0.01395673412 | K183: =(Data!L184-Data!L183)/Data!L183 -> 0.01545117429 | L183: =(Data!M184-Data!M183)/Data!M183 -> 0.002597402597
A184: =(Data!B185-Data!B184)/Data!B184 -> 0.009021512838 | B184: =(Data!C185-Data!C184)/Data!C184 -> 0.01985559567 | C184: =(Data!D185-Data!D184)/Data!D184 -> 0.002473206925 | D184: =(Data!E185-Data!E184)/Data!E184 -> 0.03624535316 | E184: =(Data!F185-Data!F184)/Data!F184 -> -0.06002554278 | F184: =(Data!G185-Data!G184)/Data!G184 -> 0.01005747126 | G184: =(Data!H185-Data!H184)/Data!H184 -> 0.01805555556 | H184: =(Data!I185-Data!I184)/Data!I184 -> 0.01632208923 | I184: =(Data!J185-Data!J184)/Data!J184 -> 0.035 | J184: =(Data!K185-Data!K184)/Data!K184 -> 0.01101169993 | K184: =(Data!L185-Data!L184)/Data!L184 -> -0.004869141814 | L184: =(Data!M185-Data!M184)/Data!M184 -> 0.01986183074
A185: =(Data!B186-Data!B185)/Data!B185 -> 0.01306740028 | B185: =(Data!C186-Data!C185)/Data!C185 -> -0.0008849557522 | C185: =(Data!D186-Data!D185)/Data!D185 -> 0.02796052632 | D185: =(Data!E186-Data!E185)/Data!E185 -> -0.02242152466 | E185: =(Data!F186-Data!F185)/Data!F185 -> -0.06114130435 | F185: =(Data!G186-Data!G185)/Data!G185 -> 0.007823613087 | G185: =(Data!H186-Data!H185)/Data!H185 -> -0.02182810368 | H185: =(Data!I186-Data!I185)/Data!I185 -> 0.03854389722 | I185: =(Data!J186-Data!J185)/Data!J185 -> 0.04911433172 | J185: =(Data!K186-Data!K185)/Data!K185 -> 0.0680735194 | K185: =(Data!L186-Data!L185)/Data!L185 -> 0.02813455657 | L185: =(Data!M186-Data!M185)/Data!M185 -> 0.01100762066
A186: =(Data!B187-Data!B186)/Data!B186 -> 0.02443991853 | B186: =(Data!C187-Data!C186)/Data!C186 -> 0.00354295837 | C186: =(Data!D187-Data!D186)/Data!D186 -> -0.0048 | D186: =(Data!E187-Data!E186)/Data!E186 -> 0.02844036697 | E186: =(Data!F187-Data!F186)/Data!F186 -> 0.07235890014 | F186: =(Data!G187-Data!G186)/Data!G186 -> 0.01693719125 | G186: =(Data!H187-Data!H186)/Data!H186 -> 0.006973500697 | H186: =(Data!I187-Data!I186)/Data!I186 -> 0.06907216495 | I186: =(Data!J187-Data!J186)/Data!J186 -> 0.0644666155 | J186: =(Data!K187-Data!K186)/Data!K186 -> 0.04525175271 | K186: =(Data!L187-Data!L186)/Data!L186 -> 0.03271861987 | L186: =(Data!M187-Data!M186)/Data!M186 -> 0.02512562814
A187: =(Data!B188-Data!B187)/Data!B187 -> 0.007289595759 | B187: =(Data!C188-Data!C187)/Data!C187 -> 0.013239188 | C187: =(Data!D188-Data!D187)/Data!D187 -> -0.004823151125 | D187: =(Data!E188-Data!E187)/Data!E187 -> -0.03835860839 | E187: =(Data!F188-Data!F187)/Data!F187 -> -0.05937921727 | F187: =(Data!G188-Data!G187)/Data!G187 -> -0.01943095073 | G187: =(Data!H188-Data!H187)/Data!H187 -> 0.02077562327 | H187: =(Data!I188-Data!I187)/Data!I187 -> -0.02507232401 | I187: =(Data!J188-Data!J187)/Data!J187 -> 0.02018745494 | J187: =(Data!K188-Data!K187)/Data!K187 -> 0.0006097560976 | K187: =(Data!L188-Data!L187)/Data!L187 -> -0.002880184332 | L187: =(Data!M188-Data!M187)/Data!M187 -> -0.01307189542
A188: =(Data!B189-Data!B188)/Data!B188 -> -0.01315789474 | B188: =(Data!C189-Data!C188)/Data!C188 -> 0.01916376307 | C188: =(Data!D189-Data!D188)/Data!D188 -> -0.008077544426 | D188: =(Data!E189-Data!E188)/Data!E188 -> -0.05194805195 | E188: =(Data!F189-Data!F188)/Data!F188 -> -0.05595408895 | F188: =(Data!G189-Data!G188)/Data!G188 -> -0.04883227176 | G188: =(Data!H189-Data!H188)/Data!H188 -> 0.06377204885 | H188: =(Data!I189-Data!I188)/Data!I188 -> -0.03066271019 | I188: =(Data!J189-Data!J188)/Data!J188 -> 0.01413427562 | J188: =(Data!K189-Data!K188)/Data!K188 -> -0.02925045704 | K188: =(Data!L189-Data!L188)/Data!L188 -> -0.01270941652 | L188: =(Data!M189-Data!M188)/Data!M188 -> -0.01821192053
A189: =(Data!B190-Data!B189)/Data!B189 -> 0.008666666667 | B189: =(Data!C190-Data!C189)/Data!C189 -> -0.008547008547 | C189: =(Data!D190-Data!D189)/Data!D189 -> 0.009771986971 | D189: =(Data!E190-Data!E189)/Data!E189 -> 0.04500978474 | E189: =(Data!F190-Data!F189)/Data!F189 -> 0.01063829787 | F189: =(Data!G190-Data!G189)/Data!G189 -> 0.0349702381 | G189: =(Data!H190-Data!H189)/Data!H189 -> 0.04464285714 | H189: =(Data!I190-Data!I189)/Data!I189 -> 0.02653061224 | I189: =(Data!J190-Data!J189)/Data!J189 -> 0.03135888502 | J189: =(Data!K190-Data!K189)/Data!K189 -> 0.0131826742 | K189: =(Data!L190-Data!L189)/Data!L189 -> 0.03335283792 | L189: =(Data!M190-Data!M189)/Data!M189 -> 0.04047217538
A190: =(Data!B191-Data!B190)/Data!B190 -> -0.04230006609 | B190: =(Data!C191-Data!C190)/Data!C190 -> -0.04827586207 | C190: =(Data!D191-Data!D190)/Data!D190 -> -0.05483870968 | D190: =(Data!E191-Data!E190)/Data!E190 -> -0.07584269663 | E190: =(Data!F191-Data!F190)/Data!F190 -> -0.1398496241 | F190: =(Data!G191-Data!G190)/Data!G190 -> -0.06542056075 | G190: =(Data!H191-Data!H190)/Data!H190 -> 0.01709401709 | H190: =(Data!I191-Data!I190)/Data!I190 -> -0.03180914513 | I190: =(Data!J191-Data!J190)/Data!J190 -> -0.01081081081 | J190: =(Data!K191-Data!K190)/Data!K190 -> -0.07434944238 | K190: =(Data!L191-Data!L190)/Data!L190 -> -0.04246885617 | L190: =(Data!M191-Data!M190)/Data!M190 -> -0.05348460292
A191: =(Data!B192-Data!B191)/Data!B191 -> 0.04278812974 | B191: =(Data!C192-Data!C191)/Data!C191 -> 0.007246376812 | C191: =(Data!D192-Data!D191)/Data!D191 -> 0.0366894198 | D191: =(Data!E192-Data!E191)/Data!E191 -> 0.00506585613 | E191: =(Data!F192-Data!F191)/Data!F191 -> -0.04370629371 | F191: =(Data!G192-Data!G191)/Data!G191 -> 0.05923076923 | G191: =(Data!H192-Data!H191)/Data!H191 -> 0.05762304922 | H191: =(Data!I192-Data!I191)/Data!I191 -> 0.08521560575 | I191: =(Data!J192-Data!J191)/Data!J191 -> 0.05601092896 | J191: =(Data!K192-Data!K191)/Data!K191 -> 0.02543507363 | K191: =(Data!L192-Data!L191)/Data!L191 -> 0.02602010645 | L191: =(Data!M192-Data!M191)/Data!M191 -> 0.04366438356
A192: =(Data!B193-Data!B192)/Data!B192 -> -0.008603573792 | B192: =(Data!C193-Data!C192)/Data!C192 -> -0.008992805755 | C192: =(Data!D193-Data!D192)/Data!D192 -> -0.01399176955 | D192: =(Data!E193-Data!E192)/Data!E192 -> -0.008064516129 | E192: =(Data!F193-Data!F192)/Data!F192 -> -0.04753199269 | F192: =(Data!G193-Data!G192)/Data!G192 -> 0.0348583878 | G192: =(Data!H193-Data!H192)/Data!H192 -> 0.200908059 | H192: =(Data!I193-Data!I192)/Data!I192 -> -0.03122043519 | I192: =(Data!J193-Data!J192)/Data!J192 -> -0.01681759379 | J192: =(Data!K193-Data!K192)/Data!K192 -> -0.05678851175 | K192: =(Data!L193-Data!L192)/Data!L192 -> 0.0005763688761 | L192: =(Data!M193-Data!M192)/Data!M192 -> 0.006562756358
A193: =(Data!B194-Data!B193)/Data!B193 -> -0.01335113485 | B193: =(Data!C194-Data!C193)/Data!C193 -> -0.0108892922 | C193: =(Data!D194-Data!D193)/Data!D193 -> 0.00918196995 | D193: =(Data!E194-Data!E193)/Data!E193 -> 0.01422764228 | E193: =(Data!F194-Data!F193)/Data!F193 -> -0.1113243762 | F193: =(Data!G194-Data!G193)/Data!G193 -> 0.03298245614 | G193: =(Data!H194-Data!H193)/Data!H193 -> 0.09829867675 | H193: =(Data!I194-Data!I193)/Data!I193 -> 0.064453125 | I193: =(Data!J194-Data!J193)/Data!J193 -> 0.02302631579 | J193: =(Data!K194-Data!K193)/Data!K193 -> 0.03044982699 | K193: =(Data!L194-Data!L193)/Data!L193 -> 0.03513824885 | L193: =(Data!M194-Data!M193)/Data!M193 -> 0.02852485738
A194: =(Data!B195-Data!B194)/Data!B194 -> 0.02706359946 | B194: =(Data!C195-Data!C194)/Data!C194 -> 0.02110091743 | C194: =(Data!D195-Data!D194)/Data!D194 -> 0.04052936311 | D194: =(Data!E195-Data!E194)/Data!E194 -> 0.1002004008 | E194: =(Data!F195-Data!F194)/Data!F194 -> 0.07127429806 | F194: =(Data!G195-Data!G194)/Data!G194 -> 0.08220108696 | G194: =(Data!H195-Data!H194)/Data!H194 -> -0.02667814114 | H194: =(Data!I195-Data!I194)/Data!I194 -> 0.123853211 | I194: =(Data!J195-Data!J194)/Data!J194 -> 0.02379421222 | J194: =(Data!K195-Data!K194)/Data!K194 -> 0.05036937542 | K194: =(Data!L195-Data!L194)/Data!L194 -> 0.05898720089 | L194: =(Data!M195-Data!M194)/Data!M194 -> 0.07448494453
A195: =(Data!B196-Data!B195)/Data!B195 -> -0.004611330698 | B195: =(Data!C196-Data!C195)/Data!C195 -> 0.0260557053 | C195: =(Data!D196-Data!D195)/Data!D195 -> 0.0007949125596 | D195: =(Data!E196-Data!E195)/Data!E195 -> 0.07012750455 | E195: =(Data!F196-Data!F195)/Data!F195 -> -0.06451612903 | F195: =(Data!G196-Data!G195)/Data!G195 -> 0.06842435656 | G195: =(Data!H196-Data!H195)/Data!H195 -> 0.0884173298 | H195: =(Data!I196-Data!I195)/Data!I195 -> -0.05469387755 | I195: =(Data!J196-Data!J195)/Data!J195 -> -0.01256281407 | J195: =(Data!K196-Data!K195)/Data!K195 -> 0 | K195: =(Data!L196-Data!L195)/Data!L195 -> 0.09301103521 | L195: =(Data!M196-Data!M195)/Data!M195 -> 0.05383480826
A196: =(Data!B197-Data!B196)/Data!B196 -> 0.01522170748 | B196: =(Data!C197-Data!C196)/Data!C196 -> 0.0472854641 | C196: =(Data!D197-Data!D196)/Data!D196 -> 0.01588562351 | D196: =(Data!E197-Data!E196)/Data!E196 -> 0.03744680851 | E196: =(Data!F197-Data!F196)/Data!F196 -> -0.03663793103 | F196: =(Data!G197-Data!G196)/Data!G196 -> 0.01410105758 | G196: =(Data!H197-Data!H196)/Data!H196 -> 0.1974004874 | H196: =(Data!I197-Data!I196)/Data!I196 -> 0.01122625216 | I196: =(Data!J197-Data!J196)/Data!J196 -> -0.01463104326 | J196: =(Data!K197-Data!K196)/Data!K196 -> 0.05306905371 | K196: =(Data!L197-Data!L196)/Data!L196 -> 0.05721153846 | L196: =(Data!M197-Data!M196)/Data!M196 -> 0.02099370189
A197: =(Data!B198-Data!B197)/Data!B197 -> 0.005215123859 | B197: =(Data!C198-Data!C197)/Data!C197 -> 0.005016722408 | C197: =(Data!D198-Data!D197)/Data!D197 -> -0.001563721658 | D197: =(Data!E198-Data!E197)/Data!E197 -> -0.009844134537 | E197: =(Data!F198-Data!F197)/Data!F197 -> 0.08501118568 | F197: =(Data!G198-Data!G197)/Data!G197 -> -0.03881807648 | G197: =(Data!H198-Data!H197)/Data!H197 -> 0.07055630936 | H197: =(Data!I198-Data!I197)/Data!I197 -> -0.000853970965 | I197: =(Data!J198-Data!J197)/Data!J197 -> -0.02711426727 | J197: =(Data!K198-Data!K197)/Data!K197 -> 0.009107468124 | K197: =(Data!L198-Data!L197)/Data!L197 -> -0.01227830832 | L197: =(Data!M198-Data!M197)/Data!M197 -> -0.01233721727
A198: =(Data!B199-Data!B198)/Data!B198 -> -0.01167315175 | B198: =(Data!C199-Data!C198)/Data!C198 -> -0.02579034942 | C198: =(Data!D199-Data!D198)/Data!D198 -> -0.02819107283 | D198: =(Data!E199-Data!E198)/Data!E198 -> -0.01574150787 | E198: =(Data!F199-Data!F198)/Data!F198 -> -0.07010309278 | F198: =(Data!G199-Data!G198)/Data!G198 -> -0.03737191079 | G198: =(Data!H199-Data!H198)/Data!H198 -> 0.07097591888 | H198: =(Data!I199-Data!I198)/Data!I198 -> -0.01538461538 | I198: =(Data!J199-Data!J198)/Data!J198 -> -0.009289980093 | J198: =(Data!K199-Data!K198)/Data!K198 -> -0.01865222623 | K198: =(Data!L199-Data!L198)/Data!L198 -> -0.01427255985 | L198: =(Data!M199-Data!M198)/Data!M198 -> -0.02151283831
A199: =(Data!B200-Data!B199)/Data!B199 -> -0.01443569554 | B199: =(Data!C200-Data!C199)/Data!C199 -> -0.002561912895 | C199: =(Data!D200-Data!D199)/Data!D199 -> -0.02014504432 | D199: =(Data!E200-Data!E199)/Data!E199 -> 0.003367003367 | E199: =(Data!F200-Data!F199)/Data!F199 -> 0.0332594235 | F199: =(Data!G200-Data!G199)/Data!G199 -> 0.006261740764 | G199: =(Data!H200-Data!H199)/Data!H199 -> -0.1952662722 | H199: =(Data!I200-Data!I199)/Data!I199 -> -0.01388888889 | I199: =(Data!J200-Data!J199)/Data!J199 -> 0.03215003349 | J199: =(Data!K200-Data!K199)/Data!K199 -> -0.009196811772 | K199: =(Data!L200-Data!L199)/Data!L199 -> 0.02428771602 | L199: =(Data!M200-Data!M199)/Data!M199 -> 0.006382978723
A200: =(Data!B201-Data!B200)/Data!B200 -> -0.02996005326 | B200: =(Data!C201-Data!C200)/Data!C200 -> -0.05051369863 | C200: =(Data!D201-Data!D200)/Data!D200 -> -0.03042763158 | D200: =(Data!E201-Data!E200)/Data!E200 -> 0 | E200: =(Data!F201-Data!F200)/Data!F200 -> -0.1759656652 | F200: =(Data!G201-Data!G200)/Data!G200 -> -0.034847542 | G200: =(Data!H201-Data!H200)/Data!H200 -> -0.06617647059 | H200: =(Data!I201-Data!I200)/Data!I200 -> 0.03697183099 | I200: =(Data!J201-Data!J200)/Data!J200 -> -0.02271252433 | J200: =(Data!K201-Data!K200)/Data!K200 -> -0.04393564356 | K200: =(Data!L201-Data!L200)/Data!L200 -> -0.01003191974 | L200: =(Data!M201-Data!M200)/Data!M200 -> -0.02748414376
... 22 more rows

Sheet 1D Vectors
B1: SPASTT01USM661N | C1: SPASTT01KRM661N | D1: SPASTT01GBM661N | E1: SPASTT01ITM661N | F1: SPASTT01GRM661N | G1: SPASTT01DEM661N | H1: SPASTT01CNM661N | I1: SPASTT01RUM661N | J1: SPASTT01INM661N | K1: SPASTT01NOM661N | L1: SPASTT01DKM661N | M1: SPASTT01NLM661N
A2: Means | B2: =SUM(Returns!A2:A222)/221 -> 0.003554064104 | C2: =SUM(Returns!B2:B222)/221 -> 0.007883992957 | D2: =SUM(Returns!C2:C222)/221 -> 0.001653627619 | E2: =SUM(Returns!D2:D222)/221 -> 0.0004553164593 | F2: =SUM(Returns!E2:E222)/221 -> -0.003208542294 | G2: =SUM(Returns!F2:F222)/221 -> 0.003490695071 | H2: =SUM(Returns!G2:G222)/221 -> 0.006839286445 | I2: =SUM(Returns!H2:H222)/221 -> 0.02074775009 | J2: =SUM(Returns!I2:I222)/221 -> 0.01197768768 | K2: =SUM(Returns!J2:J222)/221 -> 0.009471382424 | L2: =SUM(Returns!K2:K222)/221 -> 0.008068135832 | M2: =SUM(Returns!L2:L222)/221 -> 0.001548782205
B3: 1 | C3: 1 | D3: 1 | E3: 1 | F3: 1 | G3: 1 | H3: 1 | I3: 1 | J3: 1 | K3: 1 | L3: 1 | M3: 1
A4: STD | B4: =STDEV(Returns!A2:A222) -> 0.03764315136 | C4: =STDEV(Returns!B2:B222) -> 0.05730472872 | D4: =STDEV(Returns!C2:C222) -> 0.03558867846 | E4: =STDEV(Returns!D2:D222) -> 0.05124100047 | F4: =STDEV(Returns!E2:E222) -> 0.07602023034 | G4: =STDEV(Returns!F2:F222) -> 0.04967408711 | H4: =STDEV(Returns!G2:G222) -> 0.068119999 | I4: =STDEV(Returns!H2:H222) -> 0.08901441074 | J4: =STDEV(Returns!I2:I222) -> 0.05912250573 | K4: =STDEV(Returns!J2:J222) -> 0.05090935557 | L4: =STDEV(Returns!K2:K222) -> 0.04571852166 | M4: =STDEV(Returns!L2:L222) -> 0.04651829785
A5: Sharpe | B5: =(SUM(Returns!A2:A222)/221)/_xlfn.VAR.P(Returns!A2:A222) -> 2.519549539 | C5: =(SUM(Returns!B2:B222)/221)/_xlfn.VAR.P(Returns!B2:B222) -> 2.411764502 | D5: =(SUM(Returns!C2:C222)/221)/_xlfn.VAR.P(Returns!C2:C222) -> 1.311546182 | E5: =(SUM(Returns!D2:D222)/221)/_xlfn.VAR.P(Returns!D2:D222) -> 0.1741998359 | F5: =(SUM(Returns!E2:E222)/221)/_xlfn.VAR.P(Returns!E2:E222) -> -0.5577235704 | G5: =(SUM(Returns!F2:F222)/221)/_xlfn.VAR.P(Returns!F2:F222) -> 1.421090436 | H5: =(SUM(Returns!G2:G222)/221)/_xlfn.VAR.P(Returns!G2:G222) -> 1.480577415 | I5: =(SUM(Returns!H2:H222)/221)/_xlfn.VAR.P(Returns!H2:H222) -> 2.630388873 | J5: =(SUM(Returns!I2:I222)/221)/_xlfn.VAR.P(Returns!I2:I222) -> 3.442206445 | K5: =(SUM(Returns!J2:J222)/221)/_xlfn.VAR.P(Returns!J2:J222) -> 3.671028584 | L5: =(SUM(Returns!K2:K222)/221)/_xlfn.VAR.P(Returns!K2:K222) -> 3.877559196 | M5: =(SUM(Returns!L2:L222)/221)/_xlfn.VAR.P(Returns!L2:L222) -> 0.7189725554
A7: 1*V(-1) | B7: =MMULT('1D Vectors'!B3:M3,'Var-Covar inverse'!B2:M13) -> 330.332243 | C7: 12.0730923 | D7: 1027.322867 | E7: 41.25996216 | F7: -38.95164483 | G7: -109.6347598 | H7: 144.4792135 | I7: -24.27521568 | J7: 59.0383491 | K7: -84.35556798 | L7: 327.6969632 | M7: -628.2135583
A8: A (prev*z) | B8: =MMULT(B7:M7,'1D Vectors Transposed'!C2:C13) -> 4.792673745
A10: Z*V(-1) | B10: =MMULT('1D Vectors'!B2:M2,'Var-Covar inverse'!B2:M13) -> 0.5549201652 | C10: 0.7243234135 | D10: 1.574795247 | E10: -1.655081584 | F10: -3.464120232 | G10: 3.13251156 | H10: 0.3661627215 | I10: 1.722989073 | J10: 3.965167459 | K10: 6.932195815 | L10: 9.695071343 | M10: -18.75626124
A11: B(prev*z) | B11: =MMULT( B10:M10,'1D Vectors Transposed'!C2:C13) -> 0.2321579828
A13: 1'*V(-1) | B13: =MMULT('1D Vectors'!B3:M3,'Var-Covar inverse'!B2:M13) -> 330.332243 | C13: 12.0730923 | D13: 1027.322867 | E13: 41.25996216 | F13: -38.95164483 | G13: -109.6347598 | H13: 144.4792135 | I13: -24.27521568 | J13: 59.0383491 | K13: -84.35556798 | L13: 327.6969632 | M13: -628.2135583
A14: C(prev*1) | B14: =MMULT( B13:M13,'1D Vectors Transposed'!B2:B13) -> 1056.771944
A16: D(BC-A^2) | B16: =B11*B14-(B8)^2 -> 222.3683212

Sheet 1D Vectors Transposed
C1: Means | E1: V(-1)*1 | F1: V(-1)*z | H1: g | I1: h
A2: SPASTT01USM661N | B2: 1 | C2: =SUM(Returns!A2:A222)/221 -> 0.003554064104 | E2: =MMULT('Var-Covar inverse'!B2:M13,'1D Vectors Transposed'!B2:B13) -> 330.332243 | F2: =MMULT('Var-Covar inverse'!B2:M13,'1D Vectors Transposed'!C2:C13) -> 0.5549201652 | H2: =(1/'1D Vectors'!$B$16)*('1D Vectors'!$B$11*E2-'1D Vectors'!$B$8*F2) -> 0.3329148481 | I2: =(1/'1D Vectors'!$B$16)*('1D Vectors'!$B$14*F2-'1D Vectors'!$B$8*E2) -> -4.482430775
A3: SPASTT01KRM661N | B3: 1 | C3: =SUM(Returns!B2:B222)/221 -> 0.007883992957 | E3: 12.0730923 | F3: 0.7243234135 | H3: =(1/'1D Vectors'!$B$16)*('1D Vectors'!$B$11*E3-'1D Vectors'!$B$8*F3) -> -0.003006638039 | I3: =(1/'1D Vectors'!$B$16)*('1D Vectors'!$B$14*F3-'1D Vectors'!$B$8*E3) -> 3.182028202
A4: SPASTT01GBM661N | B4: 1 | C4: =SUM(Returns!C2:C222)/221 -> 0.001653627619 | E4: 1027.322867 | F4: 1.574795247 | H4: =(1/'1D Vectors'!$B$16)*('1D Vectors'!$B$11*E4-'1D Vectors'!$B$8*F4) -> 1.038608933 | I4: =(1/'1D Vectors'!$B$16)*('1D Vectors'!$B$14*F4-'1D Vectors'!$B$8*E4) -> -14.65777087
A5: SPASTT01ITM661N | B5: 1 | C5: =SUM(Returns!D2:D222)/221 -> 0.0004553164593 | E5: 41.25996216 | F5: -1.655081584 | H5: =(1/'1D Vectors'!$B$16)*('1D Vectors'!$B$11*E5-'1D Vectors'!$B$8*F5) -> 0.07874815777 | I5: =(1/'1D Vectors'!$B$16)*('1D Vectors'!$B$14*F5-'1D Vectors'!$B$8*E5) -> -8.754796143
A6: SPASTT01GRM661N | B6: 1 | C6: =SUM(Returns!E2:E222)/221 -> -0.003208542294 | E6: -38.95164483 | F6: -3.464120232 | H6: =(1/'1D Vectors'!$B$16)*('1D Vectors'!$B$11*E6-'1D Vectors'!$B$8*F6) -> 0.03399523256 | I6: =(1/'1D Vectors'!$B$16)*('1D Vectors'!$B$14*F6-'1D Vectors'!$B$8*E6) -> -15.62319006
A7: SPASTT01DEM661N | B7: 1 | C7: =SUM(Returns!F2:F222)/221 -> 0.003490695071 | E7: -109.6347598 | F7: 3.13251156 | H7: =(1/'1D Vectors'!$B$16)*('1D Vectors'!$B$11*E7-'1D Vectors'!$B$8*F7) -> -0.1819759684 | I7: =(1/'1D Vectors'!$B$16)*('1D Vectors'!$B$14*F7-'1D Vectors'!$B$8*E7) -> 17.24973209
A8: SPASTT01CNM661N | B8: 1 | C8: =SUM(Returns!G2:G222)/221 -> 0.006839286445 | E8: 144.4792135 | F8: 0.3661627215 | H8: =(1/'1D Vectors'!$B$16)*('1D Vectors'!$B$11*E8-'1D Vectors'!$B$8*F8) -> 0.1429479889 | I8: =(1/'1D Vectors'!$B$16)*('1D Vectors'!$B$14*F8-'1D Vectors'!$B$8*E8) -> -1.373807387
A9: SPASTT01RUM661N | B9: 1 | C9: =SUM(Returns!H2:H222)/221 -> 0.02074775009 | E9: -24.27521568 | F9: 1.722989073 | H9: =(1/'1D Vectors'!$B$16)*('1D Vectors'!$B$11*E9-'1D Vectors'!$B$8*F9) -> -0.06247926647 | I9: =(1/'1D Vectors'!$B$16)*('1D Vectors'!$B$14*F9-'1D Vectors'!$B$8*E9) -> 8.711446352
A10: SPASTT01INM661N | B10: 1 | C10: =SUM(Returns!I2:I222)/221 -> 0.01197768768 | E10: 59.0383491 | F10: 3.965167459 | H10: =(1/'1D Vectors'!$B$16)*('1D Vectors'!$B$11*E10-'1D Vectors'!$B$8*F10) -> -0.02382322225 | I10: =(1/'1D Vectors'!$B$16)*('1D Vectors'!$B$14*F10-'1D Vectors'!$B$8*E10) -> 17.57141555
A11: SPASTT01NOM661N | B11: 1 | C11: =SUM(Returns!J2:J222)/221 -> 0.009471382424 | E11: -84.35556798 | F11: 6.932195815 | H11: =(1/'1D Vectors'!$B$16)*('1D Vectors'!$B$11*E11-'1D Vectors'!$B$8*F11) -> -0.2374779424 | I11: =(1/'1D Vectors'!$B$16)*('1D Vectors'!$B$14*F11-'1D Vectors'!$B$8*E11) -> 34.76232011
A12: SPASTT01DKM661N | B12: 1 | C12: =SUM(Returns!K2:K222)/221 -> 0.008068135832 | E12: 327.6969632 | F12: 9.695071343 | H12: =(1/'1D Vectors'!$B$16)*('1D Vectors'!$B$11*E12-'1D Vectors'!$B$8*F12) -> 0.1331671341 | I12: =(1/'1D Vectors'!$B$16)*('1D Vectors'!$B$14*F12-'1D Vectors'!$B$8*E12) -> 39.01155845
A13: SPASTT01NLM661N | B13: 1 | C13: =SUM(Returns!L2:L222)/221 -> 0.001548782205 | E13: -628.2135583 | F13: -18.75626124 | H13: =(1/'1D Vectors'!$B$16)*('1D Vectors'!$B$11*E13-'1D Vectors'!$B$8*F13) -> -0.2516192567 | I13: =(1/'1D Vectors'!$B$16)*('1D Vectors'!$B$14*F13-'1D Vectors'!$B$8*E13) -> -75.59650552

Sheet Var-Covar matrix
B1: SPASTT01USM661N | C1: SPASTT01KRM661N | D1: SPASTT01GBM661N | E1: SPASTT01ITM661N | F1: SPASTT01GRM661N | G1: SPASTT01DEM661N | H1: SPASTT01CNM661N | I1: SPASTT01RUM661N | J1: SPASTT01INM661N | K1: SPASTT01NOM661N | L1: SPASTT01DKM661N | M1: SPASTT01NLM661N
A2: SPASTT01USM661N | B2: =_xlfn.COVARIANCE.P(Returns!A2:A222,Returns!A2:A222) -> 0.001410595049 | C2: =_xlfn.COVARIANCE.P(Returns!A2:A222,Returns!B2:B222) -> 0.001387857922 | D2: =_xlfn.COVARIANCE.P(Returns!A2:A222,Returns!C2:C222) -> 0.001167797242 | E2: =_xlfn.COVARIANCE.P(Returns!A2:A222,Returns!D2:D222) -> 0.00145203268 | F2: =_xlfn.COVARIANCE.P(Returns!A2:A222,Returns!E2:E222) -> 0.001653540138 | G2: =_xlfn.COVARIANCE.P(Returns!A2:A222,Returns!F2:F222) -> 0.001511325401 | H2: =_xlfn.COVARIANCE.P(Returns!A2:A222,Returns!G2:G222) -> 0.0006637207473 | I2: =_xlfn.COVARIANCE.P(Returns!A2:A222,Returns!H2:H222) -> 0.001638633765 | J2: =_xlfn.COVARIANCE.P(Returns!A2:A222,Returns!I2:I222) -> 0.001356926002 | K2: =_xlfn.COVARIANCE.P(Returns!A2:A222,Returns!J2:J222) -> 0.001518803383 | L2: =_xlfn.COVARIANCE.P(Returns!A2:A222,Returns!K2:K222) -> 0.001304285207 | M2: =_xlfn.COVARIANCE.P(Returns!A2:A222,Returns!L2:L222) -> 0.001508645561
A3: SPASTT01KRM661N | B3: =_xlfn.COVARIANCE.P(Returns!B2:B222,Returns!A2:A222) -> 0.001387857922 | C3: =_xlfn.COVARIANCE.P(Returns!B2:B222,Returns!B2:B222) -> 0.003268972966 | D3: =_xlfn.COVARIANCE.P(Returns!B2:B222,Returns!C2:C222) -> 0.001267114523 | E3: =_xlfn.COVARIANCE.P(Returns!B2:B222,Returns!D2:D222) -> 0.001556740036 | F3: =_xlfn.COVARIANCE.P(Returns!B2:B222,Returns!E2:E222) -> 0.001751405257 | G3: =_xlfn.COVARIANCE.P(Returns!B2:B222,Returns!F2:F222) -> 0.001835154304 | H3: =_xlfn.COVARIANCE.P(Returns!B2:B222,Returns!G2:G222) -> 0.0008817068612 | I3: =_xlfn.COVARIANCE.P(Returns!B2:B222,Returns!H2:H222) -> 0.002438742477 | J3: =_xlfn.COVARIANCE.P(Returns!B2:B222,Returns!I2:I222) -> 0.00196301663 | K3: =_xlfn.COVARIANCE.P(Returns!B2:B222,Returns!J2:J222) -> 0.001767973673 | L3: =_xlfn.COVARIANCE.P(Returns!B2:B222,Returns!K2:K222) -> 0.001427273842 | M3: =_xlfn.COVARIANCE.P(Returns!B2:B222,Returns!L2:L222) -> 0.001746422402
A4: SPASTT01GBM661N | B4: =_xlfn.COVARIANCE.P(Returns!C2:C222,Returns!A2:A222) -> 0.001167797242 | C4: =_xlfn.COVARIANCE.P(Returns!C2:C222,Returns!B2:B222) -> 0.001267114523 | D4: =_xlfn.COVARIANCE.P(Returns!C2:C222,Returns!C2:C222) -> 0.001260823021 | E4: =_xlfn.COVARIANCE.P(Returns!C2:C222,Returns!D2:D222) -> 0.001376493513 | F4: =_xlfn.COVARIANCE.P(Returns!C2:C222,Returns!E2:E222) -> 0.001375161406 | G4: =_xlfn.COVARIANCE.P(Returns!C2:C222,Returns!F2:F222) -> 0.001414258851 | H4: =_xlfn.COVARIANCE.P(Returns!C2:C222,Returns!G2:G222) -> 0.0004673504339 | I4: =_xlfn.COVARIANCE.P(Returns!C2:C222,Returns!H2:H222) -> 0.001416063599 | J4: =_xlfn.COVARIANCE.P(Returns!C2:C222,Returns!I2:I222) -> 0.001115967562 | K4: =_xlfn.COVARIANCE.P(Returns!C2:C222,Returns!J2:J222) -> 0.001375139372 | L4: =_xlfn.COVARIANCE.P(Returns!C2:C222,Returns!K2:K222) -> 0.001173361225 | M4: =_xlfn.COVARIANCE.P(Returns!C2:C222,Returns!L2:L222) -> 0.001451810499
A5: SPASTT01ITM661N | B5: =_xlfn.COVARIANCE.P(Returns!D2:D222,Returns!A2:A222) -> 0.00145203268 | C5: =_xlfn.COVARIANCE.P(Returns!D2:D222,Returns!B2:B222) -> 0.001556740036 | D5: =_xlfn.COVARIANCE.P(Returns!D2:D222,Returns!C2:C222) -> 0.001376493513 | E5: =_xlfn.COVARIANCE.P(Returns!D2:D222,Returns!D2:D222) -> 0.002613759405 | F5: =_xlfn.COVARIANCE.P(Returns!D2:D222,Returns!E2:E222) -> 0.002410762945 | G5: =_xlfn.COVARIANCE.P(Returns!D2:D222,Returns!F2:F222) -> 0.002185137851 | H5: =_xlfn.COVARIANCE.P(Returns!D2:D222,Returns!G2:G222) -> 0.0008121603223 | I5: =_xlfn.COVARIANCE.P(Returns!D2:D222,Returns!H2:H222) -> 0.001881598889 | J5: =_xlfn.COVARIANCE.P(Returns!D2:D222,Returns!I2:I222) -> 0.001647707747 | K5: =_xlfn.COVARIANCE.P(Returns!D2:D222,Returns!J2:J222) -> 0.001885875061 | L5: =_xlfn.COVARIANCE.P(Returns!D2:D222,Returns!K2:K222) -> 0.001757556911 | M5: =_xlfn.COVARIANCE.P(Returns!D2:D222,Returns!L2:L222) -> 0.002025948826
A6: SPASTT01GRM661N | B6: =_xlfn.COVARIANCE.P(Returns!E2:E222,Returns!A2:A222) -> 0.001653540138 | C6: =_xlfn.COVARIANCE.P(Returns!E2:E222,Returns!B2:B222) -> 0.001751405257 | D6: =_xlfn.COVARIANCE.P(Returns!E2:E222,Returns!C2:C222) -> 0.001375161406 | E6: =_xlfn.COVARIANCE.P(Returns!E2:E222,Returns!D2:D222) -> 0.002410762945 | F6: =_xlfn.COVARIANCE.P(Returns!E2:E222,Returns!E2:E222) -> 0.005752925758 | G6: =_xlfn.COVARIANCE.P(Returns!E2:E222,Returns!F2:F222) -> 0.002105761359 | H6: =_xlfn.COVARIANCE.P(Returns!E2:E222,Returns!G2:G222) -> 0.0008691116598 | I6: =_xlfn.COVARIANCE.P(Returns!E2:E222,Returns!H2:H222) -> 0.0022415303 | J6: =_xlfn.COVARIANCE.P(Returns!E2:E222,Returns!I2:I222) -> 0.002463273503 | K6: =_xlfn.COVARIANCE.P(Returns!E2:E222,Returns!J2:J222) -> 0.002231217088 | L6: =_xlfn.COVARIANCE.P(Returns!E2:E222,Returns!K2:K222) -> 0.001767017879 | M6: =_xlfn.COVARIANCE.P(Returns!E2:E222,Returns!L2:L222) -> 0.001961161162
A7: SPASTT01DEM661N | B7: =_xlfn.COVARIANCE.P(Returns!F2:F222,Returns!A2:A222) -> 0.001511325401 | C7: =_xlfn.COVARIANCE.P(Returns!F2:F222,Returns!B2:B222) -> 0.001835154304 | D7: =_xlfn.COVARIANCE.P(Returns!F2:F222,Returns!C2:C222) -> 0.001414258851 | E7: =_xlfn.COVARIANCE.P(Returns!F2:F222,Returns!D2:D222) -> 0.002185137851 | F7: =_xlfn.COVARIANCE.P(Returns!F2:F222,Returns!E2:E222) -> 0.002105761359 | G7: =_xlfn.COVARIANCE.P(Returns!F2:F222,Returns!F2:F222) -> 0.002456349704 | H7: =_xlfn.COVARIANCE.P(Returns!F2:F222,Returns!G2:G222) -> 0.0008734141035 | I7: =_xlfn.COVARIANCE.P(Returns!F2:F222,Returns!H2:H222) -> 0.002066930128 | J7: =_xlfn.COVARIANCE.P(Returns!F2:F222,Returns!I2:I222) -> 0.001711949154 | K7: =_xlfn.COVARIANCE.P(Returns!F2:F222,Returns!J2:J222) -> 0.001945041306 | L7: =_xlfn.COVARIANCE.P(Returns!F2:F222,Returns!K2:K222) -> 0.001805809667 | M7: =_xlfn.COVARIANCE.P(Returns!F2:F222,Returns!L2:L222) -> 0.002097852561
A8: SPASTT01CNM661N | B8: =_xlfn.COVARIANCE.P(Returns!G2:G222,Returns!A2:A222) -> 0.0006637207473 | C8: =_xlfn.COVARIANCE.P(Returns!G2:G222,Returns!B2:B222) -> 0.0008817068612 | D8: =_xlfn.COVARIANCE.P(Returns!G2:G222,Returns!C2:C222) -> 0.0004673504339 | E8: =_xlfn.COVARIANCE.P(Returns!G2:G222,Returns!D2:D222) -> 0.0008121603223 | F8: =_xlfn.COVARIANCE.P(Returns!G2:G222,Returns!E2:E222) -> 0.0008691116598 | G8: =_xlfn.COVARIANCE.P(Returns!G2:G222,Returns!F2:F222) -> 0.0008734141035 | H8: =_xlfn.COVARIANCE.P(Returns!G2:G222,Returns!G2:G222) -> 0.004619337276 | I8: =_xlfn.COVARIANCE.P(Returns!G2:G222,Returns!H2:H222) -> 0.001372416467 | J8: =_xlfn.COVARIANCE.P(Returns!G2:G222,Returns!I2:I222) -> 0.001020747157 | K8: =_xlfn.COVARIANCE.P(Returns!G2:G222,Returns!J2:J222) -> 0.0008330564656 | L8: =_xlfn.COVARIANCE.P(Returns!G2:G222,Returns!K2:K222) -> 0.000650108439 | M8: =_xlfn.COVARIANCE.P(Returns!G2:G222,Returns!L2:L222) -> 0.0007179473465
A9: SPASTT01RUM661N | B9: =_xlfn.COVARIANCE.P(Returns!H2:H222,Returns!A2:A222) -> 0.001638633765 | C9: =_xlfn.COVARIANCE.P(Returns!H2:H222,Returns!B2:B222) -> 0.002438742477 | D9: =_xlfn.COVARIANCE.P(Returns!H2:H222,Returns!C2:C222) -> 0.001416063599 | E9: =_xlfn.COVARIANCE.P(Returns!H2:H222,Returns!D2:D222) -> 0.001881598889 | F9: =_xlfn.COVARIANCE.P(Returns!H2:H222,Returns!E2:E222) -> 0.0022415303 | G9: =_xlfn.COVARIANCE.P(Returns!H2:H222,Returns!F2:F222) -> 0.002066930128 | H9: =_xlfn.COVARIANCE.P(Returns!H2:H222,Returns!G2:G222) -> 0.001372416467 | I9: =_xlfn.COVARIANCE.P(Returns!H2:H222,Returns!H2:H222) -> 0.007887712083 | J9: =_xlfn.COVARIANCE.P(Returns!H2:H222,Returns!I2:I222) -> 0.00237859514 | K9: =_xlfn.COVARIANCE.P(Returns!H2:H222,Returns!J2:J222) -> 0.002627328811 | L9: =_xlfn.COVARIANCE.P(Returns!H2:H222,Returns!K2:K222) -> 0.00168129684 | M9: =_xlfn.COVARIANCE.P(Returns!H2:H222,Returns!L2:L222) -> 0.002014874359
A10: SPASTT01INM661N | B10: =_xlfn.COVARIANCE.P(Returns!I2:I222,Returns!A2:A222) -> 0.001356926002 | C10: =_xlfn.COVARIANCE.P(Returns!I2:I222,Returns!B2:B222) -> 0.00196301663 | D10: =_xlfn.COVARIANCE.P(Returns!I2:I222,Returns!C2:C222) -> 0.001115967562 | E10: =_xlfn.COVARIANCE.P(Returns!I2:I222,Returns!D2:D222) -> 0.001647707747 | F10: =_xlfn.COVARIANCE.P(Returns!I2:I222,Returns!E2:E222) -> 0.002463273503 | G10: =_xlfn.COVARIANCE.P(Returns!I2:I222,Returns!F2:F222) -> 0.001711949154 | H10: =_xlfn.COVARIANCE.P(Returns!I2:I222,Returns!G2:G222) -> 0.001020747157 | I10: =_xlfn.COVARIANCE.P(Returns!I2:I222,Returns!H2:H222) -> 0.00237859514 | J10: =_xlfn.COVARIANCE.P(Returns!I2:I222,Returns!I2:I222) -> 0.003479654075 | K10: =_xlfn.COVARIANCE.P(Returns!I2:I222,Returns!J2:J222) -> 0.001759814144 | L10: =_xlfn.COVARIANCE.P(Returns!I2:I222,Returns!K2:K222) -> 0.001362179354 | M10: =_xlfn.COVARIANCE.P(Returns!I2:I222,Returns!L2:L222) -> 0.001585197466
A11: SPASTT01NOM661N | B11: =_xlfn.COVARIANCE.P(Returns!J2:J222,Returns!A2:A222) -> 0.001518803383 | C11: =_xlfn.COVARIANCE.P(Returns!J2:J222,Returns!B2:B222) -> 0.001767973673 | D11: =_xlfn.COVARIANCE.P(Returns!J2:J222,Returns!C2:C222) -> 0.001375139372 | E11: =_xlfn.COVARIANCE.P(Returns!J2:J222,Returns!D2:D222) -> 0.001885875061 | F11: =_xlfn.COVARIANCE.P(Returns!J2:J222,Returns!E2:E222) -> 0.002231217088 | G11: =_xlfn.COVARIANCE.P(Returns!J2:J222,Returns!F2:F222) -> 0.001945041306 | H11: =_xlfn.COVARIANCE.P(Returns!J2:J222,Returns!G2:G222) -> 0.0008330564656 | I11: =_xlfn.COVARIANCE.P(Returns!J2:J222,Returns!H2:H222) -> 0.002627328811 | J11: =_xlfn.COVARIANCE.P(Returns!J2:J222,Returns!I2:I222) -> 0.001759814144 | K11: =_xlfn.COVARIANCE.P(Returns!J2:J222,Returns!J2:J222) -> 0.002580035052 | L11: =_xlfn.COVARIANCE.P(Returns!J2:J222,Returns!K2:K222) -> 0.001818050422 | M11: =_xlfn.COVARIANCE.P(Returns!J2:J222,Returns!L2:L222) -> 0.001993001165
A12: SPASTT01DKM661N | B12: =_xlfn.COVARIANCE.P(Returns!K2:K222,Returns!A2:A222) -> 0.001304285207 | C12: =_xlfn.COVARIANCE.P(Returns!K2:K222,Returns!B2:B222) -> 0.001427273842 | D12: =_xlfn.COVARIANCE.P(Returns!K2:K222,Returns!C2:C222) -> 0.001173361225 | E12: =_xlfn.COVARIANCE.P(Returns!K2:K222,Returns!D2:D222) -> 0.001757556911 | F12: =_xlfn.COVARIANCE.P(Returns!K2:K222,Returns!E2:E222) -> 0.001767017879 | G12: =_xlfn.COVARIANCE.P(Returns!K2:K222,Returns!F2:F222) -> 0.001805809667 | H12: =_xlfn.COVARIANCE.P(Returns!K2:K222,Returns!G2:G222) -> 0.000650108439 | I12: =_xlfn.COVARIANCE.P(Returns!K2:K222,Returns!H2:H222) -> 0.00168129684 | J12: =_xlfn.COVARIANCE.P(Returns!K2:K222,Returns!I2:I222) -> 0.001362179354 | K12: =_xlfn.COVARIANCE.P(Returns!K2:K222,Returns!J2:J222) -> 0.001818050422 | L12: =_xlfn.COVARIANCE.P(Returns!K2:K222,Returns!K2:K222) -> 0.00208072538 | M12: =_xlfn.COVARIANCE.P(Returns!K2:K222,Returns!L2:L222) -> 0.00178478749
A13: SPASTT01NLM661N | B13: =_xlfn.COVARIANCE.P(Returns!L2:L222,Returns!A2:A222) -> 0.001508645561 | C13: =_xlfn.COVARIANCE.P(Returns!L2:L222,Returns!B2:B222) -> 0.001746422402 | D13: =_xlfn.COVARIANCE.P(Returns!L2:L222,Returns!C2:C222) -> 0.001451810499 | E13: =_xlfn.COVARIANCE.P(Returns!L2:L222,Returns!D2:D222) -> 0.002025948826 | F13: =_xlfn.COVARIANCE.P(Returns!L2:L222,Returns!E2:E222) -> 0.001961161162 | G13: =_xlfn.COVARIANCE.P(Returns!L2:L222,Returns!F2:F222) -> 0.002097852561 | H13: =_xlfn.COVARIANCE.P(Returns!L2:L222,Returns!G2:G222) -> 0.0007179473465 | I13: =_xlfn.COVARIANCE.P(Returns!L2:L222,Returns!H2:H222) -> 0.002014874359 | J13: =_xlfn.COVARIANCE.P(Returns!L2:L222,Returns!I2:I222) -> 0.001585197466 | K13: =_xlfn.COVARIANCE.P(Returns!L2:L222,Returns!J2:J222) -> 0.001993001165 | L13: =_xlfn.COVARIANCE.P(Returns!L2:L222,Returns!K2:K222) -> 0.00178478749 | M13: =_xlfn.COVARIANCE.P(Returns!L2:L222,Returns!L2:L222) -> 0.002154160397

Sheet Var-Covar inverse
B1: SPASTT01USM661N | C1: SPASTT01KRM661N | D1: SPASTT01GBM661N | E1: SPASTT01ITM661N | F1: SPASTT01GRM661N | G1: SPASTT01DEM661N | H1: SPASTT01CNM661N | I1: SPASTT01RUM661N | J1: SPASTT01INM661N | K1: SPASTT01NOM661N | L1: SPASTT01DKM661N | M1: SPASTT01NLM661N
A2: SPASTT01USM661N | B2: =MINVERSE('Var-Covar matrix'!B2:M13) -> 4352.410559 | C2: -111.8626379 | D2: -2230.530445 | E2: 122.864265 | F2: -171.2354586 | G2: -182.4100958 | H2: -102.8889852 | I2: -30.26609082 | J2: -227.8571441 | K2: -285.6229408 | L2: -353.3217337 | M2: -448.9470486
A3: SPASTT01KRM661N | B3: -111.8626379 | C3: 662.979366 | D3: -118.3602211 | E3: 174.1445724 | F3: 15.23140771 | G3: -224.2483131 | H3: -12.68496632 | I3: -53.85041401 | J3: -158.045024 | K3: -11.36974582 | L3: 42.93153025 | M3: -192.7924619
A4: SPASTT01GBM661N | B4: -2230.530445 | C4: -118.3602211 | D4: 4793.646705 | E4: -173.6959287 | F4: 66.68165729 | G4: 165.0174784 | H4: 83.31788099 | I4: 22.28630782 | J4: 112.703441 | K4: -26.99777632 | L4: 411.1574453 | M4: -2077.903677
A5: SPASTT01ITM661N | B5: 122.864265 | C5: 174.1445724 | D5: -173.6959287 | E5: 1915.097705 | F5: -241.3614244 | G5: -895.4051531 | H5: -29.7169833 | I5: 3.946135872 | J5: -24.6409052 | K5: 105.241954 | L5: -132.0823224 | M5: -783.1319533
A6: SPASTT01GRM661N | B6: -171.2354586 | C6: 15.23140771 | D6: 66.68165729 | E6: -241.3614244 | F6: 337.1724333 | G6: 12.14711531 | H6: 11.53489219 | I6: 13.22105157 | J6: -110.8885455 | K6: -140.5502676 | L6: 16.52628448 | M6: 152.5692094
A7: SPASTT01DEM661N | B7: -182.4100958 | C7: -224.2483131 | D7: 165.0174784 | E7: -895.4051531 | F7: 12.14711531 | G7: 3070.179051 | H7: -62.99436664 | I7: -25.06342214 | J7: -81.70137512 | K7: 189.8428736 | L7: -253.0008763 | M7: -1821.997675
A8: SPASTT01CNM661N | B8: -102.8889852 | C8: -12.68496632 | D8: 83.31788099 | E8: -29.7169833 | F8: 11.53489219 | G8: -62.99436664 | H8: 242.6352716 | I8: -16.76261497 | J8: -28.54457797 | K8: -17.88798866 | L8: 6.538086562 | M8: 71.93356525
A9: SPASTT01RUM661N | B9: -30.26609082 | C9: -53.85041401 | D9: 22.28630782 | E9: 3.946135872 | F9: 13.22105157 | G9: -25.06342214 | H9: -16.76261497 | I9: 207.4042428 | J9: -38.19759048 | K9: -201.1802542 | L9: 57.51231174 | M9: 36.6751212
A10: SPASTT01INM661N | B10: -227.8571441 | C10: -158.045024 | D10: 112.703441 | E10: -24.6409052 | F10: -110.8885455 | G10: -81.70137512 | H10: -28.54457797 | I10: -38.19759048 | J10: 585.5529678 | K10: -65.17931566 | L10: 33.49145205 | M10: 62.34496631
A11: SPASTT01NOM661N | B11: -285.6229408 | C11: -11.36974582 | D11: -26.99777632 | E11: 105.241954 | F11: -140.5502676 | G11: 189.8428736 | H11: -17.88798866 | I11: -201.1802542 | J11: -65.17931566 | K11: 1832.777021 | L11: -474.7840326 | M11: -988.6450949
A12: SPASTT01DKM661N | B12: -353.3217337 | C12: 42.93153025 | D12: 411.1574453 | E12: -132.0823224 | F12: 16.52628448 | G12: -253.0008763 | H12: 6.538086562 | I12: 57.51231174 | J12: 33.49145205 | K12: -474.7840326 | L12: 1883.612914 | M12: -910.8840962
A13: SPASTT01NLM661N | B13: -448.9470486 | C13: -192.7924619 | D13: -2077.903677 | E13: -783.1319533 | F13: 152.5692094 | G13: -1821.997675 | H13: 71.93356525 | I13: 36.6751212 | J13: 62.34496631 | K13: -988.6450949 | L13: -910.8840962 | M13: 6272.565587

Sheet Risk-return
A3: Ep | B3: 9.999999747e-05 | C3: 0.0001999999949 | D3: 0.0002999999851 | E3: 0.0003999999899 | F3: 0.0004999999655 | G3: 0.0005999999703 | H3: 0.000699999975 | I3: 0.0007999999798 | J3: 0.0008999999845 | K3: 0.0009999999311 | L3: 0.001099999878 | M3: 0.001199999824 | N3: 0.001299999771 | O3: 0.001399999717 | P3: 0.001499999664 | Q3: 0.00159999961 | R3: 0.001699999557 | S3: 0.001799999503 | T3: 0.00189999945 | U3: 0.001999999397 | V3: 0.002099999459 | W3: 0.002199999522 | X3: 0.002299999585 | Y3: 0.002399999648 | Z3: 0.002499999711 | AA3: 0.002599999774 | AB3: 0.002699999837 | AC3: 0.0027999999 | AD3: 0.002899999963 | AE3: 0.003000000026 | AF3: 0.003100000089 | AG3: 0.003200000152 | AH3: 0.003300000215 | AI3: 0.003400000278 | AJ3: 0.003500000341 | AK3: 0.003600000404 | AL3: 0.003700000467 | AM3: 0.00380000053 | AN3: 0.003900000593 | AO3: 0.004000000656 | AP3: 0.004100000486 | AQ3: 0.004200000316 | AR3: 0.004300000146 | AS3: 0.004399999976 | AT3: 0.004499999806 | AU3: 0.004599999636 | AV3: 0.004699999467 | AW3: 0.004799999297 | AX3: 0.004899999127 | AY3: 0.004999998957 | AZ3: 0.005099998787 | BA3: 0.005199998617 | BB3: 0.005299998447 | BC3: 0.005399998277 | BD3: 0.005499998108 | BE3: 0.005599997938 | BF3: 0.005699997768 | BG3: 0.005799997598 | BH3: 0.005899997428 | BI3: 0.005999997258 | BJ3: 0.006099997088 | BK3: 0.006199996918 | BL3: 0.006299996749 | BM3: 0.006399996579 | BN3: 0.006499996409 | BO3: 0.006599996239 | BP3: 0.006699996069 | BQ3: 0.006799995899 | BR3: 0.006899995729 | BS3: 0.006999995559 | BT3: 0.00709999539 | BU3: 0.00719999522 | BV3: 0.00729999505 | BW3: 0.00739999488 | BX3: 0.00749999471 | BY3: 0.00759999454 | BZ3: 0.00769999437 | CA3: 0.0077999942 | CB3: 0.007899994031 | CC3: 0.007999993861 | CD3: 0.008099993691 | CE3: 0.008199993521 | CF3: 0.008299993351 | CG3: 0.008399993181 | CH3: 0.008499993011 | CI3: 0.008599992841 | CJ3: 0.008699992672 | CK3: 0.008799992502 | CL3: 0.008899992332 | CM3: 0.008999992162 | CN3: 0.009099991992 | CO3: 0.009199991822 | CP3: 0.009299991652 | CQ3: 0.009399991482 | CR3: 0.009499991313 | CS3: 0.009599991143 | CT3: 0.009699990973 | CU3: 0.009799990803 | CV3: 0.009899990633 | CW3: 0.009999990463 | CX3: 0.01009999029 | CY3: 0.01019999012 | CZ3: 0.01029998995 | DA3: 0.01039998978 | DB3: 0.01049998961 | DC3: 0.01059998944 | DD3: 0.01069998927 | DE3: 0.0107999891 | DF3: 0.01089998893 | DG3: 0.01099998876 | DH3: 0.01109998859 | DI3: 0.01119998842 | DJ3: 0.01129998825 | DK3: 0.01139998809 | DL3: 0.01149998792 | DM3: 0.01159998775 | DN3: 0.01169998758 | DO3: 0.01179998741 | DP3: 0.01189998724 | DQ3: 0.01199998707 | DR3: 0.0120999869 | DS3: 0.01219998673 | DT3: 0.01229998656 | DU3: 0.01239998639 | DV3: 0.01249998622 | DW3: 0.01259998605 | DX3: 0.01269998588 | DY3: 0.01279998571 | DZ3: 0.01289998554 | EA3: 0.01299998537 | EB3: 0.0130999852 | EC3: 0.01319998503 | ED3: 0.01329998486 | EE3: 0.01339998469 | EF3: 0.01349998452 | EG3: 0.01359998435 | EH3: 0.01369998418 | EI3: 0.01379998401 | EJ3: 0.01389998384 | EK3: 0.01399998367 | EL3: 0.0140999835 | EM3: 0.01419998333 | EN3: 0.01429998316 | EO3: 0.01439998299 | EP3: 0.01449998282 | EQ3: 0.01459998265 | ER3: 0.01469998248 | ES3: 0.01479998231 | ET3: 0.01489998214 | EU3: 0.01499998197 | EV3: 0.0150999818 | EW3: 0.01519998163 | EX3: 0.01529998146 | EY3: 0.01539998129 | EZ3: 0.01549998112 | FA3: 0.01559998095 | FB3: 0.01569998078 | FC3: 0.01579998061 | FD3: 0.01589998044 | FE3: 0.01599998027 | FF3: 0.0160999801 | FG3: 0.01619997993 | FH3: 0.01629997976 | FI3: 0.01639997959 | FJ3: 0.01649997942 | FK3: 0.01659997925 | FL3: 0.01669997908 | FM3: 0.01679997891 | FN3: 0.01689997874 | FO3: 0.01699997857 | FP3: 0.0170999784 | FQ3: 0.01719997823 | FR3: 0.01729997806 | FS3: 0.01739997789 | FT3: 0.01749997772 | FU3: 0.01759997755 | FV3: 0.01769997738 | FW3: 0.01779997721 | FX3: 0.01789997704 | FY3: 0.01799997687 | FZ3: 0.0180999767 | GA3: 0.01819997653 | GB3: 0.01829997636 | GC3: 0.01839997619 | GD3: 0.01849997602 | GE3: 0.01859997585 | GF3: 0.01869997568 | GG3: 0.01879997551 | GH3: 0.01889997534 | GI3: 0.01899997517 | GJ3: 0.019099975 | GK3: 0.01919997483 | GL3: 0.01929997467 | GM3: 0.0193999745 | GN3: 0.01949997433 | GO3: 0.01959997416 | GP3: 0.01969997399 | GQ3: 0.01979997382 | GR3: 0.01989997365 | GS3: 0.01999997348 | GT3: 0.02009997331 | GU3: 0.02019997314 | GV3: 0.02029997297 | GW3: 0.0203999728 | GX3: 0.02049997263 | GY3: 0.02059997246 | GZ3: 0.02069997229 | HA3: 0.02079997212 | HB3: 0.02089997195 | HC3: 0.02099997178 | HD3: 0.02109997161 | HE3: 0.02119997144 | HF3: 0.02129997127 | HG3: 0.0213999711 | HH3: 0.02149997093 | HI3: 0.02159997076 | HJ3: 0.02169997059 | HK3: 0.02179997042 | HL3: 0.02189997025 | HM3: 0.02199997008 | HN3: 0.02209996991 | HO3: 0.02219996974 | HP3: 0.02229996957 | HQ3: 0.0223999694 | HR3: 0.02249996923 | HS3: 0.02259996906 | HT3: 0.02269996889 | HU3: 0.02279996872 | HV3: 0.02289996855 | HW3: 0.02299996838 | HX3: 0.02309996821 | HY3: 0.02319996804 | HZ3: 0.02329996787 | IA3: 0.0233999677 | IB3: 0.02349996753 | IC3: 0.02359996736 | ID3: 0.02369996719 | IE3: 0.02379996702 | IF3: 0.02389996685 | IG3: 0.02399996668 | IH3: 0.02409996651 | II3: 0.02419996634 | IJ3: 0.02429996617 | IK3: 0.024399966 | IL3: 0.02449996583 | IM3: 0.02459996566 | IN3: 0.02469996549 | IO3: 0.02479996532 | IP3: 0.02489996515 | IQ3: 0.02499996498 | IR3: 0.02509996481 | IS3: 0.02519996464 | IT3: 0.02529996447 | IU3: 0.0253999643 | IV3: 0.02549996413 | IW3: 0.02559996396 | IX3: 0.02569996379 | IY3: 0.02579996362 | IZ3: 0.02589996345 | JA3: 0.02599996328 | JB3: 0.02609996311 | JC3: 0.02619996294 | JD3: 0.02629996277 | JE3: 0.0263999626 | JF3: 0.02649996243 | JG3: 0.02659996226 | JH3: 0.02669996209 | JI3: 0.02679996192 | JJ3: 0.02689996175 | JK3: 0.02699996158 | JL3: 0.02709996141 | JM3: 0.02719996125 | JN3: 0.02729996108 | JO3: 0.02739996091 | JP3: 0.02749996074 | JQ3: 0.02759996057 | JR3: 0.0276999604 | JS3: 0.02779996023 | JT3: 0.02789996006 | JU3: 0.02799995989 | JV3: 0.02809995972 | JW3: 0.02819995955 | JX3: 0.02829995938 | JY3: 0.02839995921 | JZ3: 0.02849995904 | KA3: 0.02859995887 | KB3: 0.0286999587 | KC3: 0.02879995853 | KD3: 0.02889995836 | KE3: 0.02899995819 | KF3: 0.02909995802 | KG3: 0.02919995785 | KH3: 0.02929995768 | KI3: 0.02939995751 | KJ3: 0.02949995734 | KK3: 0.02959995717 | KL3: 0.029699957 | KM3: 0.02979995683 | KN3: 0.02989995666 | KO3: 0.02999995649 | KP3: 0.03009995632 | KQ3: 0.03019995615 | KR3: 0.03029995598 | KS3: 0.03039995581 | KT3: 0.03049995564 | KU3: 0.03059995547 | KV3: 0.0306999553 | KW3: 0.03079995513 | KX3: 0.03089995496 | KY3: 0.03099995479 | KZ3: 0.03109995462 | LA3: 0.03119995445 | LB3: 0.03129995614 | LC3: 0.03139995784 | LD3: 0.03149995953 | LE3: 0.03159996122 | LF3: 0.03169996291 | LG3: 0.03179996461 | LH3: 0.0318999663 | LI3: 0.03199996799 | LJ3: 0.03209996969 | LK3: 0.03219997138 | LL3: 0.03229997307 | LM3: 0.03239997476 | LN3: 0.03249997646 | LO3: 0.03259997815 | LP3: 0.03269997984 | LQ3: 0.03279998153 | LR3: 0.03289998323 | LS3: 0.03299998492 | LT3: 0.03309998661 | LU3: 0.03319998831 | LV3: 0.03329999 | LW3: 0.03339999169 | LX3: 0.03349999338 | LY3: 0.03359999508 | LZ3: 0.03369999677 | MA3: 0.03379999846 | MB3: 0.03390000015 | MC3: 0.03400000185 | MD3: 0.03410000354 | ME3: 0.03420000523 | MF3: 0.03430000693 | MG3: 0.03440000862 | MH3: 0.03450001031 | MI3: 0.034600012 | MJ3: 0.0347000137 | MK3: 0.03480001539 | ML3: 0.03490001708 | MM3: 0.03500001878 | MN3: 0.03510002047 | MO3: 0.03520002216 | MP3: 0.03530002385 | MQ3: 0.03540002555 | MR3: 0.03550002724 | MS3: 0.03560002893 | MT3: 0.03570003062 | MU3: 0.03580003232 | MV3: 0.03590003401 | MW3: 0.0360000357 | MX3: 0.0361000374 | MY3: 0.03620003909 | MZ3: 0.03630004078 | NA3: 0.03640004247 | NB3: 0.03650004417 | NC3: 0.03660004586 | ND3: 0.03670004755 | NE3: 0.03680004925 | NF3: 0.03690005094 | NG3: 0.03700005263 | NH3: 0.03710005432 | NI3: 0.03720005602 | NJ3: 0.03730005771 | NK3: 0.0374000594 | NL3: 0.03750006109 | NM3: 0.03760006279 | NN3: 0.03770006448 | NO3: 0.03780006617 | NP3: 0.03790006787 | NQ3: 0.03800006956 | NR3: 0.03810007125 | NS3: 0.03820007294 | NT3: 0.03830007464 | NU3: 0.03840007633 | NV3: 0.03850007802 | NW3: 0.03860007972 | NX3: 0.03870008141 | NY3: 0.0388000831 | NZ3: 0.03890008479 | OA3: 0.03900008649 | OB3: 0.03910008818 | OC3: 0.03920008987 | OD3: 0.03930009156 | OE3: 0.03940009326 | OF3: 0.03950009495 | OG3: 0.03960009664 | OH3: 0.03970009834 | OI3: 0.03980010003 | OJ3: 0.03990010172 | OK3: 0.04000010341 | OL3: 0.04010010511 | OM3: 0.0402001068 | ON3: 0.04030010849 | OO3: 0.04040011019 | OP3: 0.04050011188 | OQ3: 0.04060011357 | OR3: 0.04070011526 | OS3: 0.04080011696 | OT3: 0.04090011865 | OU3: 0.04100012034 | OV3: 0.04110012203 | OW3: 0.04120012373 | OX3: 0.04130012542 | OY3: 0.04140012711 | OZ3: 0.04150012881 | PA3: 0.0416001305 | PB3: 0.04170013219 | PC3: 0.04180013388 | PD3: 0.04190013558 | PE3: 0.04200013727 | PF3: 0.04210013896 | PG3: 0.04220014066 | PH3: 0.04230014235 | PI3: 0.04240014404 | PJ3: 0.04250014573 | PK3: 0.04260014743 | PL3: 0.04270014912 | PM3: 0.04280015081 | PN3: 0.0429001525 | PO3: 0.0430001542 | PP3: 0.04310015589 | PQ3: 0.04320015758 | PR3: 0.04330015928 | PS3: 0.04340016097 | PT3: 0.04350016266 | PU3: 0.04360016435 | PV3: 0.04370016605 | PW3: 0.04380016774 | PX3: 0.04390016943 | PY3: 0.04400017112 | PZ3: 0.04410017282 | QA3: 0.04420017451 | QB3: 0.0443001762 | QC3: 0.0444001779 | QD3: 0.04450017959 | QE3: 0.04460018128 | QF3: 0.04470018297 | QG3: 0.04480018467 | QH3: 0.04490018636 | QI3: 0.04500018805 | QJ3: 0.04510018975 | QK3: 0.04520019144 | QL3: 0.04530019313 | QM3: 0.04540019482 | QN3: 0.04550019652 | QO3: 0.04560019821 | QP3: 0.0457001999 | QQ3: 0.04580020159 | QR3: 0.04590020329 | QS3: 0.04600020498 | QT3: 0.04610020667 | QU3: 0.04620020837 | QV3: 0.04630021006 | QW3: 0.04640021175 | QX3: 0.04650021344 | QY3: 0.04660021514 | QZ3: 0.04670021683 | RA3: 0.04680021852 | RB3: 0.04690022022 | RC3: 0.04700022191 | RD3: 0.0471002236 | RE3: 0.04720022529 | RF3: 0.04730022699 | RG3: 0.04740022868 | RH3: 0.04750023037 | RI3: 0.04760023206 | RJ3: 0.04770023376 | RK3: 0.04780023545 | RL3: 0.04790023714 | RM3: 0.04800023884 | RN3: 0.04810024053 | RO3: 0.04820024222 | RP3: 0.04830024391 | RQ3: 0.04840024561 | RR3: 0.0485002473 | RS3: 0.04860024899 | RT3: 0.04870025069 | RU3: 0.04880025238 | RV3: 0.04890025407 | RW3: 0.04900025576 | RX3: 0.04910025746 | RY3: 0.04920025915 | RZ3: 0.04930026084 | SA3: 0.04940026253 | SB3: 0.04950026423 | SC3: 0.04960026592 | SD3: 0.04970026761 | SE3: 0.04980026931 | SF3: 0.049900271
A4: Variance | B4: =((1/'1D Vectors'!B16))*(('1D Vectors'!B14*'Risk-return'!B3^2-2*'1D Vectors'!B8*'Risk-return'!B3+'1D Vectors'!B11)) -> 0.001039761485 | C4: =((1/'1D Vectors'!B16))*(('1D Vectors'!B14*'Risk-return'!C3^2-2*'1D Vectors'!B8*'Risk-return'!C3+'1D Vectors'!B11)) -> 0.001035593483 | D4: =((1/'1D Vectors'!B16))*(('1D Vectors'!B14*'Risk-return'!D3^2-2*'1D Vectors'!B8*'Risk-return'!D3+'1D Vectors'!B11)) -> 0.001031520528 | E4: =((1/'1D Vectors'!B16))*(('1D Vectors'!B14*'Risk-return'!E3^2-2*'1D Vectors'!B8*'Risk-return'!E3+'1D Vectors'!B11)) -> 0.00102754262 | F4: =((1/'1D Vectors'!B16))*(('1D Vectors'!B14*'Risk-return'!F3^2-2*'1D Vectors'!B8*'Risk-return'!F3+'1D Vectors'!B11)) -> 0.00102365976 | G4: =((1/'1D Vectors'!B16))*(('1D Vectors'!B14*'Risk-return'!G3^2-2*'1D Vectors'!B8*'Risk-return'!G3+'1D Vectors'!B11)) -> 0.001019871946 | H4: =((1/'1D Vectors'!B16))*(('1D Vectors'!B14*'Risk-return'!H3^2-2*'1D Vectors'!B8*'Risk-return'!H3+'1D Vectors'!B11)) -> 0.001016179179 | I4: =((1/'1D Vectors'!B16))*(('1D Vectors'!B14*'Risk-return'!I3^2-2*'1D Vectors'!B8*'Risk-return'!I3+'1D Vectors'!B11)) -> 0.001012581459 | J4: =((1/'1D Vectors'!B16))*(('1D Vectors'!B14*'Risk-return'!J3^2-2*'1D Vectors'!B8*'Risk-return'!J3+'1D Vectors'!B11)) -> 0.001009078785 | K4: =((1/'1D Vectors'!B16))*(('1D Vectors'!B14*'Risk-return'!K3^2-2*'1D Vectors'!B8*'Risk-return'!K3+'1D Vectors'!B11)) -> 0.001005671161 | L4: =((1/'1D Vectors'!B16))*(('1D Vectors'!B14*'Risk-return'!L3^2-2*'1D Vectors'!B8*'Risk-return'!L3+'1D Vectors'!B11)) -> 0.001002358584 | M4: =((1/'1D Vectors'!B16))*(('1D Vectors'!B14*'Risk-return'!M3^2-2*'1D Vectors'!B8*'Risk-return'!M3+'1D Vectors'!B11)) -> 0.0009991410532 | N4: =((1/'1D Vectors'!B16))*(('1D Vectors'!B14*'Risk-return'!N3^2-2*'1D Vectors'!B8*'Risk-return'!N3+'1D Vectors'!B11)) -> 0.0009960185697 | O4: =((1/'1D Vectors'!B16))*(('1D Vectors'!B14*'Risk-return'!O3^2-2*'1D Vectors'!B8*'Risk-return'!O3+'1D Vectors'!B11)) -> 0.0009929911329 | P4: =((1/'1D Vectors'!B16))*(('1D Vectors'!B14*'Risk-return'!P3^2-2*'1D Vectors'!B8*'Risk-return'!P3+'1D Vectors'!B11)) -> 0.0009900587431 | Q4: =((1/'1D Vectors'!B16))*(('1D Vectors'!B14*'Risk-return'!Q3^2-2*'1D Vectors'!B8*'Risk-return'!Q3+'1D Vectors'!B11)) -> 0.0009872214002 | R4: =((1/'1D Vectors'!B16))*(('1D Vectors'!B14*'Risk-return'!R3^2-2*'1D Vectors'!B8*'Risk-return'!R3+'1D Vectors'!B11)) -> 0.0009844791041 | S4: =((1/'1D Vectors'!B16))*(('1D Vectors'!B14*'Risk-return'!S3^2-2*'1D Vectors'!B8*'Risk-return'!S3+'1D Vectors'!B11)) -> 0.000981831855 | T4: =((1/'1D Vectors'!B16))*(('1D Vectors'!B14*'Risk-return'!T3^2-2*'1D Vectors'!B8*'Risk-return'!T3+'1D Vectors'!B11)) -> 0.0009792796527 | U4: =((1/'1D Vectors'!B16))*(('1D Vectors'!B14*'Risk-return'!U3^2-2*'1D Vectors'!B8*'Risk-return'!U3+'1D Vectors'!B11)) -> 0.0009768224973 | V4: =((1/'1D Vectors'!B16))*(('1D Vectors'!B14*'Risk-return'!V3^2-2*'1D Vectors'!B8*'Risk-return'!V3+'1D Vectors'!B11)) -> 0.0009744603861 | W4: =((1/'1D Vectors'!B16))*(('1D Vectors'!B14*'Risk-return'!W3^2-2*'1D Vectors'!B8*'Risk-return'!W3+'1D Vectors'!B11)) -> 0.000972193322 | X4: =((1/'1D Vectors'!B16))*(('1D Vectors'!B14*'Risk-return'!X3^2-2*'1D Vectors'!B8*'Risk-return'!X3+'1D Vectors'!B11)) -> 0.000970021305 | Y4: =((1/'1D Vectors'!B16))*(('1D Vectors'!B14*'Risk-return'!Y3^2-2*'1D Vectors'!B8*'Risk-return'!Y3+'1D Vectors'!B11)) -> 0.0009679443351 | Z4: =((1/'1D Vectors'!B16))*(('1D Vectors'!B14*'Risk-return'!Z3^2-2*'1D Vectors'!B8*'Risk-return'!Z3+'1D Vectors'!B11)) -> 0.0009659624123 | AA4: =((1/'1D Vectors'!B16))*(('1D Vectors'!B14*'Risk-return'!AA3^2-2*'1D Vectors'!B8*'Risk-return'!AA3+'1D Vectors'!B11)) -> 0.0009640755366 | AB4: =((1/'1D Vectors'!B16))*(('1D Vectors'!B14*'Risk-return'!AB3^2-2*'1D Vectors'!B8*'Risk-return'!AB3+'1D Vectors'!B11)) -> 0.0009622837081 | AC4: =((1/'1D Vectors'!B16))*(('1D Vectors'!B14*'Risk-return'!AC3^2-2*'1D Vectors'!B8*'Risk-return'!AC3+'1D Vectors'!B11)) -> 0.0009605869266 | AD4: =((1/'1D Vectors'!B16))*(('1D Vectors'!B14*'Risk-return'!AD3^2-2*'1D Vectors'!B8*'Risk-return'!AD3+'1D Vectors'!B11)) -> 0.0009589851923 | AE4: =((1/'1D Vectors'!B16))*(('1D Vectors'!B14*'Risk-return'!AE3^2-2*'1D Vectors'!B8*'Risk-return'!AE3+'1D Vectors'!B11)) -> 0.000957478505 | AF4: =((1/'1D Vectors'!B16))*(('1D Vectors'!B14*'Risk-return'!AF3^2-2*'1D Vectors'!B8*'Risk-return'!AF3+'1D Vectors'!B11)) -> 0.0009560668649 | AG4: =((1/'1D Vectors'!B16))*(('1D Vectors'!B14*'Risk-return'!AG3^2-2*'1D Vectors'!B8*'Risk-return'!AG3+'1D Vectors'!B11)) -> 0.0009547502718 | AH4: =((1/'1D Vectors'!B16))*(('1D Vectors'!B14*'Risk-return'!AH3^2-2*'1D Vectors'!B8*'Risk-return'!AH3+'1D Vectors'!B11)) -> 0.0009535287259 | AI4: =((1/'1D Vectors'!B16))*(('1D Vectors'!B14*'Risk-return'!AI3^2-2*'1D Vectors'!B8*'Risk-return'!AI3+'1D Vectors'!B11)) -> 0.0009524022271 | AJ4: =((1/'1D Vectors'!B16))*(('1D Vectors'!B14*'Risk-return'!AJ3^2-2*'1D Vectors'!B8*'Risk-return'!AJ3+'1D Vectors'!B11)) -> 0.0009513707754 | AK4: =((1/'1D Vectors'!B16))*(('1D Vectors'!B14*'Risk-return'!AK3^2-2*'1D Vectors'!B8*'Risk-return'!AK3+'1D Vectors'!B11)) -> 0.0009504343707 | AL4: =((1/'1D Vectors'!B16))*(('1D Vectors'!B14*'Risk-return'!AL3^2-2*'1D Vectors'!B8*'Risk-return'!AL3+'1D Vectors'!B11)) -> 0.0009495930132 | AM4: =((1/'1D Vectors'!B16))*(('1D Vectors'!B14*'Risk-return'!AM3^2-2*'1D Vectors'!B8*'Risk-return'!AM3+'1D Vectors'!B11)) -> 0.0009488467028 | AN4: =((1/'1D Vectors'!B16))*(('1D Vectors'!B14*'Risk-return'!AN3^2-2*'1D Vectors'!B8*'Risk-return'!AN3+'1D Vectors'!B11)) -> 0.0009481954396 | AO4: =((1/'1D Vectors'!B16))*(('1D Vectors'!B14*'Risk-return'!AO3^2-2*'1D Vectors'!B8*'Risk-return'!AO3+'1D Vectors'!B11)) -> 0.0009476392234 | AP4: =((1/'1D Vectors'!B16))*(('1D Vectors'!B14*'Risk-return'!AP3^2-2*'1D Vectors'!B8*'Risk-return'!AP3+'1D Vectors'!B11)) -> 0.0009471780553 | AQ4: =((1/'1D Vectors'!B16))*(('1D Vectors'!B14*'Risk-return'!AQ3^2-2*'1D Vectors'!B8*'Risk-return'!AQ3+'1D Vectors'!B11)) -> 0.0009468119338 | AR4: =((1/'1D Vectors'!B16))*(('1D Vectors'!B14*'Risk-return'!AR3^2-2*'1D Vectors'!B8*'Risk-return'!AR3+'1D Vectors'!B11)) -> 0.000946540859 | AS4: =((1/'1D Vectors'!B16))*(('1D Vectors'!B14*'Risk-return'!AS3^2-2*'1D Vectors'!B8*'Risk-return'!AS3+'1D Vectors'!B11)) -> 0.0009463648309 | AT4: =((1/'1D Vectors'!B16))*(('1D Vectors'!B14*'Risk-return'!AT3^2-2*'1D Vectors'!B8*'Risk-return'!AT3+'1D Vectors'!B11)) -> 0.0009462838494 | AU4: =((1/'1D Vectors'!B16))*(('1D Vectors'!B14*'Risk-return'!AU3^2-2*'1D Vectors'!B8*'Risk-return'!AU3+'1D Vectors'!B11)) -> 0.0009462979146 | AV4: =((1/'1D Vectors'!B16))*(('1D Vectors'!B14*'Risk-return'!AV3^2-2*'1D Vectors'!B8*'Risk-return'!AV3+'1D Vectors'!B11)) -> 0.0009464070265 | AW4: =((1/'1D Vectors'!B16))*(('1D Vectors'!B14*'Risk-return'!AW3^2-2*'1D Vectors'!B8*'Risk-return'!AW3+'1D Vectors'!B11)) -> 0.000946611185 | AX4: =((1/'1D Vectors'!B16))*(('1D Vectors'!B14*'Risk-return'!AX3^2-2*'1D Vectors'!B8*'Risk-return'!AX3+'1D Vectors'!B11)) -> 0.0009469103902 | AY4: =((1/'1D Vectors'!B16))*(('1D Vectors'!B14*'Risk-return'!AY3^2-2*'1D Vectors'!B8*'Risk-return'!AY3+'1D Vectors'!B11)) -> 0.0009473046421 | AZ4: =((1/'1D Vectors'!B16))*(('1D Vectors'!B14*'Risk-return'!AZ3^2-2*'1D Vectors'!B8*'Risk-return'!AZ3+'1D Vectors'!B11)) -> 0.0009477939406 | BA4: =((1/'1D Vectors'!B16))*(('1D Vectors'!B14*'Risk-return'!BA3^2-2*'1D Vectors'!B8*'Risk-return'!BA3+'1D Vectors'!B11)) -> 0.0009483782858 | BB4: =((1/'1D Vectors'!B16))*(('1D Vectors'!B14*'Risk-return'!BB3^2-2*'1D Vectors'!B8*'Risk-return'!BB3+'1D Vectors'!B11)) -> 0.0009490576777 | BC4: =((1/'1D Vectors'!B16))*(('1D Vectors'!B14*'Risk-return'!BC3^2-2*'1D Vectors'!B8*'Risk-return'!BC3+'1D Vectors'!B11)) -> 0.0009498321162 | BD4: =((1/'1D Vectors'!B16))*(('1D Vectors'!B14*'Risk-return'!BD3^2-2*'1D Vectors'!B8*'Risk-return'!BD3+'1D Vectors'!B11)) -> 0.0009507016014 | BE4: =((1/'1D Vectors'!B16))*(('1D Vectors'!B14*'Risk-return'!BE3^2-2*'1D Vectors'!B8*'Risk-return'!BE3+'1D Vectors'!B11)) -> 0.0009516661332 | BF4: =((1/'1D Vectors'!B16))*(('1D Vectors'!B14*'Risk-return'!BF3^2-2*'1D Vectors'!B8*'Risk-return'!BF3+'1D Vectors'!B11)) -> 0.0009527257117 | BG4: =((1/'1D Vectors'!B16))*(('1D Vectors'!B14*'Risk-return'!BG3^2-2*'1D Vectors'!B8*'Risk-return'!BG3+'1D Vectors'!B11)) -> 0.0009538803369 | BH4: =((1/'1D Vectors'!B16))*(('1D Vectors'!B14*'Risk-return'!BH3^2-2*'1D Vectors'!B8*'Risk-return'!BH3+'1D Vectors'!B11)) -> 0.0009551300087 | BI4: =((1/'1D Vectors'!B16))*(('1D Vectors'!B14*'Risk-return'!BI3^2-2*'1D Vectors'!B8*'Risk-return'!BI3+'1D Vectors'!B11)) -> 0.0009564747272 | BJ4: =((1/'1D Vectors'!B16))*(('1D Vectors'!B14*'Risk-return'!BJ3^2-2*'1D Vectors'!B8*'Risk-return'!BJ3+'1D Vectors'!B11)) -> 0.0009579144924 | BK4: =((1/'1D Vectors'!B16))*(('1D Vectors'!B14*'Risk-return'!BK3^2-2*'1D Vectors'!B8*'Risk-return'!BK3+'1D Vectors'!B11)) -> 0.0009594493042 | BL4: =((1/'1D Vectors'!B16))*(('1D Vectors'!B14*'Risk-return'!BL3^2-2*'1D Vectors'!B8*'Risk-return'!BL3+'1D Vectors'!B11)) -> 0.0009610791627 | BM4: =((1/'1D Vectors'!B16))*(('1D Vectors'!B14*'Risk-return'!BM3^2-2*'1D Vectors'!B8*'Risk-return'!BM3+'1D Vectors'!B11)) -> 0.0009628040678 | BN4: =((1/'1D Vectors'!B16))*(('1D Vectors'!B14*'Risk-return'!BN3^2-2*'1D Vectors'!B8*'Risk-return'!BN3+'1D Vectors'!B11)) -> 0.0009646240196 | BO4: =((1/'1D Vectors'!B16))*(('1D Vectors'!B14*'Risk-return'!BO3^2-2*'1D Vectors'!B8*'Risk-return'!BO3+'1D Vectors'!B11)) -> 0.0009665390181 | BP4: =((1/'1D Vectors'!B16))*(('1D Vectors'!B14*'Risk-return'!BP3^2-2*'1D Vectors'!B8*'Risk-return'!BP3+'1D Vectors'!B11)) -> 0.0009685490633 | BQ4: =((1/'1D Vectors'!B16))*(('1D Vectors'!B14*'Risk-return'!BQ3^2-2*'1D Vectors'!B8*'Risk-return'!BQ3+'1D Vectors'!B11)) -> 0.0009706541551 | BR4: =((1/'1D Vectors'!B16))*(('1D Vectors'!B14*'Risk-return'!BR3^2-2*'1D Vectors'!B8*'Risk-return'!BR3+'1D Vectors'!B11)) -> 0.0009728542936 | BS4: =((1/'1D Vectors'!B16))*(('1D Vectors'!B14*'Risk-return'!BS3^2-2*'1D Vectors'!B8*'Risk-return'!BS3+'1D Vectors'!B11)) -> 0.0009751494787 | BT4: =((1/'1D Vectors'!B16))*(('1D Vectors'!B14*'Risk-return'!BT3^2-2*'1D Vectors'!B8*'Risk-return'!BT3+'1D Vectors'!B11)) -> 0.0009775397105 | BU4: =((1/'1D Vectors'!B16))*(('1D Vectors'!B14*'Risk-return'!BU3^2-2*'1D Vectors'!B8*'Risk-return'!BU3+'1D Vectors'!B11)) -> 0.000980024989 | BV4: =((1/'1D Vectors'!B16))*(('1D Vectors'!B14*'Risk-return'!BV3^2-2*'1D Vectors'!B8*'Risk-return'!BV3+'1D Vectors'!B11)) -> 0.0009826053141 | BW4: =((1/'1D Vectors'!B16))*(('1D Vectors'!B14*'Risk-return'!BW3^2-2*'1D Vectors'!B8*'Risk-return'!BW3+'1D Vectors'!B11)) -> 0.0009852806859 | BX4: =((1/'1D Vectors'!B16))*(('1D Vectors'!B14*'Risk-return'!BX3^2-2*'1D Vectors'!B8*'Risk-return'!BX3+'1D Vectors'!B11)) -> 0.0009880511043 | BY4: =((1/'1D Vectors'!B16))*(('1D Vectors'!B14*'Risk-return'!BY3^2-2*'1D Vectors'!B8*'Risk-return'!BY3+'1D Vectors'!B11)) -> 0.0009909165695 | BZ4: =((1/'1D Vectors'!B16))*(('1D Vectors'!B14*'Risk-return'!BZ3^2-2*'1D Vectors'!B8*'Risk-return'!BZ3+'1D Vectors'!B11)) -> 0.0009938770812 | CA4: =((1/'1D Vectors'!B16))*(('1D Vectors'!B14*'Risk-return'!CA3^2-2*'1D Vectors'!B8*'Risk-return'!CA3+'1D Vectors'!B11)) -> 0.0009969326397 | CB4: =((1/'1D Vectors'!B16))*(('1D Vectors'!B14*'Risk-return'!CB3^2-2*'1D Vectors'!B8*'Risk-return'!CB3+'1D Vectors'!B11)) -> 0.001000083245 | CC4: =((1/'1D Vectors'!B16))*(('1D Vectors'!B14*'Risk-return'!CC3^2-2*'1D Vectors'!B8*'Risk-return'!CC3+'1D Vectors'!B11)) -> 0.001003328897 | CD4: =((1/'1D Vectors'!B16))*(('1D Vectors'!B14*'Risk-return'!CD3^2-2*'1D Vectors'!B8*'Risk-return'!CD3+'1D Vectors'!B11)) -> 0.001006669595 | CE4: =((1/'1D Vectors'!B16))*(('1D Vectors'!B14*'Risk-return'!CE3^2-2*'1D Vectors'!B8*'Risk-return'!CE3+'1D Vectors'!B11)) -> 0.00101010534 | CF4: =((1/'1D Vectors'!B16))*(('1D Vectors'!B14*'Risk-return'!CF3^2-2*'1D Vectors'!B8*'Risk-return'!CF3+'1D Vectors'!B11)) -> 0.001013636132 | CG4: =((1/'1D Vectors'!B16))*(('1D Vectors'!B14*'Risk-return'!CG3^2-2*'1D Vectors'!B8*'Risk-return'!CG3+'1D Vectors'!B11)) -> 0.00101726197 | CH4: =((1/'1D Vectors'!B16))*(('1D Vectors'!B14*'Risk-return'!CH3^2-2*'1D Vectors'!B8*'Risk-return'!CH3+'1D Vectors'!B11)) -> 0.001020982855 | CI4: =((1/'1D Vectors'!B16))*(('1D Vectors'!B14*'Risk-return'!CI3^2-2*'1D Vectors'!B8*'Risk-return'!CI3+'1D Vectors'!B11)) -> 0.001024798787 | CJ4: =((1/'1D Vectors'!B16))*(('1D Vectors'!B14*'Risk-return'!CJ3^2-2*'1D Vectors'!B8*'Risk-return'!CJ3+'1D Vectors'!B11)) -> 0.001028709766 | CK4: =((1/'1D Vectors'!B16))*(('1D Vectors'!B14*'Risk-return'!CK3^2-2*'1D Vectors'!B8*'Risk-return'!CK3+'1D Vectors'!B11)) -> 0.001032715791 | CL4: =((1/'1D Vectors'!B16))*(('1D Vectors'!B14*'Risk-return'!CL3^2-2*'1D Vectors'!B8*'Risk-return'!CL3+'1D Vectors'!B11)) -> 0.001036816862 | CM4: =((1/'1D Vectors'!B16))*(('1D Vectors'!B14*'Risk-return'!CM3^2-2*'1D Vectors'!B8*'Risk-return'!CM3+'1D Vectors'!B11)) -> 0.001041012981 | CN4: =((1/'1D Vectors'!B16))*(('1D Vectors'!B14*'Risk-return'!CN3^2-2*'1D Vectors'!B8*'Risk-return'!CN3+'1D Vectors'!B11)) -> 0.001045304146 | CO4: =((1/'1D Vectors'!B16))*(('1D Vectors'!B14*'Risk-return'!CO3^2-2*'1D Vectors'!B8*'Risk-return'!CO3+'1D Vectors'!B11)) -> 0.001049690358 | CP4: =((1/'1D Vectors'!B16))*(('1D Vectors'!B14*'Risk-return'!CP3^2-2*'1D Vectors'!B8*'Risk-return'!CP3+'1D Vectors'!B11)) -> 0.001054171616 | CQ4: =((1/'1D Vectors'!B16))*(('1D Vectors'!B14*'Risk-return'!CQ3^2-2*'1D Vectors'!B8*'Risk-return'!CQ3+'1D Vectors'!B11)) -> 0.001058747921 | CR4: =((1/'1D Vectors'!B16))*(('1D Vectors'!B14*'Risk-return'!CR3^2-2*'1D Vectors'!B8*'Risk-return'!CR3+'1D Vectors'!B11)) -> 0.001063419273 | CS4: =((1/'1D Vectors'!B16))*(('1D Vectors'!B14*'Risk-return'!CS3^2-2*'1D Vectors'!B8*'Risk-return'!CS3+'1D Vectors'!B11)) -> 0.001068185671 | CT4: =((1/'1D Vectors'!B16))*(('1D Vectors'!B14*'Risk-return'!CT3^2-2*'1D Vectors'!B8*'Risk-return'!CT3+'1D Vectors'!B11)) -> 0.001073047116 | CU4: =((1/'1D Vectors'!B16))*(('1D Vectors'!B14*'Risk-return'!CU3^2-2*'1D Vectors'!B8*'Risk-return'!CU3+'1D Vectors'!B11)) -> 0.001078003608 | CV4: =((1/'1D Vectors'!B16))*(('1D Vectors'!B14*'Risk-return'!CV3^2-2*'1D Vectors'!B8*'Risk-return'!CV3+'1D Vectors'!B11)) -> 0.001083055146 | CW4: =((1/'1D Vectors'!B16))*(('1D Vectors'!B14*'Risk-return'!CW3^2-2*'1D Vectors'!B8*'Risk-return'!CW3+'1D Vectors'!B11)) -> 0.001088201731 | CX4: =((1/'1D Vectors'!B16))*(('1D Vectors'!B14*'Risk-return'!CX3^2-2*'1D Vectors'!B8*'Risk-return'!CX3+'1D Vectors'!B11)) -> 0.001093443363 | CY4: =((1/'1D Vectors'!B16))*(('1D Vectors'!B14*'Risk-return'!CY3^2-2*'1D Vectors'!B8*'Risk-return'!CY3+'1D Vectors'!B11)) -> 0.001098780042 | CZ4: =((1/'1D Vectors'!B16))*(('1D Vectors'!B14*'Risk-return'!CZ3^2-2*'1D Vectors'!B8*'Risk-return'!CZ3+'1D Vectors'!B11)) -> 0.001104211767 | DA4: =((1/'1D Vectors'!B16))*(('1D Vectors'!B14*'Risk-return'!DA3^2-2*'1D Vectors'!B8*'Risk-return'!DA3+'1D Vectors'!B11)) -> 0.001109738538 | DB4: =((1/'1D Vectors'!B16))*(('1D Vectors'!B14*'Risk-return'!DB3^2-2*'1D Vectors'!B8*'Risk-return'!DB3+'1D Vectors'!B11)) -> 0.001115360357 | DC4: =((1/'1D Vectors'!B16))*(('1D Vectors'!B14*'Risk-return'!DC3^2-2*'1D Vectors'!B8*'Risk-return'!DC3+'1D Vectors'!B11)) -> 0.001121077222 | DD4: =((1/'1D Vectors'!B16))*(('1D Vectors'!B14*'Risk-return'!DD3^2-2*'1D Vectors'!B8*'Risk-return'!DD3+'1D Vectors'!B11)) -> 0.001126889133 | DE4: =((1/'1D Vectors'!B16))*(('1D Vectors'!B14*'Risk-return'!DE3^2-2*'1D Vectors'!B8*'Risk-return'!DE3+'1D Vectors'!B11)) -> 0.001132796092 | DF4: =((1/'1D Vectors'!B16))*(('1D Vectors'!B14*'Risk-return'!DF3^2-2*'1D Vectors'!B8*'Risk-return'!DF3+'1D Vectors'!B11)) -> 0.001138798097 | DG4: =((1/'1D Vectors'!B16))*(('1D Vectors'!B14*'Risk-return'!DG3^2-2*'1D Vectors'!B8*'Risk-return'!DG3+'1D Vectors'!B11)) -> 0.001144895148 | DH4: =((1/'1D Vectors'!B16))*(('1D Vectors'!B14*'Risk-return'!DH3^2-2*'1D Vectors'!B8*'Risk-return'!DH3+'1D Vectors'!B11)) -> 0.001151087247 | DI4: =((1/'1D Vectors'!B16))*(('1D Vectors'!B14*'Risk-return'!DI3^2-2*'1D Vectors'!B8*'Risk-return'!DI3+'1D Vectors'!B11)) -> 0.001157374392 | DJ4: =((1/'1D Vectors'!B16))*(('1D Vectors'!B14*'Risk-return'!DJ3^2-2*'1D Vectors'!B8*'Risk-return'!DJ3+'1D Vectors'!B11)) -> 0.001163756584 | DK4: =((1/'1D Vectors'!B16))*(('1D Vectors'!B14*'Risk-return'!DK3^2-2*'1D Vectors'!B8*'Risk-return'!DK3+'1D Vectors'!B11)) -> 0.001170233822 | DL4: =((1/'1D Vectors'!B16))*(('1D Vectors'!B14*'Risk-return'!DL3^2-2*'1D Vectors'!B8*'Risk-return'!DL3+'1D Vectors'!B11)) -> 0.001176806107 | DM4: =((1/'1D Vectors'!B16))*(('1D Vectors'!B14*'Risk-return'!DM3^2-2*'1D Vectors'!B8*'Risk-return'!DM3+'1D Vectors'!B11)) -> 0.001183473439 | DN4: =((1/'1D Vectors'!B16))*(('1D Vectors'!B14*'Risk-return'!DN3^2-2*'1D Vectors'!B8*'Risk-return'!DN3+'1D Vectors'!B11)) -> 0.001190235817 | DO4: =((1/'1D Vectors'!B16))*(('1D Vectors'!B14*'Risk-return'!DO3^2-2*'1D Vectors'!B8*'Risk-return'!DO3+'1D Vectors'!B11)) -> 0.001197093242 | DP4: =((1/'1D Vectors'!B16))*(('1D Vectors'!B14*'Risk-return'!DP3^2-2*'1D Vectors'!B8*'Risk-return'!DP3+'1D Vectors'!B11)) -> 0.001204045714 | DQ4: =((1/'1D Vectors'!B16))*(('1D Vectors'!B14*'Risk-return'!DQ3^2-2*'1D Vectors'!B8*'Risk-return'!DQ3+'1D Vectors'!B11)) -> 0.001211093232 | DR4: =((1/'1D Vectors'!B16))*(('1D Vectors'!B14*'Risk-return'!DR3^2-2*'1D Vectors'!B8*'Risk-return'!DR3+'1D Vectors'!B11)) -> 0.001218235797 | DS4: =((1/'1D Vectors'!B16))*(('1D Vectors'!B14*'Risk-return'!DS3^2-2*'1D Vectors'!B8*'Risk-return'!DS3+'1D Vectors'!B11)) -> 0.001225473409 | DT4: =((1/'1D Vectors'!B16))*(('1D Vectors'!B14*'Risk-return'!DT3^2-2*'1D Vectors'!B8*'Risk-return'!DT3+'1D Vectors'!B11)) -> 0.001232806067 | DU4: =((1/'1D Vectors'!B16))*(('1D Vectors'!B14*'Risk-return'!DU3^2-2*'1D Vectors'!B8*'Risk-return'!DU3+'1D Vectors'!B11)) -> 0.001240233772 | DV4: =((1/'1D Vectors'!B16))*(('1D Vectors'!B14*'Risk-return'!DV3^2-2*'1D Vectors'!B8*'Risk-return'!DV3+'1D Vectors'!B11)) -> 0.001247756523 | DW4: =((1/'1D Vectors'!B16))*(('1D Vectors'!B14*'Risk-return'!DW3^2-2*'1D Vectors'!B8*'Risk-return'!DW3+'1D Vectors'!B11)) -> 0.001255374322 | DX4: =((1/'1D Vectors'!B16))*(('1D Vectors'!B14*'Risk-return'!DX3^2-2*'1D Vectors'!B8*'Risk-return'!DX3+'1D Vectors'!B11)) -> 0.001263087167 | DY4: =((1/'1D Vectors'!B16))*(('1D Vectors'!B14*'Risk-return'!DY3^2-2*'1D Vectors'!B8*'Risk-return'!DY3+'1D Vectors'!B11)) -> 0.001270895058 | DZ4: =((1/'1D Vectors'!B16))*(('1D Vectors'!B14*'Risk-return'!DZ3^2-2*'1D Vectors'!B8*'Risk-return'!DZ3+'1D Vectors'!B11)) -> 0.001278797997 | EA4: =((1/'1D Vectors'!B16))*(('1D Vectors'!B14*'Risk-return'!EA3^2-2*'1D Vectors'!B8*'Risk-return'!EA3+'1D Vectors'!B11)) -> 0.001286795982 | EB4: =((1/'1D Vectors'!B16))*(('1D Vectors'!B14*'Risk-return'!EB3^2-2*'1D Vectors'!B8*'Risk-return'!EB3+'1D Vectors'!B11)) -> 0.001294889013 | EC4: =((1/'1D Vectors'!B16))*(('1D Vectors'!B14*'Risk-return'!EC3^2-2*'1D Vectors'!B8*'Risk-return'!EC3+'1D Vectors'!B11)) -> 0.001303077092 | ED4: =((1/'1D Vectors'!B16))*(('1D Vectors'!B14*'Risk-return'!ED3^2-2*'1D Vectors'!B8*'Risk-return'!ED3+'1D Vectors'!B11)) -> 0.001311360217 | EE4: =((1/'1D Vectors'!B16))*(('1D Vectors'!B14*'Risk-return'!EE3^2-2*'1D Vectors'!B8*'Risk-return'!EE3+'1D Vectors'!B11)) -> 0.001319738388 | EF4: =((1/'1D Vectors'!B16))*(('1D Vectors'!B14*'Risk-return'!EF3^2-2*'1D Vectors'!B8*'Risk-return'!EF3+'1D Vectors'!B11)) -> 0.001328211606 | EG4: =((1/'1D Vectors'!B16))*(('1D Vectors'!B14*'Risk-return'!EG3^2-2*'1D Vectors'!B8*'Risk-return'!EG3+'1D Vectors'!B11)) -> 0.001336779871 | EH4: =((1/'1D Vectors'!B16))*(('1D Vectors'!B14*'Risk-return'!EH3^2-2*'1D Vectors'!B8*'Risk-return'!EH3+'1D Vectors'!B11)) -> 0.001345443183 | EI4: =((1/'1D Vectors'!B16))*(('1D Vectors'!B14*'Risk-return'!EI3^2-2*'1D Vectors'!B8*'Risk-return'!EI3+'1D Vectors'!B11)) -> 0.001354201541 | EJ4: =((1/'1D Vectors'!B16))*(('1D Vectors'!B14*'Risk-return'!EJ3^2-2*'1D Vectors'!B8*'Risk-return'!EJ3+'1D Vectors'!B11)) -> 0.001363054946 | EK4: =((1/'1D Vectors'!B16))*(('1D Vectors'!B14*'Risk-return'!EK3^2-2*'1D Vectors'!B8*'Risk-return'!EK3+'1D Vectors'!B11)) -> 0.001372003398 | EL4: =((1/'1D Vectors'!B16))*(('1D Vectors'!B14*'Risk-return'!EL3^2-2*'1D Vectors'!B8*'Risk-return'!EL3+'1D Vectors'!B11)) -> 0.001381046896 | EM4: =((1/'1D Vectors'!B16))*(('1D Vectors'!B14*'Risk-return'!EM3^2-2*'1D Vectors'!B8*'Risk-return'!EM3+'1D Vectors'!B11)) -> 0.001390185441 | EN4: =((1/'1D Vectors'!B16))*(('1D Vectors'!B14*'Risk-return'!EN3^2-2*'1D Vectors'!B8*'Risk-return'!EN3+'1D Vectors'!B11)) -> 0.001399419033 | EO4: =((1/'1D Vectors'!B16))*(('1D Vectors'!B14*'Risk-return'!EO3^2-2*'1D Vectors'!B8*'Risk-return'!EO3+'1D Vectors'!B11)) -> 0.001408747671 | EP4: =((1/'1D Vectors'!B16))*(('1D Vectors'!B14*'Risk-return'!EP3^2-2*'1D Vectors'!B8*'Risk-return'!EP3+'1D Vectors'!B11)) -> 0.001418171356 | EQ4: =((1/'1D Vectors'!B16))*(('1D Vectors'!B14*'Risk-return'!EQ3^2-2*'1D Vectors'!B8*'Risk-return'!EQ3+'1D Vectors'!B11)) -> 0.001427690087 | ER4: =((1/'1D Vectors'!B16))*(('1D Vectors'!B14*'Risk-return'!ER3^2-2*'1D Vectors'!B8*'Risk-return'!ER3+'1D Vectors'!B11)) -> 0.001437303866 | ES4: =((1/'1D Vectors'!B16))*(('1D Vectors'!B14*'Risk-return'!ES3^2-2*'1D Vectors'!B8*'Risk-return'!ES3+'1D Vectors'!B11)) -> 0.001447012691 | ET4: =((1/'1D Vectors'!B16))*(('1D Vectors'!B14*'Risk-return'!ET3^2-2*'1D Vectors'!B8*'Risk-return'!ET3+'1D Vectors'!B11)) -> 0.001456816562 | EU4: =((1/'1D Vectors'!B16))*(('1D Vectors'!B14*'Risk-return'!EU3^2-2*'1D Vectors'!B8*'Risk-return'!EU3+'1D Vectors'!B11)) -> 0.00146671548 | EV4: =((1/'1D Vectors'!B16))*(('1D Vectors'!B14*'Risk-return'!EV3^2-2*'1D Vectors'!B8*'Risk-return'!EV3+'1D Vectors'!B11)) -> 0.001476709445 | EW4: =((1/'1D Vectors'!B16))*(('1D Vectors'!B14*'Risk-return'!EW3^2-2*'1D Vectors'!B8*'Risk-return'!EW3+'1D Vectors'!B11)) -> 0.001486798457 | EX4: =((1/'1D Vectors'!B16))*(('1D Vectors'!B14*'Risk-return'!EX3^2-2*'1D Vectors'!B8*'Risk-return'!EX3+'1D Vectors'!B11)) -> 0.001496982515 | EY4: =((1/'1D Vectors'!B16))*(('1D Vectors'!B14*'Risk-return'!EY3^2-2*'1D Vectors'!B8*'Risk-return'!EY3+'1D Vectors'!B11)) -> 0.00150726162 | EZ4: =((1/'1D Vectors'!B16))*(('1D Vectors'!B14*'Risk-return'!EZ3^2-2*'1D Vectors'!B8*'Risk-return'!EZ3+'1D Vectors'!B11)) -> 0.001517635772 | FA4: =((1/'1D Vectors'!B16))*(('1D Vectors'!B14*'Risk-return'!FA3^2-2*'1D Vectors'!B8*'Risk-return'!FA3+'1D Vectors'!B11)) -> 0.00152810497 | FB4: =((1/'1D Vectors'!B16))*(('1D Vectors'!B14*'Risk-return'!FB3^2-2*'1D Vectors'!B8*'Risk-return'!FB3+'1D Vectors'!B11)) -> 0.001538669215 | FC4: =((1/'1D Vectors'!B16))*(('1D Vectors'!B14*'Risk-return'!FC3^2-2*'1D Vectors'!B8*'Risk-return'!FC3+'1D Vectors'!B11)) -> 0.001549328506 | FD4: =((1/'1D Vectors'!B16))*(('1D Vectors'!B14*'Risk-return'!FD3^2-2*'1D Vectors'!B8*'Risk-return'!FD3+'1D Vectors'!B11)) -> 0.001560082844 | FE4: =((1/'1D Vectors'!B16))*(('1D Vectors'!B14*'Risk-return'!FE3^2-2*'1D Vectors'!B8*'Risk-return'!FE3+'1D Vectors'!B11)) -> 0.001570932229 | FF4: =((1/'1D Vectors'!B16))*(('1D Vectors'!B14*'Risk-return'!FF3^2-2*'1D Vectors'!B8*'Risk-return'!FF3+'1D Vectors'!B11)) -> 0.001581876661 | FG4: =((1/'1D Vectors'!B16))*(('1D Vectors'!B14*'Risk-return'!FG3^2-2*'1D Vectors'!B8*'Risk-return'!FG3+'1D Vectors'!B11)) -> 0.001592916139 | FH4: =((1/'1D Vectors'!B16))*(('1D Vectors'!B14*'Risk-return'!FH3^2-2*'1D Vectors'!B8*'Risk-return'!FH3+'1D Vectors'!B11)) -> 0.001604050664 | FI4: =((1/'1D Vectors'!B16))*(('1D Vectors'!B14*'Risk-return'!FI3^2-2*'1D Vectors'!B8*'Risk-return'!FI3+'1D Vectors'!B11)) -> 0.001615280236 | FJ4: =((1/'1D Vectors'!B16))*(('1D Vectors'!B14*'Risk-return'!FJ3^2-2*'1D Vectors'!B8*'Risk-return'!FJ3+'1D Vectors'!B11)) -> 0.001626604854 | FK4: =((1/'1D Vectors'!B16))*(('1D Vectors'!B14*'Risk-return'!FK3^2-2*'1D Vectors'!B8*'Risk-return'!FK3+'1D Vectors'!B11)) -> 0.001638024519 | FL4: =((1/'1D Vectors'!B16))*(('1D Vectors'!B14*'Risk-return'!FL3^2-2*'1D Vectors'!B8*'Risk-return'!FL3+'1D Vectors'!B11)) -> 0.00164953923 | FM4: =((1/'1D Vectors'!B16))*(('1D Vectors'!B14*'Risk-return'!FM3^2-2*'1D Vectors'!B8*'Risk-return'!FM3+'1D Vectors'!B11)) -> 0.001661148988 | FN4: =((1/'1D Vectors'!B16))*(('1D Vectors'!B14*'Risk-return'!FN3^2-2*'1D Vectors'!B8*'Risk-return'!FN3+'1D Vectors'!B11)) -> 0.001672853793 | FO4: =((1/'1D Vectors'!B16))*(('1D Vectors'!B14*'Risk-return'!FO3^2-2*'1D Vectors'!B8*'Risk-return'!FO3+'1D Vectors'!B11)) -> 0.001684653645 | FP4: =((1/'1D Vectors'!B16))*(('1D Vectors'!B14*'Risk-return'!FP3^2-2*'1D Vectors'!B8*'Risk-return'!FP3+'1D Vectors'!B11)) -> 0.001696548543 | FQ4: =((1/'1D Vectors'!B16))*(('1D Vectors'!B14*'Risk-return'!FQ3^2-2*'1D Vectors'!B8*'Risk-return'!FQ3+'1D Vectors'!B11)) -> 0.001708538488 | FR4: =((1/'1D Vectors'!B16))*(('1D Vectors'!B14*'Risk-return'!FR3^2-2*'1D Vectors'!B8*'Risk-return'!FR3+'1D Vectors'!B11)) -> 0.001720623479 | FS4: =((1/'1D Vectors'!B16))*(('1D Vectors'!B14*'Risk-return'!FS3^2-2*'1D Vectors'!B8*'Risk-return'!FS3+'1D Vectors'!B11)) -> 0.001732803517 | FT4: =((1/'1D Vectors'!B16))*(('1D Vectors'!B14*'Risk-return'!FT3^2-2*'1D Vectors'!B8*'Risk-return'!FT3+'1D Vectors'!B11)) -> 0.001745078602 | FU4: =((1/'1D Vectors'!B16))*(('1D Vectors'!B14*'Risk-return'!FU3^2-2*'1D Vectors'!B8*'Risk-return'!FU3+'1D Vectors'!B11)) -> 0.001757448734 | FV4: =((1/'1D Vectors'!B16))*(('1D Vectors'!B14*'Risk-return'!FV3^2-2*'1D Vectors'!B8*'Risk-return'!FV3+'1D Vectors'!B11)) -> 0.001769913912 | FW4: =((1/'1D Vectors'!B16))*(('1D Vectors'!B14*'Risk-return'!FW3^2-2*'1D Vectors'!B8*'Risk-return'!FW3+'1D Vectors'!B11)) -> 0.001782474137 | FX4: =((1/'1D Vectors'!B16))*(('1D Vectors'!B14*'Risk-return'!FX3^2-2*'1D Vectors'!B8*'Risk-return'!FX3+'1D Vectors'!B11)) -> 0.001795129408 | FY4: =((1/'1D Vectors'!B16))*(('1D Vectors'!B14*'Risk-return'!FY3^2-2*'1D Vectors'!B8*'Risk-return'!FY3+'1D Vectors'!B11)) -> 0.001807879726 | FZ4: =((1/'1D Vectors'!B16))*(('1D Vectors'!B14*'Risk-return'!FZ3^2-2*'1D Vectors'!B8*'Risk-return'!FZ3+'1D Vectors'!B11)) -> 0.001820725091 | GA4: =((1/'1D Vectors'!B16))*(('1D Vectors'!B14*'Risk-return'!GA3^2-2*'1D Vectors'!B8*'Risk-return'!GA3+'1D Vectors'!B11)) -> 0.001833665503 | GB4: =((1/'1D Vectors'!B16))*(('1D Vectors'!B14*'Risk-return'!GB3^2-2*'1D Vectors'!B8*'Risk-return'!GB3+'1D Vectors'!B11)) -> 0.001846700961 | GC4: =((1/'1D Vectors'!B16))*(('1D Vectors'!B14*'Risk-return'!GC3^2-2*'1D Vectors'!B8*'Risk-return'!GC3+'1D Vectors'!B11)) -> 0.001859831466 | GD4: =((1/'1D Vectors'!B16))*(('1D Vectors'!B14*'Risk-return'!GD3^2-2*'1D Vectors'!B8*'Risk-return'!GD3+'1D Vectors'!B11)) -> 0.001873057017 | GE4: =((1/'1D Vectors'!B16))*(('1D Vectors'!B14*'Risk-return'!GE3^2-2*'1D Vectors'!B8*'Risk-return'!GE3+'1D Vectors'!B11)) -> 0.001886377615 | GF4: =((1/'1D Vectors'!B16))*(('1D Vectors'!B14*'Risk-return'!GF3^2-2*'1D Vectors'!B8*'Risk-return'!GF3+'1D Vectors'!B11)) -> 0.00189979326 | GG4: =((1/'1D Vectors'!B16))*(('1D Vectors'!B14*'Risk-return'!GG3^2-2*'1D Vectors'!B8*'Risk-return'!GG3+'1D Vectors'!B11)) -> 0.001913303952 | GH4: =((1/'1D Vectors'!B16))*(('1D Vectors'!B14*'Risk-return'!GH3^2-2*'1D Vectors'!B8*'Risk-return'!GH3+'1D Vectors'!B11)) -> 0.00192690969 | GI4: =((1/'1D Vectors'!B16))*(('1D Vectors'!B14*'Risk-return'!GI3^2-2*'1D Vectors'!B8*'Risk-return'!GI3+'1D Vectors'!B11)) -> 0.001940610474 | GJ4: =((1/'1D Vectors'!B16))*(('1D Vectors'!B14*'Risk-return'!GJ3^2-2*'1D Vectors'!B8*'Risk-return'!GJ3+'1D Vectors'!B11)) -> 0.001954406306 | GK4: =((1/'1D Vectors'!B16))*(('1D Vectors'!B14*'Risk-return'!GK3^2-2*'1D Vectors'!B8*'Risk-return'!GK3+'1D Vectors'!B11)) -> 0.001968297184 | GL4: =((1/'1D Vectors'!B16))*(('1D Vectors'!B14*'Risk-return'!GL3^2-2*'1D Vectors'!B8*'Risk-return'!GL3+'1D Vectors'!B11)) -> 0.001982283109 | GM4: =((1/'1D Vectors'!B16))*(('1D Vectors'!B14*'Risk-return'!GM3^2-2*'1D Vectors'!B8*'Risk-return'!GM3+'1D Vectors'!B11)) -> 0.00199636408 | GN4: =((1/'1D Vectors'!B16))*(('1D Vectors'!B14*'Risk-return'!GN3^2-2*'1D Vectors'!B8*'Risk-return'!GN3+'1D Vectors'!B11)) -> 0.002010540098 | GO4: =((1/'1D Vectors'!B16))*(('1D Vectors'!B14*'Risk-return'!GO3^2-2*'1D Vectors'!B8*'Risk-return'!GO3+'1D Vectors'!B11)) -> 0.002024811163 | GP4: =((1/'1D Vectors'!B16))*(('1D Vectors'!B14*'Risk-return'!GP3^2-2*'1D Vectors'!B8*'Risk-return'!GP3+'1D Vectors'!B11)) -> 0.002039177275 | GQ4: =((1/'1D Vectors'!B16))*(('1D Vectors'!B14*'Risk-return'!GQ3^2-2*'1D Vectors'!B8*'Risk-return'!GQ3+'1D Vectors'!B11)) -> 0.002053638433 | GR4: =((1/'1D Vectors'!B16))*(('1D Vectors'!B14*'Risk-return'!GR3^2-2*'1D Vectors'!B8*'Risk-return'!GR3+'1D Vectors'!B11)) -> 0.002068194638 | GS4: =((1/'1D Vectors'!B16))*(('1D Vectors'!B14*'Risk-return'!GS3^2-2*'1D Vectors'!B8*'Risk-return'!GS3+'1D Vectors'!B11)) -> 0.002082845889 | GT4: =((1/'1D Vectors'!B16))*(('1D Vectors'!B14*'Risk-return'!GT3^2-2*'1D Vectors'!B8*'Risk-return'!GT3+'1D Vectors'!B11)) -> 0.002097592187 | GU4: =((1/'1D Vectors'!B16))*(('1D Vectors'!B14*'Risk-return'!GU3^2-2*'1D Vectors'!B8*'Risk-return'!GU3+'1D Vectors'!B11)) -> 0.002112433532 | GV4: =((1/'1D Vectors'!B16))*(('1D Vectors'!B14*'Risk-return'!GV3^2-2*'1D Vectors'!B8*'Risk-return'!GV3+'1D Vectors'!B11)) -> 0.002127369923 | GW4: =((1/'1D Vectors'!B16))*(('1D Vectors'!B14*'Risk-return'!GW3^2-2*'1D Vectors'!B8*'Risk-return'!GW3+'1D Vectors'!B11)) -> 0.002142401361 | GX4: =((1/'1D Vectors'!B16))*(('1D Vectors'!B14*'Risk-return'!GX3^2-2*'1D Vectors'!B8*'Risk-return'!GX3+'1D Vectors'!B11)) -> 0.002157527846 | GY4: =((1/'1D Vectors'!B16))*(('1D Vectors'!B14*'Risk-return'!GY3^2-2*'1D Vectors'!B8*'Risk-return'!GY3+'1D Vectors'!B11)) -> 0.002172749378 | GZ4: =((1/'1D Vectors'!B16))*(('1D Vectors'!B14*'Risk-return'!GZ3^2-2*'1D Vectors'!B8*'Risk-return'!GZ3+'1D Vectors'!B11)) -> 0.002188065956 | HA4: =((1/'1D Vectors'!B16))*(('1D Vectors'!B14*'Risk-return'!HA3^2-2*'1D Vectors'!B8*'Risk-return'!HA3+'1D Vectors'!B11)) -> 0.00220347758 | HB4: =((1/'1D Vectors'!B16))*(('1D Vectors'!B14*'Risk-return'!HB3^2-2*'1D Vectors'!B8*'Risk-return'!HB3+'1D Vectors'!B11)) -> 0.002218984252 | HC4: =((1/'1D Vectors'!B16))*(('1D Vectors'!B14*'Risk-return'!HC3^2-2*'1D Vectors'!B8*'Risk-return'!HC3+'1D Vectors'!B11)) -> 0.00223458597 | HD4: =((1/'1D Vectors'!B16))*(('1D Vectors'!B14*'Risk-return'!HD3^2-2*'1D Vectors'!B8*'Risk-return'!HD3+'1D Vectors'!B11)) -> 0.002250282735 | HE4: =((1/'1D Vectors'!B16))*(('1D Vectors'!B14*'Risk-return'!HE3^2-2*'1D Vectors'!B8*'Risk-return'!HE3+'1D Vectors'!B11)) -> 0.002266074546 | HF4: =((1/'1D Vectors'!B16))*(('1D Vectors'!B14*'Risk-return'!HF3^2-2*'1D Vectors'!B8*'Risk-return'!HF3+'1D Vectors'!B11)) -> 0.002281961404 | HG4: =((1/'1D Vectors'!B16))*(('1D Vectors'!B14*'Risk-return'!HG3^2-2*'1D Vectors'!B8*'Risk-return'!HG3+'1D Vectors'!B11)) -> 0.002297943309 | HH4: =((1/'1D Vectors'!B16))*(('1D Vectors'!B14*'Risk-return'!HH3^2-2*'1D Vectors'!B8*'Risk-return'!HH3+'1D Vectors'!B11)) -> 0.00231402026 | HI4: =((1/'1D Vectors'!B16))*(('1D Vectors'!B14*'Risk-return'!HI3^2-2*'1D Vectors'!B8*'Risk-return'!HI3+'1D Vectors'!B11)) -> 0.002330192258 | HJ4: =((1/'1D Vectors'!B16))*(('1D Vectors'!B14*'Risk-return'!HJ3^2-2*'1D Vectors'!B8*'Risk-return'!HJ3+'1D Vectors'!B11)) -> 0.002346459303 | HK4: =((1/'1D Vectors'!B16))*(('1D Vectors'!B14*'Risk-return'!HK3^2-2*'1D Vectors'!B8*'Risk-return'!HK3+'1D Vectors'!B11)) -> 0.002362821394 | HL4: =((1/'1D Vectors'!B16))*(('1D Vectors'!B14*'Risk-return'!HL3^2-2*'1D Vectors'!B8*'Risk-return'!HL3+'1D Vectors'!B11)) -> 0.002379278532 | HM4: =((1/'1D Vectors'!B16))*(('1D Vectors'!B14*'Risk-return'!HM3^2-2*'1D Vectors'!B8*'Risk-return'!HM3+'1D Vectors'!B11)) -> 0.002395830717 | HN4: =((1/'1D Vectors'!B16))*(('1D Vectors'!B14*'Risk-return'!HN3^2-2*'1D Vectors'!B8*'Risk-return'!HN3+'1D Vectors'!B11)) -> 0.002412477948 | HO4: =((1/'1D Vectors'!B16))*(('1D Vectors'!B14*'Risk-return'!HO3^2-2*'1D Vectors'!B8*'Risk-return'!HO3+'1D Vectors'!B11)) -> 0.002429220226 | HP4: =((1/'1D Vectors'!B16))*(('1D Vectors'!B14*'Risk-return'!HP3^2-2*'1D Vectors'!B8*'Risk-return'!HP3+'1D Vectors'!B11)) -> 0.002446057551 | HQ4: =((1/'1D Vectors'!B16))*(('1D Vectors'!B14*'Risk-return'!HQ3^2-2*'1D Vectors'!B8*'Risk-return'!HQ3+'1D Vectors'!B11)) -> 0.002462989923 | HR4: =((1/'1D Vectors'!B16))*(('1D Vectors'!B14*'Risk-return'!HR3^2-2*'1D Vectors'!B8*'Risk-return'!HR3+'1D Vectors'!B11)) -> 0.002480017341 | HS4: =((1/'1D Vectors'!B16))*(('1D Vectors'!B14*'Risk-return'!HS3^2-2*'1D Vectors'!B8*'Risk-return'!HS3+'1D Vectors'!B11)) -> 0.002497139805 | HT4: =((1/'1D Vectors'!B16))*(('1D Vectors'!B14*'Risk-return'!HT3^2-2*'1D Vectors'!B8*'Risk-return'!HT3+'1D Vectors'!B11)) -> 0.002514357317 | HU4: =((1/'1D Vectors'!B16))*(('1D Vectors'!B14*'Risk-return'!HU3^2-2*'1D Vectors'!B8*'Risk-return'!HU3+'1D Vectors'!B11)) -> 0.002531669875 | HV4: =((1/'1D Vectors'!B16))*(('1D Vectors'!B14*'Risk-return'!HV3^2-2*'1D Vectors'!B8*'Risk-return'!HV3+'1D Vectors'!B11)) -> 0.002549077479 | HW4: =((1/'1D Vectors'!B16))*(('1D Vectors'!B14*'Risk-return'!HW3^2-2*'1D Vectors'!B8*'Risk-return'!HW3+'1D Vectors'!B11)) -> 0.002566580131 | HX4: =((1/'1D Vectors'!B16))*(('1D Vectors'!B14*'Risk-return'!HX3^2-2*'1D Vectors'!B8*'Risk-return'!HX3+'1D Vectors'!B11)) -> 0.002584177829 | HY4: =((1/'1D Vectors'!B16))*(('1D Vectors'!B14*'Risk-return'!HY3^2-2*'1D Vectors'!B8*'Risk-return'!HY3+'1D Vectors'!B11)) -> 0.002601870573 | HZ4: =((1/'1D Vectors'!B16))*(('1D Vectors'!B14*'Risk-return'!HZ3^2-2*'1D Vectors'!B8*'Risk-return'!HZ3+'1D Vectors'!B11)) -> 0.002619658365 | IA4: =((1/'1D Vectors'!B16))*(('1D Vectors'!B14*'Risk-return'!IA3^2-2*'1D Vectors'!B8*'Risk-return'!IA3+'1D Vectors'!B11)) -> 0.002637541203 | IB4: =((1/'1D Vectors'!B16))*(('1D Vectors'!B14*'Risk-return'!IB3^2-2*'1D Vectors'!B8*'Risk-return'!IB3+'1D Vectors'!B11)) -> 0.002655519087 | IC4: =((1/'1D Vectors'!B16))*(('1D Vectors'!B14*'Risk-return'!IC3^2-2*'1D Vectors'!B8*'Risk-return'!IC3+'1D Vectors'!B11)) -> 0.002673592019 | ID4: =((1/'1D Vectors'!B16))*(('1D Vectors'!B14*'Risk-return'!ID3^2-2*'1D Vectors'!B8*'Risk-return'!ID3+'1D Vectors'!B11)) -> 0.002691759997 | IE4: =((1/'1D Vectors'!B16))*(('1D Vectors'!B14*'Risk-return'!IE3^2-2*'1D Vectors'!B8*'Risk-return'!IE3+'1D Vectors'!B11)) -> 0.002710023021 | IF4: =((1/'1D Vectors'!B16))*(('1D Vectors'!B14*'Risk-return'!IF3^2-2*'1D Vectors'!B8*'Risk-return'!IF3+'1D Vectors'!B11)) -> 0.002728381093 | IG4: =((1/'1D Vectors'!B16))*(('1D Vectors'!B14*'Risk-return'!IG3^2-2*'1D Vectors'!B8*'Risk-return'!IG3+'1D Vectors'!B11)) -> 0.002746834211 | IH4: =((1/'1D Vectors'!B16))*(('1D Vectors'!B14*'Risk-return'!IH3^2-2*'1D Vectors'!B8*'Risk-return'!IH3+'1D Vectors'!B11)) -> 0.002765382375 | II4: =((1/'1D Vectors'!B16))*(('1D Vectors'!B14*'Risk-return'!II3^2-2*'1D Vectors'!B8*'Risk-return'!II3+'1D Vectors'!B11)) -> 0.002784025587 | IJ4: =((1/'1D Vectors'!B16))*(('1D Vectors'!B14*'Risk-return'!IJ3^2-2*'1D Vectors'!B8*'Risk-return'!IJ3+'1D Vectors'!B11)) -> 0.002802763845 | IK4: =((1/'1D Vectors'!B16))*(('1D Vectors'!B14*'Risk-return'!IK3^2-2*'1D Vectors'!B8*'Risk-return'!IK3+'1D Vectors'!B11)) -> 0.002821597149 | IL4: =((1/'1D Vectors'!B16))*(('1D Vectors'!B14*'Risk-return'!IL3^2-2*'1D Vectors'!B8*'Risk-return'!IL3+'1D Vectors'!B11)) -> 0.002840525501 | IM4: =((1/'1D Vectors'!B16))*(('1D Vectors'!B14*'Risk-return'!IM3^2-2*'1D Vectors'!B8*'Risk-return'!IM3+'1D Vectors'!B11)) -> 0.002859548899 | IN4: =((1/'1D Vectors'!B16))*(('1D Vectors'!B14*'Risk-return'!IN3^2-2*'1D Vectors'!B8*'Risk-return'!IN3+'1D Vectors'!B11)) -> 0.002878667343 | IO4: =((1/'1D Vectors'!B16))*(('1D Vectors'!B14*'Risk-return'!IO3^2-2*'1D Vectors'!B8*'Risk-return'!IO3+'1D Vectors'!B11)) -> 0.002897880835 | IP4: =((1/'1D Vectors'!B16))*(('1D Vectors'!B14*'Risk-return'!IP3^2-2*'1D Vectors'!B8*'Risk-return'!IP3+'1D Vectors'!B11)) -> 0.002917189372 | IQ4: =((1/'1D Vectors'!B16))*(('1D Vectors'!B14*'Risk-return'!IQ3^2-2*'1D Vectors'!B8*'Risk-return'!IQ3+'1D Vectors'!B11)) -> 0.002936592957 | IR4: =((1/'1D Vectors'!B16))*(('1D Vectors'!B14*'Risk-return'!IR3^2-2*'1D Vectors'!B8*'Risk-return'!IR3+'1D Vectors'!B11)) -> 0.002956091588 | IS4: =((1/'1D Vectors'!B16))*(('1D Vectors'!B14*'Risk-return'!IS3^2-2*'1D Vectors'!B8*'Risk-return'!IS3+'1D Vectors'!B11)) -> 0.002975685266 | IT4: =((1/'1D Vectors'!B16))*(('1D Vectors'!B14*'Risk-return'!IT3^2-2*'1D Vectors'!B8*'Risk-return'!IT3+'1D Vectors'!B11)) -> 0.002995373991 | IU4: =((1/'1D Vectors'!B16))*(('1D Vectors'!B14*'Risk-return'!IU3^2-2*'1D Vectors'!B8*'Risk-return'!IU3+'1D Vectors'!B11)) -> 0.003015157762 | IV4: =((1/'1D Vectors'!B16))*(('1D Vectors'!B14*'Risk-return'!IV3^2-2*'1D Vectors'!B8*'Risk-return'!IV3+'1D Vectors'!B11)) -> 0.00303503658 | IW4: =((1/'1D Vectors'!B16))*(('1D Vectors'!B14*'Risk-return'!IW3^2-2*'1D Vectors'!B8*'Risk-return'!IW3+'1D Vectors'!B11)) -> 0.003055010445 | IX4: =((1/'1D Vectors'!B16))*(('1D Vectors'!B14*'Risk-return'!IX3^2-2*'1D Vectors'!B8*'Risk-return'!IX3+'1D Vectors'!B11)) -> 0.003075079356 | IY4: =((1/'1D Vectors'!B16))*(('1D Vectors'!B14*'Risk-return'!IY3^2-2*'1D Vectors'!B8*'Risk-return'!IY3+'1D Vectors'!B11)) -> 0.003095243314 | IZ4: =((1/'1D Vectors'!B16))*(('1D Vectors'!B14*'Risk-return'!IZ3^2-2*'1D Vectors'!B8*'Risk-return'!IZ3+'1D Vectors'!B11)) -> 0.003115502319 | JA4: =((1/'1D Vectors'!B16))*(('1D Vectors'!B14*'Risk-return'!JA3^2-2*'1D Vectors'!B8*'Risk-return'!JA3+'1D Vectors'!B11)) -> 0.00313585637 | JB4: =((1/'1D Vectors'!B16))*(('1D Vectors'!B14*'Risk-return'!JB3^2-2*'1D Vectors'!B8*'Risk-return'!JB3+'1D Vectors'!B11)) -> 0.003156305468 | JC4: =((1/'1D Vectors'!B16))*(('1D Vectors'!B14*'Risk-return'!JC3^2-2*'1D Vectors'!B8*'Risk-return'!JC3+'1D Vectors'!B11)) -> 0.003176849612 | JD4: =((1/'1D Vectors'!B16))*(('1D Vectors'!B14*'Risk-return'!JD3^2-2*'1D Vectors'!B8*'Risk-return'!JD3+'1D Vectors'!B11)) -> 0.003197488804 | JE4: =((1/'1D Vectors'!B16))*(('1D Vectors'!B14*'Risk-return'!JE3^2-2*'1D Vectors'!B8*'Risk-return'!JE3+'1D Vectors'!B11)) -> 0.003218223042 | JF4: =((1/'1D Vectors'!B16))*(('1D Vectors'!B14*'Risk-return'!JF3^2-2*'1D Vectors'!B8*'Risk-return'!JF3+'1D Vectors'!B11)) -> 0.003239052326 | JG4: =((1/'1D Vectors'!B16))*(('1D Vectors'!B14*'Risk-return'!JG3^2-2*'1D Vectors'!B8*'Risk-return'!JG3+'1D Vectors'!B11)) -> 0.003259976657 | JH4: =((1/'1D Vectors'!B16))*(('1D Vectors'!B14*'Risk-return'!JH3^2-2*'1D Vectors'!B8*'Risk-return'!JH3+'1D Vectors'!B11)) -> 0.003280996035 | JI4: =((1/'1D Vectors'!B16))*(('1D Vectors'!B14*'Risk-return'!JI3^2-2*'1D Vectors'!B8*'Risk-return'!JI3+'1D Vectors'!B11)) -> 0.00330211046 | JJ4: =((1/'1D Vectors'!B16))*(('1D Vectors'!B14*'Risk-return'!JJ3^2-2*'1D Vectors'!B8*'Risk-return'!JJ3+'1D Vectors'!B11)) -> 0.003323319931 | JK4: =((1/'1D Vectors'!B16))*(('1D Vectors'!B14*'Risk-return'!JK3^2-2*'1D Vectors'!B8*'Risk-return'!JK3+'1D Vectors'!B11)) -> 0.003344624449 | JL4: =((1/'1D Vectors'!B16))*(('1D Vectors'!B14*'Risk-return'!JL3^2-2*'1D Vectors'!B8*'Risk-return'!JL3+'1D Vectors'!B11)) -> 0.003366024014 | JM4: =((1/'1D Vectors'!B16))*(('1D Vectors'!B14*'Risk-return'!JM3^2-2*'1D Vectors'!B8*'Risk-return'!JM3+'1D Vectors'!B11)) -> 0.003387518625 | JN4: =((1/'1D Vectors'!B16))*(('1D Vectors'!B14*'Risk-return'!JN3^2-2*'1D Vectors'!B8*'Risk-return'!JN3+'1D Vectors'!B11)) -> 0.003409108283 | JO4: =((1/'1D Vectors'!B16))*(('1D Vectors'!B14*'Risk-return'!JO3^2-2*'1D Vectors'!B8*'Risk-return'!JO3+'1D Vectors'!B11)) -> 0.003430792987 | JP4: =((1/'1D Vectors'!B16))*(('1D Vectors'!B14*'Risk-return'!JP3^2-2*'1D Vectors'!B8*'Risk-return'!JP3+'1D Vectors'!B11)) -> 0.003452572739 | JQ4: =((1/'1D Vectors'!B16))*(('1D Vectors'!B14*'Risk-return'!JQ3^2-2*'1D Vectors'!B8*'Risk-return'!JQ3+'1D Vectors'!B11)) -> 0.003474447536 | JR4: =((1/'1D Vectors'!B16))*(('1D Vectors'!B14*'Risk-return'!JR3^2-2*'1D Vectors'!B8*'Risk-return'!JR3+'1D Vectors'!B11)) -> 0.003496417381 | JS4: =((1/'1D Vectors'!B16))*(('1D Vectors'!B14*'Risk-return'!JS3^2-2*'1D Vectors'!B8*'Risk-return'!JS3+'1D Vectors'!B11)) -> 0.003518482272 | JT4: =((1/'1D Vectors'!B16))*(('1D Vectors'!B14*'Risk-return'!JT3^2-2*'1D Vectors'!B8*'Risk-return'!JT3+'1D Vectors'!B11)) -> 0.00354064221 | JU4: =((1/'1D Vectors'!B16))*(('1D Vectors'!B14*'Risk-return'!JU3^2-2*'1D Vectors'!B8*'Risk-return'!JU3+'1D Vectors'!B11)) -> 0.003562897195 | JV4: =((1/'1D Vectors'!B16))*(('1D Vectors'!B14*'Risk-return'!JV3^2-2*'1D Vectors'!B8*'Risk-return'!JV3+'1D Vectors'!B11)) -> 0.003585247226 | JW4: =((1/'1D Vectors'!B16))*(('1D Vectors'!B14*'Risk-return'!JW3^2-2*'1D Vectors'!B8*'Risk-return'!JW3+'1D Vectors'!B11)) -> 0.003607692304 | JX4: =((1/'1D Vectors'!B16))*(('1D Vectors'!B14*'Risk-return'!JX3^2-2*'1D Vectors'!B8*'Risk-return'!JX3+'1D Vectors'!B11)) -> 0.003630232428 | JY4: =((1/'1D Vectors'!B16))*(('1D Vectors'!B14*'Risk-return'!JY3^2-2*'1D Vectors'!B8*'Risk-return'!JY3+'1D Vectors'!B11)) -> 0.003652867599 | JZ4: =((1/'1D Vectors'!B16))*(('1D Vectors'!B14*'Risk-return'!JZ3^2-2*'1D Vectors'!B8*'Risk-return'!JZ3+'1D Vectors'!B11)) -> 0.003675597817 | KA4: =((1/'1D Vectors'!B16))*(('1D Vectors'!B14*'Risk-return'!KA3^2-2*'1D Vectors'!B8*'Risk-return'!KA3+'1D Vectors'!B11)) -> 0.003698423082 | KB4: =((1/'1D Vectors'!B16))*(('1D Vectors'!B14*'Risk-return'!KB3^2-2*'1D Vectors'!B8*'Risk-return'!KB3+'1D Vectors'!B11)) -> 0.003721343393 | KC4: =((1/'1D Vectors'!B16))*(('1D Vectors'!B14*'Risk-return'!KC3^2-2*'1D Vectors'!B8*'Risk-return'!KC3+'1D Vectors'!B11)) -> 0.003744358751 | KD4: =((1/'1D Vectors'!B16))*(('1D Vectors'!B14*'Risk-return'!KD3^2-2*'1D Vectors'!B8*'Risk-return'!KD3+'1D Vectors'!B11)) -> 0.003767469155 | KE4: =((1/'1D Vectors'!B16))*(('1D Vectors'!B14*'Risk-return'!KE3^2-2*'1D Vectors'!B8*'Risk-return'!KE3+'1D Vectors'!B11)) -> 0.003790674607 | KF4: =((1/'1D Vectors'!B16))*(('1D Vectors'!B14*'Risk-return'!KF3^2-2*'1D Vectors'!B8*'Risk-return'!KF3+'1D Vectors'!B11)) -> 0.003813975104 | KG4: =((1/'1D Vectors'!B16))*(('1D Vectors'!B14*'Risk-return'!KG3^2-2*'1D Vectors'!B8*'Risk-return'!KG3+'1D Vectors'!B11)) -> 0.003837370649 | KH4: =((1/'1D Vectors'!B16))*(('1D Vectors'!B14*'Risk-return'!KH3^2-2*'1D Vectors'!B8*'Risk-return'!KH3+'1D Vectors'!B11)) -> 0.00386086124 | KI4: =((1/'1D Vectors'!B16))*(('1D Vectors'!B14*'Risk-return'!KI3^2-2*'1D Vectors'!B8*'Risk-return'!KI3+'1D Vectors'!B11)) -> 0.003884446878 | KJ4: =((1/'1D Vectors'!B16))*(('1D Vectors'!B14*'Risk-return'!KJ3^2-2*'1D Vectors'!B8*'Risk-return'!KJ3+'1D Vectors'!B11)) -> 0.003908127562 | KK4: =((1/'1D Vectors'!B16))*(('1D Vectors'!B14*'Risk-return'!KK3^2-2*'1D Vectors'!B8*'Risk-return'!KK3+'1D Vectors'!B11)) -> 0.003931903294 | KL4: =((1/'1D Vectors'!B16))*(('1D Vectors'!B14*'Risk-return'!KL3^2-2*'1D Vectors'!B8*'Risk-return'!KL3+'1D Vectors'!B11)) -> 0.003955774071 | KM4: =((1/'1D Vectors'!B16))*(('1D Vectors'!B14*'Risk-return'!KM3^2-2*'1D Vectors'!B8*'Risk-return'!KM3+'1D Vectors'!B11)) -> 0.003979739896 | KN4: =((1/'1D Vectors'!B16))*(('1D Vectors'!B14*'Risk-return'!KN3^2-2*'1D Vectors'!B8*'Risk-return'!KN3+'1D Vectors'!B11)) -> 0.004003800767 | KO4: =((1/'1D Vectors'!B16))*(('1D Vectors'!B14*'Risk-return'!KO3^2-2*'1D Vectors'!B8*'Risk-return'!KO3+'1D Vectors'!B11)) -> 0.004027956685 | KP4: =((1/'1D Vectors'!B16))*(('1D Vectors'!B14*'Risk-return'!KP3^2-2*'1D Vectors'!B8*'Risk-return'!KP3+'1D Vectors'!B11)) -> 0.004052207649 | KQ4: =((1/'1D Vectors'!B16))*(('1D Vectors'!B14*'Risk-return'!KQ3^2-2*'1D Vectors'!B8*'Risk-return'!KQ3+'1D Vectors'!B11)) -> 0.00407655366 | KR4: =((1/'1D Vectors'!B16))*(('1D Vectors'!B14*'Risk-return'!KR3^2-2*'1D Vectors'!B8*'Risk-return'!KR3+'1D Vectors'!B11)) -> 0.004100994718 | KS4: =((1/'1D Vectors'!B16))*(('1D Vectors'!B14*'Risk-return'!KS3^2-2*'1D Vectors'!B8*'Risk-return'!KS3+'1D Vectors'!B11)) -> 0.004125530823 | KT4: =((1/'1D Vectors'!B16))*(('1D Vectors'!B14*'Risk-return'!KT3^2-2*'1D Vectors'!B8*'Risk-return'!KT3+'1D Vectors'!B11)) -> 0.004150161974 | KU4: =((1/'1D Vectors'!B16))*(('1D Vectors'!B14*'Risk-return'!KU3^2-2*'1D Vectors'!B8*'Risk-return'!KU3+'1D Vectors'!B11)) -> 0.004174888172 | KV4: =((1/'1D Vectors'!B16))*(('1D Vectors'!B14*'Risk-return'!KV3^2-2*'1D Vectors'!B8*'Risk-return'!KV3+'1D Vectors'!B11)) -> 0.004199709416 | KW4: =((1/'1D Vectors'!B16))*(('1D Vectors'!B14*'Risk-return'!KW3^2-2*'1D Vectors'!B8*'Risk-return'!KW3+'1D Vectors'!B11)) -> 0.004224625707 | KX4: =((1/'1D Vectors'!B16))*(('1D Vectors'!B14*'Risk-return'!KX3^2-2*'1D Vectors'!B8*'Risk-return'!KX3+'1D Vectors'!B11)) -> 0.004249637045 | KY4: =((1/'1D Vectors'!B16))*(('1D Vectors'!B14*'Risk-return'!KY3^2-2*'1D Vectors'!B8*'Risk-return'!KY3+'1D Vectors'!B11)) -> 0.00427474343 | KZ4: =((1/'1D Vectors'!B16))*(('1D Vectors'!B14*'Risk-return'!KZ3^2-2*'1D Vectors'!B8*'Risk-return'!KZ3+'1D Vectors'!B11)) -> 0.004299944861 | LA4: =((1/'1D Vectors'!B16))*(('1D Vectors'!B14*'Risk-return'!LA3^2-2*'1D Vectors'!B8*'Risk-return'!LA3+'1D Vectors'!B11)) -> 0.004325241338 | LB4: =((1/'1D Vectors'!B16))*(('1D Vectors'!B14*'Risk-return'!LB3^2-2*'1D Vectors'!B8*'Risk-return'!LB3+'1D Vectors'!B11)) -> 0.004350633337 | LC4: =((1/'1D Vectors'!B16))*(('1D Vectors'!B14*'Risk-return'!LC3^2-2*'1D Vectors'!B8*'Risk-return'!LC3+'1D Vectors'!B11)) -> 0.004376120385 | LD4: =((1/'1D Vectors'!B16))*(('1D Vectors'!B14*'Risk-return'!LD3^2-2*'1D Vectors'!B8*'Risk-return'!LD3+'1D Vectors'!B11)) -> 0.004401702484 | LE4: =((1/'1D Vectors'!B16))*(('1D Vectors'!B14*'Risk-return'!LE3^2-2*'1D Vectors'!B8*'Risk-return'!LE3+'1D Vectors'!B11)) -> 0.004427379633 | LF4: =((1/'1D Vectors'!B16))*(('1D Vectors'!B14*'Risk-return'!LF3^2-2*'1D Vectors'!B8*'Risk-return'!LF3+'1D Vectors'!B11)) -> 0.004453151832 | LG4: =((1/'1D Vectors'!B16))*(('1D Vectors'!B14*'Risk-return'!LG3^2-2*'1D Vectors'!B8*'Risk-return'!LG3+'1D Vectors'!B11)) -> 0.004479019081 | LH4: =((1/'1D Vectors'!B16))*(('1D Vectors'!B14*'Risk-return'!LH3^2-2*'1D Vectors'!B8*'Risk-return'!LH3+'1D Vectors'!B11)) -> 0.004504981381 | LI4: =((1/'1D Vectors'!B16))*(('1D Vectors'!B14*'Risk-return'!LI3^2-2*'1D Vectors'!B8*'Risk-return'!LI3+'1D Vectors'!B11)) -> 0.00453103873 | LJ4: =((1/'1D Vectors'!B16))*(('1D Vectors'!B14*'Risk-return'!LJ3^2-2*'1D Vectors'!B8*'Risk-return'!LJ3+'1D Vectors'!B11)) -> 0.00455719113 | LK4: =((1/'1D Vectors'!B16))*(('1D Vectors'!B14*'Risk-return'!LK3^2-2*'1D Vectors'!B8*'Risk-return'!LK3+'1D Vectors'!B11)) -> 0.004583438581 | LL4: =((1/'1D Vectors'!B16))*(('1D Vectors'!B14*'Risk-return'!LL3^2-2*'1D Vectors'!B8*'Risk-return'!LL3+'1D Vectors'!B11)) -> 0.004609781081 | LM4: =((1/'1D Vectors'!B16))*(('1D Vectors'!B14*'Risk-return'!LM3^2-2*'1D Vectors'!B8*'Risk-return'!LM3+'1D Vectors'!B11)) -> 0.004636218631 | LN4: =((1/'1D Vectors'!B16))*(('1D Vectors'!B14*'Risk-return'!LN3^2-2*'1D Vectors'!B8*'Risk-return'!LN3+'1D Vectors'!B11)) -> 0.004662751232 | LO4: =((1/'1D Vectors'!B16))*(('1D Vectors'!B14*'Risk-return'!LO3^2-2*'1D Vectors'!B8*'Risk-return'!LO3+'1D Vectors'!B11)) -> 0.004689378883 | LP4: =((1/'1D Vectors'!B16))*(('1D Vectors'!B14*'Risk-return'!LP3^2-2*'1D Vectors'!B8*'Risk-return'!LP3+'1D Vectors'!B11)) -> 0.004716101584 | LQ4: =((1/'1D Vectors'!B16))*(('1D Vectors'!B14*'Risk-return'!LQ3^2-2*'1D Vectors'!B8*'Risk-return'!LQ3+'1D Vectors'!B11)) -> 0.004742919336 | LR4: =((1/'1D Vectors'!B16))*(('1D Vectors'!B14*'Risk-return'!LR3^2-2*'1D Vectors'!B8*'Risk-return'!LR3+'1D Vectors'!B11)) -> 0.004769832137 | LS4: =((1/'1D Vectors'!B16))*(('1D Vectors'!B14*'Risk-return'!LS3^2-2*'1D Vectors'!B8*'Risk-return'!LS3+'1D Vectors'!B11)) -> 0.004796839989 | LT4: =((1/'1D Vectors'!B16))*(('1D Vectors'!B14*'Risk-return'!LT3^2-2*'1D Vectors'!B8*'Risk-return'!LT3+'1D Vectors'!B11)) -> 0.004823942891 | LU4: =((1/'1D Vectors'!B16))*(('1D Vectors'!B14*'Risk-return'!LU3^2-2*'1D Vectors'!B8*'Risk-return'!LU3+'1D Vectors'!B11)) -> 0.004851140843 | LV4: =((1/'1D Vectors'!B16))*(('1D Vectors'!B14*'Risk-return'!LV3^2-2*'1D Vectors'!B8*'Risk-return'!LV3+'1D Vectors'!B11)) -> 0.004878433845 | LW4: =((1/'1D Vectors'!B16))*(('1D Vectors'!B14*'Risk-return'!LW3^2-2*'1D Vectors'!B8*'Risk-return'!LW3+'1D Vectors'!B11)) -> 0.004905821898 | LX4: =((1/'1D Vectors'!B16))*(('1D Vectors'!B14*'Risk-return'!LX3^2-2*'1D Vectors'!B8*'Risk-return'!LX3+'1D Vectors'!B11)) -> 0.004933305001 | LY4: =((1/'1D Vectors'!B16))*(('1D Vectors'!B14*'Risk-return'!LY3^2-2*'1D Vectors'!B8*'Risk-return'!LY3+'1D Vectors'!B11)) -> 0.004960883154 | LZ4: =((1/'1D Vectors'!B16))*(('1D Vectors'!B14*'Risk-return'!LZ3^2-2*'1D Vectors'!B8*'Risk-return'!LZ3+'1D Vectors'!B11)) -> 0.004988556357 | MA4: =((1/'1D Vectors'!B16))*(('1D Vectors'!B14*'Risk-return'!MA3^2-2*'1D Vectors'!B8*'Risk-return'!MA3+'1D Vectors'!B11)) -> 0.00501632461 | MB4: =((1/'1D Vectors'!B16))*(('1D Vectors'!B14*'Risk-return'!MB3^2-2*'1D Vectors'!B8*'Risk-return'!MB3+'1D Vectors'!B11)) -> 0.005044187914 | MC4: =((1/'1D Vectors'!B16))*(('1D Vectors'!B14*'Risk-return'!MC3^2-2*'1D Vectors'!B8*'Risk-return'!MC3+'1D Vectors'!B11)) -> 0.005072146268 | MD4: =((1/'1D Vectors'!B16))*(('1D Vectors'!B14*'Risk-return'!MD3^2-2*'1D Vectors'!B8*'Risk-return'!MD3+'1D Vectors'!B11)) -> 0.005100199672 | ME4: =((1/'1D Vectors'!B16))*(('1D Vectors'!B14*'Risk-return'!ME3^2-2*'1D Vectors'!B8*'Risk-return'!ME3+'1D Vectors'!B11)) -> 0.005128348126 | MF4: =((1/'1D Vectors'!B16))*(('1D Vectors'!B14*'Risk-return'!MF3^2-2*'1D Vectors'!B8*'Risk-return'!MF3+'1D Vectors'!B11)) -> 0.005156591631 | MG4: =((1/'1D Vectors'!B16))*(('1D Vectors'!B14*'Risk-return'!MG3^2-2*'1D Vectors'!B8*'Risk-return'!MG3+'1D Vectors'!B11)) -> 0.005184930185 | MH4: =((1/'1D Vectors'!B16))*(('1D Vectors'!B14*'Risk-return'!MH3^2-2*'1D Vectors'!B8*'Risk-return'!MH3+'1D Vectors'!B11)) -> 0.00521336379 | MI4: =((1/'1D Vectors'!B16))*(('1D Vectors'!B14*'Risk-return'!MI3^2-2*'1D Vectors'!B8*'Risk-return'!MI3+'1D Vectors'!B11)) -> 0.005241892445 | MJ4: =((1/'1D Vectors'!B16))*(('1D Vectors'!B14*'Risk-return'!MJ3^2-2*'1D Vectors'!B8*'Risk-return'!MJ3+'1D Vectors'!B11)) -> 0.00527051615 | MK4: =((1/'1D Vectors'!B16))*(('1D Vectors'!B14*'Risk-return'!MK3^2-2*'1D Vectors'!B8*'Risk-return'!MK3+'1D Vectors'!B11)) -> 0.005299234906 | ML4: =((1/'1D Vectors'!B16))*(('1D Vectors'!B14*'Risk-return'!ML3^2-2*'1D Vectors'!B8*'Risk-return'!ML3+'1D Vectors'!B11)) -> 0.005328048711 | MM4: =((1/'1D Vectors'!B16))*(('1D Vectors'!B14*'Risk-return'!MM3^2-2*'1D Vectors'!B8*'Risk-return'!MM3+'1D Vectors'!B11)) -> 0.005356957567 | MN4: =((1/'1D Vectors'!B16))*(('1D Vectors'!B14*'Risk-return'!MN3^2-2*'1D Vectors'!B8*'Risk-return'!MN3+'1D Vectors'!B11)) -> 0.005385961473 | MO4: =((1/'1D Vectors'!B16))*(('1D Vectors'!B14*'Risk-return'!MO3^2-2*'1D Vectors'!B8*'Risk-return'!MO3+'1D Vectors'!B11)) -> 0.00541506043 | MP4: =((1/'1D Vectors'!B16))*(('1D Vectors'!B14*'Risk-return'!MP3^2-2*'1D Vectors'!B8*'Risk-return'!MP3+'1D Vectors'!B11)) -> 0.005444254436 | MQ4: =((1/'1D Vectors'!B16))*(('1D Vectors'!B14*'Risk-return'!MQ3^2-2*'1D Vectors'!B8*'Risk-return'!MQ3+'1D Vectors'!B11)) -> 0.005473543493 | MR4: =((1/'1D Vectors'!B16))*(('1D Vectors'!B14*'Risk-return'!MR3^2-2*'1D Vectors'!B8*'Risk-return'!MR3+'1D Vectors'!B11)) -> 0.0055029276 | MS4: =((1/'1D Vectors'!B16))*(('1D Vectors'!B14*'Risk-return'!MS3^2-2*'1D Vectors'!B8*'Risk-return'!MS3+'1D Vectors'!B11)) -> 0.005532406757 | MT4: =((1/'1D Vectors'!B16))*(('1D Vectors'!B14*'Risk-return'!MT3^2-2*'1D Vectors'!B8*'Risk-return'!MT3+'1D Vectors'!B11)) -> 0.005561980964 | MU4: =((1/'1D Vectors'!B16))*(('1D Vectors'!B14*'Risk-return'!MU3^2-2*'1D Vectors'!B8*'Risk-return'!MU3+'1D Vectors'!B11)) -> 0.005591650222 | MV4: =((1/'1D Vectors'!B16))*(('1D Vectors'!B14*'Risk-return'!MV3^2-2*'1D Vectors'!B8*'Risk-return'!MV3+'1D Vectors'!B11)) -> 0.005621414529 | MW4: =((1/'1D Vectors'!B16))*(('1D Vectors'!B14*'Risk-return'!MW3^2-2*'1D Vectors'!B8*'Risk-return'!MW3+'1D Vectors'!B11)) -> 0.005651273887 | MX4: =((1/'1D Vectors'!B16))*(('1D Vectors'!B14*'Risk-return'!MX3^2-2*'1D Vectors'!B8*'Risk-return'!MX3+'1D Vectors'!B11)) -> 0.005681228295 | MY4: =((1/'1D Vectors'!B16))*(('1D Vectors'!B14*'Risk-return'!MY3^2-2*'1D Vectors'!B8*'Risk-return'!MY3+'1D Vectors'!B11)) -> 0.005711277754 | MZ4: =((1/'1D Vectors'!B16))*(('1D Vectors'!B14*'Risk-return'!MZ3^2-2*'1D Vectors'!B8*'Risk-return'!MZ3+'1D Vectors'!B11)) -> 0.005741422262 | NA4: =((1/'1D Vectors'!B16))*(('1D Vectors'!B14*'Risk-return'!NA3^2-2*'1D Vectors'!B8*'Risk-return'!NA3+'1D Vectors'!B11)) -> 0.005771661821 | NB4: =((1/'1D Vectors'!B16))*(('1D Vectors'!B14*'Risk-return'!NB3^2-2*'1D Vectors'!B8*'Risk-return'!NB3+'1D Vectors'!B11)) -> 0.00580199643 | NC4: =((1/'1D Vectors'!B16))*(('1D Vectors'!B14*'Risk-return'!NC3^2-2*'1D Vectors'!B8*'Risk-return'!NC3+'1D Vectors'!B11)) -> 0.005832426089 | ND4: =((1/'1D Vectors'!B16))*(('1D Vectors'!B14*'Risk-return'!ND3^2-2*'1D Vectors'!B8*'Risk-return'!ND3+'1D Vectors'!B11)) -> 0.005862950798 | NE4: =((1/'1D Vectors'!B16))*(('1D Vectors'!B14*'Risk-return'!NE3^2-2*'1D Vectors'!B8*'Risk-return'!NE3+'1D Vectors'!B11)) -> 0.005893570558 | NF4: =((1/'1D Vectors'!B16))*(('1D Vectors'!B14*'Risk-return'!NF3^2-2*'1D Vectors'!B8*'Risk-return'!NF3+'1D Vectors'!B11)) -> 0.005924285367 | NG4: =((1/'1D Vectors'!B16))*(('1D Vectors'!B14*'Risk-return'!NG3^2-2*'1D Vectors'!B8*'Risk-return'!NG3+'1D Vectors'!B11)) -> 0.005955095227 | NH4: =((1/'1D Vectors'!B16))*(('1D Vectors'!B14*'Risk-return'!NH3^2-2*'1D Vectors'!B8*'Risk-return'!NH3+'1D Vectors'!B11)) -> 0.005986000138 | NI4: =((1/'1D Vectors'!B16))*(('1D Vectors'!B14*'Risk-return'!NI3^2-2*'1D Vectors'!B8*'Risk-return'!NI3+'1D Vectors'!B11)) -> 0.006017000098 | NJ4: =((1/'1D Vectors'!B16))*(('1D Vectors'!B14*'Risk-return'!NJ3^2-2*'1D Vectors'!B8*'Risk-return'!NJ3+'1D Vectors'!B11)) -> 0.006048095109 | NK4: =((1/'1D Vectors'!B16))*(('1D Vectors'!B14*'Risk-return'!NK3^2-2*'1D Vectors'!B8*'Risk-return'!NK3+'1D Vectors'!B11)) -> 0.006079285169 | NL4: =((1/'1D Vectors'!B16))*(('1D Vectors'!B14*'Risk-return'!NL3^2-2*'1D Vectors'!B8*'Risk-return'!NL3+'1D Vectors'!B11)) -> 0.00611057028 | NM4: =((1/'1D Vectors'!B16))*(('1D Vectors'!B14*'Risk-return'!NM3^2-2*'1D Vectors'!B8*'Risk-return'!NM3+'1D Vectors'!B11)) -> 0.006141950441 | NN4: =((1/'1D Vectors'!B16))*(('1D Vectors'!B14*'Risk-return'!NN3^2-2*'1D Vectors'!B8*'Risk-return'!NN3+'1D Vectors'!B11)) -> 0.006173425653 | NO4: =((1/'1D Vectors'!B16))*(('1D Vectors'!B14*'Risk-return'!NO3^2-2*'1D Vectors'!B8*'Risk-return'!NO3+'1D Vectors'!B11)) -> 0.006204995914 | NP4: =((1/'1D Vectors'!B16))*(('1D Vectors'!B14*'Risk-return'!NP3^2-2*'1D Vectors'!B8*'Risk-return'!NP3+'1D Vectors'!B11)) -> 0.006236661226 | NQ4: =((1/'1D Vectors'!B16))*(('1D Vectors'!B14*'Risk-return'!NQ3^2-2*'1D Vectors'!B8*'Risk-return'!NQ3+'1D Vectors'!B11)) -> 0.006268421588 | NR4: =((1/'1D Vectors'!B16))*(('1D Vectors'!B14*'Risk-return'!NR3^2-2*'1D Vectors'!B8*'Risk-return'!NR3+'1D Vectors'!B11)) -> 0.006300277 | NS4: =((1/'1D Vectors'!B16))*(('1D Vectors'!B14*'Risk-return'!NS3^2-2*'1D Vectors'!B8*'Risk-return'!NS3+'1D Vectors'!B11)) -> 0.006332227463 | NT4: =((1/'1D Vectors'!B16))*(('1D Vectors'!B14*'Risk-return'!NT3^2-2*'1D Vectors'!B8*'Risk-return'!NT3+'1D Vectors'!B11)) -> 0.006364272975 | NU4: =((1/'1D Vectors'!B16))*(('1D Vectors'!B14*'Risk-return'!NU3^2-2*'1D Vectors'!B8*'Risk-return'!NU3+'1D Vectors'!B11)) -> 0.006396413538 | NV4: =((1/'1D Vectors'!B16))*(('1D Vectors'!B14*'Risk-return'!NV3^2-2*'1D Vectors'!B8*'Risk-return'!NV3+'1D Vectors'!B11)) -> 0.006428649151 | NW4: =((1/'1D Vectors'!B16))*(('1D Vectors'!B14*'Risk-return'!NW3^2-2*'1D Vectors'!B8*'Risk-return'!NW3+'1D Vectors'!B11)) -> 0.006460979815 | NX4: =((1/'1D Vectors'!B16))*(('1D Vectors'!B14*'Risk-return'!NX3^2-2*'1D Vectors'!B8*'Risk-return'!NX3+'1D Vectors'!B11)) -> 0.006493405528 | NY4: =((1/'1D Vectors'!B16))*(('1D Vectors'!B14*'Risk-return'!NY3^2-2*'1D Vectors'!B8*'Risk-return'!NY3+'1D Vectors'!B11)) -> 0.006525926292 | NZ4: =((1/'1D Vectors'!B16))*(('1D Vectors'!B14*'Risk-return'!NZ3^2-2*'1D Vectors'!B8*'Risk-return'!NZ3+'1D Vectors'!B11)) -> 0.006558542105 | OA4: =((1/'1D Vectors'!B16))*(('1D Vectors'!B14*'Risk-return'!OA3^2-2*'1D Vectors'!B8*'Risk-return'!OA3+'1D Vectors'!B11)) -> 0.006591252969 | OB4: =((1/'1D Vectors'!B16))*(('1D Vectors'!B14*'Risk-return'!OB3^2-2*'1D Vectors'!B8*'Risk-return'!OB3+'1D Vectors'!B11)) -> 0.006624058884 | OC4: =((1/'1D Vectors'!B16))*(('1D Vectors'!B14*'Risk-return'!OC3^2-2*'1D Vectors'!B8*'Risk-return'!OC3+'1D Vectors'!B11)) -> 0.006656959848 | OD4: =((1/'1D Vectors'!B16))*(('1D Vectors'!B14*'Risk-return'!OD3^2-2*'1D Vectors'!B8*'Risk-return'!OD3+'1D Vectors'!B11)) -> 0.006689955863 | OE4: =((1/'1D Vectors'!B16))*(('1D Vectors'!B14*'Risk-return'!OE3^2-2*'1D Vectors'!B8*'Risk-return'!OE3+'1D Vectors'!B11)) -> 0.006723046928 | OF4: =((1/'1D Vectors'!B16))*(('1D Vectors'!B14*'Risk-return'!OF3^2-2*'1D Vectors'!B8*'Risk-return'!OF3+'1D Vectors'!B11)) -> 0.006756233043 | OG4: =((1/'1D Vectors'!B16))*(('1D Vectors'!B14*'Risk-return'!OG3^2-2*'1D Vectors'!B8*'Risk-return'!OG3+'1D Vectors'!B11)) -> 0.006789514208 | OH4: =((1/'1D Vectors'!B16))*(('1D Vectors'!B14*'Risk-return'!OH3^2-2*'1D Vectors'!B8*'Risk-return'!OH3+'1D Vectors'!B11)) -> 0.006822890424 | OI4: =((1/'1D Vectors'!B16))*(('1D Vectors'!B14*'Risk-return'!OI3^2-2*'1D Vectors'!B8*'Risk-return'!OI3+'1D Vectors'!B11)) -> 0.006856361689 | OJ4: =((1/'1D Vectors'!B16))*(('1D Vectors'!B14*'Risk-return'!OJ3^2-2*'1D Vectors'!B8*'Risk-return'!OJ3+'1D Vectors'!B11)) -> 0.006889928005 | OK4: =((1/'1D Vectors'!B16))*(('1D Vectors'!B14*'Risk-return'!OK3^2-2*'1D Vectors'!B8*'Risk-return'!OK3+'1D Vectors'!B11)) -> 0.006923589371 | OL4: =((1/'1D Vectors'!B16))*(('1D Vectors'!B14*'Risk-return'!OL3^2-2*'1D Vectors'!B8*'Risk-return'!OL3+'1D Vectors'!B11)) -> 0.006957345787 | OM4: =((1/'1D Vectors'!B16))*(('1D Vectors'!B14*'Risk-return'!OM3^2-2*'1D Vectors'!B8*'Risk-return'!OM3+'1D Vectors'!B11)) -> 0.006991197254 | ON4: =((1/'1D Vectors'!B16))*(('1D Vectors'!B14*'Risk-return'!ON3^2-2*'1D Vectors'!B8*'Risk-return'!ON3+'1D Vectors'!B11)) -> 0.007025143771 | OO4: =((1/'1D Vectors'!B16))*(('1D Vectors'!B14*'Risk-return'!OO3^2-2*'1D Vectors'!B8*'Risk-return'!OO3+'1D Vectors'!B11)) -> 0.007059185338 | OP4: =((1/'1D Vectors'!B16))*(('1D Vectors'!B14*'Risk-return'!OP3^2-2*'1D Vectors'!B8*'Risk-return'!OP3+'1D Vectors'!B11)) -> 0.007093321955 | OQ4: =((1/'1D Vectors'!B16))*(('1D Vectors'!B14*'Risk-return'!OQ3^2-2*'1D Vectors'!B8*'Risk-return'!OQ3+'1D Vectors'!B11)) -> 0.007127553622 | OR4: =((1/'1D Vectors'!B16))*(('1D Vectors'!B14*'Risk-return'!OR3^2-2*'1D Vectors'!B8*'Risk-return'!OR3+'1D Vectors'!B11)) -> 0.00716188034 | OS4: =((1/'1D Vectors'!B16))*(('1D Vectors'!B14*'Risk-return'!OS3^2-2*'1D Vectors'!B8*'Risk-return'!OS3+'1D Vectors'!B11)) -> 0.007196302107 | OT4: =((1/'1D Vectors'!B16))*(('1D Vectors'!B14*'Risk-return'!OT3^2-2*'1D Vectors'!B8*'Risk-return'!OT3+'1D Vectors'!B11)) -> 0.007230818925 | OU4: =((1/'1D Vectors'!B16))*(('1D Vectors'!B14*'Risk-return'!OU3^2-2*'1D Vectors'!B8*'Risk-return'!OU3+'1D Vectors'!B11)) -> 0.007265430793 | OV4: =((1/'1D Vectors'!B16))*(('1D Vectors'!B14*'Risk-return'!OV3^2-2*'1D Vectors'!B8*'Risk-return'!OV3+'1D Vectors'!B11)) -> 0.007300137712 | OW4: =((1/'1D Vectors'!B16))*(('1D Vectors'!B14*'Risk-return'!OW3^2-2*'1D Vectors'!B8*'Risk-return'!OW3+'1D Vectors'!B11)) -> 0.00733493968 | OX4: =((1/'1D Vectors'!B16))*(('1D Vectors'!B14*'Risk-return'!OX3^2-2*'1D Vectors'!B8*'Risk-return'!OX3+'1D Vectors'!B11)) -> 0.007369836699 | OY4: =((1/'1D Vectors'!B16))*(('1D Vectors'!B14*'Risk-return'!OY3^2-2*'1D Vectors'!B8*'Risk-return'!OY3+'1D Vectors'!B11)) -> 0.007404828768 | OZ4: =((1/'1D Vectors'!B16))*(('1D Vectors'!B14*'Risk-return'!OZ3^2-2*'1D Vectors'!B8*'Risk-return'!OZ3+'1D Vectors'!B11)) -> 0.007439915887 | PA4: =((1/'1D Vectors'!B16))*(('1D Vectors'!B14*'Risk-return'!PA3^2-2*'1D Vectors'!B8*'Risk-return'!PA3+'1D Vectors'!B11)) -> 0.007475098056 | PB4: =((1/'1D Vectors'!B16))*(('1D Vectors'!B14*'Risk-return'!PB3^2-2*'1D Vectors'!B8*'Risk-return'!PB3+'1D Vectors'!B11)) -> 0.007510375276 | PC4: =((1/'1D Vectors'!B16))*(('1D Vectors'!B14*'Risk-return'!PC3^2-2*'1D Vectors'!B8*'Risk-return'!PC3+'1D Vectors'!B11)) -> 0.007545747546 | PD4: =((1/'1D Vectors'!B16))*(('1D Vectors'!B14*'Risk-return'!PD3^2-2*'1D Vectors'!B8*'Risk-return'!PD3+'1D Vectors'!B11)) -> 0.007581214866 | PE4: =((1/'1D Vectors'!B16))*(('1D Vectors'!B14*'Risk-return'!PE3^2-2*'1D Vectors'!B8*'Risk-return'!PE3+'1D Vectors'!B11)) -> 0.007616777236 | PF4: =((1/'1D Vectors'!B16))*(('1D Vectors'!B14*'Risk-return'!PF3^2-2*'1D Vectors'!B8*'Risk-return'!PF3+'1D Vectors'!B11)) -> 0.007652434656 | PG4: =((1/'1D Vectors'!B16))*(('1D Vectors'!B14*'Risk-return'!PG3^2-2*'1D Vectors'!B8*'Risk-return'!PG3+'1D Vectors'!B11)) -> 0.007688187127 | PH4: =((1/'1D Vectors'!B16))*(('1D Vectors'!B14*'Risk-return'!PH3^2-2*'1D Vectors'!B8*'Risk-return'!PH3+'1D Vectors'!B11)) -> 0.007724034648 | PI4: =((1/'1D Vectors'!B16))*(('1D Vectors'!B14*'Risk-return'!PI3^2-2*'1D Vectors'!B8*'Risk-return'!PI3+'1D Vectors'!B11)) -> 0.007759977219 | PJ4: =((1/'1D Vectors'!B16))*(('1D Vectors'!B14*'Risk-return'!PJ3^2-2*'1D Vectors'!B8*'Risk-return'!PJ3+'1D Vectors'!B11)) -> 0.00779601484 | PK4: =((1/'1D Vectors'!B16))*(('1D Vectors'!B14*'Risk-return'!PK3^2-2*'1D Vectors'!B8*'Risk-return'!PK3+'1D Vectors'!B11)) -> 0.007832147511 | PL4: =((1/'1D Vectors'!B16))*(('1D Vectors'!B14*'Risk-return'!PL3^2-2*'1D Vectors'!B8*'Risk-return'!PL3+'1D Vectors'!B11)) -> 0.007868375233 | PM4: =((1/'1D Vectors'!B16))*(('1D Vectors'!B14*'Risk-return'!PM3^2-2*'1D Vectors'!B8*'Risk-return'!PM3+'1D Vectors'!B11)) -> 0.007904698005 | PN4: =((1/'1D Vectors'!B16))*(('1D Vectors'!B14*'Risk-return'!PN3^2-2*'1D Vectors'!B8*'Risk-return'!PN3+'1D Vectors'!B11)) -> 0.007941115827 | PO4: =((1/'1D Vectors'!B16))*(('1D Vectors'!B14*'Risk-return'!PO3^2-2*'1D Vectors'!B8*'Risk-return'!PO3+'1D Vectors'!B11)) -> 0.007977628699 | PP4: =((1/'1D Vectors'!B16))*(('1D Vectors'!B14*'Risk-return'!PP3^2-2*'1D Vectors'!B8*'Risk-return'!PP3+'1D Vectors'!B11)) -> 0.008014236622 | PQ4: =((1/'1D Vectors'!B16))*(('1D Vectors'!B14*'Risk-return'!PQ3^2-2*'1D Vectors'!B8*'Risk-return'!PQ3+'1D Vectors'!B11)) -> 0.008050939594 | PR4: =((1/'1D Vectors'!B16))*(('1D Vectors'!B14*'Risk-return'!PR3^2-2*'1D Vectors'!B8*'Risk-return'!PR3+'1D Vectors'!B11)) -> 0.008087737617 | PS4: =((1/'1D Vectors'!B16))*(('1D Vectors'!B14*'Risk-return'!PS3^2-2*'1D Vectors'!B8*'Risk-return'!PS3+'1D Vectors'!B11)) -> 0.00812463069 | PT4: =((1/'1D Vectors'!B16))*(('1D Vectors'!B14*'Risk-return'!PT3^2-2*'1D Vectors'!B8*'Risk-return'!PT3+'1D Vectors'!B11)) -> 0.008161618813 | PU4: =((1/'1D Vectors'!B16))*(('1D Vectors'!B14*'Risk-return'!PU3^2-2*'1D Vectors'!B8*'Risk-return'!PU3+'1D Vectors'!B11)) -> 0.008198701987 | PV4: =((1/'1D Vectors'!B16))*(('1D Vectors'!B14*'Risk-return'!PV3^2-2*'1D Vectors'!B8*'Risk-return'!PV3+'1D Vectors'!B11)) -> 0.00823588021 | PW4: =((1/'1D Vectors'!B16))*(('1D Vectors'!B14*'Risk-return'!PW3^2-2*'1D Vectors'!B8*'Risk-return'!PW3+'1D Vectors'!B11)) -> 0.008273153484 | PX4: =((1/'1D Vectors'!B16))*(('1D Vectors'!B14*'Risk-return'!PX3^2-2*'1D Vectors'!B8*'Risk-return'!PX3+'1D Vectors'!B11)) -> 0.008310521808 | PY4: =((1/'1D Vectors'!B16))*(('1D Vectors'!B14*'Risk-return'!PY3^2-2*'1D Vectors'!B8*'Risk-return'!PY3+'1D Vectors'!B11)) -> 0.008347985183 | PZ4: =((1/'1D Vectors'!B16))*(('1D Vectors'!B14*'Risk-return'!PZ3^2-2*'1D Vectors'!B8*'Risk-return'!PZ3+'1D Vectors'!B11)) -> 0.008385543607 | QA4: =((1/'1D Vectors'!B16))*(('1D Vectors'!B14*'Risk-return'!QA3^2-2*'1D Vectors'!B8*'Risk-return'!QA3+'1D Vectors'!B11)) -> 0.008423197082 | QB4: =((1/'1D Vectors'!B16))*(('1D Vectors'!B14*'Risk-return'!QB3^2-2*'1D Vectors'!B8*'Risk-return'!QB3+'1D Vectors'!B11)) -> 0.008460945607 | QC4: =((1/'1D Vectors'!B16))*(('1D Vectors'!B14*'Risk-return'!QC3^2-2*'1D Vectors'!B8*'Risk-return'!QC3+'1D Vectors'!B11)) -> 0.008498789182 | QD4: =((1/'1D Vectors'!B16))*(('1D Vectors'!B14*'Risk-return'!QD3^2-2*'1D Vectors'!B8*'Risk-return'!QD3+'1D Vectors'!B11)) -> 0.008536727807 | QE4: =((1/'1D Vectors'!B16))*(('1D Vectors'!B14*'Risk-return'!QE3^2-2*'1D Vectors'!B8*'Risk-return'!QE3+'1D Vectors'!B11)) -> 0.008574761483 | QF4: =((1/'1D Vectors'!B16))*(('1D Vectors'!B14*'Risk-return'!QF3^2-2*'1D Vectors'!B8*'Risk-return'!QF3+'1D Vectors'!B11)) -> 0.008612890208 | QG4: =((1/'1D Vectors'!B16))*(('1D Vectors'!B14*'Risk-return'!QG3^2-2*'1D Vectors'!B8*'Risk-return'!QG3+'1D Vectors'!B11)) -> 0.008651113984 | QH4: =((1/'1D Vectors'!B16))*(('1D Vectors'!B14*'Risk-return'!QH3^2-2*'1D Vectors'!B8*'Risk-return'!QH3+'1D Vectors'!B11)) -> 0.00868943281 | QI4: =((1/'1D Vectors'!B16))*(('1D Vectors'!B14*'Risk-return'!QI3^2-2*'1D Vectors'!B8*'Risk-return'!QI3+'1D Vectors'!B11)) -> 0.008727846687 | QJ4: =((1/'1D Vectors'!B16))*(('1D Vectors'!B14*'Risk-return'!QJ3^2-2*'1D Vectors'!B8*'Risk-return'!QJ3+'1D Vectors'!B11)) -> 0.008766355613 | QK4: =((1/'1D Vectors'!B16))*(('1D Vectors'!B14*'Risk-return'!QK3^2-2*'1D Vectors'!B8*'Risk-return'!QK3+'1D Vectors'!B11)) -> 0.00880495959 | QL4: =((1/'1D Vectors'!B16))*(('1D Vectors'!B14*'Risk-return'!QL3^2-2*'1D Vectors'!B8*'Risk-return'!QL3+'1D Vectors'!B11)) -> 0.008843658617 | QM4: =((1/'1D Vectors'!B16))*(('1D Vectors'!B14*'Risk-return'!QM3^2-2*'1D Vectors'!B8*'Risk-return'!QM3+'1D Vectors'!B11)) -> 0.008882452694 | QN4: =((1/'1D Vectors'!B16))*(('1D Vectors'!B14*'Risk-return'!QN3^2-2*'1D Vectors'!B8*'Risk-return'!QN3+'1D Vectors'!B11)) -> 0.008921341821 | QO4: =((1/'1D Vectors'!B16))*(('1D Vectors'!B14*'Risk-return'!QO3^2-2*'1D Vectors'!B8*'Risk-return'!QO3+'1D Vectors'!B11)) -> 0.008960325999 | QP4: =((1/'1D Vectors'!B16))*(('1D Vectors'!B14*'Risk-return'!QP3^2-2*'1D Vectors'!B8*'Risk-return'!QP3+'1D Vectors'!B11)) -> 0.008999405227 | QQ4: =((1/'1D Vectors'!B16))*(('1D Vectors'!B14*'Risk-return'!QQ3^2-2*'1D Vectors'!B8*'Risk-return'!QQ3+'1D Vectors'!B11)) -> 0.009038579505 | QR4: =((1/'1D Vectors'!B16))*(('1D Vectors'!B14*'Risk-return'!QR3^2-2*'1D Vectors'!B8*'Risk-return'!QR3+'1D Vectors'!B11)) -> 0.009077848833 | QS4: =((1/'1D Vectors'!B16))*(('1D Vectors'!B14*'Risk-return'!QS3^2-2*'1D Vectors'!B8*'Risk-return'!QS3+'1D Vectors'!B11)) -> 0.009117213211 | QT4: =((1/'1D Vectors'!B16))*(('1D Vectors'!B14*'Risk-return'!QT3^2-2*'1D Vectors'!B8*'Risk-return'!QT3+'1D Vectors'!B11)) -> 0.00915667264 | QU4: =((1/'1D Vectors'!B16))*(('1D Vectors'!B14*'Risk-return'!QU3^2-2*'1D Vectors'!B8*'Risk-return'!QU3+'1D Vectors'!B11)) -> 0.009196227119 | QV4: =((1/'1D Vectors'!B16))*(('1D Vectors'!B14*'Risk-return'!QV3^2-2*'1D Vectors'!B8*'Risk-return'!QV3+'1D Vectors'!B11)) -> 0.009235876648 | QW4: =((1/'1D Vectors'!B16))*(('1D Vectors'!B14*'Risk-return'!QW3^2-2*'1D Vectors'!B8*'Risk-return'!QW3+'1D Vectors'!B11)) -> 0.009275621227 | QX4: =((1/'1D Vectors'!B16))*(('1D Vectors'!B14*'Risk-return'!QX3^2-2*'1D Vectors'!B8*'Risk-return'!QX3+'1D Vectors'!B11)) -> 0.009315460856 | QY4: =((1/'1D Vectors'!B16))*(('1D Vectors'!B14*'Risk-return'!QY3^2-2*'1D Vectors'!B8*'Risk-return'!QY3+'1D Vectors'!B11)) -> 0.009355395536 | QZ4: =((1/'1D Vectors'!B16))*(('1D Vectors'!B14*'Risk-return'!QZ3^2-2*'1D Vectors'!B8*'Risk-return'!QZ3+'1D Vectors'!B11)) -> 0.009395425266 | RA4: =((1/'1D Vectors'!B16))*(('1D Vectors'!B14*'Risk-return'!RA3^2-2*'1D Vectors'!B8*'Risk-return'!RA3+'1D Vectors'!B11)) -> 0.009435550046 | RB4: =((1/'1D Vectors'!B16))*(('1D Vectors'!B14*'Risk-return'!RB3^2-2*'1D Vectors'!B8*'Risk-return'!RB3+'1D Vectors'!B11)) -> 0.009475769876 | RC4: =((1/'1D Vectors'!B16))*(('1D Vectors'!B14*'Risk-return'!RC3^2-2*'1D Vectors'!B8*'Risk-return'!RC3+'1D Vectors'!B11)) -> 0.009516084756 | RD4: =((1/'1D Vectors'!B16))*(('1D Vectors'!B14*'Risk-return'!RD3^2-2*'1D Vectors'!B8*'Risk-return'!RD3+'1D Vectors'!B11)) -> 0.009556494687 | RE4: =((1/'1D Vectors'!B16))*(('1D Vectors'!B14*'Risk-return'!RE3^2-2*'1D Vectors'!B8*'Risk-return'!RE3+'1D Vectors'!B11)) -> 0.009596999668 | RF4: =((1/'1D Vectors'!B16))*(('1D Vectors'!B14*'Risk-return'!RF3^2-2*'1D Vectors'!B8*'Risk-return'!RF3+'1D Vectors'!B11)) -> 0.009637599699 | RG4: =((1/'1D Vectors'!B16))*(('1D Vectors'!B14*'Risk-return'!RG3^2-2*'1D Vectors'!B8*'Risk-return'!RG3+'1D Vectors'!B11)) -> 0.00967829478 | RH4: =((1/'1D Vectors'!B16))*(('1D Vectors'!B14*'Risk-return'!RH3^2-2*'1D Vectors'!B8*'Risk-return'!RH3+'1D Vectors'!B11)) -> 0.009719084911 | RI4: =((1/'1D Vectors'!B16))*(('1D Vectors'!B14*'Risk-return'!RI3^2-2*'1D Vectors'!B8*'Risk-return'!RI3+'1D Vectors'!B11)) -> 0.009759970093 | RJ4: =((1/'1D Vectors'!B16))*(('1D Vectors'!B14*'Risk-return'!RJ3^2-2*'1D Vectors'!B8*'Risk-return'!RJ3+'1D Vectors'!B11)) -> 0.009800950325 | RK4: =((1/'1D Vectors'!B16))*(('1D Vectors'!B14*'Risk-return'!RK3^2-2*'1D Vectors'!B8*'Risk-return'!RK3+'1D Vectors'!B11)) -> 0.009842025607 | RL4: =((1/'1D Vectors'!B16))*(('1D Vectors'!B14*'Risk-return'!RL3^2-2*'1D Vectors'!B8*'Risk-return'!RL3+'1D Vectors'!B11)) -> 0.009883195939 | RM4: =((1/'1D Vectors'!B16))*(('1D Vectors'!B14*'Risk-return'!RM3^2-2*'1D Vectors'!B8*'Risk-return'!RM3+'1D Vectors'!B11)) -> 0.009924461322 | RN4: =((1/'1D Vectors'!B16))*(('1D Vectors'!B14*'Risk-return'!RN3^2-2*'1D Vectors'!B8*'Risk-return'!RN3+'1D Vectors'!B11)) -> 0.009965821754 | RO4: =((1/'1D Vectors'!B16))*(('1D Vectors'!B14*'Risk-return'!RO3^2-2*'1D Vectors'!B8*'Risk-return'!RO3+'1D Vectors'!B11)) -> 0.01000727724 | RP4: =((1/'1D Vectors'!B16))*(('1D Vectors'!B14*'Risk-return'!RP3^2-2*'1D Vectors'!B8*'Risk-return'!RP3+'1D Vectors'!B11)) -> 0.01004882777 | RQ4: =((1/'1D Vectors'!B16))*(('1D Vectors'!B14*'Risk-return'!RQ3^2-2*'1D Vectors'!B8*'Risk-return'!RQ3+'1D Vectors'!B11)) -> 0.01009047335 | RR4: =((1/'1D Vectors'!B16))*(('1D Vectors'!B14*'Risk-return'!RR3^2-2*'1D Vectors'!B8*'Risk-return'!RR3+'1D Vectors'!B11)) -> 0.01013221399 | RS4: =((1/'1D Vectors'!B16))*(('1D Vectors'!B14*'Risk-return'!RS3^2-2*'1D Vectors'!B8*'Risk-return'!RS3+'1D Vectors'!B11)) -> 0.01017404967 | RT4: =((1/'1D Vectors'!B16))*(('1D Vectors'!B14*'Risk-return'!RT3^2-2*'1D Vectors'!B8*'Risk-return'!RT3+'1D Vectors'!B11)) -> 0.0102159804 | RU4: =((1/'1D Vectors'!B16))*(('1D Vectors'!B14*'Risk-return'!RU3^2-2*'1D Vectors'!B8*'Risk-return'!RU3+'1D Vectors'!B11)) -> 0.01025800619 | RV4: =((1/'1D Vectors'!B16))*(('1D Vectors'!B14*'Risk-return'!RV3^2-2*'1D Vectors'!B8*'Risk-return'!RV3+'1D Vectors'!B11)) -> 0.01030012702 | RW4: =((1/'1D Vectors'!B16))*(('1D Vectors'!B14*'Risk-return'!RW3^2-2*'1D Vectors'!B8*'Risk-return'!RW3+'1D Vectors'!B11)) -> 0.01034234291 | RX4: =((1/'1D Vectors'!B16))*(('1D Vectors'!B14*'Risk-return'!RX3^2-2*'1D Vectors'!B8*'Risk-return'!RX3+'1D Vectors'!B11)) -> 0.01038465384 | RY4: =((1/'1D Vectors'!B16))*(('1D Vectors'!B14*'Risk-return'!RY3^2-2*'1D Vectors'!B8*'Risk-return'!RY3+'1D Vectors'!B11)) -> 0.01042705983 | RZ4: =((1/'1D Vectors'!B16))*(('1D Vectors'!B14*'Risk-return'!RZ3^2-2*'1D Vectors'!B8*'Risk-return'!RZ3+'1D Vectors'!B11)) -> 0.01046956086 | SA4: =((1/'1D Vectors'!B16))*(('1D Vectors'!B14*'Risk-return'!SA3^2-2*'1D Vectors'!B8*'Risk-return'!SA3+'1D Vectors'!B11)) -> 0.01051215695 | SB4: =((1/'1D Vectors'!B16))*(('1D Vectors'!B14*'Risk-return'!SB3^2-2*'1D Vectors'!B8*'Risk-return'!SB3+'1D Vectors'!B11)) -> 0.01055484808 | SC4: =((1/'1D Vectors'!B16))*(('1D Vectors'!B14*'Risk-return'!SC3^2-2*'1D Vectors'!B8*'Risk-return'!SC3+'1D Vectors'!B11)) -> 0.01059763427 | SD4: =((1/'1D Vectors'!B16))*(('1D Vectors'!B14*'Risk-return'!SD3^2-2*'1D Vectors'!B8*'Risk-return'!SD3+'1D Vectors'!B11)) -> 0.0106405155 | SE4: =((1/'1D Vectors'!B16))*(('1D Vectors'!B14*'Risk-return'!SE3^2-2*'1D Vectors'!B8*'Risk-return'!SE3+'1D Vectors'!B11)) -> 0.01068349179 | SF4: =((1/'1D Vectors'!B16))*(('1D Vectors'!B14*'Risk-return'!SF3^2-2*'1D Vectors'!B8*'Risk-return'!SF3+'1D Vectors'!B11)) -> 0.01072656313 | SG4: =((1/'1D Vectors'!B16))*(('1D Vectors'!B14*'Risk-return'!SG3^2-2*'1D Vectors'!B8*'Risk-return'!SG3+'1D Vectors'!B11)) -> 0.001044024533
A6: Weights
